Workbook

Sheet Design the AEF circuit
A1: TPSF12C1/-Q1 & TPSF12C3/-Q1 Common-Mode Active EMI Filter (AEF) Design Tool
B3: About | F3: = Input Box | I3: TERMS OF USE
A6: Step 1: Select system type - single or three phase
A7: System type?
A10: Step 2: Enter CM choke and Y-capacitor data
A11: CM choke model? | E11: ® | F11: =IF(CMdata=1,"Enter CM choke impedance parameters here:","Enter CM choke impedance (magnitude & phase) data vs. frequency in the ""CM choke"" tab") -> Enter CM choke impedance (magnitude & phase) data vs. frequency in the "CM choke" tab | J11: =IF(F9="Simple Model: L || R || C","","") ->  | K11: =IF(F9="Simple Model: L || R || C","","") -> 
F12: CM choke model #1 → | G12: Inductance, LCM [mH] | H12: Resistance, RPAR [kW] | I12: Capacitance, CPAR [pF]
A13: Grid-side Y-capacitors (each) | F13: Grid-side choke, LCM1 | G13: 1 | H13: 5.5 | I13: 11
A14: Capacitance | C14: 0.1 | D14: nF | F14: Regulator-side choke, LCM2 | G14: 10 | H14: 42.4 | I14: 35
A15: ESR | C15: 5 | D15: Ω
A16: ESL | C16: 15 | D16: nH
A18: Regulator-side Y-capacitors (each)
A19: Capacitance | C19: 2.2 | D19: nF
A20: ESR | C20: 5 | D20: Ω
A21: ESL | C21: 15 | D21: nH
A23: Step 3: Enter source impedances
A24: Grid source impedance (each power line)
A25: LGRID | D25: µH
A26: RGRID | C26: 10 | D26: mΩ
A27: LISN present? | C27: 10
A29: Regulator CM noise source impedance (parasitic)
A30: CPAR | C30: 100 | D30: pF
A31: RPAR | C31: 10 | D31: mΩ
A32: LPAR | C32: 10 | D32: nH
A34: Step 4: Enter SENSE and INJECT capacitor parameters
A35: Sense capacitors - CSENx (each)
A36: Capacitance | C36: 0.68 | D36: nF
A37: ESR | C37: 10 | D37: Ω
A38: ESL | C38: 15 | D38: nH
A40: Inject capacitor - CINJ
A41: Capacitance | C41: 4.7 | D41: nF
A42: ESR | C42: 5 | D42: Ω
A43: ESL | C43: 15 | D43: nH
A45: Step 5: Set the COMP1-to-COMP2 component values
A46: RG | C46: 1.5 | D46: kΩ
A47: CG1 | C47: 10 | D47: nF
A48: CG2 | C48: 10 | D48: pF
A50: Step 6: Review damping network component values
B51: Calculated | C51: Selected
A52: RD1 | B52: ='Stability calculations'!B52/1000 -> 1 | C52: =B52 -> 1 | D52: kΩ
A53: CD2 | B53: =ROUND('Stability calculations'!B55*1000000000,1) -> 42 | C53: 42 | D53: nF
A54: CD1 | B54: =ROUND('Stability calculations'!B53*1000000000,1) -> 8.4 | C54: 8.4 | D54: nF
A55: RD2 | B55: ='Stability calculations'!B56 -> 200 | C55: 200 | D55: Ω
A56: RD1A | B56: ='Stability calculations'!B54 -> 10 | C56: 10 | D56: Ω
A57: RD3 | B57: ='Stability calculations'!B57 -> 700 | C57: 700 | D57: Ω
A58: CD3 | B58: =ROUND('Stability calculations'!B58*1000000000,2) -> 4.7 | C58: 4.7 | D58: nF
A59: fLFstability | C59: ='Stability calculations'!D35/1000 -> 18.9266 | D59: kHz
A60: fRD1-CD2 | C60: ='Stability calculations'!$D$46/1000 -> 3.789403407 | D60: kHz
A61: fRD1-CD1 | C61: ='Stability calculations'!$D$42/1000 -> 18.94701703 | D61: kHz
A62: fRD2-CD2 | C62: ='Stability calculations'!$D$43/1000 -> 18.94701703 | D62: kHz
A63: fRD3-CD3 | C63: ='Stability calculations'!$D$44/1000 -> 48.37536264 | D63: kHz
A64: fRD1A-CD1 | C64: ='Stability calculations'!$D$45/1000000 -> 1.894701703 | D64: MHz

Sheet Schematic management (hidden)
A1: =SETUP -> 1
A2: =CHOOSE(SETUP,"TPSF12C1","TPSF12C3_4wire","TPSF12C3_3wire") -> TPSF12C1

Sheet CM choke
A2: Enter/paste the CM choke impedance (magnitude & phase) data here:
C4: Grid-side CM choke | E4: Regulator-side CM choke
C5: LCM1 | E5: LCM2
A6: CM Choke Model #2 → | B6: Frequency [Hz] | C6: ZCM1 Magnitude [Ω] | D6: ZCM1 Phase [°] | E6: ZCM2 Magnitude [Ω] | F6: ZCM2 Phase [°]
A7: =IF(CMdata=1,"","Min. frequency") -> Min. frequency | B7: 1000 | C7: 12.5378 | D7: 67.2251 | E7: 51.3385 | F7: 79.7848
A8: =IF(CMdata=1,"",_xlfn.CONCAT(MIN(B7:B2106)/1000," kHz")) -> 1 kHz | B8: 1026.845608 | C8: 12.8157 | D8: 67.8703 | E8: 52.8981 | F8: 79.989
A9: =IF(CMdata=1,"","Max. frequency") -> Max. frequency | B9: 1054.411903 | C9: 13.0805 | D9: 67.8748 | E9: 54.1489 | F9: 79.5482
A10: =IF(CMdata=1,"",_xlfn.CONCAT(MAX(B7:B2106)/1000000," MHz")) -> 40 MHz | B10: 1082.718232 | C10: 13.5098 | D10: 67.874 | E10: 55.4699 | F10: 79.5679
B11: 1111.784461 | C11: 13.8375 | D11: 67.9213 | E11: 56.6572 | F11: 79.391
B12: 1141.630991 | C12: 14.1866 | D12: 67.9283 | E12: 58.1721 | F12: 79.346
B13: 1172.27877 | C13: 14.494 | D13: 67.9043 | E13: 59.7048 | F13: 79.3459
B14: 1203.749306 | C14: 14.767 | D14: 67.7766 | E14: 61.2857 | F14: 79.2401
B15: 1236.064689 | C15: 15.0994 | D15: 67.5555 | E15: 62.8796 | F15: 79.3791
B16: 1269.247597 | C16: 15.3812 | D16: 67.6369 | E16: 64.1351 | F16: 79.0088
B17: 1303.321321 | C17: 15.8874 | D17: 68.041 | E17: 65.3331 | F17: 78.8265
B18: 1338.309774 | C18: 16.1211 | D18: 67.832 | E18: 67.1792 | F18: 78.7307
B19: 1374.237514 | C19: 16.549 | D19: 67.5128 | E19: 68.9073 | F19: 78.7962
B20: 1411.129756 | C20: 16.8531 | D20: 67.9015 | E20: 70.77 | F20: 78.4399
B21: 1449.012392 | C21: 17.3522 | D21: 68.0078 | E21: 72.2298 | F21: 78.4191
B22: 1487.912011 | C22: 17.6198 | D22: 67.6003 | E22: 74.3969 | F22: 78.5098
B23: 1527.855914 | C23: 18.0127 | D23: 68.1549 | E23: 75.5068 | F23: 78.4034
B24: 1568.872135 | C24: 18.3807 | D24: 68.0353 | E24: 77.6781 | F24: 78.1253
B25: 1610.989462 | C25: 18.8637 | D25: 67.6219 | E25: 79.5213 | F25: 77.9767
B26: 1654.237454 | C26: 19.2679 | D26: 67.6957 | E26: 81.1385 | F26: 77.8062
B27: 1698.646465 | C27: 19.6612 | D27: 67.977 | E27: 83.5133 | F27: 77.5259
B28: 1744.247662 | C28: 20.0276 | D28: 68.1471 | E28: 85.4905 | F28: 77.5717
B29: 1791.073051 | C29: 20.4417 | D29: 67.5845 | E29: 87.219 | F29: 77.567
B30: 1839.155497 | C30: 21.0542 | D30: 68.2177 | E30: 88.7707 | F30: 77.6176
B31: 1888.528745 | C31: 21.3899 | D31: 67.711 | E31: 91.3656 | F31: 77.4215
B32: 1939.227447 | C32: 21.9421 | D32: 68.3304 | E32: 92.8641 | F32: 77.2857
B33: 1991.287188 | C33: 22.3687 | D33: 67.705 | E33: 95.9972 | F33: 76.9536
B34: 2044.744503 | C34: 22.822 | D34: 67.7877 | E34: 97.7684 | F34: 76.8156
B35: 2099.636913 | C35: 23.3509 | D35: 67.804 | E35: 100.137 | F35: 76.8407
B36: 2156.002943 | C36: 23.9269 | D36: 67.7983 | E36: 102.034 | F36: 76.61
B37: 2213.882153 | C37: 24.3962 | D37: 67.8221 | E37: 104.748 | F37: 76.4973
B38: 2273.315166 | C38: 24.8945 | D38: 67.8532 | E38: 107.187 | F38: 76.3315
B39: 2334.343695 | C39: 25.3477 | D39: 67.7435 | E39: 109.316 | F39: 76.1801
B40: 2397.010571 | C40: 25.8859 | D40: 67.5989 | E40: 111.884 | F40: 76.134
B41: 2461.359778 | C41: 26.5108 | D41: 67.6365 | E41: 115.14 | F41: 75.8955
B42: 2527.436478 | C42: 27.0633 | D42: 67.9169 | E42: 116.808 | F42: 75.6443
B43: 2595.287047 | C43: 27.6454 | D43: 67.7659 | E43: 119.645 | F43: 75.423
B44: 2664.959106 | C44: 28.1791 | D44: 67.5794 | E44: 122.423 | F44: 75.3852
B45: 2736.501554 | C45: 28.7873 | D45: 67.6221 | E45: 125.232 | F45: 75.3463
B46: 2809.964603 | C46: 29.417 | D46: 67.3863 | E46: 127.403 | F46: 75.0904
B47: 2885.399812 | C47: 30.0317 | D47: 67.6658 | E47: 131.019 | F47: 74.82
B48: 2962.860125 | C48: 30.5972 | D48: 67.5157 | E48: 134.256 | F48: 74.8434
B49: 3042.399907 | C49: 31.2215 | D49: 67.2541 | E49: 136.958 | F49: 74.8385
B50: 3124.074983 | C50: 31.9259 | D50: 67.2276 | E50: 139.624 | F50: 74.6431
B51: 3207.942676 | C51: 32.4904 | D51: 67.3211 | E51: 142.559 | F51: 74.3783
B52: 3294.061848 | C52: 33.3079 | D52: 67.1319 | E52: 145.902 | F52: 74.2095
B53: 3382.492942 | C53: 33.939 | D53: 67.2713 | E53: 149.146 | F53: 73.9004
B54: 3473.298022 | C54: 34.4627 | D54: 66.8998 | E54: 152.727 | F54: 73.9164
B55: 3566.54082 | C55: 35.4223 | D55: 66.9336 | E55: 155.166 | F55: 73.8595
B56: 3662.286777 | C56: 36.029 | D56: 66.8766 | E56: 159.206 | F56: 73.2689
B57: 3760.603093 | C57: 36.6712 | D57: 66.5884 | E57: 161.9 | F57: 73.478
B58: 3861.55877 | C58: 37.4658 | D58: 66.8443 | E58: 165.743 | F58: 73.0934
B59: 3965.224664 | C59: 38.4139 | D59: 66.7114 | E59: 168.924 | F59: 73.0217
B60: 4071.673532 | C60: 39.0338 | D60: 66.4487 | E60: 172.597 | F60: 72.8959
B61: 4180.980084 | C61: 39.8941 | D61: 66.2612 | E61: 176.934 | F61: 72.7765
B62: 4293.221037 | C62: 40.6309 | D62: 66.2543 | E62: 180.706 | F62: 72.5153
B63: 4408.475167 | C63: 41.4407 | D63: 66.0425 | E63: 184.792 | F63: 72.3791
B64: 4526.823364 | C64: 42.4305 | D64: 66.0972 | E64: 189.108 | F64: 72.118
B65: 4648.348691 | C65: 43.2034 | D65: 65.9026 | E65: 192.964 | F65: 72.0465
B66: 4773.136439 | C66: 44.0381 | D66: 65.3369 | E66: 196.386 | F66: 71.7941
B67: 4901.274189 | C67: 45 | D67: 65.2695 | E67: 199.687 | F67: 71.8531
B68: 5032.851876 | C68: 45.8844 | D68: 65.4491 | E68: 205.074 | F68: 71.562
B69: 5167.961846 | C69: 46.8004 | D69: 65.2189 | E69: 210.301 | F69: 71.3128
B70: 5306.698924 | C70: 47.6135 | D70: 65.2037 | E70: 213.487 | F70: 71.2206
B71: 5449.160485 | C71: 48.6964 | D71: 64.726 | E71: 218.01 | F71: 70.8824
B72: 5595.446512 | C72: 49.7353 | D72: 64.6833 | E72: 223.127 | F72: 70.6584
B73: 5745.659677 | C73: 50.5571 | D73: 64.2723 | E73: 227.099 | F73: 70.4165
B74: 5899.905405 | C74: 51.6102 | D74: 64.3047 | E74: 232.3 | F74: 70.1344
B75: 6058.291954 | C75: 52.6276 | D75: 64.0671 | E75: 236.506 | F75: 70.0201
B76: 6220.930486 | C76: 53.7603 | D76: 63.7346 | E76: 241.752 | F76: 69.7914
B77: 6387.935149 | C77: 54.7093 | D77: 63.545 | E77: 246.244 | F77: 69.6148
B78: 6559.423153 | C78: 55.73 | D78: 63.3075 | E78: 252.103 | F78: 69.4291
B79: 6735.514857 | C79: 56.634 | D79: 62.9893 | E79: 257.149 | F79: 69.1446
B80: 6916.33385 | C80: 57.9812 | D80: 62.6252 | E80: 262.214 | F80: 68.8323
B81: 7102.007039 | C81: 58.9873 | D81: 62.5367 | E81: 267.98 | F81: 68.6296
B82: 7292.664737 | C82: 60.1834 | D82: 62.187 | E82: 273.077 | F82: 68.5372
B83: 7488.440757 | C83: 61.1265 | D83: 61.8505 | E83: 280.397 | F83: 68.233
B84: 7689.472504 | C84: 62.7705 | D84: 61.7729 | E84: 283.597 | F84: 67.8757
B85: 7895.90107 | C85: 63.6782 | D85: 61.2403 | E85: 289.473 | F85: 67.6338
B86: 8107.871337 | C86: 64.7527 | D86: 61.0937 | E86: 296.318 | F86: 67.2459
B87: 8325.532074 | C87: 65.8624 | D87: 60.857 | E87: 302.547 | F87: 67.1468
B88: 8549.036046 | C88: 67.4743 | D88: 60.4161 | E88: 308.685 | F88: 66.9612
B89: 8778.540118 | C89: 68.4886 | D89: 60.2185 | E89: 313.868 | F89: 66.3069
B90: 9014.205367 | C90: 69.5692 | D90: 60.0109 | E90: 320.76 | F90: 66.2193
B91: 9256.197192 | C91: 70.9726 | D91: 59.6238 | E91: 327.73 | F91: 65.8736
B92: 9504.685436 | C92: 72.2542 | D92: 59.2615 | E92: 332.779 | F92: 65.8276
B93: 9759.844497 | C93: 73.4882 | D93: 58.943 | E93: 339.631 | F93: 65.6938
B94: 10021.85346 | C94: 74.792 | D94: 58.5356 | E94: 346.286 | F94: 65.1865
B95: 10290.89621 | C95: 76.2356 | D95: 58.2148 | E95: 353.891 | F95: 64.7799
B96: 10567.16158 | C96: 77.4671 | D96: 57.8887 | E96: 361.631 | F96: 64.2517
B97: 10850.84346 | C97: 78.6859 | D97: 57.5253 | E97: 367.169 | F97: 64.2729
B98: 11142.14095 | C98: 79.98 | D98: 57.0248 | E98: 373.371 | F98: 63.9561
B99: 11441.2585 | C99: 81.5259 | D99: 56.7365 | E99: 381.559 | F99: 63.5685
B100: 11748.40604 | C100: 82.7738 | D100: 56.3639 | E100: 388.944 | F100: 63.367
B101: 12063.79915 | C101: 84.2582 | D101: 56.0027 | E101: 395.841 | F101: 62.9313
B102: 12387.65917 | C102: 85.4929 | D102: 55.5402 | E102: 403.835 | F102: 62.6782
B103: 12720.21342 | C103: 87.0323 | D103: 55.2468 | E103: 410.401 | F103: 62.2628
B104: 13061.69528 | C104: 88.255 | D104: 54.7497 | E104: 417.251 | F104: 61.8915
B105: 13412.34444 | C105: 89.8825 | D105: 54.4655 | E105: 425.398 | F105: 61.5316
B106: 13772.40698 | C106: 91.129 | D106: 54.0676 | E106: 433.709 | F106: 61.2333
B107: 14142.13562 | C107: 92.5583 | D107: 53.7128 | E107: 441.417 | F107: 60.8198
B108: 14521.78986 | C108: 94.0744 | D108: 53.3158 | E108: 449.209 | F108: 60.3925
B109: 14911.63614 | C109: 95.5619 | D109: 52.9097 | E109: 457.013 | F109: 60.1265
B110: 15311.94808 | C110: 96.9719 | D110: 52.447 | E110: 465.569 | F110: 59.6988
B111: 15723.00664 | C111: 98.3682 | D111: 52.041 | E111: 472.76 | F111: 59.3633
B112: 16145.10031 | C112: 99.771 | D112: 51.6841 | E112: 481.538 | F112: 58.9303
B113: 16578.52535 | C113: 101.268 | D113: 51.1732 | E113: 489.476 | F113: 58.5113
B114: 17023.58595 | C114: 102.685 | D114: 50.8359 | E114: 498.803 | F114: 58.1359
B115: 17480.59446 | C115: 104.12 | D115: 50.4813 | E115: 506.43 | F115: 57.6493
B116: 17949.87165 | C116: 105.705 | D116: 50.0118 | E116: 514.729 | F116: 57.3801
B117: 18431.74688 | C117: 106.991 | D117: 49.632 | E117: 523.499 | F117: 56.9059
B118: 18926.55833 | C118: 108.524 | D118: 49.2105 | E118: 532.05 | F118: 56.537
B119: 19434.6533 | C119: 109.981 | D119: 48.9012 | E119: 540.524 | F119: 56.2227
B120: 19956.38839 | C120: 111.366 | D120: 48.4418 | E120: 548.826 | F120: 55.8408
B121: 20492.12977 | C121: 112.971 | D121: 48.0452 | E121: 557.622 | F121: 55.3755
B122: 21042.25346 | C122: 114.415 | D122: 47.6729 | E122: 566.098 | F122: 54.9518
B123: 21607.14555 | C123: 115.775 | D123: 47.2931 | E123: 574.669 | F123: 54.5991
B124: 22187.20252 | C124: 117.435 | D124: 46.8183 | E124: 583.788 | F124: 54.1731
B125: 22782.83146 | C125: 118.823 | D125: 46.5487 | E125: 592.647 | F125: 53.7861
B126: 23394.45043 | C126: 120.147 | D126: 46.1269 | E126: 600.771 | F126: 53.3807
B127: 24022.48868 | C127: 121.755 | D127: 45.6956 | E127: 610.025 | F127: 52.9422
B128: 24667.387 | C128: 123.165 | D128: 45.2932 | E128: 619.238 | F128: 52.5662
B129: 25329.59801 | C129: 124.494 | D129: 44.9921 | E129: 628.105 | F129: 52.1588
B130: 26009.58647 | C130: 125.971 | D130: 44.578 | E130: 636.959 | F130: 51.7352
B131: 26707.82964 | C131: 127.563 | D131: 44.2192 | E131: 645.617 | F131: 51.3498
B132: 27424.81757 | C132: 128.877 | D132: 43.9403 | E132: 654.629 | F132: 50.9401
B133: 28161.05348 | C133: 130.316 | D133: 43.553 | E133: 663.458 | F133: 50.5205
B134: 28917.05408 | C134: 131.814 | D134: 43.1333 | E134: 672.543 | F134: 50.1314
B135: 29693.34999 | C135: 133.242 | D135: 42.7977 | E135: 681.778 | F135: 49.7606
B136: 30490.48603 | C136: 134.739 | D136: 42.4919 | E136: 690.749 | F136: 49.3807
B137: 31309.02167 | C137: 136.191 | D137: 42.1271 | E137: 700.099 | F137: 48.9298
B138: 32149.5314 | C138: 137.581 | D138: 41.7407 | E138: 708.836 | F138: 48.5619
B139: 33012.60512 | C139: 138.996 | D139: 41.4144 | E139: 718.186 | F139: 48.2014
B140: 33898.84858 | C140: 140.413 | D140: 41.0699 | E140: 726.903 | F140: 47.8327
B141: 34808.88379 | C141: 141.942 | D141: 40.7399 | E141: 736.221 | F141: 47.4317
B142: 35743.34945 | C142: 143.338 | D142: 40.4296 | E142: 744.639 | F142: 47.0697
B143: 36702.9014 | C143: 144.562 | D143: 40.1343 | E143: 753.76 | F143: 46.7652
B144: 37688.21311 | C144: 146.024 | D144: 39.8235 | E144: 762.148 | F144: 46.3598
B145: 38699.97612 | C145: 147.433 | D145: 39.5289 | E145: 770.884 | F145: 45.9952
B146: 39738.90051 | C146: 148.862 | D146: 39.2458 | E146: 779.921 | F146: 45.6553
B147: 40805.71547 | C147: 150.214 | D147: 38.9654 | E147: 788.838 | F147: 45.3242
B148: 41901.16972 | C148: 151.572 | D148: 38.6981 | E148: 797.705 | F148: 45.002
B149: 43026.0321 | C149: 153.002 | D149: 38.4138 | E149: 806.605 | F149: 44.6622
B150: 44181.0921 | C150: 154.43 | D150: 38.1632 | E150: 815.5 | F150: 44.3606
B151: 45367.16039 | C151: 155.817 | D151: 37.8973 | E151: 824.494 | F151: 44.0567
B152: 46585.0694 | C152: 157.227 | D152: 37.6549 | E152: 833.314 | F152: 43.7294
B153: 47835.67393 | C153: 158.646 | D153: 37.4106 | E153: 842.265 | F153: 43.4417
B154: 49119.85169 | C154: 160.086 | D154: 37.164 | E154: 851.218 | F154: 43.1477
B155: 50438.50398 | C155: 161.469 | D155: 36.945 | E155: 860.046 | F155: 42.8631
B156: 51792.5563 | C156: 162.831 | D156: 36.7283 | E156: 868.774 | F156: 42.5949
B157: 53182.95897 | C157: 164.323 | D157: 36.5183 | E157: 877.66 | F157: 42.3253
B158: 54610.68785 | C158: 165.755 | D158: 36.2593 | E158: 887.166 | F158: 42.0455
B159: 56076.74498 | C159: 167.165 | D159: 36.079 | E159: 896.001 | F159: 41.8037
B160: 57582.1593 | C160: 168.557 | D160: 35.875 | E160: 905.202 | F160: 41.5581
B161: 59127.98739 | C161: 169.956 | D161: 35.685 | E161: 914.194 | F161: 41.3254
B162: 60715.31417 | C162: 171.435 | D162: 35.5288 | E162: 923.414 | F162: 41.0943
B163: 62345.25371 | C163: 172.889 | D163: 35.3663 | E163: 932.63 | F163: 40.8638
B164: 64018.94997 | C164: 174.344 | D164: 35.1795 | E164: 941.539 | F164: 40.6478
B165: 65737.57761 | C165: 175.857 | D165: 34.9821 | E165: 951.06 | F165: 40.4049
B166: 67502.34287 | C166: 177.341 | D166: 34.852 | E166: 960.511 | F166: 40.2253
B167: 69314.48432 | C167: 178.815 | D167: 34.6922 | E167: 969.685 | F167: 40.0073
B168: 71175.2738 | C168: 180.322 | D168: 34.5496 | E168: 979.318 | F168: 39.8327
B169: 73086.01732 | C169: 181.755 | D169: 34.3823 | E169: 988.731 | F169: 39.621
B170: 75048.0559 | C170: 183.283 | D170: 34.2718 | E170: 998.03 | F170: 39.4656
B171: 77062.76661 | C171: 184.815 | D171: 34.1391 | E171: 1007.95 | F171: 39.3039
B172: 79131.56345 | C172: 186.288 | D172: 34.0253 | E172: 1017.82 | F172: 39.1295
B173: 81255.8984 | C173: 187.913 | D173: 33.8865 | E173: 1027.47 | F173: 38.969
B174: 83437.26241 | C174: 189.444 | D174: 33.777 | E174: 1037.28 | F174: 38.8246
B175: 85677.18647 | C175: 191.096 | D175: 33.6195 | E175: 1048.05 | F175: 38.6401
B176: 87977.24265 | C176: 192.681 | D176: 33.5519 | E176: 1058.04 | F176: 38.5019
B177: 90339.04523 | C177: 194.327 | D177: 33.4279 | E177: 1068.15 | F177: 38.3577
B178: 92764.25185 | C178: 195.926 | D178: 33.3299 | E178: 1078.63 | F178: 38.2346
B179: 95254.56461 | C179: 197.62 | D179: 33.2392 | E179: 1089.2 | F179: 38.1138
B180: 97811.73133 | C180: 199.263 | D180: 33.1568 | E180: 1099.9 | F180: 37.983
B181: 100437.5467 | C181: 200.828 | D181: 33.0871 | E181: 1110.19 | F181: 37.8562
B182: 103133.8538 | C182: 202.582 | D182: 33.0048 | E182: 1121.01 | F182: 37.7511
B183: 105902.5448 | C183: 204.287 | D183: 32.9067 | E183: 1132.1 | F183: 37.6302
B184: 108745.563 | C184: 206.073 | D184: 32.8471 | E184: 1143.14 | F184: 37.5219
B185: 111664.9038 | C185: 207.818 | D185: 32.7364 | E185: 1154.69 | F185: 37.3796
B186: 114662.6161 | C186: 209.645 | D186: 32.6955 | E186: 1166.08 | F186: 37.2935
B187: 117740.8037 | C187: 211.334 | D187: 32.6059 | E187: 1177.6 | F187: 37.1787
B188: 120901.6272 | C188: 213.183 | D188: 32.5392 | E188: 1189.47 | F188: 37.1045
B189: 124147.3049 | C189: 215.026 | D189: 32.4798 | E189: 1201.24 | F189: 37.0115
B190: 127480.1148 | C190: 216.939 | D190: 32.401 | E190: 1212.98 | F190: 36.905
B191: 130902.3961 | C191: 218.832 | D191: 32.3553 | E191: 1225.06 | F191: 36.8283
B192: 134416.5505 | C192: 220.709 | D192: 32.2961 | E192: 1237.63 | F192: 36.7327
B193: 138025.0445 | C193: 222.628 | D193: 32.2115 | E193: 1250.05 | F193: 36.6515
B194: 141730.4108 | C194: 224.51 | D194: 32.1873 | E194: 1262.39 | F194: 36.5633
B195: 145535.2499 | C195: 226.528 | D195: 32.1184 | E195: 1275.48 | F195: 36.4709
B196: 149442.2322 | C196: 228.448 | D196: 32.0854 | E196: 1287.85 | F196: 36.4029
B197: 153454.0998 | C197: 230.55 | D197: 32.0439 | E197: 1301.33 | F197: 36.3318
B198: 157573.6684 | C198: 232.586 | D198: 31.9463 | E198: 1314.22 | F198: 36.2513
B199: 161803.8294 | C199: 234.559 | D199: 31.9353 | E199: 1328.02 | F199: 36.1631
B200: 166147.5516 | C200: 236.807 | D200: 31.8644 | E200: 1342.1 | F200: 36.0572
B201: 170607.8837 | C201: 238.79 | D201: 31.8409 | E201: 1355.64 | F201: 35.9974
B202: 175187.9561 | C202: 240.89 | D202: 31.7746 | E202: 1369.94 | F202: 35.9296
... 205 more rows

Sheet Frequency vector (hidden)
A2: Number of points per decade | B2: ndec | C2: 300 | D2: index | E2: freq_generated [Hz] | F2: freq_customer [Hz] | G2: freq_selected [Hz] | H2: freq_selected [kHz]
A3: Logscale generator | B3: klog | C3: =10^(1/C2) -> 1.007704814 | D3: 0 | E3: =10*('Frequency vector'!$C$3)^D3 -> 10 | F3: ='CM choke'!B7 -> 1000 | G3: =IF(CMdata=1,'Frequency vector'!E3,'Frequency vector'!F3) -> 1000 | H3: =G3/1000 -> 1
D4: 1 | E4: =10*('Frequency vector'!$C$3)^D4 -> 10.07704814 | F4: =IF('CM choke'!B8=0, F3, 'CM choke'!B8) -> 1026.845608 | G4: =IF(CMdata=1,'Frequency vector'!E4,'Frequency vector'!F4) -> 1026.845608 | H4: =G4/1000 -> 1.026845608
D5: 2 | E5: =10*('Frequency vector'!$C$3)^D5 -> 10.15468992 | F5: =IF('CM choke'!B9=0, F4, 'CM choke'!B9) -> 1054.411903 | G5: =IF(CMdata=1,'Frequency vector'!E5,'Frequency vector'!F5) -> 1054.411903 | H5: 1.054411903
D6: 3 | E6: =10*('Frequency vector'!$C$3)^D6 -> 10.23292992 | F6: =IF('CM choke'!B10=0, F5, 'CM choke'!B10) -> 1082.718232 | G6: =IF(CMdata=1,'Frequency vector'!E6,'Frequency vector'!F6) -> 1082.718232 | H6: 1.082718232
D7: 4 | E7: =10*('Frequency vector'!$C$3)^D7 -> 10.31177275 | F7: =IF('CM choke'!B11=0, F6, 'CM choke'!B11) -> 1111.784461 | G7: =IF(CMdata=1,'Frequency vector'!E7,'Frequency vector'!F7) -> 1111.784461 | H7: 1.111784461
D8: 5 | E8: =10*('Frequency vector'!$C$3)^D8 -> 10.39122304 | F8: =IF('CM choke'!B12=0, F7, 'CM choke'!B12) -> 1141.630991 | G8: =IF(CMdata=1,'Frequency vector'!E8,'Frequency vector'!F8) -> 1141.630991 | H8: 1.141630991
D9: 6 | E9: =10*('Frequency vector'!$C$3)^D9 -> 10.47128548 | F9: =IF('CM choke'!B13=0, F8, 'CM choke'!B13) -> 1172.27877 | G9: =IF(CMdata=1,'Frequency vector'!E9,'Frequency vector'!F9) -> 1172.27877 | H9: 1.17227877
D10: 7 | E10: =10*('Frequency vector'!$C$3)^D10 -> 10.55196479 | F10: =IF('CM choke'!B14=0, F9, 'CM choke'!B14) -> 1203.749306 | G10: =IF(CMdata=1,'Frequency vector'!E10,'Frequency vector'!F10) -> 1203.749306 | H10: 1.203749306
D11: 8 | E11: =10*('Frequency vector'!$C$3)^D11 -> 10.63326572 | F11: =IF('CM choke'!B15=0, F10, 'CM choke'!B15) -> 1236.064689 | G11: =IF(CMdata=1,'Frequency vector'!E11,'Frequency vector'!F11) -> 1236.064689 | H11: 1.236064689
D12: 9 | E12: =10*('Frequency vector'!$C$3)^D12 -> 10.71519305 | F12: =IF('CM choke'!B16=0, F11, 'CM choke'!B16) -> 1269.247597 | G12: =IF(CMdata=1,'Frequency vector'!E12,'Frequency vector'!F12) -> 1269.247597 | H12: 1.269247597
D13: 10 | E13: =10*('Frequency vector'!$C$3)^D13 -> 10.79775162 | F13: =IF('CM choke'!B17=0, F12, 'CM choke'!B17) -> 1303.321321 | G13: =IF(CMdata=1,'Frequency vector'!E13,'Frequency vector'!F13) -> 1303.321321 | H13: 1.303321321
D14: 11 | E14: =10*('Frequency vector'!$C$3)^D14 -> 10.88094629 | F14: =IF('CM choke'!B18=0, F13, 'CM choke'!B18) -> 1338.309774 | G14: =IF(CMdata=1,'Frequency vector'!E14,'Frequency vector'!F14) -> 1338.309774 | H14: 1.338309774
D15: 12 | E15: =10*('Frequency vector'!$C$3)^D15 -> 10.96478196 | F15: =IF('CM choke'!B19=0, F14, 'CM choke'!B19) -> 1374.237514 | G15: =IF(CMdata=1,'Frequency vector'!E15,'Frequency vector'!F15) -> 1374.237514 | H15: 1.374237514
D16: 13 | E16: =10*('Frequency vector'!$C$3)^D16 -> 11.04926357 | F16: =IF('CM choke'!B20=0, F15, 'CM choke'!B20) -> 1411.129756 | G16: =IF(CMdata=1,'Frequency vector'!E16,'Frequency vector'!F16) -> 1411.129756 | H16: 1.411129756
D17: 14 | E17: =10*('Frequency vector'!$C$3)^D17 -> 11.13439609 | F17: =IF('CM choke'!B21=0, F16, 'CM choke'!B21) -> 1449.012392 | G17: =IF(CMdata=1,'Frequency vector'!E17,'Frequency vector'!F17) -> 1449.012392 | H17: 1.449012392
D18: 15 | E18: =10*('Frequency vector'!$C$3)^D18 -> 11.22018454 | F18: =IF('CM choke'!B22=0, F17, 'CM choke'!B22) -> 1487.912011 | G18: =IF(CMdata=1,'Frequency vector'!E18,'Frequency vector'!F18) -> 1487.912011 | H18: 1.487912011
D19: 16 | E19: =10*('Frequency vector'!$C$3)^D19 -> 11.30663398 | F19: =IF('CM choke'!B23=0, F18, 'CM choke'!B23) -> 1527.855914 | G19: =IF(CMdata=1,'Frequency vector'!E19,'Frequency vector'!F19) -> 1527.855914 | H19: 1.527855914
D20: 17 | E20: =10*('Frequency vector'!$C$3)^D20 -> 11.39374949 | F20: =IF('CM choke'!B24=0, F19, 'CM choke'!B24) -> 1568.872135 | G20: =IF(CMdata=1,'Frequency vector'!E20,'Frequency vector'!F20) -> 1568.872135 | H20: 1.568872135
D21: 18 | E21: =10*('Frequency vector'!$C$3)^D21 -> 11.48153621 | F21: =IF('CM choke'!B25=0, F20, 'CM choke'!B25) -> 1610.989462 | G21: =IF(CMdata=1,'Frequency vector'!E21,'Frequency vector'!F21) -> 1610.989462 | H21: 1.610989462
D22: 19 | E22: =10*('Frequency vector'!$C$3)^D22 -> 11.56999932 | F22: =IF('CM choke'!B26=0, F21, 'CM choke'!B26) -> 1654.237454 | G22: =IF(CMdata=1,'Frequency vector'!E22,'Frequency vector'!F22) -> 1654.237454 | H22: 1.654237454
D23: 20 | E23: =10*('Frequency vector'!$C$3)^D23 -> 11.65914401 | F23: =IF('CM choke'!B27=0, F22, 'CM choke'!B27) -> 1698.646465 | G23: =IF(CMdata=1,'Frequency vector'!E23,'Frequency vector'!F23) -> 1698.646465 | H23: 1.698646465
D24: 21 | E24: =10*('Frequency vector'!$C$3)^D24 -> 11.74897555 | F24: =IF('CM choke'!B28=0, F23, 'CM choke'!B28) -> 1744.247662 | G24: =IF(CMdata=1,'Frequency vector'!E24,'Frequency vector'!F24) -> 1744.247662 | H24: 1.744247662
D25: 22 | E25: =10*('Frequency vector'!$C$3)^D25 -> 11.83949922 | F25: =IF('CM choke'!B29=0, F24, 'CM choke'!B29) -> 1791.073051 | G25: =IF(CMdata=1,'Frequency vector'!E25,'Frequency vector'!F25) -> 1791.073051 | H25: 1.791073051
D26: 23 | E26: =10*('Frequency vector'!$C$3)^D26 -> 11.93072036 | F26: =IF('CM choke'!B30=0, F25, 'CM choke'!B30) -> 1839.155497 | G26: =IF(CMdata=1,'Frequency vector'!E26,'Frequency vector'!F26) -> 1839.155497 | H26: 1.839155497
D27: 24 | E27: =10*('Frequency vector'!$C$3)^D27 -> 12.02264435 | F27: =IF('CM choke'!B31=0, F26, 'CM choke'!B31) -> 1888.528745 | G27: =IF(CMdata=1,'Frequency vector'!E27,'Frequency vector'!F27) -> 1888.528745 | H27: 1.888528745
D28: 25 | E28: =10*('Frequency vector'!$C$3)^D28 -> 12.11527659 | F28: =IF('CM choke'!B32=0, F27, 'CM choke'!B32) -> 1939.227447 | G28: =IF(CMdata=1,'Frequency vector'!E28,'Frequency vector'!F28) -> 1939.227447 | H28: 1.939227447
D29: 26 | E29: =10*('Frequency vector'!$C$3)^D29 -> 12.20862254 | F29: =IF('CM choke'!B33=0, F28, 'CM choke'!B33) -> 1991.287188 | G29: =IF(CMdata=1,'Frequency vector'!E29,'Frequency vector'!F29) -> 1991.287188 | H29: 1.991287188
D30: 27 | E30: =10*('Frequency vector'!$C$3)^D30 -> 12.30268771 | F30: =IF('CM choke'!B34=0, F29, 'CM choke'!B34) -> 2044.744503 | G30: =IF(CMdata=1,'Frequency vector'!E30,'Frequency vector'!F30) -> 2044.744503 | H30: 2.044744503
D31: 28 | E31: =10*('Frequency vector'!$C$3)^D31 -> 12.39747763 | F31: =IF('CM choke'!B35=0, F30, 'CM choke'!B35) -> 2099.636913 | G31: =IF(CMdata=1,'Frequency vector'!E31,'Frequency vector'!F31) -> 2099.636913 | H31: 2.099636913
D32: 29 | E32: =10*('Frequency vector'!$C$3)^D32 -> 12.49299789 | F32: =IF('CM choke'!B36=0, F31, 'CM choke'!B36) -> 2156.002943 | G32: =IF(CMdata=1,'Frequency vector'!E32,'Frequency vector'!F32) -> 2156.002943 | H32: 2.156002943
D33: 30 | E33: =10*('Frequency vector'!$C$3)^D33 -> 12.58925412 | F33: =IF('CM choke'!B37=0, F32, 'CM choke'!B37) -> 2213.882153 | G33: =IF(CMdata=1,'Frequency vector'!E33,'Frequency vector'!F33) -> 2213.882153 | H33: 2.213882153
D34: 31 | E34: =10*('Frequency vector'!$C$3)^D34 -> 12.68625198 | F34: =IF('CM choke'!B38=0, F33, 'CM choke'!B38) -> 2273.315166 | G34: =IF(CMdata=1,'Frequency vector'!E34,'Frequency vector'!F34) -> 2273.315166 | H34: 2.273315166
D35: 32 | E35: =10*('Frequency vector'!$C$3)^D35 -> 12.78399719 | F35: =IF('CM choke'!B39=0, F34, 'CM choke'!B39) -> 2334.343695 | G35: =IF(CMdata=1,'Frequency vector'!E35,'Frequency vector'!F35) -> 2334.343695 | H35: 2.334343695
D36: 33 | E36: =10*('Frequency vector'!$C$3)^D36 -> 12.88249552 | F36: =IF('CM choke'!B40=0, F35, 'CM choke'!B40) -> 2397.010571 | G36: =IF(CMdata=1,'Frequency vector'!E36,'Frequency vector'!F36) -> 2397.010571 | H36: 2.397010571
D37: 34 | E37: =10*('Frequency vector'!$C$3)^D37 -> 12.98175275 | F37: =IF('CM choke'!B41=0, F36, 'CM choke'!B41) -> 2461.359778 | G37: =IF(CMdata=1,'Frequency vector'!E37,'Frequency vector'!F37) -> 2461.359778 | H37: 2.461359778
D38: 35 | E38: =10*('Frequency vector'!$C$3)^D38 -> 13.08177474 | F38: =IF('CM choke'!B42=0, F37, 'CM choke'!B42) -> 2527.436478 | G38: =IF(CMdata=1,'Frequency vector'!E38,'Frequency vector'!F38) -> 2527.436478 | H38: 2.527436478
D39: 36 | E39: =10*('Frequency vector'!$C$3)^D39 -> 13.18256739 | F39: =IF('CM choke'!B43=0, F38, 'CM choke'!B43) -> 2595.287047 | G39: =IF(CMdata=1,'Frequency vector'!E39,'Frequency vector'!F39) -> 2595.287047 | H39: 2.595287047
D40: 37 | E40: =10*('Frequency vector'!$C$3)^D40 -> 13.28413662 | F40: =IF('CM choke'!B44=0, F39, 'CM choke'!B44) -> 2664.959106 | G40: =IF(CMdata=1,'Frequency vector'!E40,'Frequency vector'!F40) -> 2664.959106 | H40: 2.664959106
D41: 38 | E41: =10*('Frequency vector'!$C$3)^D41 -> 13.38648842 | F41: =IF('CM choke'!B45=0, F40, 'CM choke'!B45) -> 2736.501554 | G41: =IF(CMdata=1,'Frequency vector'!E41,'Frequency vector'!F41) -> 2736.501554 | H41: 2.736501554
D42: 39 | E42: =10*('Frequency vector'!$C$3)^D42 -> 13.48962883 | F42: =IF('CM choke'!B46=0, F41, 'CM choke'!B46) -> 2809.964603 | G42: =IF(CMdata=1,'Frequency vector'!E42,'Frequency vector'!F42) -> 2809.964603 | H42: 2.809964603
D43: 40 | E43: =10*('Frequency vector'!$C$3)^D43 -> 13.59356391 | F43: =IF('CM choke'!B47=0, F42, 'CM choke'!B47) -> 2885.399812 | G43: =IF(CMdata=1,'Frequency vector'!E43,'Frequency vector'!F43) -> 2885.399812 | H43: 2.885399812
D44: 41 | E44: =10*('Frequency vector'!$C$3)^D44 -> 13.69829979 | F44: =IF('CM choke'!B48=0, F43, 'CM choke'!B48) -> 2962.860125 | G44: =IF(CMdata=1,'Frequency vector'!E44,'Frequency vector'!F44) -> 2962.860125 | H44: 2.962860125
D45: 42 | E45: =10*('Frequency vector'!$C$3)^D45 -> 13.80384265 | F45: =IF('CM choke'!B49=0, F44, 'CM choke'!B49) -> 3042.399907 | G45: =IF(CMdata=1,'Frequency vector'!E45,'Frequency vector'!F45) -> 3042.399907 | H45: 3.042399907
D46: 43 | E46: =10*('Frequency vector'!$C$3)^D46 -> 13.91019869 | F46: =IF('CM choke'!B50=0, F45, 'CM choke'!B50) -> 3124.074983 | G46: =IF(CMdata=1,'Frequency vector'!E46,'Frequency vector'!F46) -> 3124.074983 | H46: 3.124074983
D47: 44 | E47: =10*('Frequency vector'!$C$3)^D47 -> 14.01737418 | F47: =IF('CM choke'!B51=0, F46, 'CM choke'!B51) -> 3207.942676 | G47: =IF(CMdata=1,'Frequency vector'!E47,'Frequency vector'!F47) -> 3207.942676 | H47: 3.207942676
D48: 45 | E48: =10*('Frequency vector'!$C$3)^D48 -> 14.12537545 | F48: =IF('CM choke'!B52=0, F47, 'CM choke'!B52) -> 3294.061848 | G48: =IF(CMdata=1,'Frequency vector'!E48,'Frequency vector'!F48) -> 3294.061848 | H48: 3.294061848
D49: 46 | E49: =10*('Frequency vector'!$C$3)^D49 -> 14.23420884 | F49: =IF('CM choke'!B53=0, F48, 'CM choke'!B53) -> 3382.492942 | G49: =IF(CMdata=1,'Frequency vector'!E49,'Frequency vector'!F49) -> 3382.492942 | H49: 3.382492942
D50: 47 | E50: =10*('Frequency vector'!$C$3)^D50 -> 14.34388077 | F50: =IF('CM choke'!B54=0, F49, 'CM choke'!B54) -> 3473.298022 | G50: =IF(CMdata=1,'Frequency vector'!E50,'Frequency vector'!F50) -> 3473.298022 | H50: 3.473298022
D51: 48 | E51: =10*('Frequency vector'!$C$3)^D51 -> 14.45439771 | F51: =IF('CM choke'!B55=0, F50, 'CM choke'!B55) -> 3566.54082 | G51: =IF(CMdata=1,'Frequency vector'!E51,'Frequency vector'!F51) -> 3566.54082 | H51: 3.56654082
D52: 49 | E52: =10*('Frequency vector'!$C$3)^D52 -> 14.56576616 | F52: =IF('CM choke'!B56=0, F51, 'CM choke'!B56) -> 3662.286777 | G52: =IF(CMdata=1,'Frequency vector'!E52,'Frequency vector'!F52) -> 3662.286777 | H52: 3.662286777
D53: 50 | E53: =10*('Frequency vector'!$C$3)^D53 -> 14.67799268 | F53: =IF('CM choke'!B57=0, F52, 'CM choke'!B57) -> 3760.603093 | G53: =IF(CMdata=1,'Frequency vector'!E53,'Frequency vector'!F53) -> 3760.603093 | H53: 3.760603093
D54: 51 | E54: =10*('Frequency vector'!$C$3)^D54 -> 14.79108388 | F54: =IF('CM choke'!B58=0, F53, 'CM choke'!B58) -> 3861.55877 | G54: =IF(CMdata=1,'Frequency vector'!E54,'Frequency vector'!F54) -> 3861.55877 | H54: 3.86155877
D55: 52 | E55: =10*('Frequency vector'!$C$3)^D55 -> 14.90504643 | F55: =IF('CM choke'!B59=0, F54, 'CM choke'!B59) -> 3965.224664 | G55: =IF(CMdata=1,'Frequency vector'!E55,'Frequency vector'!F55) -> 3965.224664 | H55: 3.965224664
D56: 53 | E56: =10*('Frequency vector'!$C$3)^D56 -> 15.01988705 | F56: =IF('CM choke'!B60=0, F55, 'CM choke'!B60) -> 4071.673532 | G56: =IF(CMdata=1,'Frequency vector'!E56,'Frequency vector'!F56) -> 4071.673532 | H56: 4.071673532
D57: 54 | E57: =10*('Frequency vector'!$C$3)^D57 -> 15.13561248 | F57: =IF('CM choke'!B61=0, F56, 'CM choke'!B61) -> 4180.980084 | G57: =IF(CMdata=1,'Frequency vector'!E57,'Frequency vector'!F57) -> 4180.980084 | H57: 4.180980084
D58: 55 | E58: =10*('Frequency vector'!$C$3)^D58 -> 15.25222957 | F58: =IF('CM choke'!B62=0, F57, 'CM choke'!B62) -> 4293.221037 | G58: =IF(CMdata=1,'Frequency vector'!E58,'Frequency vector'!F58) -> 4293.221037 | H58: 4.293221037
D59: 56 | E59: =10*('Frequency vector'!$C$3)^D59 -> 15.36974516 | F59: =IF('CM choke'!B63=0, F58, 'CM choke'!B63) -> 4408.475167 | G59: =IF(CMdata=1,'Frequency vector'!E59,'Frequency vector'!F59) -> 4408.475167 | H59: 4.408475167
D60: 57 | E60: =10*('Frequency vector'!$C$3)^D60 -> 15.48816619 | F60: =IF('CM choke'!B64=0, F59, 'CM choke'!B64) -> 4526.823364 | G60: =IF(CMdata=1,'Frequency vector'!E60,'Frequency vector'!F60) -> 4526.823364 | H60: 4.526823364
D61: 58 | E61: =10*('Frequency vector'!$C$3)^D61 -> 15.60749963 | F61: =IF('CM choke'!B65=0, F60, 'CM choke'!B65) -> 4648.348691 | G61: =IF(CMdata=1,'Frequency vector'!E61,'Frequency vector'!F61) -> 4648.348691 | H61: 4.648348691
D62: 59 | E62: =10*('Frequency vector'!$C$3)^D62 -> 15.72775251 | F62: =IF('CM choke'!B66=0, F61, 'CM choke'!B66) -> 4773.136439 | G62: =IF(CMdata=1,'Frequency vector'!E62,'Frequency vector'!F62) -> 4773.136439 | H62: 4.773136439
D63: 60 | E63: =10*('Frequency vector'!$C$3)^D63 -> 15.84893192 | F63: =IF('CM choke'!B67=0, F62, 'CM choke'!B67) -> 4901.274189 | G63: =IF(CMdata=1,'Frequency vector'!E63,'Frequency vector'!F63) -> 4901.274189 | H63: 4.901274189
D64: 61 | E64: =10*('Frequency vector'!$C$3)^D64 -> 15.971045 | F64: =IF('CM choke'!B68=0, F63, 'CM choke'!B68) -> 5032.851876 | G64: =IF(CMdata=1,'Frequency vector'!E64,'Frequency vector'!F64) -> 5032.851876 | H64: 5.032851876
D65: 62 | E65: =10*('Frequency vector'!$C$3)^D65 -> 16.09409893 | F65: =IF('CM choke'!B69=0, F64, 'CM choke'!B69) -> 5167.961846 | G65: =IF(CMdata=1,'Frequency vector'!E65,'Frequency vector'!F65) -> 5167.961846 | H65: 5.167961846
D66: 63 | E66: =10*('Frequency vector'!$C$3)^D66 -> 16.21810097 | F66: =IF('CM choke'!B70=0, F65, 'CM choke'!B70) -> 5306.698924 | G66: =IF(CMdata=1,'Frequency vector'!E66,'Frequency vector'!F66) -> 5306.698924 | H66: 5.306698924
D67: 64 | E67: =10*('Frequency vector'!$C$3)^D67 -> 16.34305843 | F67: =IF('CM choke'!B71=0, F66, 'CM choke'!B71) -> 5449.160485 | G67: =IF(CMdata=1,'Frequency vector'!E67,'Frequency vector'!F67) -> 5449.160485 | H67: 5.449160485
D68: 65 | E68: =10*('Frequency vector'!$C$3)^D68 -> 16.46897865 | F68: =IF('CM choke'!B72=0, F67, 'CM choke'!B72) -> 5595.446512 | G68: =IF(CMdata=1,'Frequency vector'!E68,'Frequency vector'!F68) -> 5595.446512 | H68: =G68/1000 -> 5.595446512
D69: 66 | E69: =10*('Frequency vector'!$C$3)^D69 -> 16.59586907 | F69: =IF('CM choke'!B73=0, F68, 'CM choke'!B73) -> 5745.659677 | G69: =IF(CMdata=1,'Frequency vector'!E69,'Frequency vector'!F69) -> 5745.659677 | H69: 5.745659677
D70: 67 | E70: =10*('Frequency vector'!$C$3)^D70 -> 16.72373716 | F70: =IF('CM choke'!B74=0, F69, 'CM choke'!B74) -> 5899.905405 | G70: =IF(CMdata=1,'Frequency vector'!E70,'Frequency vector'!F70) -> 5899.905405 | H70: 5.899905405
D71: 68 | E71: =10*('Frequency vector'!$C$3)^D71 -> 16.85259045 | F71: =IF('CM choke'!B75=0, F70, 'CM choke'!B75) -> 6058.291954 | G71: =IF(CMdata=1,'Frequency vector'!E71,'Frequency vector'!F71) -> 6058.291954 | H71: 6.058291954
D72: 69 | E72: =10*('Frequency vector'!$C$3)^D72 -> 16.98243652 | F72: =IF('CM choke'!B76=0, F71, 'CM choke'!B76) -> 6220.930486 | G72: =IF(CMdata=1,'Frequency vector'!E72,'Frequency vector'!F72) -> 6220.930486 | H72: 6.220930486
D73: 70 | E73: =10*('Frequency vector'!$C$3)^D73 -> 17.11328304 | F73: =IF('CM choke'!B77=0, F72, 'CM choke'!B77) -> 6387.935149 | G73: =IF(CMdata=1,'Frequency vector'!E73,'Frequency vector'!F73) -> 6387.935149 | H73: 6.387935149
D74: 71 | E74: =10*('Frequency vector'!$C$3)^D74 -> 17.24513771 | F74: =IF('CM choke'!B78=0, F73, 'CM choke'!B78) -> 6559.423153 | G74: =IF(CMdata=1,'Frequency vector'!E74,'Frequency vector'!F74) -> 6559.423153 | H74: 6.559423153
D75: 72 | E75: =10*('Frequency vector'!$C$3)^D75 -> 17.37800829 | F75: =IF('CM choke'!B79=0, F74, 'CM choke'!B79) -> 6735.514857 | G75: =IF(CMdata=1,'Frequency vector'!E75,'Frequency vector'!F75) -> 6735.514857 | H75: 6.735514857
D76: 73 | E76: =10*('Frequency vector'!$C$3)^D76 -> 17.51190261 | F76: =IF('CM choke'!B80=0, F75, 'CM choke'!B80) -> 6916.33385 | G76: =IF(CMdata=1,'Frequency vector'!E76,'Frequency vector'!F76) -> 6916.33385 | H76: 6.91633385
D77: 74 | E77: =10*('Frequency vector'!$C$3)^D77 -> 17.64682857 | F77: =IF('CM choke'!B81=0, F76, 'CM choke'!B81) -> 7102.007039 | G77: =IF(CMdata=1,'Frequency vector'!E77,'Frequency vector'!F77) -> 7102.007039 | H77: 7.102007039
D78: 75 | E78: =10*('Frequency vector'!$C$3)^D78 -> 17.7827941 | F78: =IF('CM choke'!B82=0, F77, 'CM choke'!B82) -> 7292.664737 | G78: =IF(CMdata=1,'Frequency vector'!E78,'Frequency vector'!F78) -> 7292.664737 | H78: 7.292664737
D79: 76 | E79: =10*('Frequency vector'!$C$3)^D79 -> 17.91980722 | F79: =IF('CM choke'!B83=0, F78, 'CM choke'!B83) -> 7488.440757 | G79: =IF(CMdata=1,'Frequency vector'!E79,'Frequency vector'!F79) -> 7488.440757 | H79: 7.488440757
D80: 77 | E80: =10*('Frequency vector'!$C$3)^D80 -> 18.05787601 | F80: =IF('CM choke'!B84=0, F79, 'CM choke'!B84) -> 7689.472504 | G80: =IF(CMdata=1,'Frequency vector'!E80,'Frequency vector'!F80) -> 7689.472504 | H80: 7.689472504
D81: 78 | E81: =10*('Frequency vector'!$C$3)^D81 -> 18.19700859 | F81: =IF('CM choke'!B85=0, F80, 'CM choke'!B85) -> 7895.90107 | G81: =IF(CMdata=1,'Frequency vector'!E81,'Frequency vector'!F81) -> 7895.90107 | H81: 7.89590107
D82: 79 | E82: =10*('Frequency vector'!$C$3)^D82 -> 18.33721316 | F82: =IF('CM choke'!B86=0, F81, 'CM choke'!B86) -> 8107.871337 | G82: =IF(CMdata=1,'Frequency vector'!E82,'Frequency vector'!F82) -> 8107.871337 | H82: 8.107871337
D83: 80 | E83: =10*('Frequency vector'!$C$3)^D83 -> 18.47849797 | F83: =IF('CM choke'!B87=0, F82, 'CM choke'!B87) -> 8325.532074 | G83: =IF(CMdata=1,'Frequency vector'!E83,'Frequency vector'!F83) -> 8325.532074 | H83: 8.325532074
D84: 81 | E84: =10*('Frequency vector'!$C$3)^D84 -> 18.62087137 | F84: =IF('CM choke'!B88=0, F83, 'CM choke'!B88) -> 8549.036046 | G84: =IF(CMdata=1,'Frequency vector'!E84,'Frequency vector'!F84) -> 8549.036046 | H84: 8.549036046
D85: 82 | E85: =10*('Frequency vector'!$C$3)^D85 -> 18.76434172 | F85: =IF('CM choke'!B89=0, F84, 'CM choke'!B89) -> 8778.540118 | G85: =IF(CMdata=1,'Frequency vector'!E85,'Frequency vector'!F85) -> 8778.540118 | H85: 8.778540118
D86: 83 | E86: =10*('Frequency vector'!$C$3)^D86 -> 18.90891748 | F86: =IF('CM choke'!B90=0, F85, 'CM choke'!B90) -> 9014.205367 | G86: =IF(CMdata=1,'Frequency vector'!E86,'Frequency vector'!F86) -> 9014.205367 | H86: 9.014205367
D87: 84 | E87: =10*('Frequency vector'!$C$3)^D87 -> 19.05460718 | F87: =IF('CM choke'!B91=0, F86, 'CM choke'!B91) -> 9256.197192 | G87: =IF(CMdata=1,'Frequency vector'!E87,'Frequency vector'!F87) -> 9256.197192 | H87: 9.256197192
D88: 85 | E88: =10*('Frequency vector'!$C$3)^D88 -> 19.20141939 | F88: =IF('CM choke'!B92=0, F87, 'CM choke'!B92) -> 9504.685436 | G88: =IF(CMdata=1,'Frequency vector'!E88,'Frequency vector'!F88) -> 9504.685436 | H88: 9.504685436
D89: 86 | E89: =10*('Frequency vector'!$C$3)^D89 -> 19.34936275 | F89: =IF('CM choke'!B93=0, F88, 'CM choke'!B93) -> 9759.844497 | G89: =IF(CMdata=1,'Frequency vector'!E89,'Frequency vector'!F89) -> 9759.844497 | H89: 9.759844497
D90: 87 | E90: =10*('Frequency vector'!$C$3)^D90 -> 19.498446 | F90: =IF('CM choke'!B94=0, F89, 'CM choke'!B94) -> 10021.85346 | G90: =IF(CMdata=1,'Frequency vector'!E90,'Frequency vector'!F90) -> 10021.85346 | H90: 10.02185346
D91: 88 | E91: =10*('Frequency vector'!$C$3)^D91 -> 19.6486779 | F91: =IF('CM choke'!B95=0, F90, 'CM choke'!B95) -> 10290.89621 | G91: =IF(CMdata=1,'Frequency vector'!E91,'Frequency vector'!F91) -> 10290.89621 | H91: 10.29089621
D92: 89 | E92: =10*('Frequency vector'!$C$3)^D92 -> 19.80006731 | F92: =IF('CM choke'!B96=0, F91, 'CM choke'!B96) -> 10567.16158 | G92: =IF(CMdata=1,'Frequency vector'!E92,'Frequency vector'!F92) -> 10567.16158 | H92: 10.56716158
D93: 90 | E93: =10*('Frequency vector'!$C$3)^D93 -> 19.95262315 | F93: =IF('CM choke'!B97=0, F92, 'CM choke'!B97) -> 10850.84346 | G93: =IF(CMdata=1,'Frequency vector'!E93,'Frequency vector'!F93) -> 10850.84346 | H93: 10.85084346
D94: 91 | E94: =10*('Frequency vector'!$C$3)^D94 -> 20.1063544 | F94: =IF('CM choke'!B98=0, F93, 'CM choke'!B98) -> 11142.14095 | G94: =IF(CMdata=1,'Frequency vector'!E94,'Frequency vector'!F94) -> 11142.14095 | H94: 11.14214095
D95: 92 | E95: =10*('Frequency vector'!$C$3)^D95 -> 20.26127013 | F95: =IF('CM choke'!B99=0, F94, 'CM choke'!B99) -> 11441.2585 | G95: =IF(CMdata=1,'Frequency vector'!E95,'Frequency vector'!F95) -> 11441.2585 | H95: 11.4412585
D96: 93 | E96: =10*('Frequency vector'!$C$3)^D96 -> 20.41737945 | F96: =IF('CM choke'!B100=0, F95, 'CM choke'!B100) -> 11748.40604 | G96: =IF(CMdata=1,'Frequency vector'!E96,'Frequency vector'!F96) -> 11748.40604 | H96: 11.74840604
D97: 94 | E97: =10*('Frequency vector'!$C$3)^D97 -> 20.57469156 | F97: =IF('CM choke'!B101=0, F96, 'CM choke'!B101) -> 12063.79915 | G97: =IF(CMdata=1,'Frequency vector'!E97,'Frequency vector'!F97) -> 12063.79915 | H97: 12.06379915
D98: 95 | E98: =10*('Frequency vector'!$C$3)^D98 -> 20.73321573 | F98: =IF('CM choke'!B102=0, F97, 'CM choke'!B102) -> 12387.65917 | G98: =IF(CMdata=1,'Frequency vector'!E98,'Frequency vector'!F98) -> 12387.65917 | H98: 12.38765917
D99: 96 | E99: =10*('Frequency vector'!$C$3)^D99 -> 20.89296131 | F99: =IF('CM choke'!B103=0, F98, 'CM choke'!B103) -> 12720.21342 | G99: =IF(CMdata=1,'Frequency vector'!E99,'Frequency vector'!F99) -> 12720.21342 | H99: 12.72021342
D100: 97 | E100: =10*('Frequency vector'!$C$3)^D100 -> 21.05393769 | F100: =IF('CM choke'!B104=0, F99, 'CM choke'!B104) -> 13061.69528 | G100: =IF(CMdata=1,'Frequency vector'!E100,'Frequency vector'!F100) -> 13061.69528 | H100: 13.06169528
D101: 98 | E101: =10*('Frequency vector'!$C$3)^D101 -> 21.21615437 | F101: =IF('CM choke'!B105=0, F100, 'CM choke'!B105) -> 13412.34444 | G101: =IF(CMdata=1,'Frequency vector'!E101,'Frequency vector'!F101) -> 13412.34444 | H101: 13.41234444
D102: 99 | E102: =10*('Frequency vector'!$C$3)^D102 -> 21.3796209 | F102: =IF('CM choke'!B106=0, F101, 'CM choke'!B106) -> 13772.40698 | G102: =IF(CMdata=1,'Frequency vector'!E102,'Frequency vector'!F102) -> 13772.40698 | H102: 13.77240698
D103: 100 | E103: =10*('Frequency vector'!$C$3)^D103 -> 21.5443469 | F103: =IF('CM choke'!B107=0, F102, 'CM choke'!B107) -> 14142.13562 | G103: =IF(CMdata=1,'Frequency vector'!E103,'Frequency vector'!F103) -> 14142.13562 | H103: 14.14213562
D104: 101 | E104: =10*('Frequency vector'!$C$3)^D104 -> 21.71034209 | F104: =IF('CM choke'!B108=0, F103, 'CM choke'!B108) -> 14521.78986 | G104: =IF(CMdata=1,'Frequency vector'!E104,'Frequency vector'!F104) -> 14521.78986 | H104: 14.52178986
D105: 102 | E105: =10*('Frequency vector'!$C$3)^D105 -> 21.87761624 | F105: =IF('CM choke'!B109=0, F104, 'CM choke'!B109) -> 14911.63614 | G105: =IF(CMdata=1,'Frequency vector'!E105,'Frequency vector'!F105) -> 14911.63614 | H105: 14.91163614
D106: 103 | E106: =10*('Frequency vector'!$C$3)^D106 -> 22.04617921 | F106: =IF('CM choke'!B110=0, F105, 'CM choke'!B110) -> 15311.94808 | G106: =IF(CMdata=1,'Frequency vector'!E106,'Frequency vector'!F106) -> 15311.94808 | H106: 15.31194808
D107: 104 | E107: =10*('Frequency vector'!$C$3)^D107 -> 22.21604092 | F107: =IF('CM choke'!B111=0, F106, 'CM choke'!B111) -> 15723.00664 | G107: =IF(CMdata=1,'Frequency vector'!E107,'Frequency vector'!F107) -> 15723.00664 | H107: 15.72300664
D108: 105 | E108: =10*('Frequency vector'!$C$3)^D108 -> 22.38721139 | F108: =IF('CM choke'!B112=0, F107, 'CM choke'!B112) -> 16145.10031 | G108: =IF(CMdata=1,'Frequency vector'!E108,'Frequency vector'!F108) -> 16145.10031 | H108: 16.14510031
D109: 106 | E109: =10*('Frequency vector'!$C$3)^D109 -> 22.55970069 | F109: =IF('CM choke'!B113=0, F108, 'CM choke'!B113) -> 16578.52535 | G109: =IF(CMdata=1,'Frequency vector'!E109,'Frequency vector'!F109) -> 16578.52535 | H109: 16.57852535
D110: 107 | E110: =10*('Frequency vector'!$C$3)^D110 -> 22.73351899 | F110: =IF('CM choke'!B114=0, F109, 'CM choke'!B114) -> 17023.58595 | G110: =IF(CMdata=1,'Frequency vector'!E110,'Frequency vector'!F110) -> 17023.58595 | H110: 17.02358595
D111: 108 | E111: =10*('Frequency vector'!$C$3)^D111 -> 22.90867653 | F111: =IF('CM choke'!B115=0, F110, 'CM choke'!B115) -> 17480.59446 | G111: =IF(CMdata=1,'Frequency vector'!E111,'Frequency vector'!F111) -> 17480.59446 | H111: 17.48059446
D112: 109 | E112: =10*('Frequency vector'!$C$3)^D112 -> 23.08518362 | F112: =IF('CM choke'!B116=0, F111, 'CM choke'!B116) -> 17949.87165 | G112: =IF(CMdata=1,'Frequency vector'!E112,'Frequency vector'!F112) -> 17949.87165 | H112: 17.94987165
D113: 110 | E113: =10*('Frequency vector'!$C$3)^D113 -> 23.26305067 | F113: =IF('CM choke'!B117=0, F112, 'CM choke'!B117) -> 18431.74688 | G113: =IF(CMdata=1,'Frequency vector'!E113,'Frequency vector'!F113) -> 18431.74688 | H113: 18.43174688
D114: 111 | E114: =10*('Frequency vector'!$C$3)^D114 -> 23.44228815 | F114: =IF('CM choke'!B118=0, F113, 'CM choke'!B118) -> 18926.55833 | G114: =IF(CMdata=1,'Frequency vector'!E114,'Frequency vector'!F114) -> 18926.55833 | H114: 18.92655833
D115: 112 | E115: =10*('Frequency vector'!$C$3)^D115 -> 23.62290663 | F115: =IF('CM choke'!B119=0, F114, 'CM choke'!B119) -> 19434.6533 | G115: =IF(CMdata=1,'Frequency vector'!E115,'Frequency vector'!F115) -> 19434.6533 | H115: 19.4346533
D116: 113 | E116: =10*('Frequency vector'!$C$3)^D116 -> 23.80491673 | F116: =IF('CM choke'!B120=0, F115, 'CM choke'!B120) -> 19956.38839 | G116: =IF(CMdata=1,'Frequency vector'!E116,'Frequency vector'!F116) -> 19956.38839 | H116: 19.95638839
D117: 114 | E117: =10*('Frequency vector'!$C$3)^D117 -> 23.98832919 | F117: =IF('CM choke'!B121=0, F116, 'CM choke'!B121) -> 20492.12977 | G117: =IF(CMdata=1,'Frequency vector'!E117,'Frequency vector'!F117) -> 20492.12977 | H117: 20.49212977
D118: 115 | E118: =10*('Frequency vector'!$C$3)^D118 -> 24.17315481 | F118: =IF('CM choke'!B122=0, F117, 'CM choke'!B122) -> 21042.25346 | G118: =IF(CMdata=1,'Frequency vector'!E118,'Frequency vector'!F118) -> 21042.25346 | H118: 21.04225346
D119: 116 | E119: =10*('Frequency vector'!$C$3)^D119 -> 24.35940447 | F119: =IF('CM choke'!B123=0, F118, 'CM choke'!B123) -> 21607.14555 | G119: =IF(CMdata=1,'Frequency vector'!E119,'Frequency vector'!F119) -> 21607.14555 | H119: 21.60714555
D120: 117 | E120: =10*('Frequency vector'!$C$3)^D120 -> 24.54708916 | F120: =IF('CM choke'!B124=0, F119, 'CM choke'!B124) -> 22187.20252 | G120: =IF(CMdata=1,'Frequency vector'!E120,'Frequency vector'!F120) -> 22187.20252 | H120: 22.18720252
D121: 118 | E121: =10*('Frequency vector'!$C$3)^D121 -> 24.73621992 | F121: =IF('CM choke'!B125=0, F120, 'CM choke'!B125) -> 22782.83146 | G121: =IF(CMdata=1,'Frequency vector'!E121,'Frequency vector'!F121) -> 22782.83146 | H121: 22.78283146
D122: 119 | E122: =10*('Frequency vector'!$C$3)^D122 -> 24.92680789 | F122: =IF('CM choke'!B126=0, F121, 'CM choke'!B126) -> 23394.45043 | G122: =IF(CMdata=1,'Frequency vector'!E122,'Frequency vector'!F122) -> 23394.45043 | H122: 23.39445043
D123: 120 | E123: =10*('Frequency vector'!$C$3)^D123 -> 25.11886432 | F123: =IF('CM choke'!B127=0, F122, 'CM choke'!B127) -> 24022.48868 | G123: =IF(CMdata=1,'Frequency vector'!E123,'Frequency vector'!F123) -> 24022.48868 | H123: 24.02248868
D124: 121 | E124: =10*('Frequency vector'!$C$3)^D124 -> 25.3124005 | F124: =IF('CM choke'!B128=0, F123, 'CM choke'!B128) -> 24667.387 | G124: =IF(CMdata=1,'Frequency vector'!E124,'Frequency vector'!F124) -> 24667.387 | H124: 24.667387
D125: 122 | E125: =10*('Frequency vector'!$C$3)^D125 -> 25.50742784 | F125: =IF('CM choke'!B129=0, F124, 'CM choke'!B129) -> 25329.59801 | G125: =IF(CMdata=1,'Frequency vector'!E125,'Frequency vector'!F125) -> 25329.59801 | H125: 25.32959801
D126: 123 | E126: =10*('Frequency vector'!$C$3)^D126 -> 25.70395783 | F126: =IF('CM choke'!B130=0, F125, 'CM choke'!B130) -> 26009.58647 | G126: =IF(CMdata=1,'Frequency vector'!E126,'Frequency vector'!F126) -> 26009.58647 | H126: 26.00958647
D127: 124 | E127: =10*('Frequency vector'!$C$3)^D127 -> 25.90200205 | F127: =IF('CM choke'!B131=0, F126, 'CM choke'!B131) -> 26707.82964 | G127: =IF(CMdata=1,'Frequency vector'!E127,'Frequency vector'!F127) -> 26707.82964 | H127: 26.70782964
D128: 125 | E128: =10*('Frequency vector'!$C$3)^D128 -> 26.10157216 | F128: =IF('CM choke'!B132=0, F127, 'CM choke'!B132) -> 27424.81757 | G128: =IF(CMdata=1,'Frequency vector'!E128,'Frequency vector'!F128) -> 27424.81757 | H128: 27.42481757
D129: 126 | E129: =10*('Frequency vector'!$C$3)^D129 -> 26.30267992 | F129: =IF('CM choke'!B133=0, F128, 'CM choke'!B133) -> 28161.05348 | G129: =IF(CMdata=1,'Frequency vector'!E129,'Frequency vector'!F129) -> 28161.05348 | H129: 28.16105348
D130: 127 | E130: =10*('Frequency vector'!$C$3)^D130 -> 26.50533718 | F130: =IF('CM choke'!B134=0, F129, 'CM choke'!B134) -> 28917.05408 | G130: =IF(CMdata=1,'Frequency vector'!E130,'Frequency vector'!F130) -> 28917.05408 | H130: 28.91705408
D131: 128 | E131: =10*('Frequency vector'!$C$3)^D131 -> 26.70955588 | F131: =IF('CM choke'!B135=0, F130, 'CM choke'!B135) -> 29693.34999 | G131: =IF(CMdata=1,'Frequency vector'!E131,'Frequency vector'!F131) -> 29693.34999 | H131: 29.69334999
D132: 129 | E132: =10*('Frequency vector'!$C$3)^D132 -> 26.91534804 | F132: =IF('CM choke'!B136=0, F131, 'CM choke'!B136) -> 30490.48603 | G132: =IF(CMdata=1,'Frequency vector'!E132,'Frequency vector'!F132) -> 30490.48603 | H132: =G132/1000 -> 30.49048603
D133: 130 | E133: =10*('Frequency vector'!$C$3)^D133 -> 27.12272579 | F133: =IF('CM choke'!B137=0, F132, 'CM choke'!B137) -> 31309.02167 | G133: =IF(CMdata=1,'Frequency vector'!E133,'Frequency vector'!F133) -> 31309.02167 | H133: 31.30902167
D134: 131 | E134: =10*('Frequency vector'!$C$3)^D134 -> 27.33170135 | F134: =IF('CM choke'!B138=0, F133, 'CM choke'!B138) -> 32149.5314 | G134: =IF(CMdata=1,'Frequency vector'!E134,'Frequency vector'!F134) -> 32149.5314 | H134: 32.1495314
D135: 132 | E135: =10*('Frequency vector'!$C$3)^D135 -> 27.54228703 | F135: =IF('CM choke'!B139=0, F134, 'CM choke'!B139) -> 33012.60512 | G135: =IF(CMdata=1,'Frequency vector'!E135,'Frequency vector'!F135) -> 33012.60512 | H135: 33.01260512
D136: 133 | E136: =10*('Frequency vector'!$C$3)^D136 -> 27.75449524 | F136: =IF('CM choke'!B140=0, F135, 'CM choke'!B140) -> 33898.84858 | G136: =IF(CMdata=1,'Frequency vector'!E136,'Frequency vector'!F136) -> 33898.84858 | H136: 33.89884858
D137: 134 | E137: =10*('Frequency vector'!$C$3)^D137 -> 27.96833846 | F137: =IF('CM choke'!B141=0, F136, 'CM choke'!B141) -> 34808.88379 | G137: =IF(CMdata=1,'Frequency vector'!E137,'Frequency vector'!F137) -> 34808.88379 | H137: 34.80888379
D138: 135 | E138: =10*('Frequency vector'!$C$3)^D138 -> 28.18382931 | F138: =IF('CM choke'!B142=0, F137, 'CM choke'!B142) -> 35743.34945 | G138: =IF(CMdata=1,'Frequency vector'!E138,'Frequency vector'!F138) -> 35743.34945 | H138: 35.74334945
D139: 136 | E139: =10*('Frequency vector'!$C$3)^D139 -> 28.40098048 | F139: =IF('CM choke'!B143=0, F138, 'CM choke'!B143) -> 36702.9014 | G139: =IF(CMdata=1,'Frequency vector'!E139,'Frequency vector'!F139) -> 36702.9014 | H139: 36.7029014
D140: 137 | E140: =10*('Frequency vector'!$C$3)^D140 -> 28.61980476 | F140: =IF('CM choke'!B144=0, F139, 'CM choke'!B144) -> 37688.21311 | G140: =IF(CMdata=1,'Frequency vector'!E140,'Frequency vector'!F140) -> 37688.21311 | H140: 37.68821311
D141: 138 | E141: =10*('Frequency vector'!$C$3)^D141 -> 28.84031503 | F141: =IF('CM choke'!B145=0, F140, 'CM choke'!B145) -> 38699.97612 | G141: =IF(CMdata=1,'Frequency vector'!E141,'Frequency vector'!F141) -> 38699.97612 | H141: 38.69997612
D142: 139 | E142: =10*('Frequency vector'!$C$3)^D142 -> 29.0625243 | F142: =IF('CM choke'!B146=0, F141, 'CM choke'!B146) -> 39738.90051 | G142: =IF(CMdata=1,'Frequency vector'!E142,'Frequency vector'!F142) -> 39738.90051 | H142: 39.73890051
D143: 140 | E143: =10*('Frequency vector'!$C$3)^D143 -> 29.28644565 | F143: =IF('CM choke'!B147=0, F142, 'CM choke'!B147) -> 40805.71547 | G143: =IF(CMdata=1,'Frequency vector'!E143,'Frequency vector'!F143) -> 40805.71547 | H143: 40.80571547
D144: 141 | E144: =10*('Frequency vector'!$C$3)^D144 -> 29.51209227 | F144: =IF('CM choke'!B148=0, F143, 'CM choke'!B148) -> 41901.16972 | G144: =IF(CMdata=1,'Frequency vector'!E144,'Frequency vector'!F144) -> 41901.16972 | H144: 41.90116972
D145: 142 | E145: =10*('Frequency vector'!$C$3)^D145 -> 29.73947745 | F145: =IF('CM choke'!B149=0, F144, 'CM choke'!B149) -> 43026.0321 | G145: =IF(CMdata=1,'Frequency vector'!E145,'Frequency vector'!F145) -> 43026.0321 | H145: 43.0260321
D146: 143 | E146: =10*('Frequency vector'!$C$3)^D146 -> 29.9686146 | F146: =IF('CM choke'!B150=0, F145, 'CM choke'!B150) -> 44181.0921 | G146: =IF(CMdata=1,'Frequency vector'!E146,'Frequency vector'!F146) -> 44181.0921 | H146: 44.1810921
D147: 144 | E147: =10*('Frequency vector'!$C$3)^D147 -> 30.1995172 | F147: =IF('CM choke'!B151=0, F146, 'CM choke'!B151) -> 45367.16039 | G147: =IF(CMdata=1,'Frequency vector'!E147,'Frequency vector'!F147) -> 45367.16039 | H147: 45.36716039
D148: 145 | E148: =10*('Frequency vector'!$C$3)^D148 -> 30.43219887 | F148: =IF('CM choke'!B152=0, F147, 'CM choke'!B152) -> 46585.0694 | G148: =IF(CMdata=1,'Frequency vector'!E148,'Frequency vector'!F148) -> 46585.0694 | H148: 46.5850694
D149: 146 | E149: =10*('Frequency vector'!$C$3)^D149 -> 30.66667331 | F149: =IF('CM choke'!B153=0, F148, 'CM choke'!B153) -> 47835.67393 | G149: =IF(CMdata=1,'Frequency vector'!E149,'Frequency vector'!F149) -> 47835.67393 | H149: 47.83567393
D150: 147 | E150: =10*('Frequency vector'!$C$3)^D150 -> 30.90295433 | F150: =IF('CM choke'!B154=0, F149, 'CM choke'!B154) -> 49119.85169 | G150: =IF(CMdata=1,'Frequency vector'!E150,'Frequency vector'!F150) -> 49119.85169 | H150: 49.11985169
D151: 148 | E151: =10*('Frequency vector'!$C$3)^D151 -> 31.14105584 | F151: =IF('CM choke'!B155=0, F150, 'CM choke'!B155) -> 50438.50398 | G151: =IF(CMdata=1,'Frequency vector'!E151,'Frequency vector'!F151) -> 50438.50398 | H151: 50.43850398
D152: 149 | E152: =10*('Frequency vector'!$C$3)^D152 -> 31.38099189 | F152: =IF('CM choke'!B156=0, F151, 'CM choke'!B156) -> 51792.5563 | G152: =IF(CMdata=1,'Frequency vector'!E152,'Frequency vector'!F152) -> 51792.5563 | H152: 51.7925563
D153: 150 | E153: =10*('Frequency vector'!$C$3)^D153 -> 31.6227766 | F153: =IF('CM choke'!B157=0, F152, 'CM choke'!B157) -> 53182.95897 | G153: =IF(CMdata=1,'Frequency vector'!E153,'Frequency vector'!F153) -> 53182.95897 | H153: 53.18295897
D154: 151 | E154: =10*('Frequency vector'!$C$3)^D154 -> 31.86642422 | F154: =IF('CM choke'!B158=0, F153, 'CM choke'!B158) -> 54610.68785 | G154: =IF(CMdata=1,'Frequency vector'!E154,'Frequency vector'!F154) -> 54610.68785 | H154: 54.61068785
D155: 152 | E155: =10*('Frequency vector'!$C$3)^D155 -> 32.11194909 | F155: =IF('CM choke'!B159=0, F154, 'CM choke'!B159) -> 56076.74498 | G155: =IF(CMdata=1,'Frequency vector'!E155,'Frequency vector'!F155) -> 56076.74498 | H155: 56.07674498
D156: 153 | E156: =10*('Frequency vector'!$C$3)^D156 -> 32.35936569 | F156: =IF('CM choke'!B160=0, F155, 'CM choke'!B160) -> 57582.1593 | G156: =IF(CMdata=1,'Frequency vector'!E156,'Frequency vector'!F156) -> 57582.1593 | H156: 57.5821593
D157: 154 | E157: =10*('Frequency vector'!$C$3)^D157 -> 32.60868859 | F157: =IF('CM choke'!B161=0, F156, 'CM choke'!B161) -> 59127.98739 | G157: =IF(CMdata=1,'Frequency vector'!E157,'Frequency vector'!F157) -> 59127.98739 | H157: 59.12798739
D158: 155 | E158: =10*('Frequency vector'!$C$3)^D158 -> 32.85993248 | F158: =IF('CM choke'!B162=0, F157, 'CM choke'!B162) -> 60715.31417 | G158: =IF(CMdata=1,'Frequency vector'!E158,'Frequency vector'!F158) -> 60715.31417 | H158: 60.71531417
D159: 156 | E159: =10*('Frequency vector'!$C$3)^D159 -> 33.11311215 | F159: =IF('CM choke'!B163=0, F158, 'CM choke'!B163) -> 62345.25371 | G159: =IF(CMdata=1,'Frequency vector'!E159,'Frequency vector'!F159) -> 62345.25371 | H159: 62.34525371
D160: 157 | E160: =10*('Frequency vector'!$C$3)^D160 -> 33.36824252 | F160: =IF('CM choke'!B164=0, F159, 'CM choke'!B164) -> 64018.94997 | G160: =IF(CMdata=1,'Frequency vector'!E160,'Frequency vector'!F160) -> 64018.94997 | H160: 64.01894997
D161: 158 | E161: =10*('Frequency vector'!$C$3)^D161 -> 33.62533863 | F161: =IF('CM choke'!B165=0, F160, 'CM choke'!B165) -> 65737.57761 | G161: =IF(CMdata=1,'Frequency vector'!E161,'Frequency vector'!F161) -> 65737.57761 | H161: 65.73757761
D162: 159 | E162: =10*('Frequency vector'!$C$3)^D162 -> 33.88441561 | F162: =IF('CM choke'!B166=0, F161, 'CM choke'!B166) -> 67502.34287 | G162: =IF(CMdata=1,'Frequency vector'!E162,'Frequency vector'!F162) -> 67502.34287 | H162: 67.50234287
D163: 160 | E163: =10*('Frequency vector'!$C$3)^D163 -> 34.14548874 | F163: =IF('CM choke'!B167=0, F162, 'CM choke'!B167) -> 69314.48432 | G163: =IF(CMdata=1,'Frequency vector'!E163,'Frequency vector'!F163) -> 69314.48432 | H163: 69.31448432
D164: 161 | E164: =10*('Frequency vector'!$C$3)^D164 -> 34.40857338 | F164: =IF('CM choke'!B168=0, F163, 'CM choke'!B168) -> 71175.2738 | G164: =IF(CMdata=1,'Frequency vector'!E164,'Frequency vector'!F164) -> 71175.2738 | H164: 71.1752738
D165: 162 | E165: =10*('Frequency vector'!$C$3)^D165 -> 34.67368505 | F165: =IF('CM choke'!B169=0, F164, 'CM choke'!B169) -> 73086.01732 | G165: =IF(CMdata=1,'Frequency vector'!E165,'Frequency vector'!F165) -> 73086.01732 | H165: 73.08601732
D166: 163 | E166: =10*('Frequency vector'!$C$3)^D166 -> 34.94083934 | F166: =IF('CM choke'!B170=0, F165, 'CM choke'!B170) -> 75048.0559 | G166: =IF(CMdata=1,'Frequency vector'!E166,'Frequency vector'!F166) -> 75048.0559 | H166: 75.0480559
D167: 164 | E167: =10*('Frequency vector'!$C$3)^D167 -> 35.21005202 | F167: =IF('CM choke'!B171=0, F166, 'CM choke'!B171) -> 77062.76661 | G167: =IF(CMdata=1,'Frequency vector'!E167,'Frequency vector'!F167) -> 77062.76661 | H167: 77.06276661
D168: 165 | E168: =10*('Frequency vector'!$C$3)^D168 -> 35.48133892 | F168: =IF('CM choke'!B172=0, F167, 'CM choke'!B172) -> 79131.56345 | G168: =IF(CMdata=1,'Frequency vector'!E168,'Frequency vector'!F168) -> 79131.56345 | H168: 79.13156345
D169: 166 | E169: =10*('Frequency vector'!$C$3)^D169 -> 35.75471605 | F169: =IF('CM choke'!B173=0, F168, 'CM choke'!B173) -> 81255.8984 | G169: =IF(CMdata=1,'Frequency vector'!E169,'Frequency vector'!F169) -> 81255.8984 | H169: 81.2558984
D170: 167 | E170: =10*('Frequency vector'!$C$3)^D170 -> 36.03019949 | F170: =IF('CM choke'!B174=0, F169, 'CM choke'!B174) -> 83437.26241 | G170: =IF(CMdata=1,'Frequency vector'!E170,'Frequency vector'!F170) -> 83437.26241 | H170: 83.43726241
D171: 168 | E171: =10*('Frequency vector'!$C$3)^D171 -> 36.30780548 | F171: =IF('CM choke'!B175=0, F170, 'CM choke'!B175) -> 85677.18647 | G171: =IF(CMdata=1,'Frequency vector'!E171,'Frequency vector'!F171) -> 85677.18647 | H171: 85.67718647
D172: 169 | E172: =10*('Frequency vector'!$C$3)^D172 -> 36.58755037 | F172: =IF('CM choke'!B176=0, F171, 'CM choke'!B176) -> 87977.24265 | G172: =IF(CMdata=1,'Frequency vector'!E172,'Frequency vector'!F172) -> 87977.24265 | H172: 87.97724265
D173: 170 | E173: =10*('Frequency vector'!$C$3)^D173 -> 36.86945065 | F173: =IF('CM choke'!B177=0, F172, 'CM choke'!B177) -> 90339.04523 | G173: =IF(CMdata=1,'Frequency vector'!E173,'Frequency vector'!F173) -> 90339.04523 | H173: 90.33904523
D174: 171 | E174: =10*('Frequency vector'!$C$3)^D174 -> 37.15352291 | F174: =IF('CM choke'!B178=0, F173, 'CM choke'!B178) -> 92764.25185 | G174: =IF(CMdata=1,'Frequency vector'!E174,'Frequency vector'!F174) -> 92764.25185 | H174: 92.76425185
D175: 172 | E175: =10*('Frequency vector'!$C$3)^D175 -> 37.4397839 | F175: =IF('CM choke'!B179=0, F174, 'CM choke'!B179) -> 95254.56461 | G175: =IF(CMdata=1,'Frequency vector'!E175,'Frequency vector'!F175) -> 95254.56461 | H175: 95.25456461
D176: 173 | E176: =10*('Frequency vector'!$C$3)^D176 -> 37.72825047 | F176: =IF('CM choke'!B180=0, F175, 'CM choke'!B180) -> 97811.73133 | G176: =IF(CMdata=1,'Frequency vector'!E176,'Frequency vector'!F176) -> 97811.73133 | H176: 97.81173133
D177: 174 | E177: =10*('Frequency vector'!$C$3)^D177 -> 38.01893963 | F177: =IF('CM choke'!B181=0, F176, 'CM choke'!B181) -> 100437.5467 | G177: =IF(CMdata=1,'Frequency vector'!E177,'Frequency vector'!F177) -> 100437.5467 | H177: 100.4375467
D178: 175 | E178: =10*('Frequency vector'!$C$3)^D178 -> 38.3118685 | F178: =IF('CM choke'!B182=0, F177, 'CM choke'!B182) -> 103133.8538 | G178: =IF(CMdata=1,'Frequency vector'!E178,'Frequency vector'!F178) -> 103133.8538 | H178: 103.1338538
D179: 176 | E179: =10*('Frequency vector'!$C$3)^D179 -> 38.60705432 | F179: =IF('CM choke'!B183=0, F178, 'CM choke'!B183) -> 105902.5448 | G179: =IF(CMdata=1,'Frequency vector'!E179,'Frequency vector'!F179) -> 105902.5448 | H179: 105.9025448
D180: 177 | E180: =10*('Frequency vector'!$C$3)^D180 -> 38.9045145 | F180: =IF('CM choke'!B184=0, F179, 'CM choke'!B184) -> 108745.563 | G180: =IF(CMdata=1,'Frequency vector'!E180,'Frequency vector'!F180) -> 108745.563 | H180: 108.745563
D181: 178 | E181: =10*('Frequency vector'!$C$3)^D181 -> 39.20426655 | F181: =IF('CM choke'!B185=0, F180, 'CM choke'!B185) -> 111664.9038 | G181: =IF(CMdata=1,'Frequency vector'!E181,'Frequency vector'!F181) -> 111664.9038 | H181: 111.6649038
D182: 179 | E182: =10*('Frequency vector'!$C$3)^D182 -> 39.50632814 | F182: =IF('CM choke'!B186=0, F181, 'CM choke'!B186) -> 114662.6161 | G182: =IF(CMdata=1,'Frequency vector'!E182,'Frequency vector'!F182) -> 114662.6161 | H182: 114.6626161
D183: 180 | E183: =10*('Frequency vector'!$C$3)^D183 -> 39.81071706 | F183: =IF('CM choke'!B187=0, F182, 'CM choke'!B187) -> 117740.8037 | G183: =IF(CMdata=1,'Frequency vector'!E183,'Frequency vector'!F183) -> 117740.8037 | H183: 117.7408037
D184: 181 | E184: =10*('Frequency vector'!$C$3)^D184 -> 40.11745123 | F184: =IF('CM choke'!B188=0, F183, 'CM choke'!B188) -> 120901.6272 | G184: =IF(CMdata=1,'Frequency vector'!E184,'Frequency vector'!F184) -> 120901.6272 | H184: 120.9016272
D185: 182 | E185: =10*('Frequency vector'!$C$3)^D185 -> 40.42654874 | F185: =IF('CM choke'!B189=0, F184, 'CM choke'!B189) -> 124147.3049 | G185: =IF(CMdata=1,'Frequency vector'!E185,'Frequency vector'!F185) -> 124147.3049 | H185: 124.1473049
D186: 183 | E186: =10*('Frequency vector'!$C$3)^D186 -> 40.73802778 | F186: =IF('CM choke'!B190=0, F185, 'CM choke'!B190) -> 127480.1148 | G186: =IF(CMdata=1,'Frequency vector'!E186,'Frequency vector'!F186) -> 127480.1148 | H186: 127.4801148
D187: 184 | E187: =10*('Frequency vector'!$C$3)^D187 -> 41.05190671 | F187: =IF('CM choke'!B191=0, F186, 'CM choke'!B191) -> 130902.3961 | G187: =IF(CMdata=1,'Frequency vector'!E187,'Frequency vector'!F187) -> 130902.3961 | H187: 130.9023961
D188: 185 | E188: =10*('Frequency vector'!$C$3)^D188 -> 41.36820402 | F188: =IF('CM choke'!B192=0, F187, 'CM choke'!B192) -> 134416.5505 | G188: =IF(CMdata=1,'Frequency vector'!E188,'Frequency vector'!F188) -> 134416.5505 | H188: 134.4165505
D189: 186 | E189: =10*('Frequency vector'!$C$3)^D189 -> 41.68693835 | F189: =IF('CM choke'!B193=0, F188, 'CM choke'!B193) -> 138025.0445 | G189: =IF(CMdata=1,'Frequency vector'!E189,'Frequency vector'!F189) -> 138025.0445 | H189: 138.0250445
D190: 187 | E190: =10*('Frequency vector'!$C$3)^D190 -> 42.00812846 | F190: =IF('CM choke'!B194=0, F189, 'CM choke'!B194) -> 141730.4108 | G190: =IF(CMdata=1,'Frequency vector'!E190,'Frequency vector'!F190) -> 141730.4108 | H190: 141.7304108
D191: 188 | E191: =10*('Frequency vector'!$C$3)^D191 -> 42.33179328 | F191: =IF('CM choke'!B195=0, F190, 'CM choke'!B195) -> 145535.2499 | G191: =IF(CMdata=1,'Frequency vector'!E191,'Frequency vector'!F191) -> 145535.2499 | H191: 145.5352499
D192: 189 | E192: =10*('Frequency vector'!$C$3)^D192 -> 42.65795188 | F192: =IF('CM choke'!B196=0, F191, 'CM choke'!B196) -> 149442.2322 | G192: =IF(CMdata=1,'Frequency vector'!E192,'Frequency vector'!F192) -> 149442.2322 | H192: 149.4422322
D193: 190 | E193: =10*('Frequency vector'!$C$3)^D193 -> 42.98662347 | F193: =IF('CM choke'!B197=0, F192, 'CM choke'!B197) -> 153454.0998 | G193: =IF(CMdata=1,'Frequency vector'!E193,'Frequency vector'!F193) -> 153454.0998 | H193: 153.4540998
D194: 191 | E194: =10*('Frequency vector'!$C$3)^D194 -> 43.31782742 | F194: =IF('CM choke'!B198=0, F193, 'CM choke'!B198) -> 157573.6684 | G194: =IF(CMdata=1,'Frequency vector'!E194,'Frequency vector'!F194) -> 157573.6684 | H194: 157.5736684
D195: 192 | E195: =10*('Frequency vector'!$C$3)^D195 -> 43.65158322 | F195: =IF('CM choke'!B199=0, F194, 'CM choke'!B199) -> 161803.8294 | G195: =IF(CMdata=1,'Frequency vector'!E195,'Frequency vector'!F195) -> 161803.8294 | H195: 161.8038294
D196: 193 | E196: =10*('Frequency vector'!$C$3)^D196 -> 43.98791056 | F196: =IF('CM choke'!B200=0, F195, 'CM choke'!B200) -> 166147.5516 | G196: =IF(CMdata=1,'Frequency vector'!E196,'Frequency vector'!F196) -> 166147.5516 | H196: =G196/1000 -> 166.1475516
D197: 194 | E197: =10*('Frequency vector'!$C$3)^D197 -> 44.32682923 | F197: =IF('CM choke'!B201=0, F196, 'CM choke'!B201) -> 170607.8837 | G197: =IF(CMdata=1,'Frequency vector'!E197,'Frequency vector'!F197) -> 170607.8837 | H197: 170.6078837
D198: 195 | E198: =10*('Frequency vector'!$C$3)^D198 -> 44.66835922 | F198: =IF('CM choke'!B202=0, F197, 'CM choke'!B202) -> 175187.9561 | G198: =IF(CMdata=1,'Frequency vector'!E198,'Frequency vector'!F198) -> 175187.9561 | H198: 175.1879561
D199: 196 | E199: =10*('Frequency vector'!$C$3)^D199 -> 45.01252062 | F199: =IF('CM choke'!B203=0, F198, 'CM choke'!B203) -> 179890.9833 | G199: =IF(CMdata=1,'Frequency vector'!E199,'Frequency vector'!F199) -> 179890.9833 | H199: 179.8909833
D200: 197 | E200: =10*('Frequency vector'!$C$3)^D200 -> 45.35933373 | F200: =IF('CM choke'!B204=0, F199, 'CM choke'!B204) -> 184720.2662 | G200: =IF(CMdata=1,'Frequency vector'!E200,'Frequency vector'!F200) -> 184720.2662 | H200: 184.7202662
D201: 198 | E201: =10*('Frequency vector'!$C$3)^D201 -> 45.70881896 | F201: =IF('CM choke'!B205=0, F200, 'CM choke'!B205) -> 189679.1941 | G201: =IF(CMdata=1,'Frequency vector'!E201,'Frequency vector'!F201) -> 189679.1941 | H201: 189.6791941
... 1902 more rows

Sheet Choke impedance calculations (hidden)
C1: ZL1 (mag, phase) | E1: ZL2 (mag, phase) | G1: ZL1 (real, imag) | I1: ZL2 (real, imag) | K1: ZL1 (complex) | L1: ZL2 (complex)
A2: freq_selected [Hz] | B2: j*w [rad] | C2: ZL1_mag [Ω] | D2: ZL1_phase [°] | E2: ZL2_mag [Ω] | F2: ZL2_phase [°] | G2: ZL1_real [Ω] | H2: ZL1_imag [Ω] | I2: ZL2_real [Ω] | J2: ZL2_imag [Ω] | K2: Zch1 [Ω] | L2: Zch2 [Ω]
A3: ='Frequency vector'!G3 -> 1000 | B3: =COMPLEX(0,2*PI()*'Frequency vector'!G3,"j") -> 6283.18530717959j | C3: =IF(CMdata=1,IMABS(K3),'CM choke'!C7) -> 12.5378 | D3: =IF(CMdata=1,DEGREES(IMARGUMENT(K3)),'CM choke'!D7) -> 67.2251 | E3: =IF(CMdata=1,IMABS(L3),'CM choke'!E7) -> 51.3385 | F3: =IF(CMdata=1,DEGREES(IMARGUMENT(L3)),'CM choke'!F7) -> 79.7848 | G3: =C3*COS(RADIANS(D3)) -> 4.853529093 | H3: =C3*SIN(RADIANS(D3)) -> 11.56026315 | I3: =E3*COS(RADIANS(F3)) -> 9.104668964 | J3: =E3*SIN(RADIANS(F3)) -> 50.52471262 | K3: =IF(CMdata=1,IMDIV(1,IMSUM(IMDIV(1,IMPRODUCT(B3,'Design the AEF circuit'!$G$13*0.001)),IMDIV(1,'Design the AEF circuit'!$H$13*1000),IMPRODUCT(B3,'Design the AEF circuit'!$I$13*0.000000000001))),COMPLEX(G3,H3,"j")) -> 4.85352909288024+11.5602631537766j | L3: =IF(CMdata=1,IMDIV(1, IMSUM(IMDIV(1,IMPRODUCT(B3,'Design the AEF circuit'!$G$14*0.001)), IMDIV(1,'Design the AEF circuit'!$H$14*1000), IMPRODUCT(B3,'Design the AEF circuit'!$I$14*0.000000000001))), COMPLEX(I3,J3,"j")) -> 9.10466896447789+50.5247126196406j
A4: ='Frequency vector'!G4 -> 1026.845608 | B4: =COMPLEX(0,2*PI()*'Frequency vector'!G4,"j") -> 6451.86123819349j | C4: =IF(IF(CMdata=1,IMABS(K4),'CM choke'!C8)=0, C3, IF(CMdata=1,IMABS(K4),'CM choke'!C8)) -> 12.8157 | D4: =IF(IF(CMdata=1,DEGREES(IMARGUMENT(K4)),'CM choke'!D8)=0, D3, IF(CMdata=1,DEGREES(IMARGUMENT(K4)),'CM choke'!D8)) -> 67.8703 | E4: =IF(IF(CMdata=1,IMABS(L4),'CM choke'!E8)=0, E3, IF(CMdata=1,IMABS(L4),'CM choke'!E8)) -> 52.8981 | F4: =IF(IF(CMdata=1,DEGREES(IMARGUMENT(L4)),'CM choke'!F8)=0, F3, IF(CMdata=1,DEGREES(IMARGUMENT(L4)),'CM choke'!F8)) -> 79.989 | G4: =C4*COS(RADIANS(D4)) -> 4.827731739 | H4: 11.87161205 | I4: 9.195659916 | J4: 52.09269452 | K4: =IF(CMdata=1,IMDIV(1,IMSUM(IMDIV(1,IMPRODUCT(B4,'Design the AEF circuit'!$G$13*0.001)),IMDIV(1,'Design the AEF circuit'!$H$13*1000),IMPRODUCT(B4,'Design the AEF circuit'!$I$13*0.000000000001))),COMPLEX(G4,H4,"j")) -> 4.82773173936538+11.8716120532438j | L4: =IF(CMdata=1,IMDIV(1,IMSUM(IMDIV(1,IMPRODUCT(B4,'Design the AEF circuit'!$G$14*0.001)),IMDIV(1,'Design the AEF circuit'!$H$14*1000),IMPRODUCT(B4,'Design the AEF circuit'!$I$14*0.000000000001))),COMPLEX(I4,J4,"j")) -> 9.19565991584333+52.0926945196939j
A5: ='Frequency vector'!G5 -> 1054.411903 | B5: =COMPLEX(0,2*PI()*'Frequency vector'!G5,"j") -> 6625.06537716442j | C5: =IF(IF(CMdata=1,IMABS(K5),'CM choke'!C9)=0, C4, IF(CMdata=1,IMABS(K5),'CM choke'!C9)) -> 13.0805 | D5: =IF(IF(CMdata=1,DEGREES(IMARGUMENT(K5)),'CM choke'!D9)=0, D4, IF(CMdata=1,DEGREES(IMARGUMENT(K5)),'CM choke'!D9)) -> 67.8748 | E5: =IF(IF(CMdata=1,IMABS(L5),'CM choke'!E9)=0, E4, IF(CMdata=1,IMABS(L5),'CM choke'!E9)) -> 54.1489 | F5: =IF(IF(CMdata=1,DEGREES(IMARGUMENT(L5)),'CM choke'!F9)=0, F4, IF(CMdata=1,DEGREES(IMARGUMENT(L5)),'CM choke'!F9)) -> 79.5482 | G5: 4.926531414 | H5: 12.11729213 | I5: 9.823059852 | J5: 53.25045414 | K5: =IF(CMdata=1,IMDIV(1,IMSUM(IMDIV(1,IMPRODUCT(B5,'Design the AEF circuit'!$G$13*0.001)),IMDIV(1,'Design the AEF circuit'!$H$13*1000),IMPRODUCT(B5,'Design the AEF circuit'!$I$13*0.000000000001))),COMPLEX(G5,H5,"j")) -> 4.92653141375686+12.1172921265135j | L5: =IF(CMdata=1,IMDIV(1,IMSUM(IMDIV(1,IMPRODUCT(B5,'Design the AEF circuit'!$G$14*0.001)),IMDIV(1,'Design the AEF circuit'!$H$14*1000),IMPRODUCT(B5,'Design the AEF circuit'!$I$14*0.000000000001))),COMPLEX(I5,J5,"j")) -> 9.82305985219914+53.2504541421959j
A6: ='Frequency vector'!G6 -> 1082.718232 | B6: =COMPLEX(0,2*PI()*'Frequency vector'!G6,"j") -> 6802.919286589j | C6: =IF(IF(CMdata=1,IMABS(K6),'CM choke'!C10)=0, C5, IF(CMdata=1,IMABS(K6),'CM choke'!C10)) -> 13.5098 | D6: =IF(IF(CMdata=1,DEGREES(IMARGUMENT(K6)),'CM choke'!D10)=0, D5, IF(CMdata=1,DEGREES(IMARGUMENT(K6)),'CM choke'!D10)) -> 67.874 | E6: =IF(IF(CMdata=1,IMABS(L6),'CM choke'!E10)=0, E5, IF(CMdata=1,IMABS(L6),'CM choke'!E10)) -> 55.4699 | F6: =IF(IF(CMdata=1,DEGREES(IMARGUMENT(L6)),'CM choke'!F10)=0, F5, IF(CMdata=1,DEGREES(IMARGUMENT(L6)),'CM choke'!F10)) -> 79.5679 | G6: 5.088394159 | H6: 12.51490875 | I6: 10.04394386 | J6: 54.55299256 | K6: =IF(CMdata=1,IMDIV(1,IMSUM(IMDIV(1,IMPRODUCT(B6,'Design the AEF circuit'!$G$13*0.001)),IMDIV(1,'Design the AEF circuit'!$H$13*1000),IMPRODUCT(B6,'Design the AEF circuit'!$I$13*0.000000000001))),COMPLEX(G6,H6,"j")) -> 5.08839415931314+12.5149087459505j | L6: =IF(CMdata=1,IMDIV(1,IMSUM(IMDIV(1,IMPRODUCT(B6,'Design the AEF circuit'!$G$14*0.001)),IMDIV(1,'Design the AEF circuit'!$H$14*1000),IMPRODUCT(B6,'Design the AEF circuit'!$I$14*0.000000000001))),COMPLEX(I6,J6,"j")) -> 10.0439438615556+54.5529925642574j
A7: ='Frequency vector'!G7 -> 1111.784461 | B7: =COMPLEX(0,2*PI()*'Frequency vector'!G7,"j") -> 6985.54779238312j | C7: =IF(IF(CMdata=1,IMABS(K7),'CM choke'!C11)=0, C6, IF(CMdata=1,IMABS(K7),'CM choke'!C11)) -> 13.8375 | D7: =IF(IF(CMdata=1,DEGREES(IMARGUMENT(K7)),'CM choke'!D11)=0, D6, IF(CMdata=1,DEGREES(IMARGUMENT(K7)),'CM choke'!D11)) -> 67.9213 | E7: =IF(IF(CMdata=1,IMABS(L7),'CM choke'!E11)=0, E6, IF(CMdata=1,IMABS(L7),'CM choke'!E11)) -> 56.6572 | F7: =IF(IF(CMdata=1,DEGREES(IMARGUMENT(L7)),'CM choke'!F11)=0, F6, IF(CMdata=1,DEGREES(IMARGUMENT(L7)),'CM choke'!F11)) -> 79.391 | G7: 5.201236669 | H7: 12.8227744 | I7: 10.43091616 | J7: 55.68872687 | K7: =IF(CMdata=1,IMDIV(1,IMSUM(IMDIV(1,IMPRODUCT(B7,'Design the AEF circuit'!$G$13*0.001)),IMDIV(1,'Design the AEF circuit'!$H$13*1000),IMPRODUCT(B7,'Design the AEF circuit'!$I$13*0.000000000001))),COMPLEX(G7,H7,"j")) -> 5.20123666853763+12.8227744021276j | L7: =IF(CMdata=1,IMDIV(1,IMSUM(IMDIV(1,IMPRODUCT(B7,'Design the AEF circuit'!$G$14*0.001)),IMDIV(1,'Design the AEF circuit'!$H$14*1000),IMPRODUCT(B7,'Design the AEF circuit'!$I$14*0.000000000001))),COMPLEX(I7,J7,"j")) -> 10.4309161553459+55.6887268663968j
A8: ='Frequency vector'!G8 -> 1141.630991 | B8: =COMPLEX(0,2*PI()*'Frequency vector'!G8,"j") -> 7173.07907149021j | C8: =IF(IF(CMdata=1,IMABS(K8),'CM choke'!C12)=0, C7, IF(CMdata=1,IMABS(K8),'CM choke'!C12)) -> 14.1866 | D8: =IF(IF(CMdata=1,DEGREES(IMARGUMENT(K8)),'CM choke'!D12)=0, D7, IF(CMdata=1,DEGREES(IMARGUMENT(K8)),'CM choke'!D12)) -> 67.9283 | E8: =IF(IF(CMdata=1,IMABS(L8),'CM choke'!E12)=0, E7, IF(CMdata=1,IMABS(L8),'CM choke'!E12)) -> 58.1721 | F8: =IF(IF(CMdata=1,DEGREES(IMARGUMENT(L8)),'CM choke'!F12)=0, F7, IF(CMdata=1,DEGREES(IMARGUMENT(L8)),'CM choke'!F12)) -> 79.346 | G8: 5.330850145 | H8: 13.14692574 | I8: 10.75472193 | J8: 57.16930273 | K8: =IF(CMdata=1,IMDIV(1,IMSUM(IMDIV(1,IMPRODUCT(B8,'Design the AEF circuit'!$G$13*0.001)),IMDIV(1,'Design the AEF circuit'!$H$13*1000),IMPRODUCT(B8,'Design the AEF circuit'!$I$13*0.000000000001))),COMPLEX(G8,H8,"j")) -> 5.33085014490857+13.1469257354154j | L8: =IF(CMdata=1,IMDIV(1,IMSUM(IMDIV(1,IMPRODUCT(B8,'Design the AEF circuit'!$G$14*0.001)),IMDIV(1,'Design the AEF circuit'!$H$14*1000),IMPRODUCT(B8,'Design the AEF circuit'!$I$14*0.000000000001))),COMPLEX(I8,J8,"j")) -> 10.7547219299595+57.1693027298676j
A9: ='Frequency vector'!G9 -> 1172.27877 | B9: =COMPLEX(0,2*PI()*'Frequency vector'!G9,"j") -> 7365.64474184174j | C9: =IF(IF(CMdata=1,IMABS(K9),'CM choke'!C13)=0, C8, IF(CMdata=1,IMABS(K9),'CM choke'!C13)) -> 14.494 | D9: =IF(IF(CMdata=1,DEGREES(IMARGUMENT(K9)),'CM choke'!D13)=0, D8, IF(CMdata=1,DEGREES(IMARGUMENT(K9)),'CM choke'!D13)) -> 67.9043 | E9: =IF(IF(CMdata=1,IMABS(L9),'CM choke'!E13)=0, E8, IF(CMdata=1,IMABS(L9),'CM choke'!E13)) -> 59.7048 | F9: =IF(IF(CMdata=1,DEGREES(IMARGUMENT(L9)),'CM choke'!F13)=0, F8, IF(CMdata=1,DEGREES(IMARGUMENT(L9)),'CM choke'!F13)) -> 79.3459 | G9: 5.451986611 | H9: 13.42951518 | I9: 11.03818633 | J9: 58.67556208 | K9: =IF(CMdata=1,IMDIV(1,IMSUM(IMDIV(1,IMPRODUCT(B9,'Design the AEF circuit'!$G$13*0.001)),IMDIV(1,'Design the AEF circuit'!$H$13*1000),IMPRODUCT(B9,'Design the AEF circuit'!$I$13*0.000000000001))),COMPLEX(G9,H9,"j")) -> 5.45198661149228+13.4295151806798j | L9: =IF(CMdata=1,IMDIV(1,IMSUM(IMDIV(1,IMPRODUCT(B9,'Design the AEF circuit'!$G$14*0.001)),IMDIV(1,'Design the AEF circuit'!$H$14*1000),IMPRODUCT(B9,'Design the AEF circuit'!$I$14*0.000000000001))),COMPLEX(I9,J9,"j")) -> 11.0381863330259+58.6755620809669j
A10: ='Frequency vector'!G10 -> 1203.749306 | B10: =COMPLEX(0,2*PI()*'Frequency vector'!G10,"j") -> 7563.37995473261j | C10: =IF(IF(CMdata=1,IMABS(K10),'CM choke'!C14)=0, C9, IF(CMdata=1,IMABS(K10),'CM choke'!C14)) -> 14.767 | D10: =IF(IF(CMdata=1,DEGREES(IMARGUMENT(K10)),'CM choke'!D14)=0, D9, IF(CMdata=1,DEGREES(IMARGUMENT(K10)),'CM choke'!D14)) -> 67.7766 | E10: =IF(IF(CMdata=1,IMABS(L10),'CM choke'!E14)=0, E9, IF(CMdata=1,IMABS(L10),'CM choke'!E14)) -> 61.2857 | F10: =IF(IF(CMdata=1,DEGREES(IMARGUMENT(L10)),'CM choke'!F14)=0, F9, IF(CMdata=1,DEGREES(IMARGUMENT(L10)),'CM choke'!F14)) -> 79.2401 | G10: 5.58515831 | H10: 13.67005105 | I10: 11.44165951 | J10: 60.20818426 | K10: =IF(CMdata=1,IMDIV(1,IMSUM(IMDIV(1,IMPRODUCT(B10,'Design the AEF circuit'!$G$13*0.001)),IMDIV(1,'Design the AEF circuit'!$H$13*1000),IMPRODUCT(B10,'Design the AEF circuit'!$I$13*0.000000000001))),COMPLEX(G10,H10,"j")) -> 5.58515830973807+13.6700510480087j | L10: =IF(CMdata=1,IMDIV(1,IMSUM(IMDIV(1,IMPRODUCT(B10,'Design the AEF circuit'!$G$14*0.001)),IMDIV(1,'Design the AEF circuit'!$H$14*1000),IMPRODUCT(B10,'Design the AEF circuit'!$I$14*0.000000000001))),COMPLEX(I10,J10,"j")) -> 11.4416595117822+60.2081842618297j
A11: ='Frequency vector'!G11 -> 1236.064689 | B11: =COMPLEX(0,2*PI()*'Frequency vector'!G11,"j") -> 7766.42348967636j | C11: =IF(IF(CMdata=1,IMABS(K11),'CM choke'!C15)=0, C10, IF(CMdata=1,IMABS(K11),'CM choke'!C15)) -> 15.0994 | D11: =IF(IF(CMdata=1,DEGREES(IMARGUMENT(K11)),'CM choke'!D15)=0, D10, IF(CMdata=1,DEGREES(IMARGUMENT(K11)),'CM choke'!D15)) -> 67.5555 | E11: =IF(IF(CMdata=1,IMABS(L11),'CM choke'!E15)=0, E10, IF(CMdata=1,IMABS(L11),'CM choke'!E15)) -> 62.8796 | F11: =IF(IF(CMdata=1,DEGREES(IMARGUMENT(L11)),'CM choke'!F15)=0, F10, IF(CMdata=1,DEGREES(IMARGUMENT(L11)),'CM choke'!F15)) -> 79.3791 | G11: 5.764774709 | H11: 13.95561725 | I11: 11.589332 | J11: 61.80235821 | K11: =IF(CMdata=1,IMDIV(1,IMSUM(IMDIV(1,IMPRODUCT(B11,'Design the AEF circuit'!$G$13*0.001)),IMDIV(1,'Design the AEF circuit'!$H$13*1000),IMPRODUCT(B11,'Design the AEF circuit'!$I$13*0.000000000001))),COMPLEX(G11,H11,"j")) -> 5.76477470870796+13.955617253201j | L11: =IF(CMdata=1,IMDIV(1,IMSUM(IMDIV(1,IMPRODUCT(B11,'Design the AEF circuit'!$G$14*0.001)),IMDIV(1,'Design the AEF circuit'!$H$14*1000),IMPRODUCT(B11,'Design the AEF circuit'!$I$14*0.000000000001))),COMPLEX(I11,J11,"j")) -> 11.5893319984224+61.802358207356j
A12: ='Frequency vector'!G12 -> 1269.247597 | B12: =COMPLEX(0,2*PI()*'Frequency vector'!G12,"j") -> 7974.91785180704j | C12: =IF(IF(CMdata=1,IMABS(K12),'CM choke'!C16)=0, C11, IF(CMdata=1,IMABS(K12),'CM choke'!C16)) -> 15.3812 | D12: =IF(IF(CMdata=1,DEGREES(IMARGUMENT(K12)),'CM choke'!D16)=0, D11, IF(CMdata=1,DEGREES(IMARGUMENT(K12)),'CM choke'!D16)) -> 67.6369 | E12: =IF(IF(CMdata=1,IMABS(L12),'CM choke'!E16)=0, E11, IF(CMdata=1,IMABS(L12),'CM choke'!E16)) -> 64.1351 | F12: =IF(IF(CMdata=1,DEGREES(IMARGUMENT(L12)),'CM choke'!F16)=0, F11, IF(CMdata=1,DEGREES(IMARGUMENT(L12)),'CM choke'!F16)) -> 79.0088 | G12: 5.852159997 | H12: 14.22439935 | I12: 12.22788439 | J12: 62.95863638 | K12: =IF(CMdata=1,IMDIV(1,IMSUM(IMDIV(1,IMPRODUCT(B12,'Design the AEF circuit'!$G$13*0.001)),IMDIV(1,'Design the AEF circuit'!$H$13*1000),IMPRODUCT(B12,'Design the AEF circuit'!$I$13*0.000000000001))),COMPLEX(G12,H12,"j")) -> 5.85215999696152+14.2243993479501j | L12: =IF(CMdata=1,IMDIV(1,IMSUM(IMDIV(1,IMPRODUCT(B12,'Design the AEF circuit'!$G$14*0.001)),IMDIV(1,'Design the AEF circuit'!$H$14*1000),IMPRODUCT(B12,'Design the AEF circuit'!$I$14*0.000000000001))),COMPLEX(I12,J12,"j")) -> 12.2278843912599+62.9586363839305j
A13: ='Frequency vector'!G13 -> 1303.321321 | B13: =COMPLEX(0,2*PI()*'Frequency vector'!G13,"j") -> 8189.00937189571j | C13: =IF(IF(CMdata=1,IMABS(K13),'CM choke'!C17)=0, C12, IF(CMdata=1,IMABS(K13),'CM choke'!C17)) -> 15.8874 | D13: =IF(IF(CMdata=1,DEGREES(IMARGUMENT(K13)),'CM choke'!D17)=0, D12, IF(CMdata=1,DEGREES(IMARGUMENT(K13)),'CM choke'!D17)) -> 68.041 | E13: =IF(IF(CMdata=1,IMABS(L13),'CM choke'!E17)=0, E12, IF(CMdata=1,IMABS(L13),'CM choke'!E17)) -> 65.3331 | F13: =IF(IF(CMdata=1,DEGREES(IMARGUMENT(L13)),'CM choke'!F17)=0, F12, IF(CMdata=1,DEGREES(IMARGUMENT(L13)),'CM choke'!F17)) -> 78.8265 | G13: 5.940982315 | H13: 14.73479582 | I13: 12.66028906 | J13: 64.09470365 | K13: =IF(CMdata=1,IMDIV(1,IMSUM(IMDIV(1,IMPRODUCT(B13,'Design the AEF circuit'!$G$13*0.001)),IMDIV(1,'Design the AEF circuit'!$H$13*1000),IMPRODUCT(B13,'Design the AEF circuit'!$I$13*0.000000000001))),COMPLEX(G13,H13,"j")) -> 5.94098231544192+14.7347958210355j | L13: =IF(CMdata=1,IMDIV(1,IMSUM(IMDIV(1,IMPRODUCT(B13,'Design the AEF circuit'!$G$14*0.001)),IMDIV(1,'Design the AEF circuit'!$H$14*1000),IMPRODUCT(B13,'Design the AEF circuit'!$I$14*0.000000000001))),COMPLEX(I13,J13,"j")) -> 12.6602890611616+64.0947036540293j
A14: ='Frequency vector'!G14 -> 1338.309774 | B14: =COMPLEX(0,2*PI()*'Frequency vector'!G14,"j") -> 8408.84830905199j | C14: =IF(IF(CMdata=1,IMABS(K14),'CM choke'!C18)=0, C13, IF(CMdata=1,IMABS(K14),'CM choke'!C18)) -> 16.1211 | D14: =IF(IF(CMdata=1,DEGREES(IMARGUMENT(K14)),'CM choke'!D18)=0, D13, IF(CMdata=1,DEGREES(IMARGUMENT(K14)),'CM choke'!D18)) -> 67.832 | E14: =IF(IF(CMdata=1,IMABS(L14),'CM choke'!E18)=0, E13, IF(CMdata=1,IMABS(L14),'CM choke'!E18)) -> 67.1792 | F14: =IF(IF(CMdata=1,DEGREES(IMARGUMENT(L14)),'CM choke'!F18)=0, F13, IF(CMdata=1,DEGREES(IMARGUMENT(L14)),'CM choke'!F18)) -> 78.7307 | G14: 6.082871879 | H14: 14.92945193 | I14: 13.12820542 | J14: 65.88395203 | K14: =IF(CMdata=1,IMDIV(1,IMSUM(IMDIV(1,IMPRODUCT(B14,'Design the AEF circuit'!$G$13*0.001)),IMDIV(1,'Design the AEF circuit'!$H$13*1000),IMPRODUCT(B14,'Design the AEF circuit'!$I$13*0.000000000001))),COMPLEX(G14,H14,"j")) -> 6.08287187858832+14.9294519296148j | L14: =IF(CMdata=1,IMDIV(1,IMSUM(IMDIV(1,IMPRODUCT(B14,'Design the AEF circuit'!$G$14*0.001)),IMDIV(1,'Design the AEF circuit'!$H$14*1000),IMPRODUCT(B14,'Design the AEF circuit'!$I$14*0.000000000001))),COMPLEX(I14,J14,"j")) -> 13.1282054185969+65.8839520302715j
A15: ='Frequency vector'!G15 -> 1374.237514 | B15: =COMPLEX(0,2*PI()*'Frequency vector'!G15,"j") -> 8634.58895618254j | C15: =IF(IF(CMdata=1,IMABS(K15),'CM choke'!C19)=0, C14, IF(CMdata=1,IMABS(K15),'CM choke'!C19)) -> 16.549 | D15: =IF(IF(CMdata=1,DEGREES(IMARGUMENT(K15)),'CM choke'!D19)=0, D14, IF(CMdata=1,DEGREES(IMARGUMENT(K15)),'CM choke'!D19)) -> 67.5128 | E15: =IF(IF(CMdata=1,IMABS(L15),'CM choke'!E19)=0, E14, IF(CMdata=1,IMABS(L15),'CM choke'!E19)) -> 68.9073 | F15: =IF(IF(CMdata=1,DEGREES(IMARGUMENT(L15)),'CM choke'!F19)=0, F14, IF(CMdata=1,DEGREES(IMARGUMENT(L15)),'CM choke'!F19)) -> 78.7962 | G15: 6.329612306 | H15: 15.29069681 | I15: 13.38864775 | J15: 67.59408336 | K15: =IF(CMdata=1,IMDIV(1,IMSUM(IMDIV(1,IMPRODUCT(B15,'Design the AEF circuit'!$G$13*0.001)),IMDIV(1,'Design the AEF circuit'!$H$13*1000),IMPRODUCT(B15,'Design the AEF circuit'!$I$13*0.000000000001))),COMPLEX(G15,H15,"j")) -> 6.32961230573365+15.2906968140469j | L15: =IF(CMdata=1,IMDIV(1,IMSUM(IMDIV(1,IMPRODUCT(B15,'Design the AEF circuit'!$G$14*0.001)),IMDIV(1,'Design the AEF circuit'!$H$14*1000),IMPRODUCT(B15,'Design the AEF circuit'!$I$14*0.000000000001))),COMPLEX(I15,J15,"j")) -> 13.3886477486387+67.5940833561109j
A16: ='Frequency vector'!G16 -> 1411.129756 | B16: =COMPLEX(0,2*PI()*'Frequency vector'!G16,"j") -> 8866.38974828115j | C16: =IF(IF(CMdata=1,IMABS(K16),'CM choke'!C20)=0, C15, IF(CMdata=1,IMABS(K16),'CM choke'!C20)) -> 16.8531 | D16: =IF(IF(CMdata=1,DEGREES(IMARGUMENT(K16)),'CM choke'!D20)=0, D15, IF(CMdata=1,DEGREES(IMARGUMENT(K16)),'CM choke'!D20)) -> 67.9015 | E16: =IF(IF(CMdata=1,IMABS(L16),'CM choke'!E20)=0, E15, IF(CMdata=1,IMABS(L16),'CM choke'!E20)) -> 70.77 | F16: =IF(IF(CMdata=1,DEGREES(IMARGUMENT(L16)),'CM choke'!F20)=0, F15, IF(CMdata=1,DEGREES(IMARGUMENT(L16)),'CM choke'!F20)) -> 78.4399 | G16: 6.34013633 | H16: 15.61504566 | I16: 14.18200437 | J16: 69.33443338 | K16: =IF(CMdata=1,IMDIV(1,IMSUM(IMDIV(1,IMPRODUCT(B16,'Design the AEF circuit'!$G$13*0.001)),IMDIV(1,'Design the AEF circuit'!$H$13*1000),IMPRODUCT(B16,'Design the AEF circuit'!$I$13*0.000000000001))),COMPLEX(G16,H16,"j")) -> 6.34013633034743+15.6150456586783j | L16: =IF(CMdata=1,IMDIV(1,IMSUM(IMDIV(1,IMPRODUCT(B16,'Design the AEF circuit'!$G$14*0.001)),IMDIV(1,'Design the AEF circuit'!$H$14*1000),IMPRODUCT(B16,'Design the AEF circuit'!$I$14*0.000000000001))),COMPLEX(I16,J16,"j")) -> 14.1820043677274+69.3344333799142j
A17: ='Frequency vector'!G17 -> 1449.012392 | B17: =COMPLEX(0,2*PI()*'Frequency vector'!G17,"j") -> 9104.4133736252j | C17: =IF(IF(CMdata=1,IMABS(K17),'CM choke'!C21)=0, C16, IF(CMdata=1,IMABS(K17),'CM choke'!C21)) -> 17.3522 | D17: =IF(IF(CMdata=1,DEGREES(IMARGUMENT(K17)),'CM choke'!D21)=0, D16, IF(CMdata=1,DEGREES(IMARGUMENT(K17)),'CM choke'!D21)) -> 68.0078 | E17: =IF(IF(CMdata=1,IMABS(L17),'CM choke'!E21)=0, E16, IF(CMdata=1,IMABS(L17),'CM choke'!E21)) -> 72.2298 | F17: =IF(IF(CMdata=1,DEGREES(IMARGUMENT(L17)),'CM choke'!F21)=0, F16, IF(CMdata=1,DEGREES(IMARGUMENT(L17)),'CM choke'!F21)) -> 78.4191 | G17: 6.498058227 | H17: 16.08956445 | I17: 14.50023064 | J17: 70.75936206 | K17: =IF(CMdata=1,IMDIV(1,IMSUM(IMDIV(1,IMPRODUCT(B17,'Design the AEF circuit'!$G$13*0.001)),IMDIV(1,'Design the AEF circuit'!$H$13*1000),IMPRODUCT(B17,'Design the AEF circuit'!$I$13*0.000000000001))),COMPLEX(G17,H17,"j")) -> 6.49805822666871+16.0895644478905j | L17: =IF(CMdata=1,IMDIV(1,IMSUM(IMDIV(1,IMPRODUCT(B17,'Design the AEF circuit'!$G$14*0.001)),IMDIV(1,'Design the AEF circuit'!$H$14*1000),IMPRODUCT(B17,'Design the AEF circuit'!$I$14*0.000000000001))),COMPLEX(I17,J17,"j")) -> 14.5002306434812+70.7593620613262j
A18: ='Frequency vector'!G18 -> 1487.912011 | B18: =COMPLEX(0,2*PI()*'Frequency vector'!G18,"j") -> 9348.8268879579j | C18: =IF(IF(CMdata=1,IMABS(K18),'CM choke'!C22)=0, C17, IF(CMdata=1,IMABS(K18),'CM choke'!C22)) -> 17.6198 | D18: =IF(IF(CMdata=1,DEGREES(IMARGUMENT(K18)),'CM choke'!D22)=0, D17, IF(CMdata=1,DEGREES(IMARGUMENT(K18)),'CM choke'!D22)) -> 67.6003 | E18: =IF(IF(CMdata=1,IMABS(L18),'CM choke'!E22)=0, E17, IF(CMdata=1,IMABS(L18),'CM choke'!E22)) -> 74.3969 | F18: =IF(IF(CMdata=1,DEGREES(IMARGUMENT(L18)),'CM choke'!F22)=0, F17, IF(CMdata=1,DEGREES(IMARGUMENT(L18)),'CM choke'!F22)) -> 78.5098 | G18: 6.714298521 | H18: 16.29035136 | I18: 14.81988651 | J18: 72.90589615 | K18: =IF(CMdata=1,IMDIV(1,IMSUM(IMDIV(1,IMPRODUCT(B18,'Design the AEF circuit'!$G$13*0.001)),IMDIV(1,'Design the AEF circuit'!$H$13*1000),IMPRODUCT(B18,'Design the AEF circuit'!$I$13*0.000000000001))),COMPLEX(G18,H18,"j")) -> 6.71429852122834+16.2903513592504j | L18: =IF(CMdata=1,IMDIV(1,IMSUM(IMDIV(1,IMPRODUCT(B18,'Design the AEF circuit'!$G$14*0.001)),IMDIV(1,'Design the AEF circuit'!$H$14*1000),IMPRODUCT(B18,'Design the AEF circuit'!$I$14*0.000000000001))),COMPLEX(I18,J18,"j")) -> 14.8198865071518+72.905896150621j
A19: ='Frequency vector'!G19 -> 1527.855914 | B19: =COMPLEX(0,2*PI()*'Frequency vector'!G19,"j") -> 9599.80183173559j | C19: =IF(IF(CMdata=1,IMABS(K19),'CM choke'!C23)=0, C18, IF(CMdata=1,IMABS(K19),'CM choke'!C23)) -> 18.0127 | D19: =IF(IF(CMdata=1,DEGREES(IMARGUMENT(K19)),'CM choke'!D23)=0, D18, IF(CMdata=1,DEGREES(IMARGUMENT(K19)),'CM choke'!D23)) -> 68.1549 | E19: =IF(IF(CMdata=1,IMABS(L19),'CM choke'!E23)=0, E18, IF(CMdata=1,IMABS(L19),'CM choke'!E23)) -> 75.5068 | F19: =IF(IF(CMdata=1,DEGREES(IMARGUMENT(L19)),'CM choke'!F23)=0, F18, IF(CMdata=1,DEGREES(IMARGUMENT(L19)),'CM choke'!F23)) -> 78.4034 | G19: 6.702499948 | H19: 16.719266 | I19: 15.1783612 | J19: 73.96549329 | K19: =IF(CMdata=1,IMDIV(1,IMSUM(IMDIV(1,IMPRODUCT(B19,'Design the AEF circuit'!$G$13*0.001)),IMDIV(1,'Design the AEF circuit'!$H$13*1000),IMPRODUCT(B19,'Design the AEF circuit'!$I$13*0.000000000001))),COMPLEX(G19,H19,"j")) -> 6.70249994791143+16.7192660047697j | L19: =IF(CMdata=1,IMDIV(1,IMSUM(IMDIV(1,IMPRODUCT(B19,'Design the AEF circuit'!$G$14*0.001)),IMDIV(1,'Design the AEF circuit'!$H$14*1000),IMPRODUCT(B19,'Design the AEF circuit'!$I$14*0.000000000001))),COMPLEX(I19,J19,"j")) -> 15.1783612023825+73.9654932887628j
A20: ='Frequency vector'!G20 -> 1568.872135 | B20: =COMPLEX(0,2*PI()*'Frequency vector'!G20,"j") -> 9857.5143505223j | C20: =IF(IF(CMdata=1,IMABS(K20),'CM choke'!C24)=0, C19, IF(CMdata=1,IMABS(K20),'CM choke'!C24)) -> 18.3807 | D20: =IF(IF(CMdata=1,DEGREES(IMARGUMENT(K20)),'CM choke'!D24)=0, D19, IF(CMdata=1,DEGREES(IMARGUMENT(K20)),'CM choke'!D24)) -> 68.0353 | E20: =IF(IF(CMdata=1,IMABS(L20),'CM choke'!E24)=0, E19, IF(CMdata=1,IMABS(L20),'CM choke'!E24)) -> 77.6781 | F20: =IF(IF(CMdata=1,DEGREES(IMARGUMENT(L20)),'CM choke'!F24)=0, F19, IF(CMdata=1,DEGREES(IMARGUMENT(L20)),'CM choke'!F24)) -> 78.1253 | G20: 6.875030331 | H20: 17.04652723 | I20: 15.98398473 | J20: 76.01578423 | K20: =IF(CMdata=1,IMDIV(1,IMSUM(IMDIV(1,IMPRODUCT(B20,'Design the AEF circuit'!$G$13*0.001)),IMDIV(1,'Design the AEF circuit'!$H$13*1000),IMPRODUCT(B20,'Design the AEF circuit'!$I$13*0.000000000001))),COMPLEX(G20,H20,"j")) -> 6.87503033075698+17.0465272252495j | L20: =IF(CMdata=1,IMDIV(1,IMSUM(IMDIV(1,IMPRODUCT(B20,'Design the AEF circuit'!$G$14*0.001)),IMDIV(1,'Design the AEF circuit'!$H$14*1000),IMPRODUCT(B20,'Design the AEF circuit'!$I$14*0.000000000001))),COMPLEX(I20,J20,"j")) -> 15.9839847323761+76.0157842272588j
A21: ='Frequency vector'!G21 -> 1610.989462 | B21: =COMPLEX(0,2*PI()*'Frequency vector'!G21,"j") -> 10122.145318617j | C21: =IF(IF(CMdata=1,IMABS(K21),'CM choke'!C25)=0, C20, IF(CMdata=1,IMABS(K21),'CM choke'!C25)) -> 18.8637 | D21: =IF(IF(CMdata=1,DEGREES(IMARGUMENT(K21)),'CM choke'!D25)=0, D20, IF(CMdata=1,DEGREES(IMARGUMENT(K21)),'CM choke'!D25)) -> 67.6219 | E21: =IF(IF(CMdata=1,IMABS(L21),'CM choke'!E25)=0, E20, IF(CMdata=1,IMABS(L21),'CM choke'!E25)) -> 79.5213 | F21: =IF(IF(CMdata=1,DEGREES(IMARGUMENT(L21)),'CM choke'!F25)=0, F20, IF(CMdata=1,DEGREES(IMARGUMENT(L21)),'CM choke'!F25)) -> 77.9767 | G21: 7.181730555 | H21: 17.44310534 | I21: 16.56503817 | J21: 77.77683887 | K21: =IF(CMdata=1,IMDIV(1,IMSUM(IMDIV(1,IMPRODUCT(B21,'Design the AEF circuit'!$G$13*0.001)),IMDIV(1,'Design the AEF circuit'!$H$13*1000),IMPRODUCT(B21,'Design the AEF circuit'!$I$13*0.000000000001))),COMPLEX(G21,H21,"j")) -> 7.18173055546046+17.4431053404709j | L21: =IF(CMdata=1,IMDIV(1,IMSUM(IMDIV(1,IMPRODUCT(B21,'Design the AEF circuit'!$G$14*0.001)),IMDIV(1,'Design the AEF circuit'!$H$14*1000),IMPRODUCT(B21,'Design the AEF circuit'!$I$14*0.000000000001))),COMPLEX(I21,J21,"j")) -> 16.5650381706021+77.7768388666992j
A22: ='Frequency vector'!G22 -> 1654.237454 | B22: =COMPLEX(0,2*PI()*'Frequency vector'!G22,"j") -> 10393.8804659991j | C22: =IF(IF(CMdata=1,IMABS(K22),'CM choke'!C26)=0, C21, IF(CMdata=1,IMABS(K22),'CM choke'!C26)) -> 19.2679 | D22: =IF(IF(CMdata=1,DEGREES(IMARGUMENT(K22)),'CM choke'!D26)=0, D21, IF(CMdata=1,DEGREES(IMARGUMENT(K22)),'CM choke'!D26)) -> 67.6957 | E22: =IF(IF(CMdata=1,IMABS(L22),'CM choke'!E26)=0, E21, IF(CMdata=1,IMABS(L22),'CM choke'!E26)) -> 81.1385 | F22: =IF(IF(CMdata=1,DEGREES(IMARGUMENT(L22)),'CM choke'!F26)=0, F21, IF(CMdata=1,DEGREES(IMARGUMENT(L22)),'CM choke'!F26)) -> 77.8062 | G22: 7.312661206 | H22: 17.82629957 | I22: 17.13799516 | J22: 79.30791451 | K22: =IF(CMdata=1,IMDIV(1,IMSUM(IMDIV(1,IMPRODUCT(B22,'Design the AEF circuit'!$G$13*0.001)),IMDIV(1,'Design the AEF circuit'!$H$13*1000),IMPRODUCT(B22,'Design the AEF circuit'!$I$13*0.000000000001))),COMPLEX(G22,H22,"j")) -> 7.31266120555185+17.8262995740231j | L22: =IF(CMdata=1,IMDIV(1,IMSUM(IMDIV(1,IMPRODUCT(B22,'Design the AEF circuit'!$G$14*0.001)),IMDIV(1,'Design the AEF circuit'!$H$14*1000),IMPRODUCT(B22,'Design the AEF circuit'!$I$14*0.000000000001))),COMPLEX(I22,J22,"j")) -> 17.1379951553179+79.307914512401j
A23: ='Frequency vector'!G23 -> 1698.646465 | B23: =COMPLEX(0,2*PI()*'Frequency vector'!G23,"j") -> 10672.9105086825j | C23: =IF(IF(CMdata=1,IMABS(K23),'CM choke'!C27)=0, C22, IF(CMdata=1,IMABS(K23),'CM choke'!C27)) -> 19.6612 | D23: =IF(IF(CMdata=1,DEGREES(IMARGUMENT(K23)),'CM choke'!D27)=0, D22, IF(CMdata=1,DEGREES(IMARGUMENT(K23)),'CM choke'!D27)) -> 67.977 | E23: =IF(IF(CMdata=1,IMABS(L23),'CM choke'!E27)=0, E22, IF(CMdata=1,IMABS(L23),'CM choke'!E27)) -> 83.5133 | F23: =IF(IF(CMdata=1,DEGREES(IMARGUMENT(L23)),'CM choke'!F27)=0, F22, IF(CMdata=1,DEGREES(IMARGUMENT(L23)),'CM choke'!F27)) -> 77.5259 | G23: 7.37253237 | H23: 18.22658915 | I23: 18.03872805 | J23: 81.54186389 | K23: =IF(CMdata=1,IMDIV(1,IMSUM(IMDIV(1,IMPRODUCT(B23,'Design the AEF circuit'!$G$13*0.001)),IMDIV(1,'Design the AEF circuit'!$H$13*1000),IMPRODUCT(B23,'Design the AEF circuit'!$I$13*0.000000000001))),COMPLEX(G23,H23,"j")) -> 7.37253237010307+18.2265891458545j | L23: =IF(CMdata=1,IMDIV(1,IMSUM(IMDIV(1,IMPRODUCT(B23,'Design the AEF circuit'!$G$14*0.001)),IMDIV(1,'Design the AEF circuit'!$H$14*1000),IMPRODUCT(B23,'Design the AEF circuit'!$I$14*0.000000000001))),COMPLEX(I23,J23,"j")) -> 18.038728048291+81.5418638938907j
A24: ='Frequency vector'!G24 -> 1744.247662 | B24: =COMPLEX(0,2*PI()*'Frequency vector'!G24,"j") -> 10959.4312825681j | C24: =IF(IF(CMdata=1,IMABS(K24),'CM choke'!C28)=0, C23, IF(CMdata=1,IMABS(K24),'CM choke'!C28)) -> 20.0276 | D24: =IF(IF(CMdata=1,DEGREES(IMARGUMENT(K24)),'CM choke'!D28)=0, D23, IF(CMdata=1,DEGREES(IMARGUMENT(K24)),'CM choke'!D28)) -> 68.1471 | E24: =IF(IF(CMdata=1,IMABS(L24),'CM choke'!E28)=0, E23, IF(CMdata=1,IMABS(L24),'CM choke'!E28)) -> 85.4905 | F24: =IF(IF(CMdata=1,DEGREES(IMARGUMENT(L24)),'CM choke'!F28)=0, F23, IF(CMdata=1,DEGREES(IMARGUMENT(L24)),'CM choke'!F28)) -> 77.5717 | G24: 7.454771983 | H24: 18.58846783 | I24: 18.39906937 | J24: 83.48712378 | K24: =IF(CMdata=1,IMDIV(1,IMSUM(IMDIV(1,IMPRODUCT(B24,'Design the AEF circuit'!$G$13*0.001)),IMDIV(1,'Design the AEF circuit'!$H$13*1000),IMPRODUCT(B24,'Design the AEF circuit'!$I$13*0.000000000001))),COMPLEX(G24,H24,"j")) -> 7.45477198345062+18.5884678345139j | L24: =IF(CMdata=1,IMDIV(1,IMSUM(IMDIV(1,IMPRODUCT(B24,'Design the AEF circuit'!$G$14*0.001)),IMDIV(1,'Design the AEF circuit'!$H$14*1000),IMPRODUCT(B24,'Design the AEF circuit'!$I$14*0.000000000001))),COMPLEX(I24,J24,"j")) -> 18.3990693728235+83.4871237764485j
A25: ='Frequency vector'!G25 -> 1791.073051 | B25: =COMPLEX(0,2*PI()*'Frequency vector'!G25,"j") -> 11253.643880891j | C25: =IF(IF(CMdata=1,IMABS(K25),'CM choke'!C29)=0, C24, IF(CMdata=1,IMABS(K25),'CM choke'!C29)) -> 20.4417 | D25: =IF(IF(CMdata=1,DEGREES(IMARGUMENT(K25)),'CM choke'!D29)=0, D24, IF(CMdata=1,DEGREES(IMARGUMENT(K25)),'CM choke'!D29)) -> 67.5845 | E25: =IF(IF(CMdata=1,IMABS(L25),'CM choke'!E29)=0, E24, IF(CMdata=1,IMABS(L25),'CM choke'!E29)) -> 87.219 | F25: =IF(IF(CMdata=1,DEGREES(IMARGUMENT(L25)),'CM choke'!F29)=0, F24, IF(CMdata=1,DEGREES(IMARGUMENT(L25)),'CM choke'!F29)) -> 77.567 | G25: 7.794838778 | H25: 18.89718464 | I25: 18.77806007 | J25: 85.17357819 | K25: =IF(CMdata=1,IMDIV(1,IMSUM(IMDIV(1,IMPRODUCT(B25,'Design the AEF circuit'!$G$13*0.001)),IMDIV(1,'Design the AEF circuit'!$H$13*1000),IMPRODUCT(B25,'Design the AEF circuit'!$I$13*0.000000000001))),COMPLEX(G25,H25,"j")) -> 7.79483877782263+18.8971846399868j | L25: =IF(CMdata=1,IMDIV(1,IMSUM(IMDIV(1,IMPRODUCT(B25,'Design the AEF circuit'!$G$14*0.001)),IMDIV(1,'Design the AEF circuit'!$H$14*1000),IMPRODUCT(B25,'Design the AEF circuit'!$I$14*0.000000000001))),COMPLEX(I25,J25,"j")) -> 18.7780600714559+85.1735781856838j
A26: ='Frequency vector'!G26 -> 1839.155497 | B26: =COMPLEX(0,2*PI()*'Frequency vector'!G26,"j") -> 11555.7547953566j | C26: =IF(IF(CMdata=1,IMABS(K26),'CM choke'!C30)=0, C25, IF(CMdata=1,IMABS(K26),'CM choke'!C30)) -> 21.0542 | D26: =IF(IF(CMdata=1,DEGREES(IMARGUMENT(K26)),'CM choke'!D30)=0, D25, IF(CMdata=1,DEGREES(IMARGUMENT(K26)),'CM choke'!D30)) -> 68.2177 | E26: =IF(IF(CMdata=1,IMABS(L26),'CM choke'!E30)=0, E25, IF(CMdata=1,IMABS(L26),'CM choke'!E30)) -> 88.7707 | F26: =IF(IF(CMdata=1,DEGREES(IMARGUMENT(L26)),'CM choke'!F30)=0, F25, IF(CMdata=1,DEGREES(IMARGUMENT(L26)),'CM choke'!F30)) -> 77.6176 | G26: 7.812813315 | H26: 19.55094079 | I26: 19.03557212 | J26: 86.70573322 | K26: =IF(CMdata=1,IMDIV(1,IMSUM(IMDIV(1,IMPRODUCT(B26,'Design the AEF circuit'!$G$13*0.001)),IMDIV(1,'Design the AEF circuit'!$H$13*1000),IMPRODUCT(B26,'Design the AEF circuit'!$I$13*0.000000000001))),COMPLEX(G26,H26,"j")) -> 7.81281331543145+19.5509407890827j | L26: =IF(CMdata=1,IMDIV(1,IMSUM(IMDIV(1,IMPRODUCT(B26,'Design the AEF circuit'!$G$14*0.001)),IMDIV(1,'Design the AEF circuit'!$H$14*1000),IMPRODUCT(B26,'Design the AEF circuit'!$I$14*0.000000000001))),COMPLEX(I26,J26,"j")) -> 19.0355721166103+86.7057332169178j
A27: ='Frequency vector'!G27 -> 1888.528745 | B27: =COMPLEX(0,2*PI()*'Frequency vector'!G27,"j") -> 11865.9760610652j | C27: =IF(IF(CMdata=1,IMABS(K27),'CM choke'!C31)=0, C26, IF(CMdata=1,IMABS(K27),'CM choke'!C31)) -> 21.3899 | D27: =IF(IF(CMdata=1,DEGREES(IMARGUMENT(K27)),'CM choke'!D31)=0, D26, IF(CMdata=1,DEGREES(IMARGUMENT(K27)),'CM choke'!D31)) -> 67.711 | E27: =IF(IF(CMdata=1,IMABS(L27),'CM choke'!E31)=0, E26, IF(CMdata=1,IMABS(L27),'CM choke'!E31)) -> 91.3656 | F27: =IF(IF(CMdata=1,DEGREES(IMARGUMENT(L27)),'CM choke'!F31)=0, F26, IF(CMdata=1,DEGREES(IMARGUMENT(L27)),'CM choke'!F31)) -> 77.4215 | G27: 8.112729722 | H27: 19.79170125 | I27: 19.89732786 | J27: 89.17269317 | K27: =IF(CMdata=1,IMDIV(1,IMSUM(IMDIV(1,IMPRODUCT(B27,'Design the AEF circuit'!$G$13*0.001)),IMDIV(1,'Design the AEF circuit'!$H$13*1000),IMPRODUCT(B27,'Design the AEF circuit'!$I$13*0.000000000001))),COMPLEX(G27,H27,"j")) -> 8.11272972237951+19.7917012523335j | L27: =IF(CMdata=1,IMDIV(1,IMSUM(IMDIV(1,IMPRODUCT(B27,'Design the AEF circuit'!$G$14*0.001)),IMDIV(1,'Design the AEF circuit'!$H$14*1000),IMPRODUCT(B27,'Design the AEF circuit'!$I$14*0.000000000001))),COMPLEX(I27,J27,"j")) -> 19.8973278601685+89.1726931710878j
A28: ='Frequency vector'!G28 -> 1939.227447 | B28: =COMPLEX(0,2*PI()*'Frequency vector'!G28,"j") -> 12184.5254053288j | C28: =IF(IF(CMdata=1,IMABS(K28),'CM choke'!C32)=0, C27, IF(CMdata=1,IMABS(K28),'CM choke'!C32)) -> 21.9421 | D28: =IF(IF(CMdata=1,DEGREES(IMARGUMENT(K28)),'CM choke'!D32)=0, D27, IF(CMdata=1,DEGREES(IMARGUMENT(K28)),'CM choke'!D32)) -> 68.3304 | E28: =IF(IF(CMdata=1,IMABS(L28),'CM choke'!E32)=0, E27, IF(CMdata=1,IMABS(L28),'CM choke'!E32)) -> 92.8641 | F28: =IF(IF(CMdata=1,DEGREES(IMARGUMENT(L28)),'CM choke'!F32)=0, F27, IF(CMdata=1,DEGREES(IMARGUMENT(L28)),'CM choke'!F32)) -> 77.2857 | G28: 8.102202181 | H28: 20.39142154 | I28: 20.43842944 | J28: 90.5870392 | K28: =IF(CMdata=1,IMDIV(1,IMSUM(IMDIV(1,IMPRODUCT(B28,'Design the AEF circuit'!$G$13*0.001)),IMDIV(1,'Design the AEF circuit'!$H$13*1000),IMPRODUCT(B28,'Design the AEF circuit'!$I$13*0.000000000001))),COMPLEX(G28,H28,"j")) -> 8.10220218140591+20.3914215350873j | L28: =IF(CMdata=1,IMDIV(1,IMSUM(IMDIV(1,IMPRODUCT(B28,'Design the AEF circuit'!$G$14*0.001)),IMDIV(1,'Design the AEF circuit'!$H$14*1000),IMPRODUCT(B28,'Design the AEF circuit'!$I$14*0.000000000001))),COMPLEX(I28,J28,"j")) -> 20.438429443914+90.5870391980892j
A29: ='Frequency vector'!G29 -> 1991.287188 | B29: =COMPLEX(0,2*PI()*'Frequency vector'!G29,"j") -> 12511.6264004814j | C29: =IF(IF(CMdata=1,IMABS(K29),'CM choke'!C33)=0, C28, IF(CMdata=1,IMABS(K29),'CM choke'!C33)) -> 22.3687 | D29: =IF(IF(CMdata=1,DEGREES(IMARGUMENT(K29)),'CM choke'!D33)=0, D28, IF(CMdata=1,DEGREES(IMARGUMENT(K29)),'CM choke'!D33)) -> 67.705 | E29: =IF(IF(CMdata=1,IMABS(L29),'CM choke'!E33)=0, E28, IF(CMdata=1,IMABS(L29),'CM choke'!E33)) -> 95.9972 | F29: =IF(IF(CMdata=1,DEGREES(IMARGUMENT(L29)),'CM choke'!F33)=0, F28, IF(CMdata=1,DEGREES(IMARGUMENT(L29)),'CM choke'!F33)) -> 76.9536 | G29: 8.486134919 | H29: 20.69647926 | I29: 21.67041343 | J29: 93.51927924 | K29: =IF(CMdata=1,IMDIV(1,IMSUM(IMDIV(1,IMPRODUCT(B29,'Design the AEF circuit'!$G$13*0.001)),IMDIV(1,'Design the AEF circuit'!$H$13*1000),IMPRODUCT(B29,'Design the AEF circuit'!$I$13*0.000000000001))),COMPLEX(G29,H29,"j")) -> 8.48613491943814+20.696479261437j | L29: =IF(CMdata=1,IMDIV(1,IMSUM(IMDIV(1,IMPRODUCT(B29,'Design the AEF circuit'!$G$14*0.001)),IMDIV(1,'Design the AEF circuit'!$H$14*1000),IMPRODUCT(B29,'Design the AEF circuit'!$I$14*0.000000000001))),COMPLEX(I29,J29,"j")) -> 21.6704134290537+93.5192792404534j
A30: ='Frequency vector'!G30 -> 2044.744503 | B30: =COMPLEX(0,2*PI()*'Frequency vector'!G30,"j") -> 12847.5086207921j | C30: =IF(IF(CMdata=1,IMABS(K30),'CM choke'!C34)=0, C29, IF(CMdata=1,IMABS(K30),'CM choke'!C34)) -> 22.822 | D30: =IF(IF(CMdata=1,DEGREES(IMARGUMENT(K30)),'CM choke'!D34)=0, D29, IF(CMdata=1,DEGREES(IMARGUMENT(K30)),'CM choke'!D34)) -> 67.7877 | E30: =IF(IF(CMdata=1,IMABS(L30),'CM choke'!E34)=0, E29, IF(CMdata=1,IMABS(L30),'CM choke'!E34)) -> 97.7684 | F30: =IF(IF(CMdata=1,DEGREES(IMARGUMENT(L30)),'CM choke'!F34)=0, F29, IF(CMdata=1,DEGREES(IMARGUMENT(L30)),'CM choke'!F34)) -> 76.8156 | G30: 8.627618378 | H30: 21.12836684 | I30: 22.29958216 | J30: 95.19132667 | K30: =IF(CMdata=1,IMDIV(1,IMSUM(IMDIV(1,IMPRODUCT(B30,'Design the AEF circuit'!$G$13*0.001)),IMDIV(1,'Design the AEF circuit'!$H$13*1000),IMPRODUCT(B30,'Design the AEF circuit'!$I$13*0.000000000001))),COMPLEX(G30,H30,"j")) -> 8.62761837821273+21.1283668351325j | L30: =IF(CMdata=1,IMDIV(1,IMSUM(IMDIV(1,IMPRODUCT(B30,'Design the AEF circuit'!$G$14*0.001)),IMDIV(1,'Design the AEF circuit'!$H$14*1000),IMPRODUCT(B30,'Design the AEF circuit'!$I$14*0.000000000001))),COMPLEX(I30,J30,"j")) -> 22.299582163911+95.1913266735735j
A31: ='Frequency vector'!G31 -> 2099.636913 | B31: =COMPLEX(0,2*PI()*'Frequency vector'!G31,"j") -> 13192.4078035911j | C31: =IF(IF(CMdata=1,IMABS(K31),'CM choke'!C35)=0, C30, IF(CMdata=1,IMABS(K31),'CM choke'!C35)) -> 23.3509 | D31: =IF(IF(CMdata=1,DEGREES(IMARGUMENT(K31)),'CM choke'!D35)=0, D30, IF(CMdata=1,DEGREES(IMARGUMENT(K31)),'CM choke'!D35)) -> 67.804 | E31: =IF(IF(CMdata=1,IMABS(L31),'CM choke'!E35)=0, E30, IF(CMdata=1,IMABS(L31),'CM choke'!E35)) -> 100.137 | F31: =IF(IF(CMdata=1,DEGREES(IMARGUMENT(L31)),'CM choke'!F35)=0, F30, IF(CMdata=1,DEGREES(IMARGUMENT(L31)),'CM choke'!F35)) -> 76.8407 | G31: 8.821413053 | H31: 21.62052734 | I31: 22.79711249 | J31: 97.5074891 | K31: =IF(CMdata=1,IMDIV(1,IMSUM(IMDIV(1,IMPRODUCT(B31,'Design the AEF circuit'!$G$13*0.001)),IMDIV(1,'Design the AEF circuit'!$H$13*1000),IMPRODUCT(B31,'Design the AEF circuit'!$I$13*0.000000000001))),COMPLEX(G31,H31,"j")) -> 8.82141305286525+21.6205273423369j | L31: =IF(CMdata=1,IMDIV(1,IMSUM(IMDIV(1,IMPRODUCT(B31,'Design the AEF circuit'!$G$14*0.001)),IMDIV(1,'Design the AEF circuit'!$H$14*1000),IMPRODUCT(B31,'Design the AEF circuit'!$I$14*0.000000000001))),COMPLEX(I31,J31,"j")) -> 22.7971124898392+97.5074891027639j
A32: ='Frequency vector'!G32 -> 2156.002943 | B32: =COMPLEX(0,2*PI()*'Frequency vector'!G32,"j") -> 13546.5660147206j | C32: =IF(IF(CMdata=1,IMABS(K32),'CM choke'!C36)=0, C31, IF(CMdata=1,IMABS(K32),'CM choke'!C36)) -> 23.9269 | D32: =IF(IF(CMdata=1,DEGREES(IMARGUMENT(K32)),'CM choke'!D36)=0, D31, IF(CMdata=1,DEGREES(IMARGUMENT(K32)),'CM choke'!D36)) -> 67.7983 | E32: =IF(IF(CMdata=1,IMABS(L32),'CM choke'!E36)=0, E31, IF(CMdata=1,IMABS(L32),'CM choke'!E36)) -> 102.034 | F32: =IF(IF(CMdata=1,DEGREES(IMARGUMENT(L32)),'CM choke'!F36)=0, F31, IF(CMdata=1,DEGREES(IMARGUMENT(L32)),'CM choke'!F36)) -> 76.61 | G32: 9.041216017 | H32: 22.15294465 | I32: 23.62884175 | J32: 99.26033948 | K32: =IF(CMdata=1,IMDIV(1,IMSUM(IMDIV(1,IMPRODUCT(B32,'Design the AEF circuit'!$G$13*0.001)),IMDIV(1,'Design the AEF circuit'!$H$13*1000),IMPRODUCT(B32,'Design the AEF circuit'!$I$13*0.000000000001))),COMPLEX(G32,H32,"j")) -> 9.04121601720565+22.152944647162j | L32: =IF(CMdata=1,IMDIV(1,IMSUM(IMDIV(1,IMPRODUCT(B32,'Design the AEF circuit'!$G$14*0.001)),IMDIV(1,'Design the AEF circuit'!$H$14*1000),IMPRODUCT(B32,'Design the AEF circuit'!$I$14*0.000000000001))),COMPLEX(I32,J32,"j")) -> 23.6288417476929+99.2603394798874j
A33: ='Frequency vector'!G33 -> 2213.882153 | B33: =COMPLEX(0,2*PI()*'Frequency vector'!G33,"j") -> 13910.2318184274j | C33: =IF(IF(CMdata=1,IMABS(K33),'CM choke'!C37)=0, C32, IF(CMdata=1,IMABS(K33),'CM choke'!C37)) -> 24.3962 | D33: =IF(IF(CMdata=1,DEGREES(IMARGUMENT(K33)),'CM choke'!D37)=0, D32, IF(CMdata=1,DEGREES(IMARGUMENT(K33)),'CM choke'!D37)) -> 67.8221 | E33: =IF(IF(CMdata=1,IMABS(L33),'CM choke'!E37)=0, E32, IF(CMdata=1,IMABS(L33),'CM choke'!E37)) -> 104.748 | F33: =IF(IF(CMdata=1,DEGREES(IMARGUMENT(L33)),'CM choke'!F37)=0, F32, IF(CMdata=1,DEGREES(IMARGUMENT(L33)),'CM choke'!F37)) -> 76.4973 | G33: 9.209166231 | H33: 22.59127778 | I33: 24.45773469 | J33: 101.852652 | K33: =IF(CMdata=1,IMDIV(1,IMSUM(IMDIV(1,IMPRODUCT(B33,'Design the AEF circuit'!$G$13*0.001)),IMDIV(1,'Design the AEF circuit'!$H$13*1000),IMPRODUCT(B33,'Design the AEF circuit'!$I$13*0.000000000001))),COMPLEX(G33,H33,"j")) -> 9.20916623149127+22.5912777806117j | L33: =IF(CMdata=1,IMDIV(1,IMSUM(IMDIV(1,IMPRODUCT(B33,'Design the AEF circuit'!$G$14*0.001)),IMDIV(1,'Design the AEF circuit'!$H$14*1000),IMPRODUCT(B33,'Design the AEF circuit'!$I$14*0.000000000001))),COMPLEX(I33,J33,"j")) -> 24.4577346934815+101.852651991312j
A34: ='Frequency vector'!G34 -> 2273.315166 | B34: =COMPLEX(0,2*PI()*'Frequency vector'!G34,"j") -> 14283.6604518168j | C34: =IF(IF(CMdata=1,IMABS(K34),'CM choke'!C38)=0, C33, IF(CMdata=1,IMABS(K34),'CM choke'!C38)) -> 24.8945 | D34: =IF(IF(CMdata=1,DEGREES(IMARGUMENT(K34)),'CM choke'!D38)=0, D33, IF(CMdata=1,DEGREES(IMARGUMENT(K34)),'CM choke'!D38)) -> 67.8532 | E34: =IF(IF(CMdata=1,IMABS(L34),'CM choke'!E38)=0, E33, IF(CMdata=1,IMABS(L34),'CM choke'!E38)) -> 107.187 | F34: =IF(IF(CMdata=1,DEGREES(IMARGUMENT(L34)),'CM choke'!F38)=0, F33, IF(CMdata=1,DEGREES(IMARGUMENT(L34)),'CM choke'!F38)) -> 76.3315 | G34: 9.384751991 | H34: 23.0578091 | I34: 25.32871398 | J34: 104.1513765 | K34: =IF(CMdata=1,IMDIV(1,IMSUM(IMDIV(1,IMPRODUCT(B34,'Design the AEF circuit'!$G$13*0.001)),IMDIV(1,'Design the AEF circuit'!$H$13*1000),IMPRODUCT(B34,'Design the AEF circuit'!$I$13*0.000000000001))),COMPLEX(G34,H34,"j")) -> 9.38475199066546+23.0578090963496j | L34: =IF(CMdata=1,IMDIV(1,IMSUM(IMDIV(1,IMPRODUCT(B34,'Design the AEF circuit'!$G$14*0.001)),IMDIV(1,'Design the AEF circuit'!$H$14*1000),IMPRODUCT(B34,'Design the AEF circuit'!$I$14*0.000000000001))),COMPLEX(I34,J34,"j")) -> 25.328713983259+104.151376452519j
A35: ='Frequency vector'!G35 -> 2334.343695 | B35: =COMPLEX(0,2*PI()*'Frequency vector'!G35,"j") -> 14667.1140039894j | C35: =IF(IF(CMdata=1,IMABS(K35),'CM choke'!C39)=0, C34, IF(CMdata=1,IMABS(K35),'CM choke'!C39)) -> 25.3477 | D35: =IF(IF(CMdata=1,DEGREES(IMARGUMENT(K35)),'CM choke'!D39)=0, D34, IF(CMdata=1,DEGREES(IMARGUMENT(K35)),'CM choke'!D39)) -> 67.7435 | E35: =IF(IF(CMdata=1,IMABS(L35),'CM choke'!E39)=0, E34, IF(CMdata=1,IMABS(L35),'CM choke'!E39)) -> 109.316 | F35: =IF(IF(CMdata=1,DEGREES(IMARGUMENT(L35)),'CM choke'!F39)=0, F34, IF(CMdata=1,DEGREES(IMARGUMENT(L35)),'CM choke'!F39)) -> 76.1801 | G35: 9.600532986 | H35: 23.45923404 | I35: 26.1123936 | J35: 106.151452 | K35: =IF(CMdata=1,IMDIV(1,IMSUM(IMDIV(1,IMPRODUCT(B35,'Design the AEF circuit'!$G$13*0.001)),IMDIV(1,'Design the AEF circuit'!$H$13*1000),IMPRODUCT(B35,'Design the AEF circuit'!$I$13*0.000000000001))),COMPLEX(G35,H35,"j")) -> 9.60053298551922+23.459234038731j | L35: =IF(CMdata=1,IMDIV(1,IMSUM(IMDIV(1,IMPRODUCT(B35,'Design the AEF circuit'!$G$14*0.001)),IMDIV(1,'Design the AEF circuit'!$H$14*1000),IMPRODUCT(B35,'Design the AEF circuit'!$I$14*0.000000000001))),COMPLEX(I35,J35,"j")) -> 26.1123936005286+106.151451975237j
A36: ='Frequency vector'!G36 -> 2397.010571 | B36: =COMPLEX(0,2*PI()*'Frequency vector'!G36,"j") -> 15060.861599987j | C36: =IF(IF(CMdata=1,IMABS(K36),'CM choke'!C40)=0, C35, IF(CMdata=1,IMABS(K36),'CM choke'!C40)) -> 25.8859 | D36: =IF(IF(CMdata=1,DEGREES(IMARGUMENT(K36)),'CM choke'!D40)=0, D35, IF(CMdata=1,DEGREES(IMARGUMENT(K36)),'CM choke'!D40)) -> 67.5989 | E36: =IF(IF(CMdata=1,IMABS(L36),'CM choke'!E40)=0, E35, IF(CMdata=1,IMABS(L36),'CM choke'!E40)) -> 111.884 | F36: =IF(IF(CMdata=1,DEGREES(IMARGUMENT(L36)),'CM choke'!F40)=0, F35, IF(CMdata=1,DEGREES(IMARGUMENT(L36)),'CM choke'!F40)) -> 76.134 | G36: 9.864809128 | H36: 23.93251679 | I36: 26.8132205 | J36: 108.6235732 | K36: =IF(CMdata=1,IMDIV(1,IMSUM(IMDIV(1,IMPRODUCT(B36,'Design the AEF circuit'!$G$13*0.001)),IMDIV(1,'Design the AEF circuit'!$H$13*1000),IMPRODUCT(B36,'Design the AEF circuit'!$I$13*0.000000000001))),COMPLEX(G36,H36,"j")) -> 9.86480912832136+23.9325167851563j | L36: =IF(CMdata=1,IMDIV(1,IMSUM(IMDIV(1,IMPRODUCT(B36,'Design the AEF circuit'!$G$14*0.001)),IMDIV(1,'Design the AEF circuit'!$H$14*1000),IMPRODUCT(B36,'Design the AEF circuit'!$I$14*0.000000000001))),COMPLEX(I36,J36,"j")) -> 26.8132205033429+108.623573234538j
A37: ='Frequency vector'!G37 -> 2461.359778 | B37: =COMPLEX(0,2*PI()*'Frequency vector'!G37,"j") -> 15465.1795896772j | C37: =IF(IF(CMdata=1,IMABS(K37),'CM choke'!C41)=0, C36, IF(CMdata=1,IMABS(K37),'CM choke'!C41)) -> 26.5108 | D37: =IF(IF(CMdata=1,DEGREES(IMARGUMENT(K37)),'CM choke'!D41)=0, D36, IF(CMdata=1,DEGREES(IMARGUMENT(K37)),'CM choke'!D41)) -> 67.6365 | E37: =IF(IF(CMdata=1,IMABS(L37),'CM choke'!E41)=0, E36, IF(CMdata=1,IMABS(L37),'CM choke'!E41)) -> 115.14 | F37: =IF(IF(CMdata=1,DEGREES(IMARGUMENT(L37)),'CM choke'!F41)=0, F36, IF(CMdata=1,DEGREES(IMARGUMENT(L37)),'CM choke'!F41)) -> 75.8955 | G37: 10.08686422 | H37: 24.51688575 | I37: 28.058603 | J37: 111.6688605 | K37: =IF(CMdata=1,IMDIV(1,IMSUM(IMDIV(1,IMPRODUCT(B37,'Design the AEF circuit'!$G$13*0.001)),IMDIV(1,'Design the AEF circuit'!$H$13*1000),IMPRODUCT(B37,'Design the AEF circuit'!$I$13*0.000000000001))),COMPLEX(G37,H37,"j")) -> 10.08686421734+24.5168857504567j | L37: =IF(CMdata=1,IMDIV(1,IMSUM(IMDIV(1,IMPRODUCT(B37,'Design the AEF circuit'!$G$14*0.001)),IMDIV(1,'Design the AEF circuit'!$H$14*1000),IMPRODUCT(B37,'Design the AEF circuit'!$I$14*0.000000000001))),COMPLEX(I37,J37,"j")) -> 28.0586029953653+111.668860466777j
A38: ='Frequency vector'!G38 -> 2527.436478 | B38: =COMPLEX(0,2*PI()*'Frequency vector'!G38,"j") -> 15880.3517417073j | C38: =IF(IF(CMdata=1,IMABS(K38),'CM choke'!C42)=0, C37, IF(CMdata=1,IMABS(K38),'CM choke'!C42)) -> 27.0633 | D38: =IF(IF(CMdata=1,DEGREES(IMARGUMENT(K38)),'CM choke'!D42)=0, D37, IF(CMdata=1,DEGREES(IMARGUMENT(K38)),'CM choke'!D42)) -> 67.9169 | E38: =IF(IF(CMdata=1,IMABS(L38),'CM choke'!E42)=0, E37, IF(CMdata=1,IMABS(L38),'CM choke'!E42)) -> 116.808 | F38: =IF(IF(CMdata=1,DEGREES(IMARGUMENT(L38)),'CM choke'!F42)=0, F37, IF(CMdata=1,DEGREES(IMARGUMENT(L38)),'CM choke'!F42)) -> 75.6443 | G38: 10.17447354 | H38: 25.07792446 | I38: 28.96148333 | J38: 113.1606882 | K38: =IF(CMdata=1,IMDIV(1,IMSUM(IMDIV(1,IMPRODUCT(B38,'Design the AEF circuit'!$G$13*0.001)),IMDIV(1,'Design the AEF circuit'!$H$13*1000),IMPRODUCT(B38,'Design the AEF circuit'!$I$13*0.000000000001))),COMPLEX(G38,H38,"j")) -> 10.1744735425881+25.0779244560066j | L38: =IF(CMdata=1,IMDIV(1,IMSUM(IMDIV(1,IMPRODUCT(B38,'Design the AEF circuit'!$G$14*0.001)),IMDIV(1,'Design the AEF circuit'!$H$14*1000),IMPRODUCT(B38,'Design the AEF circuit'!$I$14*0.000000000001))),COMPLEX(I38,J38,"j")) -> 28.9614833273377+113.160688171645j
A39: ='Frequency vector'!G39 -> 2595.287047 | B39: =COMPLEX(0,2*PI()*'Frequency vector'!G39,"j") -> 16306.669442667j | C39: =IF(IF(CMdata=1,IMABS(K39),'CM choke'!C43)=0, C38, IF(CMdata=1,IMABS(K39),'CM choke'!C43)) -> 27.6454 | D39: =IF(IF(CMdata=1,DEGREES(IMARGUMENT(K39)),'CM choke'!D43)=0, D38, IF(CMdata=1,DEGREES(IMARGUMENT(K39)),'CM choke'!D43)) -> 67.7659 | E39: =IF(IF(CMdata=1,IMABS(L39),'CM choke'!E43)=0, E38, IF(CMdata=1,IMABS(L39),'CM choke'!E43)) -> 119.645 | F39: =IF(IF(CMdata=1,DEGREES(IMARGUMENT(L39)),'CM choke'!F43)=0, F38, IF(CMdata=1,DEGREES(IMARGUMENT(L39)),'CM choke'!F43)) -> 75.423 | G39: 10.46079152 | H39: 25.58984138 | I39: 30.11235824 | J39: 115.7936609 | K39: =IF(CMdata=1,IMDIV(1,IMSUM(IMDIV(1,IMPRODUCT(B39,'Design the AEF circuit'!$G$13*0.001)),IMDIV(1,'Design the AEF circuit'!$H$13*1000),IMPRODUCT(B39,'Design the AEF circuit'!$I$13*0.000000000001))),COMPLEX(G39,H39,"j")) -> 10.4607915199446+25.5898413816158j | L39: =IF(CMdata=1,IMDIV(1,IMSUM(IMDIV(1,IMPRODUCT(B39,'Design the AEF circuit'!$G$14*0.001)),IMDIV(1,'Design the AEF circuit'!$H$14*1000),IMPRODUCT(B39,'Design the AEF circuit'!$I$14*0.000000000001))),COMPLEX(I39,J39,"j")) -> 30.1123582398152+115.793660906964j
A40: ='Frequency vector'!G40 -> 2664.959106 | B40: =COMPLEX(0,2*PI()*'Frequency vector'!G40,"j") -> 16744.4319015961j | C40: =IF(IF(CMdata=1,IMABS(K40),'CM choke'!C44)=0, C39, IF(CMdata=1,IMABS(K40),'CM choke'!C44)) -> 28.1791 | D40: =IF(IF(CMdata=1,DEGREES(IMARGUMENT(K40)),'CM choke'!D44)=0, D39, IF(CMdata=1,DEGREES(IMARGUMENT(K40)),'CM choke'!D44)) -> 67.5794 | E40: =IF(IF(CMdata=1,IMABS(L40),'CM choke'!E44)=0, E39, IF(CMdata=1,IMABS(L40),'CM choke'!E44)) -> 122.423 | F40: =IF(IF(CMdata=1,DEGREES(IMARGUMENT(L40)),'CM choke'!F44)=0, F39, IF(CMdata=1,DEGREES(IMARGUMENT(L40)),'CM choke'!F44)) -> 75.3852 | G40: 10.74758654 | H40: 26.04901266 | I40: 30.88968781 | J40: 118.4618847 | K40: =IF(CMdata=1,IMDIV(1,IMSUM(IMDIV(1,IMPRODUCT(B40,'Design the AEF circuit'!$G$13*0.001)),IMDIV(1,'Design the AEF circuit'!$H$13*1000),IMPRODUCT(B40,'Design the AEF circuit'!$I$13*0.000000000001))),COMPLEX(G40,H40,"j")) -> 10.7475865420441+26.0490126555936j | L40: =IF(CMdata=1,IMDIV(1,IMSUM(IMDIV(1,IMPRODUCT(B40,'Design the AEF circuit'!$G$14*0.001)),IMDIV(1,'Design the AEF circuit'!$H$14*1000),IMPRODUCT(B40,'Design the AEF circuit'!$I$14*0.000000000001))),COMPLEX(I40,J40,"j")) -> 30.8896878132838+118.461884654086j
A41: ='Frequency vector'!G41 -> 2736.501554 | B41: =COMPLEX(0,2*PI()*'Frequency vector'!G41,"j") -> 17193.9463599828j | C41: =IF(IF(CMdata=1,IMABS(K41),'CM choke'!C45)=0, C40, IF(CMdata=1,IMABS(K41),'CM choke'!C45)) -> 28.7873 | D41: =IF(IF(CMdata=1,DEGREES(IMARGUMENT(K41)),'CM choke'!D45)=0, D40, IF(CMdata=1,DEGREES(IMARGUMENT(K41)),'CM choke'!D45)) -> 67.6221 | E41: =IF(IF(CMdata=1,IMABS(L41),'CM choke'!E45)=0, E40, IF(CMdata=1,IMABS(L41),'CM choke'!E45)) -> 125.232 | F41: =IF(IF(CMdata=1,DEGREES(IMARGUMENT(L41)),'CM choke'!F45)=0, F40, IF(CMdata=1,DEGREES(IMARGUMENT(L41)),'CM choke'!F45)) -> 75.3463 | G41: 10.95972048 | H41: 26.61941337 | I41: 31.6807186 | J41: 121.1585156 | K41: =IF(CMdata=1,IMDIV(1,IMSUM(IMDIV(1,IMPRODUCT(B41,'Design the AEF circuit'!$G$13*0.001)),IMDIV(1,'Design the AEF circuit'!$H$13*1000),IMPRODUCT(B41,'Design the AEF circuit'!$I$13*0.000000000001))),COMPLEX(G41,H41,"j")) -> 10.9597204800232+26.6194133723822j | L41: =IF(CMdata=1,IMDIV(1,IMSUM(IMDIV(1,IMPRODUCT(B41,'Design the AEF circuit'!$G$14*0.001)),IMDIV(1,'Design the AEF circuit'!$H$14*1000),IMPRODUCT(B41,'Design the AEF circuit'!$I$14*0.000000000001))),COMPLEX(I41,J41,"j")) -> 31.6807185956182+121.158515562321j
A42: ='Frequency vector'!G42 -> 2809.964603 | B42: =COMPLEX(0,2*PI()*'Frequency vector'!G42,"j") -> 17655.5283074003j | C42: =IF(IF(CMdata=1,IMABS(K42),'CM choke'!C46)=0, C41, IF(CMdata=1,IMABS(K42),'CM choke'!C46)) -> 29.417 | D42: =IF(IF(CMdata=1,DEGREES(IMARGUMENT(K42)),'CM choke'!D46)=0, D41, IF(CMdata=1,DEGREES(IMARGUMENT(K42)),'CM choke'!D46)) -> 67.3863 | E42: =IF(IF(CMdata=1,IMABS(L42),'CM choke'!E46)=0, E41, IF(CMdata=1,IMABS(L42),'CM choke'!E46)) -> 127.403 | F42: =IF(IF(CMdata=1,DEGREES(IMARGUMENT(L42)),'CM choke'!F46)=0, F41, IF(CMdata=1,DEGREES(IMARGUMENT(L42)),'CM choke'!F46)) -> 75.0904 | G42: 11.31130895 | H42: 27.15537108 | I42: 32.78011761 | J42: 123.113721 | K42: =IF(CMdata=1,IMDIV(1,IMSUM(IMDIV(1,IMPRODUCT(B42,'Design the AEF circuit'!$G$13*0.001)),IMDIV(1,'Design the AEF circuit'!$H$13*1000),IMPRODUCT(B42,'Design the AEF circuit'!$I$13*0.000000000001))),COMPLEX(G42,H42,"j")) -> 11.3113089536759+27.1553710848239j | L42: =IF(CMdata=1,IMDIV(1,IMSUM(IMDIV(1,IMPRODUCT(B42,'Design the AEF circuit'!$G$14*0.001)),IMDIV(1,'Design the AEF circuit'!$H$14*1000),IMPRODUCT(B42,'Design the AEF circuit'!$I$14*0.000000000001))),COMPLEX(I42,J42,"j")) -> 32.7801176082623+123.113721000498j
A43: ='Frequency vector'!G43 -> 2885.399812 | B43: =COMPLEX(0,2*PI()*'Frequency vector'!G43,"j") -> 18129.5017029312j | C43: =IF(IF(CMdata=1,IMABS(K43),'CM choke'!C47)=0, C42, IF(CMdata=1,IMABS(K43),'CM choke'!C47)) -> 30.0317 | D43: =IF(IF(CMdata=1,DEGREES(IMARGUMENT(K43)),'CM choke'!D47)=0, D42, IF(CMdata=1,DEGREES(IMARGUMENT(K43)),'CM choke'!D47)) -> 67.6658 | E43: =IF(IF(CMdata=1,IMABS(L43),'CM choke'!E47)=0, E42, IF(CMdata=1,IMABS(L43),'CM choke'!E47)) -> 131.019 | F43: =IF(IF(CMdata=1,DEGREES(IMARGUMENT(L43)),'CM choke'!F47)=0, F42, IF(CMdata=1,DEGREES(IMARGUMENT(L43)),'CM choke'!F47)) -> 74.82 | G43: 11.41229682 | H43: 27.77881362 | I43: 34.30762759 | J43: 126.4474794 | K43: =IF(CMdata=1,IMDIV(1,IMSUM(IMDIV(1,IMPRODUCT(B43,'Design the AEF circuit'!$G$13*0.001)),IMDIV(1,'Design the AEF circuit'!$H$13*1000),IMPRODUCT(B43,'Design the AEF circuit'!$I$13*0.000000000001))),COMPLEX(G43,H43,"j")) -> 11.412296824392+27.778813619051j | L43: =IF(CMdata=1,IMDIV(1,IMSUM(IMDIV(1,IMPRODUCT(B43,'Design the AEF circuit'!$G$14*0.001)),IMDIV(1,'Design the AEF circuit'!$H$14*1000),IMPRODUCT(B43,'Design the AEF circuit'!$I$14*0.000000000001))),COMPLEX(I43,J43,"j")) -> 34.3076275904516+126.447479413845j
A44: ='Frequency vector'!G44 -> 2962.860125 | B44: =COMPLEX(0,2*PI()*'Frequency vector'!G44,"j") -> 18616.1992025363j | C44: =IF(IF(CMdata=1,IMABS(K44),'CM choke'!C48)=0, C43, IF(CMdata=1,IMABS(K44),'CM choke'!C48)) -> 30.5972 | D44: =IF(IF(CMdata=1,DEGREES(IMARGUMENT(K44)),'CM choke'!D48)=0, D43, IF(CMdata=1,DEGREES(IMARGUMENT(K44)),'CM choke'!D48)) -> 67.5157 | E44: =IF(IF(CMdata=1,IMABS(L44),'CM choke'!E48)=0, E43, IF(CMdata=1,IMABS(L44),'CM choke'!E48)) -> 134.256 | F44: =IF(IF(CMdata=1,DEGREES(IMARGUMENT(L44)),'CM choke'!F48)=0, F43, IF(CMdata=1,DEGREES(IMARGUMENT(L44)),'CM choke'!F48)) -> 74.8434 | G44: 11.70129514 | H44: 28.27133424 | I44: 35.10232265 | J44: 129.5858807 | K44: =IF(CMdata=1,IMDIV(1,IMSUM(IMDIV(1,IMPRODUCT(B44,'Design the AEF circuit'!$G$13*0.001)),IMDIV(1,'Design the AEF circuit'!$H$13*1000),IMPRODUCT(B44,'Design the AEF circuit'!$I$13*0.000000000001))),COMPLEX(G44,H44,"j")) -> 11.701295138651+28.2713342436855j | L44: =IF(CMdata=1,IMDIV(1,IMSUM(IMDIV(1,IMPRODUCT(B44,'Design the AEF circuit'!$G$14*0.001)),IMDIV(1,'Design the AEF circuit'!$H$14*1000),IMPRODUCT(B44,'Design the AEF circuit'!$I$14*0.000000000001))),COMPLEX(I44,J44,"j")) -> 35.102322654977+129.585880713239j
A45: ='Frequency vector'!G45 -> 3042.399907 | B45: =COMPLEX(0,2*PI()*'Frequency vector'!G45,"j") -> 19115.9623925285j | C45: =IF(IF(CMdata=1,IMABS(K45),'CM choke'!C49)=0, C44, IF(CMdata=1,IMABS(K45),'CM choke'!C49)) -> 31.2215 | D45: =IF(IF(CMdata=1,DEGREES(IMARGUMENT(K45)),'CM choke'!D49)=0, D44, IF(CMdata=1,DEGREES(IMARGUMENT(K45)),'CM choke'!D49)) -> 67.2541 | E45: =IF(IF(CMdata=1,IMABS(L45),'CM choke'!E49)=0, E44, IF(CMdata=1,IMABS(L45),'CM choke'!E49)) -> 136.958 | F45: =IF(IF(CMdata=1,DEGREES(IMARGUMENT(L45)),'CM choke'!F49)=0, F44, IF(CMdata=1,DEGREES(IMARGUMENT(L45)),'CM choke'!F49)) -> 74.8385 | G45: 12.07163591 | H45: 28.79336154 | I45: 35.82008776 | J45: 132.1908283 | K45: =IF(CMdata=1,IMDIV(1,IMSUM(IMDIV(1,IMPRODUCT(B45,'Design the AEF circuit'!$G$13*0.001)),IMDIV(1,'Design the AEF circuit'!$H$13*1000),IMPRODUCT(B45,'Design the AEF circuit'!$I$13*0.000000000001))),COMPLEX(G45,H45,"j")) -> 12.0716359099104+28.7933615388784j | L45: =IF(CMdata=1,IMDIV(1,IMSUM(IMDIV(1,IMPRODUCT(B45,'Design the AEF circuit'!$G$14*0.001)),IMDIV(1,'Design the AEF circuit'!$H$14*1000),IMPRODUCT(B45,'Design the AEF circuit'!$I$14*0.000000000001))),COMPLEX(I45,J45,"j")) -> 35.8200877617342+132.19082826256j
A46: ='Frequency vector'!G46 -> 3124.074983 | B46: =COMPLEX(0,2*PI()*'Frequency vector'!G46,"j") -> 19629.1420293127j | C46: =IF(IF(CMdata=1,IMABS(K46),'CM choke'!C50)=0, C45, IF(CMdata=1,IMABS(K46),'CM choke'!C50)) -> 31.9259 | D46: =IF(IF(CMdata=1,DEGREES(IMARGUMENT(K46)),'CM choke'!D50)=0, D45, IF(CMdata=1,DEGREES(IMARGUMENT(K46)),'CM choke'!D50)) -> 67.2276 | E46: =IF(IF(CMdata=1,IMABS(L46),'CM choke'!E50)=0, E45, IF(CMdata=1,IMABS(L46),'CM choke'!E50)) -> 139.624 | F46: =IF(IF(CMdata=1,DEGREES(IMARGUMENT(L46)),'CM choke'!F50)=0, F45, IF(CMdata=1,DEGREES(IMARGUMENT(L46)),'CM choke'!F50)) -> 74.6431 | G46: 12.35760504 | H46: 29.437267 | I46: 36.97673761 | J46: 134.6387101 | K46: =IF(CMdata=1,IMDIV(1,IMSUM(IMDIV(1,IMPRODUCT(B46,'Design the AEF circuit'!$G$13*0.001)),IMDIV(1,'Design the AEF circuit'!$H$13*1000),IMPRODUCT(B46,'Design the AEF circuit'!$I$13*0.000000000001))),COMPLEX(G46,H46,"j")) -> 12.357605044221+29.4372669991806j | L46: =IF(CMdata=1,IMDIV(1,IMSUM(IMDIV(1,IMPRODUCT(B46,'Design the AEF circuit'!$G$14*0.001)),IMDIV(1,'Design the AEF circuit'!$H$14*1000),IMPRODUCT(B46,'Design the AEF circuit'!$I$14*0.000000000001))),COMPLEX(I46,J46,"j")) -> 36.9767376124507+134.638710078268j
A47: ='Frequency vector'!G47 -> 3207.942676 | B47: =COMPLEX(0,2*PI()*'Frequency vector'!G47,"j") -> 20156.098285563j | C47: =IF(IF(CMdata=1,IMABS(K47),'CM choke'!C51)=0, C46, IF(CMdata=1,IMABS(K47),'CM choke'!C51)) -> 32.4904 | D47: =IF(IF(CMdata=1,DEGREES(IMARGUMENT(K47)),'CM choke'!D51)=0, D46, IF(CMdata=1,DEGREES(IMARGUMENT(K47)),'CM choke'!D51)) -> 67.3211 | E47: =IF(IF(CMdata=1,IMABS(L47),'CM choke'!E51)=0, E46, IF(CMdata=1,IMABS(L47),'CM choke'!E51)) -> 142.559 | F47: =IF(IF(CMdata=1,DEGREES(IMARGUMENT(L47)),'CM choke'!F51)=0, F46, IF(CMdata=1,DEGREES(IMARGUMENT(L47)),'CM choke'!F51)) -> 74.3783 | G47: 12.5272026 | H47: 29.9782469 | I47: 38.38894131 | J47: 137.2929629 | K47: =IF(CMdata=1,IMDIV(1,IMSUM(IMDIV(1,IMPRODUCT(B47,'Design the AEF circuit'!$G$13*0.001)),IMDIV(1,'Design the AEF circuit'!$H$13*1000),IMPRODUCT(B47,'Design the AEF circuit'!$I$13*0.000000000001))),COMPLEX(G47,H47,"j")) -> 12.5272026039747+29.9782468980254j | L47: =IF(CMdata=1,IMDIV(1,IMSUM(IMDIV(1,IMPRODUCT(B47,'Design the AEF circuit'!$G$14*0.001)),IMDIV(1,'Design the AEF circuit'!$H$14*1000),IMPRODUCT(B47,'Design the AEF circuit'!$I$14*0.000000000001))),COMPLEX(I47,J47,"j")) -> 38.3889413081949+137.292962915934j
A48: ='Frequency vector'!G48 -> 3294.061848 | B48: =COMPLEX(0,2*PI()*'Frequency vector'!G48,"j") -> 20697.201003008j | C48: =IF(IF(CMdata=1,IMABS(K48),'CM choke'!C52)=0, C47, IF(CMdata=1,IMABS(K48),'CM choke'!C52)) -> 33.3079 | D48: =IF(IF(CMdata=1,DEGREES(IMARGUMENT(K48)),'CM choke'!D52)=0, D47, IF(CMdata=1,DEGREES(IMARGUMENT(K48)),'CM choke'!D52)) -> 67.1319 | E48: =IF(IF(CMdata=1,IMABS(L48),'CM choke'!E52)=0, E47, IF(CMdata=1,IMABS(L48),'CM choke'!E52)) -> 145.902 | F48: =IF(IF(CMdata=1,DEGREES(IMARGUMENT(L48)),'CM choke'!F52)=0, F47, IF(CMdata=1,DEGREES(IMARGUMENT(L48)),'CM choke'!F52)) -> 74.2095 | G48: 12.94381668 | H48: 30.68996273 | I48: 39.70295459 | J48: 140.3961146 | K48: =IF(CMdata=1,IMDIV(1,IMSUM(IMDIV(1,IMPRODUCT(B48,'Design the AEF circuit'!$G$13*0.001)),IMDIV(1,'Design the AEF circuit'!$H$13*1000),IMPRODUCT(B48,'Design the AEF circuit'!$I$13*0.000000000001))),COMPLEX(G48,H48,"j")) -> 12.9438166813204+30.6899627261157j | L48: =IF(CMdata=1,IMDIV(1,IMSUM(IMDIV(1,IMPRODUCT(B48,'Design the AEF circuit'!$G$14*0.001)),IMDIV(1,'Design the AEF circuit'!$H$14*1000),IMPRODUCT(B48,'Design the AEF circuit'!$I$14*0.000000000001))),COMPLEX(I48,J48,"j")) -> 39.702954592229+140.396114620909j
A49: ='Frequency vector'!G49 -> 3382.492942 | B49: =COMPLEX(0,2*PI()*'Frequency vector'!G49,"j") -> 21252.8299520021j | C49: =IF(IF(CMdata=1,IMABS(K49),'CM choke'!C53)=0, C48, IF(CMdata=1,IMABS(K49),'CM choke'!C53)) -> 33.939 | D49: =IF(IF(CMdata=1,DEGREES(IMARGUMENT(K49)),'CM choke'!D53)=0, D48, IF(CMdata=1,DEGREES(IMARGUMENT(K49)),'CM choke'!D53)) -> 67.2713 | E49: =IF(IF(CMdata=1,IMABS(L49),'CM choke'!E53)=0, E48, IF(CMdata=1,IMABS(L49),'CM choke'!E53)) -> 149.146 | F49: =IF(IF(CMdata=1,DEGREES(IMARGUMENT(L49)),'CM choke'!F53)=0, F48, IF(CMdata=1,DEGREES(IMARGUMENT(L49)),'CM choke'!F53)) -> 73.9004 | G49: 13.11294701 | H49: 31.30345575 | I49: 41.35937088 | J49: 143.2966565 | K49: =IF(CMdata=1,IMDIV(1,IMSUM(IMDIV(1,IMPRODUCT(B49,'Design the AEF circuit'!$G$13*0.001)),IMDIV(1,'Design the AEF circuit'!$H$13*1000),IMPRODUCT(B49,'Design the AEF circuit'!$I$13*0.000000000001))),COMPLEX(G49,H49,"j")) -> 13.1129470130957+31.3034557458397j | L49: =IF(CMdata=1,IMDIV(1,IMSUM(IMDIV(1,IMPRODUCT(B49,'Design the AEF circuit'!$G$14*0.001)),IMDIV(1,'Design the AEF circuit'!$H$14*1000),IMPRODUCT(B49,'Design the AEF circuit'!$I$14*0.000000000001))),COMPLEX(I49,J49,"j")) -> 41.3593708830593+143.29665647236j
A50: ='Frequency vector'!G50 -> 3473.298022 | B50: =COMPLEX(0,2*PI()*'Frequency vector'!G50,"j") -> 21823.3750980665j | C50: =IF(IF(CMdata=1,IMABS(K50),'CM choke'!C54)=0, C49, IF(CMdata=1,IMABS(K50),'CM choke'!C54)) -> 34.4627 | D50: =IF(IF(CMdata=1,DEGREES(IMARGUMENT(K50)),'CM choke'!D54)=0, D49, IF(CMdata=1,DEGREES(IMARGUMENT(K50)),'CM choke'!D54)) -> 66.8998 | E50: =IF(IF(CMdata=1,IMABS(L50),'CM choke'!E54)=0, E49, IF(CMdata=1,IMABS(L50),'CM choke'!E54)) -> 152.727 | F50: =IF(IF(CMdata=1,DEGREES(IMARGUMENT(L50)),'CM choke'!F54)=0, F49, IF(CMdata=1,DEGREES(IMARGUMENT(L50)),'CM choke'!F54)) -> 73.9164 | G50: 13.521107 | H50: 31.69948512 | I50: 42.31143223 | J50: 146.7490349 | K50: =IF(CMdata=1,IMDIV(1,IMSUM(IMDIV(1,IMPRODUCT(B50,'Design the AEF circuit'!$G$13*0.001)),IMDIV(1,'Design the AEF circuit'!$H$13*1000),IMPRODUCT(B50,'Design the AEF circuit'!$I$13*0.000000000001))),COMPLEX(G50,H50,"j")) -> 13.5211070005332+31.6994851183758j | L50: =IF(CMdata=1,IMDIV(1,IMSUM(IMDIV(1,IMPRODUCT(B50,'Design the AEF circuit'!$G$14*0.001)),IMDIV(1,'Design the AEF circuit'!$H$14*1000),IMPRODUCT(B50,'Design the AEF circuit'!$I$14*0.000000000001))),COMPLEX(I50,J50,"j")) -> 42.31143222592+146.749034858807j
A51: ='Frequency vector'!G51 -> 3566.54082 | B51: =COMPLEX(0,2*PI()*'Frequency vector'!G51,"j") -> 22409.2368755833j | C51: =IF(IF(CMdata=1,IMABS(K51),'CM choke'!C55)=0, C50, IF(CMdata=1,IMABS(K51),'CM choke'!C55)) -> 35.4223 | D51: =IF(IF(CMdata=1,DEGREES(IMARGUMENT(K51)),'CM choke'!D55)=0, D50, IF(CMdata=1,DEGREES(IMARGUMENT(K51)),'CM choke'!D55)) -> 66.9336 | E51: =IF(IF(CMdata=1,IMABS(L51),'CM choke'!E55)=0, E50, IF(CMdata=1,IMABS(L51),'CM choke'!E55)) -> 155.166 | F51: =IF(IF(CMdata=1,DEGREES(IMARGUMENT(L51)),'CM choke'!F55)=0, F50, IF(CMdata=1,DEGREES(IMARGUMENT(L51)),'CM choke'!F55)) -> 73.8595 | G51: 13.87837346 | H51: 32.59033733 | I51: 43.13517336 | J51: 149.049805 | K51: =IF(CMdata=1,IMDIV(1,IMSUM(IMDIV(1,IMPRODUCT(B51,'Design the AEF circuit'!$G$13*0.001)),IMDIV(1,'Design the AEF circuit'!$H$13*1000),IMPRODUCT(B51,'Design the AEF circuit'!$I$13*0.000000000001))),COMPLEX(G51,H51,"j")) -> 13.8783734609444+32.5903373313096j | L51: =IF(CMdata=1,IMDIV(1,IMSUM(IMDIV(1,IMPRODUCT(B51,'Design the AEF circuit'!$G$14*0.001)),IMDIV(1,'Design the AEF circuit'!$H$14*1000),IMPRODUCT(B51,'Design the AEF circuit'!$I$14*0.000000000001))),COMPLEX(I51,J51,"j")) -> 43.1351733605624+149.049805015485j
A52: ='Frequency vector'!G52 -> 3662.286777 | B52: =COMPLEX(0,2*PI()*'Frequency vector'!G52,"j") -> 23010.8264688396j | C52: =IF(IF(CMdata=1,IMABS(K52),'CM choke'!C56)=0, C51, IF(CMdata=1,IMABS(K52),'CM choke'!C56)) -> 36.029 | D52: =IF(IF(CMdata=1,DEGREES(IMARGUMENT(K52)),'CM choke'!D56)=0, D51, IF(CMdata=1,DEGREES(IMARGUMENT(K52)),'CM choke'!D56)) -> 66.8766 | E52: =IF(IF(CMdata=1,IMABS(L52),'CM choke'!E56)=0, E51, IF(CMdata=1,IMABS(L52),'CM choke'!E56)) -> 159.206 | F52: =IF(IF(CMdata=1,DEGREES(IMARGUMENT(L52)),'CM choke'!F56)=0, F51, IF(CMdata=1,DEGREES(IMARGUMENT(L52)),'CM choke'!F56)) -> 73.2689 | G52: 14.14904751 | H52: 33.13447292 | I52: 45.83228395 | J52: 152.4662329 | K52: =IF(CMdata=1,IMDIV(1,IMSUM(IMDIV(1,IMPRODUCT(B52,'Design the AEF circuit'!$G$13*0.001)),IMDIV(1,'Design the AEF circuit'!$H$13*1000),IMPRODUCT(B52,'Design the AEF circuit'!$I$13*0.000000000001))),COMPLEX(G52,H52,"j")) -> 14.1490475059097+33.1344729198385j | L52: =IF(CMdata=1,IMDIV(1,IMSUM(IMDIV(1,IMPRODUCT(B52,'Design the AEF circuit'!$G$14*0.001)),IMDIV(1,'Design the AEF circuit'!$H$14*1000),IMPRODUCT(B52,'Design the AEF circuit'!$I$14*0.000000000001))),COMPLEX(I52,J52,"j")) -> 45.8322839453117+152.466232931611j
A53: ='Frequency vector'!G53 -> 3760.603093 | B53: =COMPLEX(0,2*PI()*'Frequency vector'!G53,"j") -> 23628.5661006145j | C53: =IF(IF(CMdata=1,IMABS(K53),'CM choke'!C57)=0, C52, IF(CMdata=1,IMABS(K53),'CM choke'!C57)) -> 36.6712 | D53: =IF(IF(CMdata=1,DEGREES(IMARGUMENT(K53)),'CM choke'!D57)=0, D52, IF(CMdata=1,DEGREES(IMARGUMENT(K53)),'CM choke'!D57)) -> 66.5884 | E53: =IF(IF(CMdata=1,IMABS(L53),'CM choke'!E57)=0, E52, IF(CMdata=1,IMABS(L53),'CM choke'!E57)) -> 161.9 | F53: =IF(IF(CMdata=1,DEGREES(IMARGUMENT(L53)),'CM choke'!F57)=0, F52, IF(CMdata=1,DEGREES(IMARGUMENT(L53)),'CM choke'!F57)) -> 73.478 | G53: 14.57070319 | H53: 33.65221416 | I53: 46.04168608 | J53: 155.2152478 | K53: =IF(CMdata=1,IMDIV(1,IMSUM(IMDIV(1,IMPRODUCT(B53,'Design the AEF circuit'!$G$13*0.001)),IMDIV(1,'Design the AEF circuit'!$H$13*1000),IMPRODUCT(B53,'Design the AEF circuit'!$I$13*0.000000000001))),COMPLEX(G53,H53,"j")) -> 14.5707031920985+33.6522141608509j | L53: =IF(CMdata=1,IMDIV(1,IMSUM(IMDIV(1,IMPRODUCT(B53,'Design the AEF circuit'!$G$14*0.001)),IMDIV(1,'Design the AEF circuit'!$H$14*1000),IMPRODUCT(B53,'Design the AEF circuit'!$I$14*0.000000000001))),COMPLEX(I53,J53,"j")) -> 46.0416860768817+155.215247779327j
A54: ='Frequency vector'!G54 -> 3861.55877 | B54: =COMPLEX(0,2*PI()*'Frequency vector'!G54,"j") -> 24262.8893285146j | C54: =IF(IF(CMdata=1,IMABS(K54),'CM choke'!C58)=0, C53, IF(CMdata=1,IMABS(K54),'CM choke'!C58)) -> 37.4658 | D54: =IF(IF(CMdata=1,DEGREES(IMARGUMENT(K54)),'CM choke'!D58)=0, D53, IF(CMdata=1,DEGREES(IMARGUMENT(K54)),'CM choke'!D58)) -> 66.8443 | E54: =IF(IF(CMdata=1,IMABS(L54),'CM choke'!E58)=0, E53, IF(CMdata=1,IMABS(L54),'CM choke'!E58)) -> 165.743 | F54: =IF(IF(CMdata=1,DEGREES(IMARGUMENT(L54)),'CM choke'!F58)=0, F53, IF(CMdata=1,DEGREES(IMARGUMENT(L54)),'CM choke'!F58)) -> 73.0934 | G54: 14.73271902 | H54: 34.44754215 | I54: 48.20012105 | J54: 158.5796027 | K54: =IF(CMdata=1,IMDIV(1,IMSUM(IMDIV(1,IMPRODUCT(B54,'Design the AEF circuit'!$G$13*0.001)),IMDIV(1,'Design the AEF circuit'!$H$13*1000),IMPRODUCT(B54,'Design the AEF circuit'!$I$13*0.000000000001))),COMPLEX(G54,H54,"j")) -> 14.7327190224659+34.4475421451963j | L54: =IF(CMdata=1,IMDIV(1,IMSUM(IMDIV(1,IMPRODUCT(B54,'Design the AEF circuit'!$G$14*0.001)),IMDIV(1,'Design the AEF circuit'!$H$14*1000),IMPRODUCT(B54,'Design the AEF circuit'!$I$14*0.000000000001))),COMPLEX(I54,J54,"j")) -> 48.2001210521749+158.579602659219j
A55: ='Frequency vector'!G55 -> 3965.224664 | B55: =COMPLEX(0,2*PI()*'Frequency vector'!G55,"j") -> 24914.241349264j | C55: =IF(IF(CMdata=1,IMABS(K55),'CM choke'!C59)=0, C54, IF(CMdata=1,IMABS(K55),'CM choke'!C59)) -> 38.4139 | D55: =IF(IF(CMdata=1,DEGREES(IMARGUMENT(K55)),'CM choke'!D59)=0, D54, IF(CMdata=1,DEGREES(IMARGUMENT(K55)),'CM choke'!D59)) -> 66.7114 | E55: =IF(IF(CMdata=1,IMABS(L55),'CM choke'!E59)=0, E54, IF(CMdata=1,IMABS(L55),'CM choke'!E59)) -> 168.924 | F55: =IF(IF(CMdata=1,DEGREES(IMARGUMENT(L55)),'CM choke'!F59)=0, F54, IF(CMdata=1,DEGREES(IMARGUMENT(L55)),'CM choke'!F59)) -> 73.0217 | G55: 15.18742529 | H55: 35.28412995 | I55: 49.32741215 | J55: 161.5615183 | K55: =IF(CMdata=1,IMDIV(1,IMSUM(IMDIV(1,IMPRODUCT(B55,'Design the AEF circuit'!$G$13*0.001)),IMDIV(1,'Design the AEF circuit'!$H$13*1000),IMPRODUCT(B55,'Design the AEF circuit'!$I$13*0.000000000001))),COMPLEX(G55,H55,"j")) -> 15.1874252852189+35.2841299512386j | L55: =IF(CMdata=1,IMDIV(1,IMSUM(IMDIV(1,IMPRODUCT(B55,'Design the AEF circuit'!$G$14*0.001)),IMDIV(1,'Design the AEF circuit'!$H$14*1000),IMPRODUCT(B55,'Design the AEF circuit'!$I$14*0.000000000001))),COMPLEX(I55,J55,"j")) -> 49.3274121523278+161.561518272002j
A56: ='Frequency vector'!G56 -> 4071.673532 | B56: =COMPLEX(0,2*PI()*'Frequency vector'!G56,"j") -> 25583.0793111637j | C56: =IF(IF(CMdata=1,IMABS(K56),'CM choke'!C60)=0, C55, IF(CMdata=1,IMABS(K56),'CM choke'!C60)) -> 39.0338 | D56: =IF(IF(CMdata=1,DEGREES(IMARGUMENT(K56)),'CM choke'!D60)=0, D55, IF(CMdata=1,DEGREES(IMARGUMENT(K56)),'CM choke'!D60)) -> 66.4487 | E56: =IF(IF(CMdata=1,IMABS(L56),'CM choke'!E60)=0, E55, IF(CMdata=1,IMABS(L56),'CM choke'!E60)) -> 172.597 | F56: =IF(IF(CMdata=1,DEGREES(IMARGUMENT(L56)),'CM choke'!F60)=0, F55, IF(CMdata=1,DEGREES(IMARGUMENT(L56)),'CM choke'!F60)) -> 72.8959 | G56: 15.59673556 | H56: 35.78238928 | I56: 50.76228268 | J56: 164.9633749 | K56: =IF(CMdata=1,IMDIV(1,IMSUM(IMDIV(1,IMPRODUCT(B56,'Design the AEF circuit'!$G$13*0.001)),IMDIV(1,'Design the AEF circuit'!$H$13*1000),IMPRODUCT(B56,'Design the AEF circuit'!$I$13*0.000000000001))),COMPLEX(G56,H56,"j")) -> 15.5967355559778+35.7823892779241j | L56: =IF(CMdata=1,IMDIV(1,IMSUM(IMDIV(1,IMPRODUCT(B56,'Design the AEF circuit'!$G$14*0.001)),IMDIV(1,'Design the AEF circuit'!$H$14*1000),IMPRODUCT(B56,'Design the AEF circuit'!$I$14*0.000000000001))),COMPLEX(I56,J56,"j")) -> 50.7622826756314+164.963374924737j
A57: ='Frequency vector'!G57 -> 4180.980084 | B57: =COMPLEX(0,2*PI()*'Frequency vector'!G57,"j") -> 26269.8726349388j | C57: =IF(IF(CMdata=1,IMABS(K57),'CM choke'!C61)=0, C56, IF(CMdata=1,IMABS(K57),'CM choke'!C61)) -> 39.8941 | D57: =IF(IF(CMdata=1,DEGREES(IMARGUMENT(K57)),'CM choke'!D61)=0, D56, IF(CMdata=1,DEGREES(IMARGUMENT(K57)),'CM choke'!D61)) -> 66.2612 | E57: =IF(IF(CMdata=1,IMABS(L57),'CM choke'!E61)=0, E56, IF(CMdata=1,IMABS(L57),'CM choke'!E61)) -> 176.934 | F57: =IF(IF(CMdata=1,DEGREES(IMARGUMENT(L57)),'CM choke'!F61)=0, F56, IF(CMdata=1,DEGREES(IMARGUMENT(L57)),'CM choke'!F61)) -> 72.7765 | G57: 16.06007847 | H57: 36.51866775 | I57: 52.39012818 | J57: 168.999748 | K57: =IF(CMdata=1,IMDIV(1,IMSUM(IMDIV(1,IMPRODUCT(B57,'Design the AEF circuit'!$G$13*0.001)),IMDIV(1,'Design the AEF circuit'!$H$13*1000),IMPRODUCT(B57,'Design the AEF circuit'!$I$13*0.000000000001))),COMPLEX(G57,H57,"j")) -> 16.0600784716807+36.5186677508019j | L57: =IF(CMdata=1,IMDIV(1,IMSUM(IMDIV(1,IMPRODUCT(B57,'Design the AEF circuit'!$G$14*0.001)),IMDIV(1,'Design the AEF circuit'!$H$14*1000),IMPRODUCT(B57,'Design the AEF circuit'!$I$14*0.000000000001))),COMPLEX(I57,J57,"j")) -> 52.3901281790999+168.999748003888j
A58: ='Frequency vector'!G58 -> 4293.221037 | B58: =COMPLEX(0,2*PI()*'Frequency vector'!G58,"j") -> 26975.1033431995j | C58: =IF(IF(CMdata=1,IMABS(K58),'CM choke'!C62)=0, C57, IF(CMdata=1,IMABS(K58),'CM choke'!C62)) -> 40.6309 | D58: =IF(IF(CMdata=1,DEGREES(IMARGUMENT(K58)),'CM choke'!D62)=0, D57, IF(CMdata=1,DEGREES(IMARGUMENT(K58)),'CM choke'!D62)) -> 66.2543 | E58: =IF(IF(CMdata=1,IMABS(L58),'CM choke'!E62)=0, E57, IF(CMdata=1,IMABS(L58),'CM choke'!E62)) -> 180.706 | F58: =IF(IF(CMdata=1,DEGREES(IMARGUMENT(L58)),'CM choke'!F62)=0, F57, IF(CMdata=1,DEGREES(IMARGUMENT(L58)),'CM choke'!F62)) -> 72.5153 | G58: 16.36116936 | H58: 37.19115717 | I58: 54.29331876 | J58: 172.3568797 | K58: =IF(CMdata=1,IMDIV(1,IMSUM(IMDIV(1,IMPRODUCT(B58,'Design the AEF circuit'!$G$13*0.001)),IMDIV(1,'Design the AEF circuit'!$H$13*1000),IMPRODUCT(B58,'Design the AEF circuit'!$I$13*0.000000000001))),COMPLEX(G58,H58,"j")) -> 16.3611693620353+37.1911571736723j | L58: =IF(CMdata=1,IMDIV(1,IMSUM(IMDIV(1,IMPRODUCT(B58,'Design the AEF circuit'!$G$14*0.001)),IMDIV(1,'Design the AEF circuit'!$H$14*1000),IMPRODUCT(B58,'Design the AEF circuit'!$I$14*0.000000000001))),COMPLEX(I58,J58,"j")) -> 54.2933187574414+172.356879683704j
A59: ='Frequency vector'!G59 -> 4408.475167 | B59: =COMPLEX(0,2*PI()*'Frequency vector'!G59,"j") -> 27699.2663987457j | C59: =IF(IF(CMdata=1,IMABS(K59),'CM choke'!C63)=0, C58, IF(CMdata=1,IMABS(K59),'CM choke'!C63)) -> 41.4407 | D59: =IF(IF(CMdata=1,DEGREES(IMARGUMENT(K59)),'CM choke'!D63)=0, D58, IF(CMdata=1,DEGREES(IMARGUMENT(K59)),'CM choke'!D63)) -> 66.0425 | E59: =IF(IF(CMdata=1,IMABS(L59),'CM choke'!E63)=0, E58, IF(CMdata=1,IMABS(L59),'CM choke'!E63)) -> 184.792 | F59: =IF(IF(CMdata=1,DEGREES(IMARGUMENT(L59)),'CM choke'!F63)=0, F58, IF(CMdata=1,DEGREES(IMARGUMENT(L59)),'CM choke'!F63)) -> 72.3791 | G59: 16.82736486 | H59: 37.87045561 | I59: 55.93978513 | J59: 176.1216162 | K59: =IF(CMdata=1,IMDIV(1,IMSUM(IMDIV(1,IMPRODUCT(B59,'Design the AEF circuit'!$G$13*0.001)),IMDIV(1,'Design the AEF circuit'!$H$13*1000),IMPRODUCT(B59,'Design the AEF circuit'!$I$13*0.000000000001))),COMPLEX(G59,H59,"j")) -> 16.8273648606869+37.8704556129883j | L59: =IF(CMdata=1,IMDIV(1,IMSUM(IMDIV(1,IMPRODUCT(B59,'Design the AEF circuit'!$G$14*0.001)),IMDIV(1,'Design the AEF circuit'!$H$14*1000),IMPRODUCT(B59,'Design the AEF circuit'!$I$14*0.000000000001))),COMPLEX(I59,J59,"j")) -> 55.9397851254255+176.121616231856j
A60: ='Frequency vector'!G60 -> 4526.823364 | B60: =COMPLEX(0,2*PI()*'Frequency vector'!G60,"j") -> 28442.8700519551j | C60: =IF(IF(CMdata=1,IMABS(K60),'CM choke'!C64)=0, C59, IF(CMdata=1,IMABS(K60),'CM choke'!C64)) -> 42.4305 | D60: =IF(IF(CMdata=1,DEGREES(IMARGUMENT(K60)),'CM choke'!D64)=0, D59, IF(CMdata=1,DEGREES(IMARGUMENT(K60)),'CM choke'!D64)) -> 66.0972 | E60: =IF(IF(CMdata=1,IMABS(L60),'CM choke'!E64)=0, E59, IF(CMdata=1,IMABS(L60),'CM choke'!E64)) -> 189.108 | F60: =IF(IF(CMdata=1,DEGREES(IMARGUMENT(L60)),'CM choke'!F64)=0, F59, IF(CMdata=1,DEGREES(IMARGUMENT(L60)),'CM choke'!F64)) -> 72.118 | G60: 17.19225582 | H60: 38.79141232 | I60: 58.06705816 | J60: 179.9723657 | K60: =IF(CMdata=1,IMDIV(1,IMSUM(IMDIV(1,IMPRODUCT(B60,'Design the AEF circuit'!$G$13*0.001)),IMDIV(1,'Design the AEF circuit'!$H$13*1000),IMPRODUCT(B60,'Design the AEF circuit'!$I$13*0.000000000001))),COMPLEX(G60,H60,"j")) -> 17.1922558244177+38.7914123217727j | L60: =IF(CMdata=1,IMDIV(1,IMSUM(IMDIV(1,IMPRODUCT(B60,'Design the AEF circuit'!$G$14*0.001)),IMDIV(1,'Design the AEF circuit'!$H$14*1000),IMPRODUCT(B60,'Design the AEF circuit'!$I$14*0.000000000001))),COMPLEX(I60,J60,"j")) -> 58.0670581591127+179.972365714146j
A61: ='Frequency vector'!G61 -> 4648.348691 | B61: =COMPLEX(0,2*PI()*'Frequency vector'!G61,"j") -> 29206.4361974958j | C61: =IF(IF(CMdata=1,IMABS(K61),'CM choke'!C65)=0, C60, IF(CMdata=1,IMABS(K61),'CM choke'!C65)) -> 43.2034 | D61: =IF(IF(CMdata=1,DEGREES(IMARGUMENT(K61)),'CM choke'!D65)=0, D60, IF(CMdata=1,DEGREES(IMARGUMENT(K61)),'CM choke'!D65)) -> 65.9026 | E61: =IF(IF(CMdata=1,IMABS(L61),'CM choke'!E65)=0, E60, IF(CMdata=1,IMABS(L61),'CM choke'!E65)) -> 192.964 | F61: =IF(IF(CMdata=1,DEGREES(IMARGUMENT(L61)),'CM choke'!F65)=0, F60, IF(CMdata=1,DEGREES(IMARGUMENT(L61)),'CM choke'!F65)) -> 72.0465 | G61: 17.63947458 | H61: 39.43834059 | I61: 59.48019514 | J61: 183.5680029 | K61: =IF(CMdata=1,IMDIV(1,IMSUM(IMDIV(1,IMPRODUCT(B61,'Design the AEF circuit'!$G$13*0.001)),IMDIV(1,'Design the AEF circuit'!$H$13*1000),IMPRODUCT(B61,'Design the AEF circuit'!$I$13*0.000000000001))),COMPLEX(G61,H61,"j")) -> 17.6394745750771+39.4383405872409j | L61: =IF(CMdata=1,IMDIV(1,IMSUM(IMDIV(1,IMPRODUCT(B61,'Design the AEF circuit'!$G$14*0.001)),IMDIV(1,'Design the AEF circuit'!$H$14*1000),IMPRODUCT(B61,'Design the AEF circuit'!$I$14*0.000000000001))),COMPLEX(I61,J61,"j")) -> 59.4801951361036+183.568002883321j
A62: ='Frequency vector'!G62 -> 4773.136439 | B62: =COMPLEX(0,2*PI()*'Frequency vector'!G62,"j") -> 29990.5007406155j | C62: =IF(IF(CMdata=1,IMABS(K62),'CM choke'!C66)=0, C61, IF(CMdata=1,IMABS(K62),'CM choke'!C66)) -> 44.0381 | D62: =IF(IF(CMdata=1,DEGREES(IMARGUMENT(K62)),'CM choke'!D66)=0, D61, IF(CMdata=1,DEGREES(IMARGUMENT(K62)),'CM choke'!D66)) -> 65.3369 | E62: =IF(IF(CMdata=1,IMABS(L62),'CM choke'!E66)=0, E61, IF(CMdata=1,IMABS(L62),'CM choke'!E66)) -> 196.386 | F62: =IF(IF(CMdata=1,DEGREES(IMARGUMENT(L62)),'CM choke'!F66)=0, F61, IF(CMdata=1,DEGREES(IMARGUMENT(L62)),'CM choke'!F66)) -> 71.7941 | G62: 18.37630133 | H62: 40.0208171 | I62: 61.35741602 | J62: 186.5548941 | K62: =IF(CMdata=1,IMDIV(1,IMSUM(IMDIV(1,IMPRODUCT(B62,'Design the AEF circuit'!$G$13*0.001)),IMDIV(1,'Design the AEF circuit'!$H$13*1000),IMPRODUCT(B62,'Design the AEF circuit'!$I$13*0.000000000001))),COMPLEX(G62,H62,"j")) -> 18.3763013289901+40.0208170965581j | L62: =IF(CMdata=1,IMDIV(1,IMSUM(IMDIV(1,IMPRODUCT(B62,'Design the AEF circuit'!$G$14*0.001)),IMDIV(1,'Design the AEF circuit'!$H$14*1000),IMPRODUCT(B62,'Design the AEF circuit'!$I$14*0.000000000001))),COMPLEX(I62,J62,"j")) -> 61.3574160153263+186.554894055134j
A63: ='Frequency vector'!G63 -> 4901.274189 | B63: =COMPLEX(0,2*PI()*'Frequency vector'!G63,"j") -> 30795.6139732646j | C63: =IF(IF(CMdata=1,IMABS(K63),'CM choke'!C67)=0, C62, IF(CMdata=1,IMABS(K63),'CM choke'!C67)) -> 45 | D63: =IF(IF(CMdata=1,DEGREES(IMARGUMENT(K63)),'CM choke'!D67)=0, D62, IF(CMdata=1,DEGREES(IMARGUMENT(K63)),'CM choke'!D67)) -> 65.2695 | E63: =IF(IF(CMdata=1,IMABS(L63),'CM choke'!E67)=0, E62, IF(CMdata=1,IMABS(L63),'CM choke'!E67)) -> 199.687 | F63: =IF(IF(CMdata=1,DEGREES(IMARGUMENT(L63)),'CM choke'!F67)=0, F62, IF(CMdata=1,DEGREES(IMARGUMENT(L63)),'CM choke'!F67)) -> 71.8531 | G63: 18.82577865 | H63: 40.87285234 | I63: 62.19339059 | J63: 189.7547895 | K63: =IF(CMdata=1,IMDIV(1,IMSUM(IMDIV(1,IMPRODUCT(B63,'Design the AEF circuit'!$G$13*0.001)),IMDIV(1,'Design the AEF circuit'!$H$13*1000),IMPRODUCT(B63,'Design the AEF circuit'!$I$13*0.000000000001))),COMPLEX(G63,H63,"j")) -> 18.8257786457189+40.8728523396936j | L63: =IF(CMdata=1,IMDIV(1,IMSUM(IMDIV(1,IMPRODUCT(B63,'Design the AEF circuit'!$G$14*0.001)),IMDIV(1,'Design the AEF circuit'!$H$14*1000),IMPRODUCT(B63,'Design the AEF circuit'!$I$14*0.000000000001))),COMPLEX(I63,J63,"j")) -> 62.1933905926151+189.754789493163j
A64: ='Frequency vector'!G64 -> 5032.851876 | B64: =COMPLEX(0,2*PI()*'Frequency vector'!G64,"j") -> 31622.3409603152j | C64: =IF(IF(CMdata=1,IMABS(K64),'CM choke'!C68)=0, C63, IF(CMdata=1,IMABS(K64),'CM choke'!C68)) -> 45.8844 | D64: =IF(IF(CMdata=1,DEGREES(IMARGUMENT(K64)),'CM choke'!D68)=0, D63, IF(CMdata=1,DEGREES(IMARGUMENT(K64)),'CM choke'!D68)) -> 65.4491 | E64: =IF(IF(CMdata=1,IMABS(L64),'CM choke'!E68)=0, E63, IF(CMdata=1,IMABS(L64),'CM choke'!E68)) -> 205.074 | F64: =IF(IF(CMdata=1,DEGREES(IMARGUMENT(L64)),'CM choke'!F68)=0, F63, IF(CMdata=1,DEGREES(IMARGUMENT(L64)),'CM choke'!F68)) -> 71.562 | G64: 19.06503535 | H64: 41.73610655 | I64: 64.8604532 | J64: 194.5468249 | K64: =IF(CMdata=1,IMDIV(1,IMSUM(IMDIV(1,IMPRODUCT(B64,'Design the AEF circuit'!$G$13*0.001)),IMDIV(1,'Design the AEF circuit'!$H$13*1000),IMPRODUCT(B64,'Design the AEF circuit'!$I$13*0.000000000001))),COMPLEX(G64,H64,"j")) -> 19.0650353546225+41.7361065540018j | L64: =IF(CMdata=1,IMDIV(1,IMSUM(IMDIV(1,IMPRODUCT(B64,'Design the AEF circuit'!$G$14*0.001)),IMDIV(1,'Design the AEF circuit'!$H$14*1000),IMPRODUCT(B64,'Design the AEF circuit'!$I$14*0.000000000001))),COMPLEX(I64,J64,"j")) -> 64.8604531989133+194.546824920973j
A65: ='Frequency vector'!G65 -> 5167.961846 | B65: =COMPLEX(0,2*PI()*'Frequency vector'!G65,"j") -> 32471.2619361497j | C65: =IF(IF(CMdata=1,IMABS(K65),'CM choke'!C69)=0, C64, IF(CMdata=1,IMABS(K65),'CM choke'!C69)) -> 46.8004 | D65: =IF(IF(CMdata=1,DEGREES(IMARGUMENT(K65)),'CM choke'!D69)=0, D64, IF(CMdata=1,DEGREES(IMARGUMENT(K65)),'CM choke'!D69)) -> 65.2189 | E65: =IF(IF(CMdata=1,IMABS(L65),'CM choke'!E69)=0, E64, IF(CMdata=1,IMABS(L65),'CM choke'!E69)) -> 210.301 | F65: =IF(IF(CMdata=1,DEGREES(IMARGUMENT(L65)),'CM choke'!F69)=0, F64, IF(CMdata=1,DEGREES(IMARGUMENT(L65)),'CM choke'!F69)) -> 71.3128 | G65: 19.61650998 | H65: 42.49082226 | I65: 67.38072931 | J65: 199.2143266 | K65: =IF(CMdata=1,IMDIV(1,IMSUM(IMDIV(1,IMPRODUCT(B65,'Design the AEF circuit'!$G$13*0.001)),IMDIV(1,'Design the AEF circuit'!$H$13*1000),IMPRODUCT(B65,'Design the AEF circuit'!$I$13*0.000000000001))),COMPLEX(G65,H65,"j")) -> 19.6165099770463+42.4908222617596j | L65: =IF(CMdata=1,IMDIV(1,IMSUM(IMDIV(1,IMPRODUCT(B65,'Design the AEF circuit'!$G$14*0.001)),IMDIV(1,'Design the AEF circuit'!$H$14*1000),IMPRODUCT(B65,'Design the AEF circuit'!$I$14*0.000000000001))),COMPLEX(I65,J65,"j")) -> 67.3807293072379+199.214326590797j
A66: ='Frequency vector'!G66 -> 5306.698924 | B66: =COMPLEX(0,2*PI()*'Frequency vector'!G66,"j") -> 33342.9727118955j | C66: =IF(IF(CMdata=1,IMABS(K66),'CM choke'!C70)=0, C65, IF(CMdata=1,IMABS(K66),'CM choke'!C70)) -> 47.6135 | D66: =IF(IF(CMdata=1,DEGREES(IMARGUMENT(K66)),'CM choke'!D70)=0, D65, IF(CMdata=1,DEGREES(IMARGUMENT(K66)),'CM choke'!D70)) -> 65.2037 | E66: =IF(IF(CMdata=1,IMABS(L66),'CM choke'!E70)=0, E65, IF(CMdata=1,IMABS(L66),'CM choke'!E70)) -> 213.487 | F66: =IF(IF(CMdata=1,DEGREES(IMARGUMENT(L66)),'CM choke'!F70)=0, F65, IF(CMdata=1,DEGREES(IMARGUMENT(L66)),'CM choke'!F70)) -> 71.2206 | G66: 19.9687905 | H66: 43.22375259 | I66: 68.7268704 | J66: 202.1220336 | K66: =IF(CMdata=1,IMDIV(1,IMSUM(IMDIV(1,IMPRODUCT(B66,'Design the AEF circuit'!$G$13*0.001)),IMDIV(1,'Design the AEF circuit'!$H$13*1000),IMPRODUCT(B66,'Design the AEF circuit'!$I$13*0.000000000001))),COMPLEX(G66,H66,"j")) -> 19.9687905010382+43.2237525924768j | L66: =IF(CMdata=1,IMDIV(1,IMSUM(IMDIV(1,IMPRODUCT(B66,'Design the AEF circuit'!$G$14*0.001)),IMDIV(1,'Design the AEF circuit'!$H$14*1000),IMPRODUCT(B66,'Design the AEF circuit'!$I$14*0.000000000001))),COMPLEX(I66,J66,"j")) -> 68.7268704047979+202.122033567254j
A67: ='Frequency vector'!G67 -> 5449.160485 | B67: =COMPLEX(0,2*PI()*'Frequency vector'!G67,"j") -> 34238.085093592j | C67: =IF(IF(CMdata=1,IMABS(K67),'CM choke'!C71)=0, C66, IF(CMdata=1,IMABS(K67),'CM choke'!C71)) -> 48.6964 | D67: =IF(IF(CMdata=1,DEGREES(IMARGUMENT(K67)),'CM choke'!D71)=0, D66, IF(CMdata=1,DEGREES(IMARGUMENT(K67)),'CM choke'!D71)) -> 64.726 | E67: =IF(IF(CMdata=1,IMABS(L67),'CM choke'!E71)=0, E66, IF(CMdata=1,IMABS(L67),'CM choke'!E71)) -> 218.01 | F67: =IF(IF(CMdata=1,DEGREES(IMARGUMENT(L67)),'CM choke'!F71)=0, F66, IF(CMdata=1,DEGREES(IMARGUMENT(L67)),'CM choke'!F71)) -> 70.8824 | G67: =C67*COS(RADIANS(D67)) -> 20.79080915 | H67: =C67*SIN(RADIANS(D67)) -> 44.03500457 | I67: =E67*COS(RADIANS(F67)) -> 71.400052 | J67: =E67*SIN(RADIANS(F67)) -> 205.9863895 | K67: =IF(CMdata=1,IMDIV(1,IMSUM(IMDIV(1,IMPRODUCT(B67,'Design the AEF circuit'!$G$13*0.001)),IMDIV(1,'Design the AEF circuit'!$H$13*1000),IMPRODUCT(B67,'Design the AEF circuit'!$I$13*0.000000000001))),COMPLEX(G67,H67,"j")) -> 20.7908091487549+44.0350045747704j | L67: =IF(CMdata=1,IMDIV(1,IMSUM(IMDIV(1,IMPRODUCT(B67,'Design the AEF circuit'!$G$14*0.001)),IMDIV(1,'Design the AEF circuit'!$H$14*1000),IMPRODUCT(B67,'Design the AEF circuit'!$I$14*0.000000000001))),COMPLEX(I67,J67,"j")) -> 71.4000520005589+205.986389536584j
A68: ='Frequency vector'!G68 -> 5595.446512 | B68: =COMPLEX(0,2*PI()*'Frequency vector'!G68,"j") -> 35157.2273115838j | C68: =IF(IF(CMdata=1,IMABS(K68),'CM choke'!C72)=0, C67, IF(CMdata=1,IMABS(K68),'CM choke'!C72)) -> 49.7353 | D68: =IF(IF(CMdata=1,DEGREES(IMARGUMENT(K68)),'CM choke'!D72)=0, D67, IF(CMdata=1,DEGREES(IMARGUMENT(K68)),'CM choke'!D72)) -> 64.6833 | E68: =IF(IF(CMdata=1,IMABS(L68),'CM choke'!E72)=0, E67, IF(CMdata=1,IMABS(L68),'CM choke'!E72)) -> 223.127 | F68: =IF(IF(CMdata=1,DEGREES(IMARGUMENT(L68)),'CM choke'!F72)=0, F67, IF(CMdata=1,DEGREES(IMARGUMENT(L68)),'CM choke'!F72)) -> 70.6584 | G68: 21.26787653 | H68: 44.95861979 | I68: 73.89956396 | J68: 210.5338751 | K68: =IF(CMdata=1,IMDIV(1,IMSUM(IMDIV(1,IMPRODUCT(B68,'Design the AEF circuit'!$G$13*0.001)),IMDIV(1,'Design the AEF circuit'!$H$13*1000),IMPRODUCT(B68,'Design the AEF circuit'!$I$13*0.000000000001))),COMPLEX(G68,H68,"j")) -> 21.2678765343799+44.9586197942995j | L68: =IF(CMdata=1,IMDIV(1,IMSUM(IMDIV(1,IMPRODUCT(B68,'Design the AEF circuit'!$G$14*0.001)),IMDIV(1,'Design the AEF circuit'!$H$14*1000),IMPRODUCT(B68,'Design the AEF circuit'!$I$14*0.000000000001))),COMPLEX(I68,J68,"j")) -> 73.8995639551032+210.533875127604j
A69: ='Frequency vector'!G69 -> 5745.659677 | B69: =COMPLEX(0,2*PI()*'Frequency vector'!G69,"j") -> 36101.0444614413j | C69: =IF(IF(CMdata=1,IMABS(K69),'CM choke'!C73)=0, C68, IF(CMdata=1,IMABS(K69),'CM choke'!C73)) -> 50.5571 | D69: =IF(IF(CMdata=1,DEGREES(IMARGUMENT(K69)),'CM choke'!D73)=0, D68, IF(CMdata=1,DEGREES(IMARGUMENT(K69)),'CM choke'!D73)) -> 64.2723 | E69: =IF(IF(CMdata=1,IMABS(L69),'CM choke'!E73)=0, E68, IF(CMdata=1,IMABS(L69),'CM choke'!E73)) -> 227.099 | F69: =IF(IF(CMdata=1,DEGREES(IMARGUMENT(L69)),'CM choke'!F73)=0, F68, IF(CMdata=1,DEGREES(IMARGUMENT(L69)),'CM choke'!F73)) -> 70.4165 | G69: 21.9465674 | H69: 45.54523619 | I69: 76.1191025 | J69: 213.9622351 | K69: =IF(CMdata=1,IMDIV(1,IMSUM(IMDIV(1,IMPRODUCT(B69,'Design the AEF circuit'!$G$13*0.001)),IMDIV(1,'Design the AEF circuit'!$H$13*1000),IMPRODUCT(B69,'Design the AEF circuit'!$I$13*0.000000000001))),COMPLEX(G69,H69,"j")) -> 21.9465673962735+45.5452361936001j | L69: =IF(CMdata=1,IMDIV(1,IMSUM(IMDIV(1,IMPRODUCT(B69,'Design the AEF circuit'!$G$14*0.001)),IMDIV(1,'Design the AEF circuit'!$H$14*1000),IMPRODUCT(B69,'Design the AEF circuit'!$I$14*0.000000000001))),COMPLEX(I69,J69,"j")) -> 76.1191024955542+213.962235070284j
A70: ='Frequency vector'!G70 -> 5899.905405 | B70: =COMPLEX(0,2*PI()*'Frequency vector'!G70,"j") -> 37070.1989567177j | C70: =IF(IF(CMdata=1,IMABS(K70),'CM choke'!C74)=0, C69, IF(CMdata=1,IMABS(K70),'CM choke'!C74)) -> 51.6102 | D70: =IF(IF(CMdata=1,DEGREES(IMARGUMENT(K70)),'CM choke'!D74)=0, D69, IF(CMdata=1,DEGREES(IMARGUMENT(K70)),'CM choke'!D74)) -> 64.3047 | E70: =IF(IF(CMdata=1,IMABS(L70),'CM choke'!E74)=0, E69, IF(CMdata=1,IMABS(L70),'CM choke'!E74)) -> 232.3 | F70: =IF(IF(CMdata=1,DEGREES(IMARGUMENT(L70)),'CM choke'!F74)=0, F69, IF(CMdata=1,DEGREES(IMARGUMENT(L70)),'CM choke'!F74)) -> 70.1344 | G70: 22.3774172 | H70: 46.50660107 | I70: 78.93901201 | J70: 218.4763657 | K70: =IF(CMdata=1,IMDIV(1,IMSUM(IMDIV(1,IMPRODUCT(B70,'Design the AEF circuit'!$G$13*0.001)),IMDIV(1,'Design the AEF circuit'!$H$13*1000),IMPRODUCT(B70,'Design the AEF circuit'!$I$13*0.000000000001))),COMPLEX(G70,H70,"j")) -> 22.3774172041038+46.5066010724658j | L70: =IF(CMdata=1,IMDIV(1,IMSUM(IMDIV(1,IMPRODUCT(B70,'Design the AEF circuit'!$G$14*0.001)),IMDIV(1,'Design the AEF circuit'!$H$14*1000),IMPRODUCT(B70,'Design the AEF circuit'!$I$14*0.000000000001))),COMPLEX(I70,J70,"j")) -> 78.9390120119859+218.476365729961j
A71: ='Frequency vector'!G71 -> 6058.291954 | B71: =COMPLEX(0,2*PI()*'Frequency vector'!G71,"j") -> 38065.3709938611j | C71: =IF(IF(CMdata=1,IMABS(K71),'CM choke'!C75)=0, C70, IF(CMdata=1,IMABS(K71),'CM choke'!C75)) -> 52.6276 | D71: =IF(IF(CMdata=1,DEGREES(IMARGUMENT(K71)),'CM choke'!D75)=0, D70, IF(CMdata=1,DEGREES(IMARGUMENT(K71)),'CM choke'!D75)) -> 64.0671 | E71: =IF(IF(CMdata=1,IMABS(L71),'CM choke'!E75)=0, E70, IF(CMdata=1,IMABS(L71),'CM choke'!E75)) -> 236.506 | F71: =IF(IF(CMdata=1,DEGREES(IMARGUMENT(L71)),'CM choke'!F75)=0, F70, IF(CMdata=1,DEGREES(IMARGUMENT(L71)),'CM choke'!F75)) -> 70.0201 | G71: 23.01501016 | H71: 47.32835925 | I71: 80.81184573 | J71: 222.2713063 | K71: =IF(CMdata=1,IMDIV(1,IMSUM(IMDIV(1,IMPRODUCT(B71,'Design the AEF circuit'!$G$13*0.001)),IMDIV(1,'Design the AEF circuit'!$H$13*1000),IMPRODUCT(B71,'Design the AEF circuit'!$I$13*0.000000000001))),COMPLEX(G71,H71,"j")) -> 23.0150101647494+47.3283592455568j | L71: =IF(CMdata=1,IMDIV(1,IMSUM(IMDIV(1,IMPRODUCT(B71,'Design the AEF circuit'!$G$14*0.001)),IMDIV(1,'Design the AEF circuit'!$H$14*1000),IMPRODUCT(B71,'Design the AEF circuit'!$I$14*0.000000000001))),COMPLEX(I71,J71,"j")) -> 80.8118457324934+222.271306347238j
A72: ='Frequency vector'!G72 -> 6220.930486 | B72: =COMPLEX(0,2*PI()*'Frequency vector'!G72,"j") -> 39087.2590296065j | C72: =IF(IF(CMdata=1,IMABS(K72),'CM choke'!C76)=0, C71, IF(CMdata=1,IMABS(K72),'CM choke'!C76)) -> 53.7603 | D72: =IF(IF(CMdata=1,DEGREES(IMARGUMENT(K72)),'CM choke'!D76)=0, D71, IF(CMdata=1,DEGREES(IMARGUMENT(K72)),'CM choke'!D76)) -> 63.7346 | E72: =IF(IF(CMdata=1,IMABS(L72),'CM choke'!E76)=0, E71, IF(CMdata=1,IMABS(L72),'CM choke'!E76)) -> 241.752 | F72: =IF(IF(CMdata=1,DEGREES(IMARGUMENT(L72)),'CM choke'!F76)=0, F71, IF(CMdata=1,DEGREES(IMARGUMENT(L72)),'CM choke'!F76)) -> 69.7914 | G72: 23.79053138 | H72: 48.20975495 | I72: 83.51058395 | J72: 226.870033 | K72: =IF(CMdata=1,IMDIV(1,IMSUM(IMDIV(1,IMPRODUCT(B72,'Design the AEF circuit'!$G$13*0.001)),IMDIV(1,'Design the AEF circuit'!$H$13*1000),IMPRODUCT(B72,'Design the AEF circuit'!$I$13*0.000000000001))),COMPLEX(G72,H72,"j")) -> 23.7905313838897+48.209754952314j | L72: =IF(CMdata=1,IMDIV(1,IMSUM(IMDIV(1,IMPRODUCT(B72,'Design the AEF circuit'!$G$14*0.001)),IMDIV(1,'Design the AEF circuit'!$H$14*1000),IMPRODUCT(B72,'Design the AEF circuit'!$I$14*0.000000000001))),COMPLEX(I72,J72,"j")) -> 83.5105839547209+226.870032995858j
A73: ='Frequency vector'!G73 -> 6387.935149 | B73: =COMPLEX(0,2*PI()*'Frequency vector'!G73,"j") -> 40136.5802711855j | C73: =IF(IF(CMdata=1,IMABS(K73),'CM choke'!C77)=0, C72, IF(CMdata=1,IMABS(K73),'CM choke'!C77)) -> 54.7093 | D73: =IF(IF(CMdata=1,DEGREES(IMARGUMENT(K73)),'CM choke'!D77)=0, D72, IF(CMdata=1,DEGREES(IMARGUMENT(K73)),'CM choke'!D77)) -> 63.545 | E73: =IF(IF(CMdata=1,IMABS(L73),'CM choke'!E77)=0, E72, IF(CMdata=1,IMABS(L73),'CM choke'!E77)) -> 246.244 | F73: =IF(IF(CMdata=1,DEGREES(IMARGUMENT(L73)),'CM choke'!F77)=0, F72, IF(CMdata=1,DEGREES(IMARGUMENT(L73)),'CM choke'!F77)) -> 69.6148 | G73: 24.37270843 | H73: 48.98038985 | I73: 85.77415469 | J73: 230.8222301 | K73: =IF(CMdata=1,IMDIV(1,IMSUM(IMDIV(1,IMPRODUCT(B73,'Design the AEF circuit'!$G$13*0.001)),IMDIV(1,'Design the AEF circuit'!$H$13*1000),IMPRODUCT(B73,'Design the AEF circuit'!$I$13*0.000000000001))),COMPLEX(G73,H73,"j")) -> 24.3727084296448+48.9803898544461j | L73: =IF(CMdata=1,IMDIV(1,IMSUM(IMDIV(1,IMPRODUCT(B73,'Design the AEF circuit'!$G$14*0.001)),IMDIV(1,'Design the AEF circuit'!$H$14*1000),IMPRODUCT(B73,'Design the AEF circuit'!$I$14*0.000000000001))),COMPLEX(I73,J73,"j")) -> 85.7741546859888+230.82223013372j
A74: ='Frequency vector'!G74 -> 6559.423153 | B74: =COMPLEX(0,2*PI()*'Frequency vector'!G74,"j") -> 41214.0711796934j | C74: =IF(IF(CMdata=1,IMABS(K74),'CM choke'!C78)=0, C73, IF(CMdata=1,IMABS(K74),'CM choke'!C78)) -> 55.73 | D74: =IF(IF(CMdata=1,DEGREES(IMARGUMENT(K74)),'CM choke'!D78)=0, D73, IF(CMdata=1,DEGREES(IMARGUMENT(K74)),'CM choke'!D78)) -> 63.3075 | E74: =IF(IF(CMdata=1,IMABS(L74),'CM choke'!E78)=0, E73, IF(CMdata=1,IMABS(L74),'CM choke'!E78)) -> 252.103 | F74: =IF(IF(CMdata=1,DEGREES(IMARGUMENT(L74)),'CM choke'!F78)=0, F73, IF(CMdata=1,DEGREES(IMARGUMENT(L74)),'CM choke'!F78)) -> 69.4291 | G74: 25.0340304 | H74: 49.79086484 | I74: 88.58046984 | J74: 236.0284368 | K74: =IF(CMdata=1,IMDIV(1,IMSUM(IMDIV(1,IMPRODUCT(B74,'Design the AEF circuit'!$G$13*0.001)),IMDIV(1,'Design the AEF circuit'!$H$13*1000),IMPRODUCT(B74,'Design the AEF circuit'!$I$13*0.000000000001))),COMPLEX(G74,H74,"j")) -> 25.034030398391+49.7908648449937j | L74: =IF(CMdata=1,IMDIV(1,IMSUM(IMDIV(1,IMPRODUCT(B74,'Design the AEF circuit'!$G$14*0.001)),IMDIV(1,'Design the AEF circuit'!$H$14*1000),IMPRODUCT(B74,'Design the AEF circuit'!$I$14*0.000000000001))),COMPLEX(I74,J74,"j")) -> 88.5804698432344+236.028436785384j
A75: ='Frequency vector'!G75 -> 6735.514857 | B75: =COMPLEX(0,2*PI()*'Frequency vector'!G75,"j") -> 42320.4879869717j | C75: =IF(IF(CMdata=1,IMABS(K75),'CM choke'!C79)=0, C74, IF(CMdata=1,IMABS(K75),'CM choke'!C79)) -> 56.634 | D75: =IF(IF(CMdata=1,DEGREES(IMARGUMENT(K75)),'CM choke'!D79)=0, D74, IF(CMdata=1,DEGREES(IMARGUMENT(K75)),'CM choke'!D79)) -> 62.9893 | E75: =IF(IF(CMdata=1,IMABS(L75),'CM choke'!E79)=0, E74, IF(CMdata=1,IMABS(L75),'CM choke'!E79)) -> 257.149 | F75: =IF(IF(CMdata=1,DEGREES(IMARGUMENT(L75)),'CM choke'!F79)=0, F74, IF(CMdata=1,DEGREES(IMARGUMENT(L75)),'CM choke'!F79)) -> 69.1446 | G75: 25.72072117 | H75: 50.45646102 | I75: 91.54779313 | J75: 240.3010815 | K75: =IF(CMdata=1,IMDIV(1,IMSUM(IMDIV(1,IMPRODUCT(B75,'Design the AEF circuit'!$G$13*0.001)),IMDIV(1,'Design the AEF circuit'!$H$13*1000),IMPRODUCT(B75,'Design the AEF circuit'!$I$13*0.000000000001))),COMPLEX(G75,H75,"j")) -> 25.7207211664068+50.4564610201702j | L75: =IF(CMdata=1,IMDIV(1,IMSUM(IMDIV(1,IMPRODUCT(B75,'Design the AEF circuit'!$G$14*0.001)),IMDIV(1,'Design the AEF circuit'!$H$14*1000),IMPRODUCT(B75,'Design the AEF circuit'!$I$14*0.000000000001))),COMPLEX(I75,J75,"j")) -> 91.547793131785+240.301081507554j
A76: ='Frequency vector'!G76 -> 6916.33385 | B76: =COMPLEX(0,2*PI()*'Frequency vector'!G76,"j") -> 43456.6072263658j | C76: =IF(IF(CMdata=1,IMABS(K76),'CM choke'!C80)=0, C75, IF(CMdata=1,IMABS(K76),'CM choke'!C80)) -> 57.9812 | D76: =IF(IF(CMdata=1,DEGREES(IMARGUMENT(K76)),'CM choke'!D80)=0, D75, IF(CMdata=1,DEGREES(IMARGUMENT(K76)),'CM choke'!D80)) -> 62.6252 | E76: =IF(IF(CMdata=1,IMABS(L76),'CM choke'!E80)=0, E75, IF(CMdata=1,IMABS(L76),'CM choke'!E80)) -> 262.214 | F76: =IF(IF(CMdata=1,DEGREES(IMARGUMENT(L76)),'CM choke'!F80)=0, F75, IF(CMdata=1,DEGREES(IMARGUMENT(L76)),'CM choke'!F80)) -> 68.8323 | G76: 26.66029259 | H76: 51.4883322 | I76: 94.68519304 | J76: 244.52177 | K76: =IF(CMdata=1,IMDIV(1,IMSUM(IMDIV(1,IMPRODUCT(B76,'Design the AEF circuit'!$G$13*0.001)),IMDIV(1,'Design the AEF circuit'!$H$13*1000),IMPRODUCT(B76,'Design the AEF circuit'!$I$13*0.000000000001))),COMPLEX(G76,H76,"j")) -> 26.6602925896148+51.4883321974613j | L76: =IF(CMdata=1,IMDIV(1,IMSUM(IMDIV(1,IMPRODUCT(B76,'Design the AEF circuit'!$G$14*0.001)),IMDIV(1,'Design the AEF circuit'!$H$14*1000),IMPRODUCT(B76,'Design the AEF circuit'!$I$14*0.000000000001))),COMPLEX(I76,J76,"j")) -> 94.6851930401436+244.521770022529j
A77: ='Frequency vector'!G77 -> 7102.007039 | B77: =COMPLEX(0,2*PI()*'Frequency vector'!G77,"j") -> 44623.2262777308j | C77: =IF(IF(CMdata=1,IMABS(K77),'CM choke'!C81)=0, C76, IF(CMdata=1,IMABS(K77),'CM choke'!C81)) -> 58.9873 | D77: =IF(IF(CMdata=1,DEGREES(IMARGUMENT(K77)),'CM choke'!D81)=0, D76, IF(CMdata=1,DEGREES(IMARGUMENT(K77)),'CM choke'!D81)) -> 62.5367 | E77: =IF(IF(CMdata=1,IMABS(L77),'CM choke'!E81)=0, E76, IF(CMdata=1,IMABS(L77),'CM choke'!E81)) -> 267.98 | F77: =IF(IF(CMdata=1,DEGREES(IMARGUMENT(L77)),'CM choke'!F81)=0, F76, IF(CMdata=1,DEGREES(IMARGUMENT(L77)),'CM choke'!F81)) -> 68.6296 | G77: 27.20378403 | H77: 52.33980985 | I77: 97.65076933 | J77: 249.5548189 | K77: =IF(CMdata=1,IMDIV(1,IMSUM(IMDIV(1,IMPRODUCT(B77,'Design the AEF circuit'!$G$13*0.001)),IMDIV(1,'Design the AEF circuit'!$H$13*1000),IMPRODUCT(B77,'Design the AEF circuit'!$I$13*0.000000000001))),COMPLEX(G77,H77,"j")) -> 27.2037840326052+52.3398098544251j | L77: =IF(CMdata=1,IMDIV(1,IMSUM(IMDIV(1,IMPRODUCT(B77,'Design the AEF circuit'!$G$14*0.001)),IMDIV(1,'Design the AEF circuit'!$H$14*1000),IMPRODUCT(B77,'Design the AEF circuit'!$I$14*0.000000000001))),COMPLEX(I77,J77,"j")) -> 97.6507693273794+249.554818927167j
A78: ='Frequency vector'!G78 -> 7292.664737 | B78: =COMPLEX(0,2*PI()*'Frequency vector'!G78,"j") -> 45821.1639270692j | C78: =IF(IF(CMdata=1,IMABS(K78),'CM choke'!C82)=0, C77, IF(CMdata=1,IMABS(K78),'CM choke'!C82)) -> 60.1834 | D78: =IF(IF(CMdata=1,DEGREES(IMARGUMENT(K78)),'CM choke'!D82)=0, D77, IF(CMdata=1,DEGREES(IMARGUMENT(K78)),'CM choke'!D82)) -> 62.187 | E78: =IF(IF(CMdata=1,IMABS(L78),'CM choke'!E82)=0, E77, IF(CMdata=1,IMABS(L78),'CM choke'!E82)) -> 273.077 | F78: =IF(IF(CMdata=1,DEGREES(IMARGUMENT(L78)),'CM choke'!F82)=0, F77, IF(CMdata=1,DEGREES(IMARGUMENT(L78)),'CM choke'!F82)) -> 68.5372 | G78: 28.08081212 | H78: 53.2307207 | I78: 99.91807263 | J78: 254.1405648 | K78: =IF(CMdata=1,IMDIV(1,IMSUM(IMDIV(1,IMPRODUCT(B78,'Design the AEF circuit'!$G$13*0.001)),IMDIV(1,'Design the AEF circuit'!$H$13*1000),IMPRODUCT(B78,'Design the AEF circuit'!$I$13*0.000000000001))),COMPLEX(G78,H78,"j")) -> 28.0808121203456+53.2307206998163j | L78: =IF(CMdata=1,IMDIV(1,IMSUM(IMDIV(1,IMPRODUCT(B78,'Design the AEF circuit'!$G$14*0.001)),IMDIV(1,'Design the AEF circuit'!$H$14*1000),IMPRODUCT(B78,'Design the AEF circuit'!$I$14*0.000000000001))),COMPLEX(I78,J78,"j")) -> 99.9180726277717+254.140564828505j
A79: ='Frequency vector'!G79 -> 7488.440757 | B79: =COMPLEX(0,2*PI()*'Frequency vector'!G79,"j") -> 47051.2609411916j | C79: =IF(IF(CMdata=1,IMABS(K79),'CM choke'!C83)=0, C78, IF(CMdata=1,IMABS(K79),'CM choke'!C83)) -> 61.1265 | D79: =IF(IF(CMdata=1,DEGREES(IMARGUMENT(K79)),'CM choke'!D83)=0, D78, IF(CMdata=1,DEGREES(IMARGUMENT(K79)),'CM choke'!D83)) -> 61.8505 | E79: =IF(IF(CMdata=1,IMABS(L79),'CM choke'!E83)=0, E78, IF(CMdata=1,IMABS(L79),'CM choke'!E83)) -> 280.397 | F79: =IF(IF(CMdata=1,DEGREES(IMARGUMENT(L79)),'CM choke'!F83)=0, F78, IF(CMdata=1,DEGREES(IMARGUMENT(L79)),'CM choke'!F83)) -> 68.233 | G79: 28.83788169 | H79: 53.89643385 | I79: 103.980462 | J79: 260.404572 | K79: =IF(CMdata=1,IMDIV(1,IMSUM(IMDIV(1,IMPRODUCT(B79,'Design the AEF circuit'!$G$13*0.001)),IMDIV(1,'Design the AEF circuit'!$H$13*1000),IMPRODUCT(B79,'Design the AEF circuit'!$I$13*0.000000000001))),COMPLEX(G79,H79,"j")) -> 28.8378816898782+53.8964338513281j | L79: =IF(CMdata=1,IMDIV(1,IMSUM(IMDIV(1,IMPRODUCT(B79,'Design the AEF circuit'!$G$14*0.001)),IMDIV(1,'Design the AEF circuit'!$H$14*1000),IMPRODUCT(B79,'Design the AEF circuit'!$I$14*0.000000000001))),COMPLEX(I79,J79,"j")) -> 103.98046197312+260.40457203524j
A80: ='Frequency vector'!G80 -> 7689.472504 | B80: =COMPLEX(0,2*PI()*'Frequency vector'!G80,"j") -> 48314.3806578048j | C80: =IF(IF(CMdata=1,IMABS(K80),'CM choke'!C84)=0, C79, IF(CMdata=1,IMABS(K80),'CM choke'!C84)) -> 62.7705 | D80: =IF(IF(CMdata=1,DEGREES(IMARGUMENT(K80)),'CM choke'!D84)=0, D79, IF(CMdata=1,DEGREES(IMARGUMENT(K80)),'CM choke'!D84)) -> 61.7729 | E80: =IF(IF(CMdata=1,IMABS(L80),'CM choke'!E84)=0, E79, IF(CMdata=1,IMABS(L80),'CM choke'!E84)) -> 283.597 | F80: =IF(IF(CMdata=1,DEGREES(IMARGUMENT(L80)),'CM choke'!F84)=0, F79, IF(CMdata=1,DEGREES(IMARGUMENT(L80)),'CM choke'!F84)) -> 67.8757 | G80: 29.68840989 | H80: 55.30582238 | I80: 106.8075035 | J80: 262.7154651 | K80: =IF(CMdata=1,IMDIV(1,IMSUM(IMDIV(1,IMPRODUCT(B80,'Design the AEF circuit'!$G$13*0.001)),IMDIV(1,'Design the AEF circuit'!$H$13*1000),IMPRODUCT(B80,'Design the AEF circuit'!$I$13*0.000000000001))),COMPLEX(G80,H80,"j")) -> 29.6884098877559+55.3058223751044j | L80: =IF(CMdata=1,IMDIV(1,IMSUM(IMDIV(1,IMPRODUCT(B80,'Design the AEF circuit'!$G$14*0.001)),IMDIV(1,'Design the AEF circuit'!$H$14*1000),IMPRODUCT(B80,'Design the AEF circuit'!$I$14*0.000000000001))),COMPLEX(I80,J80,"j")) -> 106.807503527758+262.71546509326j
A81: ='Frequency vector'!G81 -> 7895.90107 | B81: =COMPLEX(0,2*PI()*'Frequency vector'!G81,"j") -> 49611.4095914419j | C81: =IF(IF(CMdata=1,IMABS(K81),'CM choke'!C85)=0, C80, IF(CMdata=1,IMABS(K81),'CM choke'!C85)) -> 63.6782 | D81: =IF(IF(CMdata=1,DEGREES(IMARGUMENT(K81)),'CM choke'!D85)=0, D80, IF(CMdata=1,DEGREES(IMARGUMENT(K81)),'CM choke'!D85)) -> 61.2403 | E81: =IF(IF(CMdata=1,IMABS(L81),'CM choke'!E85)=0, E80, IF(CMdata=1,IMABS(L81),'CM choke'!E85)) -> 289.473 | F81: =IF(IF(CMdata=1,DEGREES(IMARGUMENT(L81)),'CM choke'!F85)=0, F80, IF(CMdata=1,DEGREES(IMARGUMENT(L81)),'CM choke'!F85)) -> 67.6338 | G81: 30.63795016 | H81: 55.82319558 | I81: 110.1516846 | J81: 267.6961414 | K81: =IF(CMdata=1,IMDIV(1,IMSUM(IMDIV(1,IMPRODUCT(B81,'Design the AEF circuit'!$G$13*0.001)),IMDIV(1,'Design the AEF circuit'!$H$13*1000),IMPRODUCT(B81,'Design the AEF circuit'!$I$13*0.000000000001))),COMPLEX(G81,H81,"j")) -> 30.6379501600722+55.8231955841739j | L81: =IF(CMdata=1,IMDIV(1,IMSUM(IMDIV(1,IMPRODUCT(B81,'Design the AEF circuit'!$G$14*0.001)),IMDIV(1,'Design the AEF circuit'!$H$14*1000),IMPRODUCT(B81,'Design the AEF circuit'!$I$14*0.000000000001))),COMPLEX(I81,J81,"j")) -> 110.151684576888+267.696141387719j
A82: ='Frequency vector'!G82 -> 8107.871337 | B82: =COMPLEX(0,2*PI()*'Frequency vector'!G82,"j") -> 50943.2580556573j | C82: =IF(IF(CMdata=1,IMABS(K82),'CM choke'!C86)=0, C81, IF(CMdata=1,IMABS(K82),'CM choke'!C86)) -> 64.7527 | D82: =IF(IF(CMdata=1,DEGREES(IMARGUMENT(K82)),'CM choke'!D86)=0, D81, IF(CMdata=1,DEGREES(IMARGUMENT(K82)),'CM choke'!D86)) -> 61.0937 | E82: =IF(IF(CMdata=1,IMABS(L82),'CM choke'!E86)=0, E81, IF(CMdata=1,IMABS(L82),'CM choke'!E86)) -> 296.318 | F82: =IF(IF(CMdata=1,DEGREES(IMARGUMENT(L82)),'CM choke'!F86)=0, F81, IF(CMdata=1,DEGREES(IMARGUMENT(L82)),'CM choke'!F86)) -> 67.2459 | G82: 31.30007224 | H82: 56.6852506 | I82: 114.6089729 | J82: 273.256547 | K82: =IF(CMdata=1,IMDIV(1,IMSUM(IMDIV(1,IMPRODUCT(B82,'Design the AEF circuit'!$G$13*0.001)),IMDIV(1,'Design the AEF circuit'!$H$13*1000),IMPRODUCT(B82,'Design the AEF circuit'!$I$13*0.000000000001))),COMPLEX(G82,H82,"j")) -> 31.3000722362363+56.6852505974561j | L82: =IF(CMdata=1,IMDIV(1,IMSUM(IMDIV(1,IMPRODUCT(B82,'Design the AEF circuit'!$G$14*0.001)),IMDIV(1,'Design the AEF circuit'!$H$14*1000),IMPRODUCT(B82,'Design the AEF circuit'!$I$14*0.000000000001))),COMPLEX(I82,J82,"j")) -> 114.608972852151+273.256546976966j
A83: ='Frequency vector'!G83 -> 8325.532074 | B83: =COMPLEX(0,2*PI()*'Frequency vector'!G83,"j") -> 52310.8608019269j | C83: =IF(IF(CMdata=1,IMABS(K83),'CM choke'!C87)=0, C82, IF(CMdata=1,IMABS(K83),'CM choke'!C87)) -> 65.8624 | D83: =IF(IF(CMdata=1,DEGREES(IMARGUMENT(K83)),'CM choke'!D87)=0, D82, IF(CMdata=1,DEGREES(IMARGUMENT(K83)),'CM choke'!D87)) -> 60.857 | E83: =IF(IF(CMdata=1,IMABS(L83),'CM choke'!E87)=0, E82, IF(CMdata=1,IMABS(L83),'CM choke'!E87)) -> 302.547 | F83: =IF(IF(CMdata=1,DEGREES(IMARGUMENT(L83)),'CM choke'!F87)=0, F82, IF(CMdata=1,DEGREES(IMARGUMENT(L83)),'CM choke'!F87)) -> 67.1468 | G83: 32.07439618 | H83: 57.5246803 | I83: 117.5005969 | J83: 278.79795 | K83: =IF(CMdata=1,IMDIV(1,IMSUM(IMDIV(1,IMPRODUCT(B83,'Design the AEF circuit'!$G$13*0.001)),IMDIV(1,'Design the AEF circuit'!$H$13*1000),IMPRODUCT(B83,'Design the AEF circuit'!$I$13*0.000000000001))),COMPLEX(G83,H83,"j")) -> 32.0743961764174+57.5246803005303j | L83: =IF(CMdata=1,IMDIV(1,IMSUM(IMDIV(1,IMPRODUCT(B83,'Design the AEF circuit'!$G$14*0.001)),IMDIV(1,'Design the AEF circuit'!$H$14*1000),IMPRODUCT(B83,'Design the AEF circuit'!$I$14*0.000000000001))),COMPLEX(I83,J83,"j")) -> 117.500596871889+278.797950035056j
A84: ='Frequency vector'!G84 -> 8549.036046 | B84: =COMPLEX(0,2*PI()*'Frequency vector'!G84,"j") -> 53715.1776756981j | C84: =IF(IF(CMdata=1,IMABS(K84),'CM choke'!C88)=0, C83, IF(CMdata=1,IMABS(K84),'CM choke'!C88)) -> 67.4743 | D84: =IF(IF(CMdata=1,DEGREES(IMARGUMENT(K84)),'CM choke'!D88)=0, D83, IF(CMdata=1,DEGREES(IMARGUMENT(K84)),'CM choke'!D88)) -> 60.4161 | E84: =IF(IF(CMdata=1,IMABS(L84),'CM choke'!E88)=0, E83, IF(CMdata=1,IMABS(L84),'CM choke'!E88)) -> 308.685 | F84: =IF(IF(CMdata=1,DEGREES(IMARGUMENT(L84)),'CM choke'!F88)=0, F83, IF(CMdata=1,DEGREES(IMARGUMENT(L84)),'CM choke'!F88)) -> 66.9612 | G84: 33.31189462 | H84: 58.67792461 | I84: 120.8052309 | J84: 284.064298 | K84: =IF(CMdata=1,IMDIV(1,IMSUM(IMDIV(1,IMPRODUCT(B84,'Design the AEF circuit'!$G$13*0.001)),IMDIV(1,'Design the AEF circuit'!$H$13*1000),IMPRODUCT(B84,'Design the AEF circuit'!$I$13*0.000000000001))),COMPLEX(G84,H84,"j")) -> 33.3118946238105+58.6779246144761j | L84: =IF(CMdata=1,IMDIV(1,IMSUM(IMDIV(1,IMPRODUCT(B84,'Design the AEF circuit'!$G$14*0.001)),IMDIV(1,'Design the AEF circuit'!$H$14*1000),IMPRODUCT(B84,'Design the AEF circuit'!$I$14*0.000000000001))),COMPLEX(I84,J84,"j")) -> 120.805230945393+284.064298005276j
A85: ='Frequency vector'!G85 -> 8778.540118 | B85: =COMPLEX(0,2*PI()*'Frequency vector'!G85,"j") -> 55157.1942900533j | C85: =IF(IF(CMdata=1,IMABS(K85),'CM choke'!C89)=0, C84, IF(CMdata=1,IMABS(K85),'CM choke'!C89)) -> 68.4886 | D85: =IF(IF(CMdata=1,DEGREES(IMARGUMENT(K85)),'CM choke'!D89)=0, D84, IF(CMdata=1,DEGREES(IMARGUMENT(K85)),'CM choke'!D89)) -> 60.2185 | E85: =IF(IF(CMdata=1,IMABS(L85),'CM choke'!E89)=0, E84, IF(CMdata=1,IMABS(L85),'CM choke'!E89)) -> 313.868 | F85: =IF(IF(CMdata=1,DEGREES(IMARGUMENT(L85)),'CM choke'!F89)=0, F84, IF(CMdata=1,DEGREES(IMARGUMENT(L85)),'CM choke'!F89)) -> 66.3069 | G85: 34.01785928 | H85: 59.44302802 | I85: 126.1239333 | J85: 287.4123777 | K85: =IF(CMdata=1,IMDIV(1,IMSUM(IMDIV(1,IMPRODUCT(B85,'Design the AEF circuit'!$G$13*0.001)),IMDIV(1,'Design the AEF circuit'!$H$13*1000),IMPRODUCT(B85,'Design the AEF circuit'!$I$13*0.000000000001))),COMPLEX(G85,H85,"j")) -> 34.0178592845464+59.4430280155444j | L85: =IF(CMdata=1,IMDIV(1,IMSUM(IMDIV(1,IMPRODUCT(B85,'Design the AEF circuit'!$G$14*0.001)),IMDIV(1,'Design the AEF circuit'!$H$14*1000),IMPRODUCT(B85,'Design the AEF circuit'!$I$14*0.000000000001))),COMPLEX(I85,J85,"j")) -> 126.123933261225+287.412377747929j
A86: ='Frequency vector'!G86 -> 9014.205367 | B86: =COMPLEX(0,2*PI()*'Frequency vector'!G86,"j") -> 56637.9227174575j | C86: =IF(IF(CMdata=1,IMABS(K86),'CM choke'!C90)=0, C85, IF(CMdata=1,IMABS(K86),'CM choke'!C90)) -> 69.5692 | D86: =IF(IF(CMdata=1,DEGREES(IMARGUMENT(K86)),'CM choke'!D90)=0, D85, IF(CMdata=1,DEGREES(IMARGUMENT(K86)),'CM choke'!D90)) -> 60.0109 | E86: =IF(IF(CMdata=1,IMABS(L86),'CM choke'!E90)=0, E85, IF(CMdata=1,IMABS(L86),'CM choke'!E90)) -> 320.76 | F86: =IF(IF(CMdata=1,DEGREES(IMARGUMENT(L86)),'CM choke'!F90)=0, F85, IF(CMdata=1,DEGREES(IMARGUMENT(L86)),'CM choke'!F90)) -> 66.2193 | G86: 34.77313761 | H86: 60.25531088 | I86: 129.3423228 | J86: 293.5260485 | K86: =IF(CMdata=1,IMDIV(1,IMSUM(IMDIV(1,IMPRODUCT(B86,'Design the AEF circuit'!$G$13*0.001)),IMDIV(1,'Design the AEF circuit'!$H$13*1000),IMPRODUCT(B86,'Design the AEF circuit'!$I$13*0.000000000001))),COMPLEX(G86,H86,"j")) -> 34.7731376054394+60.2553108838812j | L86: =IF(CMdata=1,IMDIV(1,IMSUM(IMDIV(1,IMPRODUCT(B86,'Design the AEF circuit'!$G$14*0.001)),IMDIV(1,'Design the AEF circuit'!$H$14*1000),IMPRODUCT(B86,'Design the AEF circuit'!$I$14*0.000000000001))),COMPLEX(I86,J86,"j")) -> 129.342322775363+293.526048484753j
A87: ='Frequency vector'!G87 -> 9256.197192 | B87: =COMPLEX(0,2*PI()*'Frequency vector'!G87,"j") -> 58158.4022000765j | C87: =IF(IF(CMdata=1,IMABS(K87),'CM choke'!C91)=0, C86, IF(CMdata=1,IMABS(K87),'CM choke'!C91)) -> 70.9726 | D87: =IF(IF(CMdata=1,DEGREES(IMARGUMENT(K87)),'CM choke'!D91)=0, D86, IF(CMdata=1,DEGREES(IMARGUMENT(K87)),'CM choke'!D91)) -> 59.6238 | E87: =IF(IF(CMdata=1,IMABS(L87),'CM choke'!E91)=0, E86, IF(CMdata=1,IMABS(L87),'CM choke'!E91)) -> 327.73 | F87: =IF(IF(CMdata=1,DEGREES(IMARGUMENT(L87)),'CM choke'!F91)=0, F86, IF(CMdata=1,DEGREES(IMARGUMENT(L87)),'CM choke'!F91)) -> 65.8736 | G87: 35.8891009 | H87: 61.22975084 | I87: 133.9599721 | J87: 299.1014523 | K87: =IF(CMdata=1,IMDIV(1,IMSUM(IMDIV(1,IMPRODUCT(B87,'Design the AEF circuit'!$G$13*0.001)),IMDIV(1,'Design the AEF circuit'!$H$13*1000),IMPRODUCT(B87,'Design the AEF circuit'!$I$13*0.000000000001))),COMPLEX(G87,H87,"j")) -> 35.8891008985803+61.2297508361052j | L87: =IF(CMdata=1,IMDIV(1,IMSUM(IMDIV(1,IMPRODUCT(B87,'Design the AEF circuit'!$G$14*0.001)),IMDIV(1,'Design the AEF circuit'!$H$14*1000),IMPRODUCT(B87,'Design the AEF circuit'!$I$14*0.000000000001))),COMPLEX(I87,J87,"j")) -> 133.959972051893+299.101452333244j
A88: ='Frequency vector'!G88 -> 9504.685436 | B88: =COMPLEX(0,2*PI()*'Frequency vector'!G88,"j") -> 59719.6998791645j | C88: =IF(IF(CMdata=1,IMABS(K88),'CM choke'!C92)=0, C87, IF(CMdata=1,IMABS(K88),'CM choke'!C92)) -> 72.2542 | D88: =IF(IF(CMdata=1,DEGREES(IMARGUMENT(K88)),'CM choke'!D92)=0, D87, IF(CMdata=1,DEGREES(IMARGUMENT(K88)),'CM choke'!D92)) -> 59.2615 | E88: =IF(IF(CMdata=1,IMABS(L88),'CM choke'!E92)=0, E87, IF(CMdata=1,IMABS(L88),'CM choke'!E92)) -> 332.779 | F88: =IF(IF(CMdata=1,DEGREES(IMARGUMENT(L88)),'CM choke'!F92)=0, F87, IF(CMdata=1,DEGREES(IMARGUMENT(L88)),'CM choke'!F92)) -> 65.8276 | G88: 36.93060875 | H88: 62.10313644 | I88: 136.2675456 | J88: 303.6000969 | K88: =IF(CMdata=1,IMDIV(1,IMSUM(IMDIV(1,IMPRODUCT(B88,'Design the AEF circuit'!$G$13*0.001)),IMDIV(1,'Design the AEF circuit'!$H$13*1000),IMPRODUCT(B88,'Design the AEF circuit'!$I$13*0.000000000001))),COMPLEX(G88,H88,"j")) -> 36.9306087456227+62.103136437041j | L88: =IF(CMdata=1,IMDIV(1,IMSUM(IMDIV(1,IMPRODUCT(B88,'Design the AEF circuit'!$G$14*0.001)),IMDIV(1,'Design the AEF circuit'!$H$14*1000),IMPRODUCT(B88,'Design the AEF circuit'!$I$14*0.000000000001))),COMPLEX(I88,J88,"j")) -> 136.267545626649+303.600096920092j
A89: ='Frequency vector'!G89 -> 9759.844497 | B89: =COMPLEX(0,2*PI()*'Frequency vector'!G89,"j") -> 61322.9115440311j | C89: =IF(IF(CMdata=1,IMABS(K89),'CM choke'!C93)=0, C88, IF(CMdata=1,IMABS(K89),'CM choke'!C93)) -> 73.4882 | D89: =IF(IF(CMdata=1,DEGREES(IMARGUMENT(K89)),'CM choke'!D93)=0, D88, IF(CMdata=1,DEGREES(IMARGUMENT(K89)),'CM choke'!D93)) -> 58.943 | E89: =IF(IF(CMdata=1,IMABS(L89),'CM choke'!E93)=0, E88, IF(CMdata=1,IMABS(L89),'CM choke'!E93)) -> 339.631 | F89: =IF(IF(CMdata=1,DEGREES(IMARGUMENT(L89)),'CM choke'!F93)=0, F88, IF(CMdata=1,DEGREES(IMARGUMENT(L89)),'CM choke'!F93)) -> 65.6938 | G89: 37.91186881 | H89: 62.95399703 | I89: 139.7965278 | J89: 309.5256806 | K89: =IF(CMdata=1,IMDIV(1,IMSUM(IMDIV(1,IMPRODUCT(B89,'Design the AEF circuit'!$G$13*0.001)),IMDIV(1,'Design the AEF circuit'!$H$13*1000),IMPRODUCT(B89,'Design the AEF circuit'!$I$13*0.000000000001))),COMPLEX(G89,H89,"j")) -> 37.9118688149516+62.9539970311489j | L89: =IF(CMdata=1,IMDIV(1,IMSUM(IMDIV(1,IMPRODUCT(B89,'Design the AEF circuit'!$G$14*0.001)),IMDIV(1,'Design the AEF circuit'!$H$14*1000),IMPRODUCT(B89,'Design the AEF circuit'!$I$14*0.000000000001))),COMPLEX(I89,J89,"j")) -> 139.796527847747+309.525680619095j
A90: ='Frequency vector'!G90 -> 10021.85346 | B90: =COMPLEX(0,2*PI()*'Frequency vector'!G90,"j") -> 62969.1624011171j | C90: =IF(IF(CMdata=1,IMABS(K90),'CM choke'!C94)=0, C89, IF(CMdata=1,IMABS(K90),'CM choke'!C94)) -> 74.792 | D90: =IF(IF(CMdata=1,DEGREES(IMARGUMENT(K90)),'CM choke'!D94)=0, D89, IF(CMdata=1,DEGREES(IMARGUMENT(K90)),'CM choke'!D94)) -> 58.5356 | E90: =IF(IF(CMdata=1,IMABS(L90),'CM choke'!E94)=0, E89, IF(CMdata=1,IMABS(L90),'CM choke'!E94)) -> 346.286 | F90: =IF(IF(CMdata=1,DEGREES(IMARGUMENT(L90)),'CM choke'!F94)=0, F89, IF(CMdata=1,DEGREES(IMARGUMENT(L90)),'CM choke'!F94)) -> 65.1865 | G90: 39.03908203 | H90: 63.79493192 | I90: 145.3244469 | J90: 314.3163994 | K90: =IF(CMdata=1,IMDIV(1,IMSUM(IMDIV(1,IMPRODUCT(B90,'Design the AEF circuit'!$G$13*0.001)),IMDIV(1,'Design the AEF circuit'!$H$13*1000),IMPRODUCT(B90,'Design the AEF circuit'!$I$13*0.000000000001))),COMPLEX(G90,H90,"j")) -> 39.0390820252504+63.7949319195951j | L90: =IF(CMdata=1,IMDIV(1,IMSUM(IMDIV(1,IMPRODUCT(B90,'Design the AEF circuit'!$G$14*0.001)),IMDIV(1,'Design the AEF circuit'!$H$14*1000),IMPRODUCT(B90,'Design the AEF circuit'!$I$14*0.000000000001))),COMPLEX(I90,J90,"j")) -> 145.324446912068+314.31639939033j
A91: ='Frequency vector'!G91 -> 10290.89621 | B91: =COMPLEX(0,2*PI()*'Frequency vector'!G91,"j") -> 64659.6078637129j | C91: =IF(IF(CMdata=1,IMABS(K91),'CM choke'!C95)=0, C90, IF(CMdata=1,IMABS(K91),'CM choke'!C95)) -> 76.2356 | D91: =IF(IF(CMdata=1,DEGREES(IMARGUMENT(K91)),'CM choke'!D95)=0, D90, IF(CMdata=1,DEGREES(IMARGUMENT(K91)),'CM choke'!D95)) -> 58.2148 | E91: =IF(IF(CMdata=1,IMABS(L91),'CM choke'!E95)=0, E90, IF(CMdata=1,IMABS(L91),'CM choke'!E95)) -> 353.891 | F91: =IF(IF(CMdata=1,DEGREES(IMARGUMENT(L91)),'CM choke'!F95)=0, F90, IF(CMdata=1,DEGREES(IMARGUMENT(L91)),'CM choke'!F95)) -> 64.7799 | G91: 40.15605354 | H91: 64.80245421 | I91: 150.7917833 | J91: 320.1572707 | K91: =IF(CMdata=1,IMDIV(1,IMSUM(IMDIV(1,IMPRODUCT(B91,'Design the AEF circuit'!$G$13*0.001)),IMDIV(1,'Design the AEF circuit'!$H$13*1000),IMPRODUCT(B91,'Design the AEF circuit'!$I$13*0.000000000001))),COMPLEX(G91,H91,"j")) -> 40.1560535434256+64.8024542064383j | L91: =IF(CMdata=1,IMDIV(1,IMSUM(IMDIV(1,IMPRODUCT(B91,'Design the AEF circuit'!$G$14*0.001)),IMDIV(1,'Design the AEF circuit'!$H$14*1000),IMPRODUCT(B91,'Design the AEF circuit'!$I$14*0.000000000001))),COMPLEX(I91,J91,"j")) -> 150.791783297611+320.157270682592j
A92: ='Frequency vector'!G92 -> 10567.16158 | B92: =COMPLEX(0,2*PI()*'Frequency vector'!G92,"j") -> 66395.4343628841j | C92: =IF(IF(CMdata=1,IMABS(K92),'CM choke'!C96)=0, C91, IF(CMdata=1,IMABS(K92),'CM choke'!C96)) -> 77.4671 | D92: =IF(IF(CMdata=1,DEGREES(IMARGUMENT(K92)),'CM choke'!D96)=0, D91, IF(CMdata=1,DEGREES(IMARGUMENT(K92)),'CM choke'!D96)) -> 57.8887 | E92: =IF(IF(CMdata=1,IMABS(L92),'CM choke'!E96)=0, E91, IF(CMdata=1,IMABS(L92),'CM choke'!E96)) -> 361.631 | F92: =IF(IF(CMdata=1,DEGREES(IMARGUMENT(L92)),'CM choke'!F96)=0, F91, IF(CMdata=1,DEGREES(IMARGUMENT(L92)),'CM choke'!F96)) -> 64.2517 | G92: 41.17884862 | H92: 65.61595849 | I92: 157.0992085 | J92: 325.7250664 | K92: =IF(CMdata=1,IMDIV(1,IMSUM(IMDIV(1,IMPRODUCT(B92,'Design the AEF circuit'!$G$13*0.001)),IMDIV(1,'Design the AEF circuit'!$H$13*1000),IMPRODUCT(B92,'Design the AEF circuit'!$I$13*0.000000000001))),COMPLEX(G92,H92,"j")) -> 41.1788486242075+65.615958488729j | L92: =IF(CMdata=1,IMDIV(1,IMSUM(IMDIV(1,IMPRODUCT(B92,'Design the AEF circuit'!$G$14*0.001)),IMDIV(1,'Design the AEF circuit'!$H$14*1000),IMPRODUCT(B92,'Design the AEF circuit'!$I$14*0.000000000001))),COMPLEX(I92,J92,"j")) -> 157.0992084923+325.72506635519j
A93: ='Frequency vector'!G93 -> 10850.84346 | B93: =COMPLEX(0,2*PI()*'Frequency vector'!G93,"j") -> 68177.8601801577j | C93: =IF(IF(CMdata=1,IMABS(K93),'CM choke'!C97)=0, C92, IF(CMdata=1,IMABS(K93),'CM choke'!C97)) -> 78.6859 | D93: =IF(IF(CMdata=1,DEGREES(IMARGUMENT(K93)),'CM choke'!D97)=0, D92, IF(CMdata=1,DEGREES(IMARGUMENT(K93)),'CM choke'!D97)) -> 57.5253 | E93: =IF(IF(CMdata=1,IMABS(L93),'CM choke'!E97)=0, E92, IF(CMdata=1,IMABS(L93),'CM choke'!E97)) -> 367.169 | F93: =IF(IF(CMdata=1,DEGREES(IMARGUMENT(L93)),'CM choke'!F97)=0, F92, IF(CMdata=1,DEGREES(IMARGUMENT(L93)),'CM choke'!F97)) -> 64.2729 | G93: 42.24859533 | H93: 66.38167708 | I93: 159.3826403 | J93: 330.7722004 | K93: =IF(CMdata=1,IMDIV(1,IMSUM(IMDIV(1,IMPRODUCT(B93,'Design the AEF circuit'!$G$13*0.001)),IMDIV(1,'Design the AEF circuit'!$H$13*1000),IMPRODUCT(B93,'Design the AEF circuit'!$I$13*0.000000000001))),COMPLEX(G93,H93,"j")) -> 42.2485953278912+66.3816770775648j | L93: =IF(CMdata=1,IMDIV(1,IMSUM(IMDIV(1,IMPRODUCT(B93,'Design the AEF circuit'!$G$14*0.001)),IMDIV(1,'Design the AEF circuit'!$H$14*1000),IMPRODUCT(B93,'Design the AEF circuit'!$I$14*0.000000000001))),COMPLEX(I93,J93,"j")) -> 159.382640284761+330.772200368862j
A94: ='Frequency vector'!G94 -> 11142.14095 | B94: =COMPLEX(0,2*PI()*'Frequency vector'!G94,"j") -> 70008.1363025701j | C94: =IF(IF(CMdata=1,IMABS(K94),'CM choke'!C98)=0, C93, IF(CMdata=1,IMABS(K94),'CM choke'!C98)) -> 79.98 | D94: =IF(IF(CMdata=1,DEGREES(IMARGUMENT(K94)),'CM choke'!D98)=0, D93, IF(CMdata=1,DEGREES(IMARGUMENT(K94)),'CM choke'!D98)) -> 57.0248 | E94: =IF(IF(CMdata=1,IMABS(L94),'CM choke'!E98)=0, E93, IF(CMdata=1,IMABS(L94),'CM choke'!E98)) -> 373.371 | F94: =IF(IF(CMdata=1,DEGREES(IMARGUMENT(L94)),'CM choke'!F98)=0, F93, IF(CMdata=1,DEGREES(IMARGUMENT(L94)),'CM choke'!F98)) -> 63.9561 | G94: 43.53119228 | H94: 67.09572042 | I94: 163.9321494 | J94: 335.4581256 | K94: =IF(CMdata=1,IMDIV(1,IMSUM(IMDIV(1,IMPRODUCT(B94,'Design the AEF circuit'!$G$13*0.001)),IMDIV(1,'Design the AEF circuit'!$H$13*1000),IMPRODUCT(B94,'Design the AEF circuit'!$I$13*0.000000000001))),COMPLEX(G94,H94,"j")) -> 43.5311922765973+67.095720422229j | L94: =IF(CMdata=1,IMDIV(1,IMSUM(IMDIV(1,IMPRODUCT(B94,'Design the AEF circuit'!$G$14*0.001)),IMDIV(1,'Design the AEF circuit'!$H$14*1000),IMPRODUCT(B94,'Design the AEF circuit'!$I$14*0.000000000001))),COMPLEX(I94,J94,"j")) -> 163.932149403851+335.458125602635j
A95: ='Frequency vector'!G95 -> 11441.2585 | B95: =COMPLEX(0,2*PI()*'Frequency vector'!G95,"j") -> 71887.5473006658j | C95: =IF(IF(CMdata=1,IMABS(K95),'CM choke'!C99)=0, C94, IF(CMdata=1,IMABS(K95),'CM choke'!C99)) -> 81.5259 | D95: =IF(IF(CMdata=1,DEGREES(IMARGUMENT(K95)),'CM choke'!D99)=0, D94, IF(CMdata=1,DEGREES(IMARGUMENT(K95)),'CM choke'!D99)) -> 56.7365 | E95: =IF(IF(CMdata=1,IMABS(L95),'CM choke'!E99)=0, E94, IF(CMdata=1,IMABS(L95),'CM choke'!E99)) -> 381.559 | F95: =IF(IF(CMdata=1,DEGREES(IMARGUMENT(L95)),'CM choke'!F99)=0, F94, IF(CMdata=1,DEGREES(IMARGUMENT(L95)),'CM choke'!F99)) -> 63.5685 | G95: 44.71616205 | H95: 68.16844741 | I95: 169.8424248 | J95: 341.6735594 | K95: =IF(CMdata=1,IMDIV(1,IMSUM(IMDIV(1,IMPRODUCT(B95,'Design the AEF circuit'!$G$13*0.001)),IMDIV(1,'Design the AEF circuit'!$H$13*1000),IMPRODUCT(B95,'Design the AEF circuit'!$I$13*0.000000000001))),COMPLEX(G95,H95,"j")) -> 44.7161620536306+68.1684474078986j | L95: =IF(CMdata=1,IMDIV(1,IMSUM(IMDIV(1,IMPRODUCT(B95,'Design the AEF circuit'!$G$14*0.001)),IMDIV(1,'Design the AEF circuit'!$H$14*1000),IMPRODUCT(B95,'Design the AEF circuit'!$I$14*0.000000000001))),COMPLEX(I95,J95,"j")) -> 169.842424843391+341.673559416466j
A96: ='Frequency vector'!G96 -> 11748.40604 | B96: =COMPLEX(0,2*PI()*'Frequency vector'!G96,"j") -> 73817.4122300652j | C96: =IF(IF(CMdata=1,IMABS(K96),'CM choke'!C100)=0, C95, IF(CMdata=1,IMABS(K96),'CM choke'!C100)) -> 82.7738 | D96: =IF(IF(CMdata=1,DEGREES(IMARGUMENT(K96)),'CM choke'!D100)=0, D95, IF(CMdata=1,DEGREES(IMARGUMENT(K96)),'CM choke'!D100)) -> 56.3639 | E96: =IF(IF(CMdata=1,IMABS(L96),'CM choke'!E100)=0, E95, IF(CMdata=1,IMABS(L96),'CM choke'!E100)) -> 388.944 | F96: =IF(IF(CMdata=1,DEGREES(IMARGUMENT(L96)),'CM choke'!F100)=0, F95, IF(CMdata=1,DEGREES(IMARGUMENT(L96)),'CM choke'!F100)) -> 63.367 | G96: 45.84975148 | H96: 68.9151816 | I96: 174.3534863 | J96: 347.6755628 | K96: =IF(CMdata=1,IMDIV(1,IMSUM(IMDIV(1,IMPRODUCT(B96,'Design the AEF circuit'!$G$13*0.001)),IMDIV(1,'Design the AEF circuit'!$H$13*1000),IMPRODUCT(B96,'Design the AEF circuit'!$I$13*0.000000000001))),COMPLEX(G96,H96,"j")) -> 45.8497514819452+68.9151816037937j | L96: =IF(CMdata=1,IMDIV(1,IMSUM(IMDIV(1,IMPRODUCT(B96,'Design the AEF circuit'!$G$14*0.001)),IMDIV(1,'Design the AEF circuit'!$H$14*1000),IMPRODUCT(B96,'Design the AEF circuit'!$I$14*0.000000000001))),COMPLEX(I96,J96,"j")) -> 174.353486317156+347.675562766573j
A97: ='Frequency vector'!G97 -> 12063.79915 | B97: =COMPLEX(0,2*PI()*'Frequency vector'!G97,"j") -> 75799.0855572416j | C97: =IF(IF(CMdata=1,IMABS(K97),'CM choke'!C101)=0, C96, IF(CMdata=1,IMABS(K97),'CM choke'!C101)) -> 84.2582 | D97: =IF(IF(CMdata=1,DEGREES(IMARGUMENT(K97)),'CM choke'!D101)=0, D96, IF(CMdata=1,DEGREES(IMARGUMENT(K97)),'CM choke'!D101)) -> 56.0027 | E97: =IF(IF(CMdata=1,IMABS(L97),'CM choke'!E101)=0, E96, IF(CMdata=1,IMABS(L97),'CM choke'!E101)) -> 395.841 | F97: =IF(IF(CMdata=1,DEGREES(IMARGUMENT(L97)),'CM choke'!F101)=0, F96, IF(CMdata=1,DEGREES(IMARGUMENT(L97)),'CM choke'!F101)) -> 62.9313 | G97: 47.11329569 | H97: 69.85543384 | I97: 180.1308223 | J97: 352.4811827 | K97: =IF(CMdata=1,IMDIV(1,IMSUM(IMDIV(1,IMPRODUCT(B97,'Design the AEF circuit'!$G$13*0.001)),IMDIV(1,'Design the AEF circuit'!$H$13*1000),IMPRODUCT(B97,'Design the AEF circuit'!$I$13*0.000000000001))),COMPLEX(G97,H97,"j")) -> 47.1132956917652+69.8554338351735j | L97: =IF(CMdata=1,IMDIV(1,IMSUM(IMDIV(1,IMPRODUCT(B97,'Design the AEF circuit'!$G$14*0.001)),IMDIV(1,'Design the AEF circuit'!$H$14*1000),IMPRODUCT(B97,'Design the AEF circuit'!$I$14*0.000000000001))),COMPLEX(I97,J97,"j")) -> 180.130822252049+352.481182697461j
A98: ='Frequency vector'!G98 -> 12387.65917 | B98: =COMPLEX(0,2*PI()*'Frequency vector'!G98,"j") -> 77833.9581101425j | C98: =IF(IF(CMdata=1,IMABS(K98),'CM choke'!C102)=0, C97, IF(CMdata=1,IMABS(K98),'CM choke'!C102)) -> 85.4929 | D98: =IF(IF(CMdata=1,DEGREES(IMARGUMENT(K98)),'CM choke'!D102)=0, D97, IF(CMdata=1,DEGREES(IMARGUMENT(K98)),'CM choke'!D102)) -> 55.5402 | E98: =IF(IF(CMdata=1,IMABS(L98),'CM choke'!E102)=0, E97, IF(CMdata=1,IMABS(L98),'CM choke'!E102)) -> 403.835 | F98: =IF(IF(CMdata=1,DEGREES(IMARGUMENT(L98)),'CM choke'!F102)=0, F97, IF(CMdata=1,DEGREES(IMARGUMENT(L98)),'CM choke'!F102)) -> 62.6782 | G98: 48.3742657 | H98: 70.49089565 | I98: 185.3552671 | J98: 358.7842418 | K98: =IF(CMdata=1,IMDIV(1,IMSUM(IMDIV(1,IMPRODUCT(B98,'Design the AEF circuit'!$G$13*0.001)),IMDIV(1,'Design the AEF circuit'!$H$13*1000),IMPRODUCT(B98,'Design the AEF circuit'!$I$13*0.000000000001))),COMPLEX(G98,H98,"j")) -> 48.3742656950315+70.4908956452995j | L98: =IF(CMdata=1,IMDIV(1,IMSUM(IMDIV(1,IMPRODUCT(B98,'Design the AEF circuit'!$G$14*0.001)),IMDIV(1,'Design the AEF circuit'!$H$14*1000),IMPRODUCT(B98,'Design the AEF circuit'!$I$14*0.000000000001))),COMPLEX(I98,J98,"j")) -> 185.355267114349+358.784241819465j
A99: ='Frequency vector'!G99 -> 12720.21342 | B99: =COMPLEX(0,2*PI()*'Frequency vector'!G99,"j") -> 79923.4580543383j | C99: =IF(IF(CMdata=1,IMABS(K99),'CM choke'!C103)=0, C98, IF(CMdata=1,IMABS(K99),'CM choke'!C103)) -> 87.0323 | D99: =IF(IF(CMdata=1,DEGREES(IMARGUMENT(K99)),'CM choke'!D103)=0, D98, IF(CMdata=1,DEGREES(IMARGUMENT(K99)),'CM choke'!D103)) -> 55.2468 | E99: =IF(IF(CMdata=1,IMABS(L99),'CM choke'!E103)=0, E98, IF(CMdata=1,IMABS(L99),'CM choke'!E103)) -> 410.401 | F99: =IF(IF(CMdata=1,DEGREES(IMARGUMENT(L99)),'CM choke'!F103)=0, F98, IF(CMdata=1,DEGREES(IMARGUMENT(L99)),'CM choke'!F103)) -> 62.2628 | G99: 49.61212303 | H99: 71.50705204 | I99: 191.0075204 | J99: 363.242492 | K99: =IF(CMdata=1,IMDIV(1,IMSUM(IMDIV(1,IMPRODUCT(B99,'Design the AEF circuit'!$G$13*0.001)),IMDIV(1,'Design the AEF circuit'!$H$13*1000),IMPRODUCT(B99,'Design the AEF circuit'!$I$13*0.000000000001))),COMPLEX(G99,H99,"j")) -> 49.6121230258743+71.5070520449243j | L99: =IF(CMdata=1,IMDIV(1,IMSUM(IMDIV(1,IMPRODUCT(B99,'Design the AEF circuit'!$G$14*0.001)),IMDIV(1,'Design the AEF circuit'!$H$14*1000),IMPRODUCT(B99,'Design the AEF circuit'!$I$14*0.000000000001))),COMPLEX(I99,J99,"j")) -> 191.007520371485+363.242491956182j
A100: ='Frequency vector'!G100 -> 13061.69528 | B100: =COMPLEX(0,2*PI()*'Frequency vector'!G100,"j") -> 82069.0518953737j | C100: =IF(IF(CMdata=1,IMABS(K100),'CM choke'!C104)=0, C99, IF(CMdata=1,IMABS(K100),'CM choke'!C104)) -> 88.255 | D100: =IF(IF(CMdata=1,DEGREES(IMARGUMENT(K100)),'CM choke'!D104)=0, D99, IF(CMdata=1,DEGREES(IMARGUMENT(K100)),'CM choke'!D104)) -> 54.7497 | E100: =IF(IF(CMdata=1,IMABS(L100),'CM choke'!E104)=0, E99, IF(CMdata=1,IMABS(L100),'CM choke'!E104)) -> 417.251 | F100: =IF(IF(CMdata=1,DEGREES(IMARGUMENT(L100)),'CM choke'!F104)=0, F99, IF(CMdata=1,DEGREES(IMARGUMENT(L100)),'CM choke'!F104)) -> 61.8915 | G100: 50.93632612 | H100: 72.07243375 | I100: 196.5847803 | J100: 368.0391571 | K100: =IF(CMdata=1,IMDIV(1,IMSUM(IMDIV(1,IMPRODUCT(B100,'Design the AEF circuit'!$G$13*0.001)),IMDIV(1,'Design the AEF circuit'!$H$13*1000),IMPRODUCT(B100,'Design the AEF circuit'!$I$13*0.000000000001))),COMPLEX(G100,H100,"j")) -> 50.9363261178149+72.072433749802j | L100: =IF(CMdata=1,IMDIV(1,IMSUM(IMDIV(1,IMPRODUCT(B100,'Design the AEF circuit'!$G$14*0.001)),IMDIV(1,'Design the AEF circuit'!$H$14*1000),IMPRODUCT(B100,'Design the AEF circuit'!$I$14*0.000000000001))),COMPLEX(I100,J100,"j")) -> 196.584780321831+368.039157083614j
A101: ='Frequency vector'!G101 -> 13412.34444 | B101: =COMPLEX(0,2*PI()*'Frequency vector'!G101,"j") -> 84272.245508024j | C101: =IF(IF(CMdata=1,IMABS(K101),'CM choke'!C105)=0, C100, IF(CMdata=1,IMABS(K101),'CM choke'!C105)) -> 89.8825 | D101: =IF(IF(CMdata=1,DEGREES(IMARGUMENT(K101)),'CM choke'!D105)=0, D100, IF(CMdata=1,DEGREES(IMARGUMENT(K101)),'CM choke'!D105)) -> 54.4655 | E101: =IF(IF(CMdata=1,IMABS(L101),'CM choke'!E105)=0, E100, IF(CMdata=1,IMABS(L101),'CM choke'!E105)) -> 425.398 | F101: =IF(IF(CMdata=1,DEGREES(IMARGUMENT(L101)),'CM choke'!F105)=0, F100, IF(CMdata=1,DEGREES(IMARGUMENT(L101)),'CM choke'!F105)) -> 61.5316 | G101: 52.23908529 | H101: 73.14329617 | I101: 202.7761658 | J101: 373.9589349 | K101: =IF(CMdata=1,IMDIV(1,IMSUM(IMDIV(1,IMPRODUCT(B101,'Design the AEF circuit'!$G$13*0.001)),IMDIV(1,'Design the AEF circuit'!$H$13*1000),IMPRODUCT(B101,'Design the AEF circuit'!$I$13*0.000000000001))),COMPLEX(G101,H101,"j")) -> 52.2390852855787+73.143296171119j | L101: =IF(CMdata=1,IMDIV(1,IMSUM(IMDIV(1,IMPRODUCT(B101,'Design the AEF circuit'!$G$14*0.001)),IMDIV(1,'Design the AEF circuit'!$H$14*1000),IMPRODUCT(B101,'Design the AEF circuit'!$I$14*0.000000000001))),COMPLEX(I101,J101,"j")) -> 202.776165803551+373.958934892604j
A102: ='Frequency vector'!G102 -> 13772.40698 | B102: =COMPLEX(0,2*PI()*'Frequency vector'!G102,"j") -> 86534.5851931924j | C102: =IF(IF(CMdata=1,IMABS(K102),'CM choke'!C106)=0, C101, IF(CMdata=1,IMABS(K102),'CM choke'!C106)) -> 91.129 | D102: =IF(IF(CMdata=1,DEGREES(IMARGUMENT(K102)),'CM choke'!D106)=0, D101, IF(CMdata=1,DEGREES(IMARGUMENT(K102)),'CM choke'!D106)) -> 54.0676 | E102: =IF(IF(CMdata=1,IMABS(L102),'CM choke'!E106)=0, E101, IF(CMdata=1,IMABS(L102),'CM choke'!E106)) -> 433.709 | F102: =IF(IF(CMdata=1,DEGREES(IMARGUMENT(L102)),'CM choke'!F106)=0, F101, IF(CMdata=1,DEGREES(IMARGUMENT(L102)),'CM choke'!F106)) -> 61.2333 | G102: 53.47726121 | H102: 73.78805577 | I102: 208.7199789 | J102: 380.183465 | K102: =IF(CMdata=1,IMDIV(1,IMSUM(IMDIV(1,IMPRODUCT(B102,'Design the AEF circuit'!$G$13*0.001)),IMDIV(1,'Design the AEF circuit'!$H$13*1000),IMPRODUCT(B102,'Design the AEF circuit'!$I$13*0.000000000001))),COMPLEX(G102,H102,"j")) -> 53.4772612076111+73.7880557728209j | L102: =IF(CMdata=1,IMDIV(1,IMSUM(IMDIV(1,IMPRODUCT(B102,'Design the AEF circuit'!$G$14*0.001)),IMDIV(1,'Design the AEF circuit'!$H$14*1000),IMPRODUCT(B102,'Design the AEF circuit'!$I$14*0.000000000001))),COMPLEX(I102,J102,"j")) -> 208.719978912448+380.183465032065j
A103: ='Frequency vector'!G103 -> 14142.13562 | B103: =COMPLEX(0,2*PI()*'Frequency vector'!G103,"j") -> 88857.6587631676j | C103: =IF(IF(CMdata=1,IMABS(K103),'CM choke'!C107)=0, C102, IF(CMdata=1,IMABS(K103),'CM choke'!C107)) -> 92.5583 | D103: =IF(IF(CMdata=1,DEGREES(IMARGUMENT(K103)),'CM choke'!D107)=0, D102, IF(CMdata=1,DEGREES(IMARGUMENT(K103)),'CM choke'!D107)) -> 53.7128 | E103: =IF(IF(CMdata=1,IMABS(L103),'CM choke'!E107)=0, E102, IF(CMdata=1,IMABS(L103),'CM choke'!E107)) -> 441.417 | F103: =IF(IF(CMdata=1,DEGREES(IMARGUMENT(L103)),'CM choke'!F107)=0, F102, IF(CMdata=1,DEGREES(IMARGUMENT(L103)),'CM choke'!F107)) -> 60.8198 | G103: 54.77906728 | H103: 74.60759135 | I103: 215.2163764 | J103: 385.397041 | K103: =IF(CMdata=1,IMDIV(1,IMSUM(IMDIV(1,IMPRODUCT(B103,'Design the AEF circuit'!$G$13*0.001)),IMDIV(1,'Design the AEF circuit'!$H$13*1000),IMPRODUCT(B103,'Design the AEF circuit'!$I$13*0.000000000001))),COMPLEX(G103,H103,"j")) -> 54.7790672784762+74.6075913496085j | L103: =IF(CMdata=1,IMDIV(1,IMSUM(IMDIV(1,IMPRODUCT(B103,'Design the AEF circuit'!$G$14*0.001)),IMDIV(1,'Design the AEF circuit'!$H$14*1000),IMPRODUCT(B103,'Design the AEF circuit'!$I$14*0.000000000001))),COMPLEX(I103,J103,"j")) -> 215.21637635509+385.397041033769j
A104: ='Frequency vector'!G104 -> 14521.78986 | B104: =COMPLEX(0,2*PI()*'Frequency vector'!G104,"j") -> 91243.0966560252j | C104: =IF(IF(CMdata=1,IMABS(K104),'CM choke'!C108)=0, C103, IF(CMdata=1,IMABS(K104),'CM choke'!C108)) -> 94.0744 | D104: =IF(IF(CMdata=1,DEGREES(IMARGUMENT(K104)),'CM choke'!D108)=0, D103, IF(CMdata=1,DEGREES(IMARGUMENT(K104)),'CM choke'!D108)) -> 53.3158 | E104: =IF(IF(CMdata=1,IMABS(L104),'CM choke'!E108)=0, E103, IF(CMdata=1,IMABS(L104),'CM choke'!E108)) -> 449.209 | F104: =IF(IF(CMdata=1,DEGREES(IMARGUMENT(L104)),'CM choke'!F108)=0, F103, IF(CMdata=1,DEGREES(IMARGUMENT(L104)),'CM choke'!F108)) -> 60.3925 | G104: 56.20042521 | H104: 75.44206348 | I104: 221.9342575 | J104: 390.5559 | K104: =IF(CMdata=1,IMDIV(1,IMSUM(IMDIV(1,IMPRODUCT(B104,'Design the AEF circuit'!$G$13*0.001)),IMDIV(1,'Design the AEF circuit'!$H$13*1000),IMPRODUCT(B104,'Design the AEF circuit'!$I$13*0.000000000001))),COMPLEX(G104,H104,"j")) -> 56.200425207815+75.4420634780146j | L104: =IF(CMdata=1,IMDIV(1,IMSUM(IMDIV(1,IMPRODUCT(B104,'Design the AEF circuit'!$G$14*0.001)),IMDIV(1,'Design the AEF circuit'!$H$14*1000),IMPRODUCT(B104,'Design the AEF circuit'!$I$14*0.000000000001))),COMPLEX(I104,J104,"j")) -> 221.934257495443+390.555900007856j
A105: ='Frequency vector'!G105 -> 14911.63614 | B105: =COMPLEX(0,2*PI()*'Frequency vector'!G105,"j") -> 93692.5730799432j | C105: =IF(IF(CMdata=1,IMABS(K105),'CM choke'!C109)=0, C104, IF(CMdata=1,IMABS(K105),'CM choke'!C109)) -> 95.5619 | D105: =IF(IF(CMdata=1,DEGREES(IMARGUMENT(K105)),'CM choke'!D109)=0, D104, IF(CMdata=1,DEGREES(IMARGUMENT(K105)),'CM choke'!D109)) -> 52.9097 | E105: =IF(IF(CMdata=1,IMABS(L105),'CM choke'!E109)=0, E104, IF(CMdata=1,IMABS(L105),'CM choke'!E109)) -> 457.013 | F105: =IF(IF(CMdata=1,DEGREES(IMARGUMENT(L105)),'CM choke'!F109)=0, F104, IF(CMdata=1,DEGREES(IMARGUMENT(L105)),'CM choke'!F109)) -> 60.1265 | G105: 57.630797 | H105: 76.22839346 | I105: 227.6321135 | J105: 396.2884089 | K105: =IF(CMdata=1,IMDIV(1,IMSUM(IMDIV(1,IMPRODUCT(B105,'Design the AEF circuit'!$G$13*0.001)),IMDIV(1,'Design the AEF circuit'!$H$13*1000),IMPRODUCT(B105,'Design the AEF circuit'!$I$13*0.000000000001))),COMPLEX(G105,H105,"j")) -> 57.6307969965101+76.2283934577992j | L105: =IF(CMdata=1,IMDIV(1,IMSUM(IMDIV(1,IMPRODUCT(B105,'Design the AEF circuit'!$G$14*0.001)),IMDIV(1,'Design the AEF circuit'!$H$14*1000),IMPRODUCT(B105,'Design the AEF circuit'!$I$14*0.000000000001))),COMPLEX(I105,J105,"j")) -> 227.632113517532+396.288408945482j
A106: ='Frequency vector'!G106 -> 15311.94808 | B106: =COMPLEX(0,2*PI()*'Frequency vector'!G106,"j") -> 96207.807188237j | C106: =IF(IF(CMdata=1,IMABS(K106),'CM choke'!C110)=0, C105, IF(CMdata=1,IMABS(K106),'CM choke'!C110)) -> 96.9719 | D106: =IF(IF(CMdata=1,DEGREES(IMARGUMENT(K106)),'CM choke'!D110)=0, D105, IF(CMdata=1,DEGREES(IMARGUMENT(K106)),'CM choke'!D110)) -> 52.447 | E106: =IF(IF(CMdata=1,IMABS(L106),'CM choke'!E110)=0, E105, IF(CMdata=1,IMABS(L106),'CM choke'!E110)) -> 465.569 | F106: =IF(IF(CMdata=1,DEGREES(IMARGUMENT(L106)),'CM choke'!F110)=0, F105, IF(CMdata=1,DEGREES(IMARGUMENT(L106)),'CM choke'!F110)) -> 59.6988 | G106: 59.10389204 | H106: 76.87834113 | I106: 234.9008401 | J106: 401.9652834 | K106: =IF(CMdata=1,IMDIV(1,IMSUM(IMDIV(1,IMPRODUCT(B106,'Design the AEF circuit'!$G$13*0.001)),IMDIV(1,'Design the AEF circuit'!$H$13*1000),IMPRODUCT(B106,'Design the AEF circuit'!$I$13*0.000000000001))),COMPLEX(G106,H106,"j")) -> 59.1038920436088+76.8783411300441j | L106: =IF(CMdata=1,IMDIV(1,IMSUM(IMDIV(1,IMPRODUCT(B106,'Design the AEF circuit'!$G$14*0.001)),IMDIV(1,'Design the AEF circuit'!$H$14*1000),IMPRODUCT(B106,'Design the AEF circuit'!$I$14*0.000000000001))),COMPLEX(I106,J106,"j")) -> 234.900840084663+401.965283436915j
A107: ='Frequency vector'!G107 -> 15723.00664 | B107: =COMPLEX(0,2*PI()*'Frequency vector'!G107,"j") -> 98790.5642859368j | C107: =IF(IF(CMdata=1,IMABS(K107),'CM choke'!C111)=0, C106, IF(CMdata=1,IMABS(K107),'CM choke'!C111)) -> 98.3682 | D107: =IF(IF(CMdata=1,DEGREES(IMARGUMENT(K107)),'CM choke'!D111)=0, D106, IF(CMdata=1,DEGREES(IMARGUMENT(K107)),'CM choke'!D111)) -> 52.041 | E107: =IF(IF(CMdata=1,IMABS(L107),'CM choke'!E111)=0, E106, IF(CMdata=1,IMABS(L107),'CM choke'!E111)) -> 472.76 | F107: =IF(IF(CMdata=1,DEGREES(IMARGUMENT(L107)),'CM choke'!F111)=0, F106, IF(CMdata=1,DEGREES(IMARGUMENT(L107)),'CM choke'!F111)) -> 59.3633 | G107: 60.50602692 | H107: 77.55851647 | I107: 240.91502 | J107: 406.7701694 | K107: =IF(CMdata=1,IMDIV(1,IMSUM(IMDIV(1,IMPRODUCT(B107,'Design the AEF circuit'!$G$13*0.001)),IMDIV(1,'Design the AEF circuit'!$H$13*1000),IMPRODUCT(B107,'Design the AEF circuit'!$I$13*0.000000000001))),COMPLEX(G107,H107,"j")) -> 60.5060269227894+77.558516471492j | L107: =IF(CMdata=1,IMDIV(1,IMSUM(IMDIV(1,IMPRODUCT(B107,'Design the AEF circuit'!$G$14*0.001)),IMDIV(1,'Design the AEF circuit'!$H$14*1000),IMPRODUCT(B107,'Design the AEF circuit'!$I$14*0.000000000001))),COMPLEX(I107,J107,"j")) -> 240.915019984707+406.770169439412j
A108: ='Frequency vector'!G108 -> 16145.10031 | B108: =COMPLEX(0,2*PI()*'Frequency vector'!G108,"j") -> 101442.657068761j | C108: =IF(IF(CMdata=1,IMABS(K108),'CM choke'!C112)=0, C107, IF(CMdata=1,IMABS(K108),'CM choke'!C112)) -> 99.771 | D108: =IF(IF(CMdata=1,DEGREES(IMARGUMENT(K108)),'CM choke'!D112)=0, D107, IF(CMdata=1,DEGREES(IMARGUMENT(K108)),'CM choke'!D112)) -> 51.6841 | E108: =IF(IF(CMdata=1,IMABS(L108),'CM choke'!E112)=0, E107, IF(CMdata=1,IMABS(L108),'CM choke'!E112)) -> 481.538 | F108: =IF(IF(CMdata=1,DEGREES(IMARGUMENT(L108)),'CM choke'!F112)=0, F107, IF(CMdata=1,DEGREES(IMARGUMENT(L108)),'CM choke'!F112)) -> 58.9303 | G108: 61.85769965 | H108: 78.28076031 | I108: 248.5123395 | J108: 412.456619 | K108: =IF(CMdata=1,IMDIV(1,IMSUM(IMDIV(1,IMPRODUCT(B108,'Design the AEF circuit'!$G$13*0.001)),IMDIV(1,'Design the AEF circuit'!$H$13*1000),IMPRODUCT(B108,'Design the AEF circuit'!$I$13*0.000000000001))),COMPLEX(G108,H108,"j")) -> 61.8576996492289+78.2807603125173j | L108: =IF(CMdata=1,IMDIV(1,IMSUM(IMDIV(1,IMPRODUCT(B108,'Design the AEF circuit'!$G$14*0.001)),IMDIV(1,'Design the AEF circuit'!$H$14*1000),IMPRODUCT(B108,'Design the AEF circuit'!$I$14*0.000000000001))),COMPLEX(I108,J108,"j")) -> 248.512339477691+412.456619017473j
A109: ='Frequency vector'!G109 -> 16578.52535 | B109: =COMPLEX(0,2*PI()*'Frequency vector'!G109,"j") -> 104165.946895347j | C109: =IF(IF(CMdata=1,IMABS(K109),'CM choke'!C113)=0, C108, IF(CMdata=1,IMABS(K109),'CM choke'!C113)) -> 101.268 | D109: =IF(IF(CMdata=1,DEGREES(IMARGUMENT(K109)),'CM choke'!D113)=0, D108, IF(CMdata=1,DEGREES(IMARGUMENT(K109)),'CM choke'!D113)) -> 51.1732 | E109: =IF(IF(CMdata=1,IMABS(L109),'CM choke'!E113)=0, E108, IF(CMdata=1,IMABS(L109),'CM choke'!E113)) -> 489.476 | F109: =IF(IF(CMdata=1,DEGREES(IMARGUMENT(L109)),'CM choke'!F113)=0, F108, IF(CMdata=1,DEGREES(IMARGUMENT(L109)),'CM choke'!F113)) -> 58.5113 | G109: 63.49182345 | H109: 78.89230748 | I109: 255.6681924 | J109: 417.3973286 | K109: =IF(CMdata=1,IMDIV(1,IMSUM(IMDIV(1,IMPRODUCT(B109,'Design the AEF circuit'!$G$13*0.001)),IMDIV(1,'Design the AEF circuit'!$H$13*1000),IMPRODUCT(B109,'Design the AEF circuit'!$I$13*0.000000000001))),COMPLEX(G109,H109,"j")) -> 63.4918234514826+78.8923074754805j | L109: =IF(CMdata=1,IMDIV(1,IMSUM(IMDIV(1,IMPRODUCT(B109,'Design the AEF circuit'!$G$14*0.001)),IMDIV(1,'Design the AEF circuit'!$H$14*1000),IMPRODUCT(B109,'Design the AEF circuit'!$I$14*0.000000000001))),COMPLEX(I109,J109,"j")) -> 255.668192414033+417.397328649503j
A110: ='Frequency vector'!G110 -> 17023.58595 | B110: =COMPLEX(0,2*PI()*'Frequency vector'!G110,"j") -> 106962.345093637j | C110: =IF(IF(CMdata=1,IMABS(K110),'CM choke'!C114)=0, C109, IF(CMdata=1,IMABS(K110),'CM choke'!C114)) -> 102.685 | D110: =IF(IF(CMdata=1,DEGREES(IMARGUMENT(K110)),'CM choke'!D114)=0, D109, IF(CMdata=1,DEGREES(IMARGUMENT(K110)),'CM choke'!D114)) -> 50.8359 | E110: =IF(IF(CMdata=1,IMABS(L110),'CM choke'!E114)=0, E109, IF(CMdata=1,IMABS(L110),'CM choke'!E114)) -> 498.803 | F110: =IF(IF(CMdata=1,DEGREES(IMARGUMENT(L110)),'CM choke'!F114)=0, F109, IF(CMdata=1,DEGREES(IMARGUMENT(L110)),'CM choke'!F114)) -> 58.1359 | G110: 64.85005654 | H110: 79.61582376 | I110: 263.3212402 | J110: 423.6346979 | K110: =IF(CMdata=1,IMDIV(1,IMSUM(IMDIV(1,IMPRODUCT(B110,'Design the AEF circuit'!$G$13*0.001)),IMDIV(1,'Design the AEF circuit'!$H$13*1000),IMPRODUCT(B110,'Design the AEF circuit'!$I$13*0.000000000001))),COMPLEX(G110,H110,"j")) -> 64.8500565356967+79.6158237558147j | L110: =IF(CMdata=1,IMDIV(1,IMSUM(IMDIV(1,IMPRODUCT(B110,'Design the AEF circuit'!$G$14*0.001)),IMDIV(1,'Design the AEF circuit'!$H$14*1000),IMPRODUCT(B110,'Design the AEF circuit'!$I$14*0.000000000001))),COMPLEX(I110,J110,"j")) -> 263.321240232138+423.634697884402j
A111: ='Frequency vector'!G111 -> 17480.59446 | B111: =COMPLEX(0,2*PI()*'Frequency vector'!G111,"j") -> 109833.814302333j | C111: =IF(IF(CMdata=1,IMABS(K111),'CM choke'!C115)=0, C110, IF(CMdata=1,IMABS(K111),'CM choke'!C115)) -> 104.12 | D111: =IF(IF(CMdata=1,DEGREES(IMARGUMENT(K111)),'CM choke'!D115)=0, D110, IF(CMdata=1,DEGREES(IMARGUMENT(K111)),'CM choke'!D115)) -> 50.4813 | E111: =IF(IF(CMdata=1,IMABS(L111),'CM choke'!E115)=0, E110, IF(CMdata=1,IMABS(L111),'CM choke'!E115)) -> 506.43 | F111: =IF(IF(CMdata=1,DEGREES(IMARGUMENT(L111)),'CM choke'!F115)=0, F110, IF(CMdata=1,DEGREES(IMARGUMENT(L111)),'CM choke'!F115)) -> 57.6493 | G111: 66.25468237 | H111: 80.31993192 | I111: 270.9907421 | J111: 427.8263229 | K111: =IF(CMdata=1,IMDIV(1,IMSUM(IMDIV(1,IMPRODUCT(B111,'Design the AEF circuit'!$G$13*0.001)),IMDIV(1,'Design the AEF circuit'!$H$13*1000),IMPRODUCT(B111,'Design the AEF circuit'!$I$13*0.000000000001))),COMPLEX(G111,H111,"j")) -> 66.254682367529+80.319931924634j | L111: =IF(CMdata=1,IMDIV(1,IMSUM(IMDIV(1,IMPRODUCT(B111,'Design the AEF circuit'!$G$14*0.001)),IMDIV(1,'Design the AEF circuit'!$H$14*1000),IMPRODUCT(B111,'Design the AEF circuit'!$I$14*0.000000000001))),COMPLEX(I111,J111,"j")) -> 270.990742129778+427.826322916148j
A112: ='Frequency vector'!G112 -> 17949.87165 | B112: =COMPLEX(0,2*PI()*'Frequency vector'!G112,"j") -> 112782.369848369j | C112: =IF(IF(CMdata=1,IMABS(K112),'CM choke'!C116)=0, C111, IF(CMdata=1,IMABS(K112),'CM choke'!C116)) -> 105.705 | D112: =IF(IF(CMdata=1,DEGREES(IMARGUMENT(K112)),'CM choke'!D116)=0, D111, IF(CMdata=1,DEGREES(IMARGUMENT(K112)),'CM choke'!D116)) -> 50.0118 | E112: =IF(IF(CMdata=1,IMABS(L112),'CM choke'!E116)=0, E111, IF(CMdata=1,IMABS(L112),'CM choke'!E116)) -> 514.729 | F112: =IF(IF(CMdata=1,DEGREES(IMARGUMENT(L112)),'CM choke'!F116)=0, F111, IF(CMdata=1,DEGREES(IMARGUMENT(L112)),'CM choke'!F116)) -> 57.3801 | G112: 67.92918619 | H112: 80.98871952 | I112: 277.4715409 | J112: 433.5383345 | K112: =IF(CMdata=1,IMDIV(1,IMSUM(IMDIV(1,IMPRODUCT(B112,'Design the AEF circuit'!$G$13*0.001)),IMDIV(1,'Design the AEF circuit'!$H$13*1000),IMPRODUCT(B112,'Design the AEF circuit'!$I$13*0.000000000001))),COMPLEX(G112,H112,"j")) -> 67.9291861888517+80.988719515253j | L112: =IF(CMdata=1,IMDIV(1,IMSUM(IMDIV(1,IMPRODUCT(B112,'Design the AEF circuit'!$G$14*0.001)),IMDIV(1,'Design the AEF circuit'!$H$14*1000),IMPRODUCT(B112,'Design the AEF circuit'!$I$14*0.000000000001))),COMPLEX(I112,J112,"j")) -> 277.471540888939+433.538334450044j
A113: ='Frequency vector'!G113 -> 18431.74688 | B113: =COMPLEX(0,2*PI()*'Frequency vector'!G113,"j") -> 115810.081161354j | C113: =IF(IF(CMdata=1,IMABS(K113),'CM choke'!C117)=0, C112, IF(CMdata=1,IMABS(K113),'CM choke'!C117)) -> 106.991 | D113: =IF(IF(CMdata=1,DEGREES(IMARGUMENT(K113)),'CM choke'!D117)=0, D112, IF(CMdata=1,DEGREES(IMARGUMENT(K113)),'CM choke'!D117)) -> 49.632 | E113: =IF(IF(CMdata=1,IMABS(L113),'CM choke'!E117)=0, E112, IF(CMdata=1,IMABS(L113),'CM choke'!E117)) -> 523.499 | F113: =IF(IF(CMdata=1,DEGREES(IMARGUMENT(L113)),'CM choke'!F117)=0, F112, IF(CMdata=1,DEGREES(IMARGUMENT(L113)),'CM choke'!F117)) -> 56.9059 | G113: 69.29747976 | H113: 81.51646079 | I113: 285.8386701 | J113: 438.5743468 | K113: =IF(CMdata=1,IMDIV(1,IMSUM(IMDIV(1,IMPRODUCT(B113,'Design the AEF circuit'!$G$13*0.001)),IMDIV(1,'Design the AEF circuit'!$H$13*1000),IMPRODUCT(B113,'Design the AEF circuit'!$I$13*0.000000000001))),COMPLEX(G113,H113,"j")) -> 69.2974797646025+81.5164607872208j | L113: =IF(CMdata=1,IMDIV(1,IMSUM(IMDIV(1,IMPRODUCT(B113,'Design the AEF circuit'!$G$14*0.001)),IMDIV(1,'Design the AEF circuit'!$H$14*1000),IMPRODUCT(B113,'Design the AEF circuit'!$I$14*0.000000000001))),COMPLEX(I113,J113,"j")) -> 285.838670063086+438.574346830234j
A114: ='Frequency vector'!G114 -> 18926.55833 | B114: =COMPLEX(0,2*PI()*'Frequency vector'!G114,"j") -> 118919.073225994j | C114: =IF(IF(CMdata=1,IMABS(K114),'CM choke'!C118)=0, C113, IF(CMdata=1,IMABS(K114),'CM choke'!C118)) -> 108.524 | D114: =IF(IF(CMdata=1,DEGREES(IMARGUMENT(K114)),'CM choke'!D118)=0, D113, IF(CMdata=1,DEGREES(IMARGUMENT(K114)),'CM choke'!D118)) -> 49.2105 | E114: =IF(IF(CMdata=1,IMABS(L114),'CM choke'!E118)=0, E113, IF(CMdata=1,IMABS(L114),'CM choke'!E118)) -> 532.05 | F114: =IF(IF(CMdata=1,DEGREES(IMARGUMENT(L114)),'CM choke'!F118)=0, F113, IF(CMdata=1,DEGREES(IMARGUMENT(L114)),'CM choke'!F118)) -> 56.537 | G114: 70.89676127 | H114: 82.16512531 | I114: 293.3715029 | J114: 443.8584952 | K114: =IF(CMdata=1,IMDIV(1,IMSUM(IMDIV(1,IMPRODUCT(B114,'Design the AEF circuit'!$G$13*0.001)),IMDIV(1,'Design the AEF circuit'!$H$13*1000),IMPRODUCT(B114,'Design the AEF circuit'!$I$13*0.000000000001))),COMPLEX(G114,H114,"j")) -> 70.8967612723543+82.1651253092868j | L114: =IF(CMdata=1,IMDIV(1,IMSUM(IMDIV(1,IMPRODUCT(B114,'Design the AEF circuit'!$G$14*0.001)),IMDIV(1,'Design the AEF circuit'!$H$14*1000),IMPRODUCT(B114,'Design the AEF circuit'!$I$14*0.000000000001))),COMPLEX(I114,J114,"j")) -> 293.371502916559+443.858495217202j
A115: ='Frequency vector'!G115 -> 19434.6533 | B115: =COMPLEX(0,2*PI()*'Frequency vector'!G115,"j") -> 122111.528073503j | C115: =IF(IF(CMdata=1,IMABS(K115),'CM choke'!C119)=0, C114, IF(CMdata=1,IMABS(K115),'CM choke'!C119)) -> 109.981 | D115: =IF(IF(CMdata=1,DEGREES(IMARGUMENT(K115)),'CM choke'!D119)=0, D114, IF(CMdata=1,DEGREES(IMARGUMENT(K115)),'CM choke'!D119)) -> 48.9012 | E115: =IF(IF(CMdata=1,IMABS(L115),'CM choke'!E119)=0, E114, IF(CMdata=1,IMABS(L115),'CM choke'!E119)) -> 540.524 | F115: =IF(IF(CMdata=1,DEGREES(IMARGUMENT(L115)),'CM choke'!F119)=0, F114, IF(CMdata=1,DEGREES(IMARGUMENT(L115)),'CM choke'!F119)) -> 56.2227 | G115: 72.29705111 | H115: 82.87916965 | I115: 300.5131523 | J115: 449.2861448 | K115: =IF(CMdata=1,IMDIV(1,IMSUM(IMDIV(1,IMPRODUCT(B115,'Design the AEF circuit'!$G$13*0.001)),IMDIV(1,'Design the AEF circuit'!$H$13*1000),IMPRODUCT(B115,'Design the AEF circuit'!$I$13*0.000000000001))),COMPLEX(G115,H115,"j")) -> 72.297051106267+82.8791696528013j | L115: =IF(CMdata=1,IMDIV(1,IMSUM(IMDIV(1,IMPRODUCT(B115,'Design the AEF circuit'!$G$14*0.001)),IMDIV(1,'Design the AEF circuit'!$H$14*1000),IMPRODUCT(B115,'Design the AEF circuit'!$I$14*0.000000000001))),COMPLEX(I115,J115,"j")) -> 300.513152301596+449.286144756054j
A116: ='Frequency vector'!G116 -> 19956.38839 | B116: =COMPLEX(0,2*PI()*'Frequency vector'!G116,"j") -> 125389.686313049j | C116: =IF(IF(CMdata=1,IMABS(K116),'CM choke'!C120)=0, C115, IF(CMdata=1,IMABS(K116),'CM choke'!C120)) -> 111.366 | D116: =IF(IF(CMdata=1,DEGREES(IMARGUMENT(K116)),'CM choke'!D120)=0, D115, IF(CMdata=1,DEGREES(IMARGUMENT(K116)),'CM choke'!D120)) -> 48.4418 | E116: =IF(IF(CMdata=1,IMABS(L116),'CM choke'!E120)=0, E115, IF(CMdata=1,IMABS(L116),'CM choke'!E120)) -> 548.826 | F116: =IF(IF(CMdata=1,DEGREES(IMARGUMENT(L116)),'CM choke'!F120)=0, F115, IF(CMdata=1,DEGREES(IMARGUMENT(L116)),'CM choke'!F120)) -> 55.8408 | G116: 73.87803072 | H116: 83.33320186 | I116: 308.1626575 | J116: 454.1428793 | K116: =IF(CMdata=1,IMDIV(1,IMSUM(IMDIV(1,IMPRODUCT(B116,'Design the AEF circuit'!$G$13*0.001)),IMDIV(1,'Design the AEF circuit'!$H$13*1000),IMPRODUCT(B116,'Design the AEF circuit'!$I$13*0.000000000001))),COMPLEX(G116,H116,"j")) -> 73.8780307243383+83.3332018603253j | L116: =IF(CMdata=1,IMDIV(1,IMSUM(IMDIV(1,IMPRODUCT(B116,'Design the AEF circuit'!$G$14*0.001)),IMDIV(1,'Design the AEF circuit'!$H$14*1000),IMPRODUCT(B116,'Design the AEF circuit'!$I$14*0.000000000001))),COMPLEX(I116,J116,"j")) -> 308.162657520186+454.142879263891j
A117: ='Frequency vector'!G117 -> 20492.12977 | B117: =COMPLEX(0,2*PI()*'Frequency vector'!G117,"j") -> 128755.848704317j | C117: =IF(IF(CMdata=1,IMABS(K117),'CM choke'!C121)=0, C116, IF(CMdata=1,IMABS(K117),'CM choke'!C121)) -> 112.971 | D117: =IF(IF(CMdata=1,DEGREES(IMARGUMENT(K117)),'CM choke'!D121)=0, D116, IF(CMdata=1,DEGREES(IMARGUMENT(K117)),'CM choke'!D121)) -> 48.0452 | E117: =IF(IF(CMdata=1,IMABS(L117),'CM choke'!E121)=0, E116, IF(CMdata=1,IMABS(L117),'CM choke'!E121)) -> 557.622 | F117: =IF(IF(CMdata=1,DEGREES(IMARGUMENT(L117)),'CM choke'!F121)=0, F116, IF(CMdata=1,DEGREES(IMARGUMENT(L117)),'CM choke'!F121)) -> 55.3755 | G117: 75.52609999 | H117: 84.01342191 | I117: 316.8384064 | J117: 458.8635082 | K117: =IF(CMdata=1,IMDIV(1,IMSUM(IMDIV(1,IMPRODUCT(B117,'Design the AEF circuit'!$G$13*0.001)),IMDIV(1,'Design the AEF circuit'!$H$13*1000),IMPRODUCT(B117,'Design the AEF circuit'!$I$13*0.000000000001))),COMPLEX(G117,H117,"j")) -> 75.5260999900712+84.0134219115599j | L117: =IF(CMdata=1,IMDIV(1,IMSUM(IMDIV(1,IMPRODUCT(B117,'Design the AEF circuit'!$G$14*0.001)),IMDIV(1,'Design the AEF circuit'!$H$14*1000),IMPRODUCT(B117,'Design the AEF circuit'!$I$14*0.000000000001))),COMPLEX(I117,J117,"j")) -> 316.838406400779+458.863508151841j
A118: ='Frequency vector'!G118 -> 21042.25346 | B118: =COMPLEX(0,2*PI()*'Frequency vector'!G118,"j") -> 132212.377772284j | C118: =IF(IF(CMdata=1,IMABS(K118),'CM choke'!C122)=0, C117, IF(CMdata=1,IMABS(K118),'CM choke'!C122)) -> 114.415 | D118: =IF(IF(CMdata=1,DEGREES(IMARGUMENT(K118)),'CM choke'!D122)=0, D117, IF(CMdata=1,DEGREES(IMARGUMENT(K118)),'CM choke'!D122)) -> 47.6729 | E118: =IF(IF(CMdata=1,IMABS(L118),'CM choke'!E122)=0, E117, IF(CMdata=1,IMABS(L118),'CM choke'!E122)) -> 566.098 | F118: =IF(IF(CMdata=1,DEGREES(IMARGUMENT(L118)),'CM choke'!F122)=0, F117, IF(CMdata=1,DEGREES(IMARGUMENT(L118)),'CM choke'!F122)) -> 54.9518 | G118: 77.04274436 | H118: 84.58846119 | I118: 325.0904627 | J118: 463.4470161 | K118: =IF(CMdata=1,IMDIV(1,IMSUM(IMDIV(1,IMPRODUCT(B118,'Design the AEF circuit'!$G$13*0.001)),IMDIV(1,'Design the AEF circuit'!$H$13*1000),IMPRODUCT(B118,'Design the AEF circuit'!$I$13*0.000000000001))),COMPLEX(G118,H118,"j")) -> 77.0427443574568+84.5884611922427j | L118: =IF(CMdata=1,IMDIV(1,IMSUM(IMDIV(1,IMPRODUCT(B118,'Design the AEF circuit'!$G$14*0.001)),IMDIV(1,'Design the AEF circuit'!$H$14*1000),IMPRODUCT(B118,'Design the AEF circuit'!$I$14*0.000000000001))),COMPLEX(I118,J118,"j")) -> 325.090462652152+463.447016061825j
A119: ='Frequency vector'!G119 -> 21607.14555 | B119: =COMPLEX(0,2*PI()*'Frequency vector'!G119,"j") -> 135761.699465346j | C119: =IF(IF(CMdata=1,IMABS(K119),'CM choke'!C123)=0, C118, IF(CMdata=1,IMABS(K119),'CM choke'!C123)) -> 115.775 | D119: =IF(IF(CMdata=1,DEGREES(IMARGUMENT(K119)),'CM choke'!D123)=0, D118, IF(CMdata=1,DEGREES(IMARGUMENT(K119)),'CM choke'!D123)) -> 47.2931 | E119: =IF(IF(CMdata=1,IMABS(L119),'CM choke'!E123)=0, E118, IF(CMdata=1,IMABS(L119),'CM choke'!E123)) -> 574.669 | F119: =IF(IF(CMdata=1,DEGREES(IMARGUMENT(L119)),'CM choke'!F123)=0, F118, IF(CMdata=1,DEGREES(IMARGUMENT(L119)),'CM choke'!F123)) -> 54.5991 | G119: 78.52418177 | H119: 85.07528138 | I119: 332.90229 | J119: 468.4234461 | K119: =IF(CMdata=1,IMDIV(1,IMSUM(IMDIV(1,IMPRODUCT(B119,'Design the AEF circuit'!$G$13*0.001)),IMDIV(1,'Design the AEF circuit'!$H$13*1000),IMPRODUCT(B119,'Design the AEF circuit'!$I$13*0.000000000001))),COMPLEX(G119,H119,"j")) -> 78.5241817703908+85.075281382377j | L119: =IF(CMdata=1,IMDIV(1,IMSUM(IMDIV(1,IMPRODUCT(B119,'Design the AEF circuit'!$G$14*0.001)),IMDIV(1,'Design the AEF circuit'!$H$14*1000),IMPRODUCT(B119,'Design the AEF circuit'!$I$14*0.000000000001))),COMPLEX(I119,J119,"j")) -> 332.90229004835+468.423446084378j
A120: ='Frequency vector'!G120 -> 22187.20252 | B120: =COMPLEX(0,2*PI()*'Frequency vector'!G120,"j") -> 139406.304857961j | C120: =IF(IF(CMdata=1,IMABS(K120),'CM choke'!C124)=0, C119, IF(CMdata=1,IMABS(K120),'CM choke'!C124)) -> 117.435 | D120: =IF(IF(CMdata=1,DEGREES(IMARGUMENT(K120)),'CM choke'!D124)=0, D119, IF(CMdata=1,DEGREES(IMARGUMENT(K120)),'CM choke'!D124)) -> 46.8183 | E120: =IF(IF(CMdata=1,IMABS(L120),'CM choke'!E124)=0, E119, IF(CMdata=1,IMABS(L120),'CM choke'!E124)) -> 583.788 | F120: =IF(IF(CMdata=1,DEGREES(IMARGUMENT(L120)),'CM choke'!F124)=0, F119, IF(CMdata=1,DEGREES(IMARGUMENT(L120)),'CM choke'!F124)) -> 54.1731 | G120: 80.362443 | H120: 85.63210251 | I120: 341.7135337 | J120: 473.3289446 | K120: =IF(CMdata=1,IMDIV(1,IMSUM(IMDIV(1,IMPRODUCT(B120,'Design the AEF circuit'!$G$13*0.001)),IMDIV(1,'Design the AEF circuit'!$H$13*1000),IMPRODUCT(B120,'Design the AEF circuit'!$I$13*0.000000000001))),COMPLEX(G120,H120,"j")) -> 80.3624429971643+85.6321025114269j | L120: =IF(CMdata=1,IMDIV(1,IMSUM(IMDIV(1,IMPRODUCT(B120,'Design the AEF circuit'!$G$14*0.001)),IMDIV(1,'Design the AEF circuit'!$H$14*1000),IMPRODUCT(B120,'Design the AEF circuit'!$I$14*0.000000000001))),COMPLEX(I120,J120,"j")) -> 341.713533713662+473.328944626168j
A121: ='Frequency vector'!G121 -> 22782.83146 | B121: =COMPLEX(0,2*PI()*'Frequency vector'!G121,"j") -> 143148.751898995j | C121: =IF(IF(CMdata=1,IMABS(K121),'CM choke'!C125)=0, C120, IF(CMdata=1,IMABS(K121),'CM choke'!C125)) -> 118.823 | D121: =IF(IF(CMdata=1,DEGREES(IMARGUMENT(K121)),'CM choke'!D125)=0, D120, IF(CMdata=1,DEGREES(IMARGUMENT(K121)),'CM choke'!D125)) -> 46.5487 | E121: =IF(IF(CMdata=1,IMABS(L121),'CM choke'!E125)=0, E120, IF(CMdata=1,IMABS(L121),'CM choke'!E125)) -> 592.647 | F121: =IF(IF(CMdata=1,DEGREES(IMARGUMENT(L121)),'CM choke'!F125)=0, F120, IF(CMdata=1,DEGREES(IMARGUMENT(L121)),'CM choke'!F125)) -> 53.7861 | G121: 81.71906585 | H121: 86.26064923 | I121: 350.1366888 | J121: 478.1576788 | K121: =IF(CMdata=1,IMDIV(1,IMSUM(IMDIV(1,IMPRODUCT(B121,'Design the AEF circuit'!$G$13*0.001)),IMDIV(1,'Design the AEF circuit'!$H$13*1000),IMPRODUCT(B121,'Design the AEF circuit'!$I$13*0.000000000001))),COMPLEX(G121,H121,"j")) -> 81.7190658506345+86.2606492295279j | L121: =IF(CMdata=1,IMDIV(1,IMSUM(IMDIV(1,IMPRODUCT(B121,'Design the AEF circuit'!$G$14*0.001)),IMDIV(1,'Design the AEF circuit'!$H$14*1000),IMPRODUCT(B121,'Design the AEF circuit'!$I$14*0.000000000001))),COMPLEX(I121,J121,"j")) -> 350.136688819626+478.157678754016j
A122: ='Frequency vector'!G122 -> 23394.45043 | B122: =COMPLEX(0,2*PI()*'Frequency vector'!G122,"j") -> 146991.667207008j | C122: =IF(IF(CMdata=1,IMABS(K122),'CM choke'!C126)=0, C121, IF(CMdata=1,IMABS(K122),'CM choke'!C126)) -> 120.147 | D122: =IF(IF(CMdata=1,DEGREES(IMARGUMENT(K122)),'CM choke'!D126)=0, D121, IF(CMdata=1,DEGREES(IMARGUMENT(K122)),'CM choke'!D126)) -> 46.1269 | E122: =IF(IF(CMdata=1,IMABS(L122),'CM choke'!E126)=0, E121, IF(CMdata=1,IMABS(L122),'CM choke'!E126)) -> 600.771 | F122: =IF(IF(CMdata=1,DEGREES(IMARGUMENT(L122)),'CM choke'!F126)=0, F121, IF(CMdata=1,DEGREES(IMARGUMENT(L122)),'CM choke'!F126)) -> 53.3807 | G122: 83.26949526 | H122: 86.61115845 | I122: 358.3570593 | J122: 482.1887727 | K122: =IF(CMdata=1,IMDIV(1,IMSUM(IMDIV(1,IMPRODUCT(B122,'Design the AEF circuit'!$G$13*0.001)),IMDIV(1,'Design the AEF circuit'!$H$13*1000),IMPRODUCT(B122,'Design the AEF circuit'!$I$13*0.000000000001))),COMPLEX(G122,H122,"j")) -> 83.269495258776+86.6111584517185j | L122: =IF(CMdata=1,IMDIV(1,IMSUM(IMDIV(1,IMPRODUCT(B122,'Design the AEF circuit'!$G$14*0.001)),IMDIV(1,'Design the AEF circuit'!$H$14*1000),IMPRODUCT(B122,'Design the AEF circuit'!$I$14*0.000000000001))),COMPLEX(I122,J122,"j")) -> 358.357059272539+482.188772692333j
A123: ='Frequency vector'!G123 -> 24022.48868 | B123: =COMPLEX(0,2*PI()*'Frequency vector'!G123,"j") -> 150937.74791373j | C123: =IF(IF(CMdata=1,IMABS(K123),'CM choke'!C127)=0, C122, IF(CMdata=1,IMABS(K123),'CM choke'!C127)) -> 121.755 | D123: =IF(IF(CMdata=1,DEGREES(IMARGUMENT(K123)),'CM choke'!D127)=0, D122, IF(CMdata=1,DEGREES(IMARGUMENT(K123)),'CM choke'!D127)) -> 45.6956 | E123: =IF(IF(CMdata=1,IMABS(L123),'CM choke'!E127)=0, E122, IF(CMdata=1,IMABS(L123),'CM choke'!E127)) -> 610.025 | F123: =IF(IF(CMdata=1,DEGREES(IMARGUMENT(L123)),'CM choke'!F127)=0, F122, IF(CMdata=1,DEGREES(IMARGUMENT(L123)),'CM choke'!F127)) -> 52.9422 | G123: 85.04224463 | H123: 87.13263827 | I123: 367.6134976 | J123: 486.8170262 | K123: =IF(CMdata=1,IMDIV(1,IMSUM(IMDIV(1,IMPRODUCT(B123,'Design the AEF circuit'!$G$13*0.001)),IMDIV(1,'Design the AEF circuit'!$H$13*1000),IMPRODUCT(B123,'Design the AEF circuit'!$I$13*0.000000000001))),COMPLEX(G123,H123,"j")) -> 85.0422446346741+87.132638273475j | L123: =IF(CMdata=1,IMDIV(1,IMSUM(IMDIV(1,IMPRODUCT(B123,'Design the AEF circuit'!$G$14*0.001)),IMDIV(1,'Design the AEF circuit'!$H$14*1000),IMPRODUCT(B123,'Design the AEF circuit'!$I$14*0.000000000001))),COMPLEX(I123,J123,"j")) -> 367.613497636893+486.81702618147j
A124: ='Frequency vector'!G124 -> 24667.387 | B124: =COMPLEX(0,2*PI()*'Frequency vector'!G124,"j") -> 154989.763557038j | C124: =IF(IF(CMdata=1,IMABS(K124),'CM choke'!C128)=0, C123, IF(CMdata=1,IMABS(K124),'CM choke'!C128)) -> 123.165 | D124: =IF(IF(CMdata=1,DEGREES(IMARGUMENT(K124)),'CM choke'!D128)=0, D123, IF(CMdata=1,DEGREES(IMARGUMENT(K124)),'CM choke'!D128)) -> 45.2932 | E124: =IF(IF(CMdata=1,IMABS(L124),'CM choke'!E128)=0, E123, IF(CMdata=1,IMABS(L124),'CM choke'!E128)) -> 619.238 | F124: =IF(IF(CMdata=1,DEGREES(IMARGUMENT(L124)),'CM choke'!F128)=0, F123, IF(CMdata=1,DEGREES(IMARGUMENT(L124)),'CM choke'!F128)) -> 52.5662 | G124: 86.64399808 | H124: 87.5353347 | I124: 376.4003358 | J124: 491.7097598 | K124: =IF(CMdata=1,IMDIV(1,IMSUM(IMDIV(1,IMPRODUCT(B124,'Design the AEF circuit'!$G$13*0.001)),IMDIV(1,'Design the AEF circuit'!$H$13*1000),IMPRODUCT(B124,'Design the AEF circuit'!$I$13*0.000000000001))),COMPLEX(G124,H124,"j")) -> 86.6439980844997+87.5353346993842j | L124: =IF(CMdata=1,IMDIV(1,IMSUM(IMDIV(1,IMPRODUCT(B124,'Design the AEF circuit'!$G$14*0.001)),IMDIV(1,'Design the AEF circuit'!$H$14*1000),IMPRODUCT(B124,'Design the AEF circuit'!$I$14*0.000000000001))),COMPLEX(I124,J124,"j")) -> 376.400335771155+491.709759792667j
A125: ='Frequency vector'!G125 -> 25329.59801 | B125: =COMPLEX(0,2*PI()*'Frequency vector'!G125,"j") -> 159150.558024731j | C125: =IF(IF(CMdata=1,IMABS(K125),'CM choke'!C129)=0, C124, IF(CMdata=1,IMABS(K125),'CM choke'!C129)) -> 124.494 | D125: =IF(IF(CMdata=1,DEGREES(IMARGUMENT(K125)),'CM choke'!D129)=0, D124, IF(CMdata=1,DEGREES(IMARGUMENT(K125)),'CM choke'!D129)) -> 44.9921 | E125: =IF(IF(CMdata=1,IMABS(L125),'CM choke'!E129)=0, E124, IF(CMdata=1,IMABS(L125),'CM choke'!E129)) -> 628.105 | F125: =IF(IF(CMdata=1,DEGREES(IMARGUMENT(L125)),'CM choke'!F129)=0, F124, IF(CMdata=1,DEGREES(IMARGUMENT(L125)),'CM choke'!F129)) -> 52.1588 | G125: 88.04268852 | H125: 88.01841304 | I125: 385.3267628 | J125: 496.0233632 | K125: =IF(CMdata=1,IMDIV(1,IMSUM(IMDIV(1,IMPRODUCT(B125,'Design the AEF circuit'!$G$13*0.001)),IMDIV(1,'Design the AEF circuit'!$H$13*1000),IMPRODUCT(B125,'Design the AEF circuit'!$I$13*0.000000000001))),COMPLEX(G125,H125,"j")) -> 88.0426885216653+88.0184130388468j | L125: =IF(CMdata=1,IMDIV(1,IMSUM(IMDIV(1,IMPRODUCT(B125,'Design the AEF circuit'!$G$14*0.001)),IMDIV(1,'Design the AEF circuit'!$H$14*1000),IMPRODUCT(B125,'Design the AEF circuit'!$I$14*0.000000000001))),COMPLEX(I125,J125,"j")) -> 385.3267628476+496.023363218296j
A126: ='Frequency vector'!G126 -> 26009.58647 | B126: =COMPLEX(0,2*PI()*'Frequency vector'!G126,"j") -> 163423.051550512j | C126: =IF(IF(CMdata=1,IMABS(K126),'CM choke'!C130)=0, C125, IF(CMdata=1,IMABS(K126),'CM choke'!C130)) -> 125.971 | D126: =IF(IF(CMdata=1,DEGREES(IMARGUMENT(K126)),'CM choke'!D130)=0, D125, IF(CMdata=1,DEGREES(IMARGUMENT(K126)),'CM choke'!D130)) -> 44.578 | E126: =IF(IF(CMdata=1,IMABS(L126),'CM choke'!E130)=0, E125, IF(CMdata=1,IMABS(L126),'CM choke'!E130)) -> 636.959 | F126: =IF(IF(CMdata=1,DEGREES(IMARGUMENT(L126)),'CM choke'!F130)=0, F125, IF(CMdata=1,DEGREES(IMARGUMENT(L126)),'CM choke'!F130)) -> 51.7352 | G126: 89.72858914 | H126: 88.41647545 | I126: 394.4666595 | J126: 500.1128095 | K126: =IF(CMdata=1,IMDIV(1,IMSUM(IMDIV(1,IMPRODUCT(B126,'Design the AEF circuit'!$G$13*0.001)),IMDIV(1,'Design the AEF circuit'!$H$13*1000),IMPRODUCT(B126,'Design the AEF circuit'!$I$13*0.000000000001))),COMPLEX(G126,H126,"j")) -> 89.7285891426697+88.4164754526326j | L126: =IF(CMdata=1,IMDIV(1,IMSUM(IMDIV(1,IMPRODUCT(B126,'Design the AEF circuit'!$G$14*0.001)),IMDIV(1,'Design the AEF circuit'!$H$14*1000),IMPRODUCT(B126,'Design the AEF circuit'!$I$14*0.000000000001))),COMPLEX(I126,J126,"j")) -> 394.466659521405+500.112809481045j
A127: ='Frequency vector'!G127 -> 26707.82964 | B127: =COMPLEX(0,2*PI()*'Frequency vector'!G127,"j") -> 167810.242763528j | C127: =IF(IF(CMdata=1,IMABS(K127),'CM choke'!C131)=0, C126, IF(CMdata=1,IMABS(K127),'CM choke'!C131)) -> 127.563 | D127: =IF(IF(CMdata=1,DEGREES(IMARGUMENT(K127)),'CM choke'!D131)=0, D126, IF(CMdata=1,DEGREES(IMARGUMENT(K127)),'CM choke'!D131)) -> 44.2192 | E127: =IF(IF(CMdata=1,IMABS(L127),'CM choke'!E131)=0, E126, IF(CMdata=1,IMABS(L127),'CM choke'!E131)) -> 645.617 | F127: =IF(IF(CMdata=1,DEGREES(IMARGUMENT(L127)),'CM choke'!F131)=0, F126, IF(CMdata=1,DEGREES(IMARGUMENT(L127)),'CM choke'!F131)) -> 51.3498 | G127: 91.42146115 | H127: 88.96311264 | I127: 403.2291944 | J127: 504.209805 | K127: =IF(CMdata=1,IMDIV(1,IMSUM(IMDIV(1,IMPRODUCT(B127,'Design the AEF circuit'!$G$13*0.001)),IMDIV(1,'Design the AEF circuit'!$H$13*1000),IMPRODUCT(B127,'Design the AEF circuit'!$I$13*0.000000000001))),COMPLEX(G127,H127,"j")) -> 91.4214611521412+88.9631126355612j | L127: =IF(CMdata=1,IMDIV(1,IMSUM(IMDIV(1,IMPRODUCT(B127,'Design the AEF circuit'!$G$14*0.001)),IMDIV(1,'Design the AEF circuit'!$H$14*1000),IMPRODUCT(B127,'Design the AEF circuit'!$I$14*0.000000000001))),COMPLEX(I127,J127,"j")) -> 403.229194386423+504.209805025127j
A128: ='Frequency vector'!G128 -> 27424.81757 | B128: =COMPLEX(0,2*PI()*'Frequency vector'!G128,"j") -> 172315.210792955j | C128: =IF(IF(CMdata=1,IMABS(K128),'CM choke'!C132)=0, C127, IF(CMdata=1,IMABS(K128),'CM choke'!C132)) -> 128.877 | D128: =IF(IF(CMdata=1,DEGREES(IMARGUMENT(K128)),'CM choke'!D132)=0, D127, IF(CMdata=1,DEGREES(IMARGUMENT(K128)),'CM choke'!D132)) -> 43.9403 | E128: =IF(IF(CMdata=1,IMABS(L128),'CM choke'!E132)=0, E127, IF(CMdata=1,IMABS(L128),'CM choke'!E132)) -> 654.629 | F128: =IF(IF(CMdata=1,DEGREES(IMARGUMENT(L128)),'CM choke'!F132)=0, F127, IF(CMdata=1,DEGREES(IMARGUMENT(L128)),'CM choke'!F132)) -> 50.9401 | G128: 92.79958722 | H128: 89.42884177 | I128: 412.5030188 | J128: 508.3113093 | K128: =IF(CMdata=1,IMDIV(1,IMSUM(IMDIV(1,IMPRODUCT(B128,'Design the AEF circuit'!$G$13*0.001)),IMDIV(1,'Design the AEF circuit'!$H$13*1000),IMPRODUCT(B128,'Design the AEF circuit'!$I$13*0.000000000001))),COMPLEX(G128,H128,"j")) -> 92.799587222675+89.4288417698739j | L128: =IF(CMdata=1,IMDIV(1,IMSUM(IMDIV(1,IMPRODUCT(B128,'Design the AEF circuit'!$G$14*0.001)),IMDIV(1,'Design the AEF circuit'!$H$14*1000),IMPRODUCT(B128,'Design the AEF circuit'!$I$14*0.000000000001))),COMPLEX(I128,J128,"j")) -> 412.503018790238+508.311309268189j
A129: ='Frequency vector'!G129 -> 28161.05348 | B129: =COMPLEX(0,2*PI()*'Frequency vector'!G129,"j") -> 176941.11742906j | C129: =IF(IF(CMdata=1,IMABS(K129),'CM choke'!C133)=0, C128, IF(CMdata=1,IMABS(K129),'CM choke'!C133)) -> 130.316 | D129: =IF(IF(CMdata=1,DEGREES(IMARGUMENT(K129)),'CM choke'!D133)=0, D128, IF(CMdata=1,DEGREES(IMARGUMENT(K129)),'CM choke'!D133)) -> 43.553 | E129: =IF(IF(CMdata=1,IMABS(L129),'CM choke'!E133)=0, E128, IF(CMdata=1,IMABS(L129),'CM choke'!E133)) -> 663.458 | F129: =IF(IF(CMdata=1,DEGREES(IMARGUMENT(L129)),'CM choke'!F133)=0, F128, IF(CMdata=1,DEGREES(IMARGUMENT(L129)),'CM choke'!F133)) -> 50.5205 | G129: 94.44486806 | H129: 89.79101711 | I129: 421.8279884 | J129: 512.0914625 | K129: =IF(CMdata=1,IMDIV(1,IMSUM(IMDIV(1,IMPRODUCT(B129,'Design the AEF circuit'!$G$13*0.001)),IMDIV(1,'Design the AEF circuit'!$H$13*1000),IMPRODUCT(B129,'Design the AEF circuit'!$I$13*0.000000000001))),COMPLEX(G129,H129,"j")) -> 94.4448680604925+89.7910171065913j | L129: =IF(CMdata=1,IMDIV(1,IMSUM(IMDIV(1,IMPRODUCT(B129,'Design the AEF circuit'!$G$14*0.001)),IMDIV(1,'Design the AEF circuit'!$H$14*1000),IMPRODUCT(B129,'Design the AEF circuit'!$I$14*0.000000000001))),COMPLEX(I129,J129,"j")) -> 421.827988390319+512.091462508971j
A130: ='Frequency vector'!G130 -> 28917.05408 | B130: =COMPLEX(0,2*PI()*'Frequency vector'!G130,"j") -> 181691.209342294j | C130: =IF(IF(CMdata=1,IMABS(K130),'CM choke'!C134)=0, C129, IF(CMdata=1,IMABS(K130),'CM choke'!C134)) -> 131.814 | D130: =IF(IF(CMdata=1,DEGREES(IMARGUMENT(K130)),'CM choke'!D134)=0, D129, IF(CMdata=1,DEGREES(IMARGUMENT(K130)),'CM choke'!D134)) -> 43.1333 | E130: =IF(IF(CMdata=1,IMABS(L130),'CM choke'!E134)=0, E129, IF(CMdata=1,IMABS(L130),'CM choke'!E134)) -> 672.543 | F130: =IF(IF(CMdata=1,DEGREES(IMARGUMENT(L130)),'CM choke'!F134)=0, F129, IF(CMdata=1,DEGREES(IMARGUMENT(L130)),'CM choke'!F134)) -> 50.1314 | G130: 96.19324875 | H130: 90.12097142 | I130: 431.1196361 | J130: 516.1878982 | K130: =IF(CMdata=1,IMDIV(1,IMSUM(IMDIV(1,IMPRODUCT(B130,'Design the AEF circuit'!$G$13*0.001)),IMDIV(1,'Design the AEF circuit'!$H$13*1000),IMPRODUCT(B130,'Design the AEF circuit'!$I$13*0.000000000001))),COMPLEX(G130,H130,"j")) -> 96.1932487542361+90.1209714223368j | L130: =IF(CMdata=1,IMDIV(1,IMSUM(IMDIV(1,IMPRODUCT(B130,'Design the AEF circuit'!$G$14*0.001)),IMDIV(1,'Design the AEF circuit'!$H$14*1000),IMPRODUCT(B130,'Design the AEF circuit'!$I$14*0.000000000001))),COMPLEX(I130,J130,"j")) -> 431.119636118751+516.187898155154j
A131: ='Frequency vector'!G131 -> 29693.34999 | B131: =COMPLEX(0,2*PI()*'Frequency vector'!G131,"j") -> 186568.820361952j | C131: =IF(IF(CMdata=1,IMABS(K131),'CM choke'!C135)=0, C130, IF(CMdata=1,IMABS(K131),'CM choke'!C135)) -> 133.242 | D131: =IF(IF(CMdata=1,DEGREES(IMARGUMENT(K131)),'CM choke'!D135)=0, D130, IF(CMdata=1,DEGREES(IMARGUMENT(K131)),'CM choke'!D135)) -> 42.7977 | E131: =IF(IF(CMdata=1,IMABS(L131),'CM choke'!E135)=0, E130, IF(CMdata=1,IMABS(L131),'CM choke'!E135)) -> 681.778 | F131: =IF(IF(CMdata=1,DEGREES(IMARGUMENT(L131)),'CM choke'!F135)=0, F130, IF(CMdata=1,DEGREES(IMARGUMENT(L131)),'CM choke'!F135)) -> 49.7606 | G131: =C131*COS(RADIANS(D131)) -> 97.76726864 | H131: =C131*SIN(RADIANS(D131)) -> 90.52619371 | I131: =E131*COS(RADIANS(F131)) -> 440.4168388 | J131: =E131*SIN(RADIANS(F131)) -> 520.436595 | K131: =IF(CMdata=1,IMDIV(1,IMSUM(IMDIV(1,IMPRODUCT(B131,'Design the AEF circuit'!$G$13*0.001)),IMDIV(1,'Design the AEF circuit'!$H$13*1000),IMPRODUCT(B131,'Design the AEF circuit'!$I$13*0.000000000001))),COMPLEX(G131,H131,"j")) -> 97.7672686391844+90.5261937056538j | L131: =IF(CMdata=1,IMDIV(1,IMSUM(IMDIV(1,IMPRODUCT(B131,'Design the AEF circuit'!$G$14*0.001)),IMDIV(1,'Design the AEF circuit'!$H$14*1000),IMPRODUCT(B131,'Design the AEF circuit'!$I$14*0.000000000001))),COMPLEX(I131,J131,"j")) -> 440.416838810025+520.436594962907j
A132: ='Frequency vector'!G132 -> 30490.48603 | B132: =COMPLEX(0,2*PI()*'Frequency vector'!G132,"j") -> 191577.373816004j | C132: =IF(IF(CMdata=1,IMABS(K132),'CM choke'!C136)=0, C131, IF(CMdata=1,IMABS(K132),'CM choke'!C136)) -> 134.739 | D132: =IF(IF(CMdata=1,DEGREES(IMARGUMENT(K132)),'CM choke'!D136)=0, D131, IF(CMdata=1,DEGREES(IMARGUMENT(K132)),'CM choke'!D136)) -> 42.4919 | E132: =IF(IF(CMdata=1,IMABS(L132),'CM choke'!E136)=0, E131, IF(CMdata=1,IMABS(L132),'CM choke'!E136)) -> 690.749 | F132: =IF(IF(CMdata=1,DEGREES(IMARGUMENT(L132)),'CM choke'!F136)=0, F131, IF(CMdata=1,DEGREES(IMARGUMENT(L132)),'CM choke'!F136)) -> 49.3807 | G132: 99.35287892 | H132: 91.01430421 | I132: 449.6982799 | J132: 524.3144458 | K132: =IF(CMdata=1,IMDIV(1,IMSUM(IMDIV(1,IMPRODUCT(B132,'Design the AEF circuit'!$G$13*0.001)),IMDIV(1,'Design the AEF circuit'!$H$13*1000),IMPRODUCT(B132,'Design the AEF circuit'!$I$13*0.000000000001))),COMPLEX(G132,H132,"j")) -> 99.3528789213739+91.0143042111229j | L132: =IF(CMdata=1,IMDIV(1,IMSUM(IMDIV(1,IMPRODUCT(B132,'Design the AEF circuit'!$G$14*0.001)),IMDIV(1,'Design the AEF circuit'!$H$14*1000),IMPRODUCT(B132,'Design the AEF circuit'!$I$14*0.000000000001))),COMPLEX(I132,J132,"j")) -> 449.698279870299+524.314445807756j
A133: ='Frequency vector'!G133 -> 31309.02167 | B133: =COMPLEX(0,2*PI()*'Frequency vector'!G133,"j") -> 196720.384933738j | C133: =IF(IF(CMdata=1,IMABS(K133),'CM choke'!C137)=0, C132, IF(CMdata=1,IMABS(K133),'CM choke'!C137)) -> 136.191 | D133: =IF(IF(CMdata=1,DEGREES(IMARGUMENT(K133)),'CM choke'!D137)=0, D132, IF(CMdata=1,DEGREES(IMARGUMENT(K133)),'CM choke'!D137)) -> 42.1271 | E133: =IF(IF(CMdata=1,IMABS(L133),'CM choke'!E137)=0, E132, IF(CMdata=1,IMABS(L133),'CM choke'!E137)) -> 700.099 | F133: =IF(IF(CMdata=1,DEGREES(IMARGUMENT(L133)),'CM choke'!F137)=0, F132, IF(CMdata=1,DEGREES(IMARGUMENT(L133)),'CM choke'!F137)) -> 48.9298 | G133: 101.0072341 | H133: 91.35385671 | I133: 459.9532971 | J133: 527.8082742 | K133: =IF(CMdata=1,IMDIV(1,IMSUM(IMDIV(1,IMPRODUCT(B133,'Design the AEF circuit'!$G$13*0.001)),IMDIV(1,'Design the AEF circuit'!$H$13*1000),IMPRODUCT(B133,'Design the AEF circuit'!$I$13*0.000000000001))),COMPLEX(G133,H133,"j")) -> 101.007234124966+91.3538567079916j | L133: =IF(CMdata=1,IMDIV(1,IMSUM(IMDIV(1,IMPRODUCT(B133,'Design the AEF circuit'!$G$14*0.001)),IMDIV(1,'Design the AEF circuit'!$H$14*1000),IMPRODUCT(B133,'Design the AEF circuit'!$I$14*0.000000000001))),COMPLEX(I133,J133,"j")) -> 459.953297061438+527.808274208839j
A134: ='Frequency vector'!G134 -> 32149.5314 | B134: =COMPLEX(0,2*PI()*'Frequency vector'!G134,"j") -> 202001.463312915j | C134: =IF(IF(CMdata=1,IMABS(K134),'CM choke'!C138)=0, C133, IF(CMdata=1,IMABS(K134),'CM choke'!C138)) -> 137.581 | D134: =IF(IF(CMdata=1,DEGREES(IMARGUMENT(K134)),'CM choke'!D138)=0, D133, IF(CMdata=1,DEGREES(IMARGUMENT(K134)),'CM choke'!D138)) -> 41.7407 | E134: =IF(IF(CMdata=1,IMABS(L134),'CM choke'!E138)=0, E133, IF(CMdata=1,IMABS(L134),'CM choke'!E138)) -> 708.836 | F134: =IF(IF(CMdata=1,DEGREES(IMARGUMENT(L134)),'CM choke'!F138)=0, F133, IF(CMdata=1,DEGREES(IMARGUMENT(L134)),'CM choke'!F138)) -> 48.5619 | G134: 102.6581885 | H134: 91.59600367 | I134: 469.1151223 | J134: 531.3939 | K134: =IF(CMdata=1,IMDIV(1,IMSUM(IMDIV(1,IMPRODUCT(B134,'Design the AEF circuit'!$G$13*0.001)),IMDIV(1,'Design the AEF circuit'!$H$13*1000),IMPRODUCT(B134,'Design the AEF circuit'!$I$13*0.000000000001))),COMPLEX(G134,H134,"j")) -> 102.658188532798+91.5960036691801j | L134: =IF(CMdata=1,IMDIV(1,IMSUM(IMDIV(1,IMPRODUCT(B134,'Design the AEF circuit'!$G$14*0.001)),IMDIV(1,'Design the AEF circuit'!$H$14*1000),IMPRODUCT(B134,'Design the AEF circuit'!$I$14*0.000000000001))),COMPLEX(I134,J134,"j")) -> 469.115122298648+531.393899971316j
A135: ='Frequency vector'!G135 -> 33012.60512 | B135: =COMPLEX(0,2*PI()*'Frequency vector'!G135,"j") -> 207424.315453142j | C135: =IF(IF(CMdata=1,IMABS(K135),'CM choke'!C139)=0, C134, IF(CMdata=1,IMABS(K135),'CM choke'!C139)) -> 138.996 | D135: =IF(IF(CMdata=1,DEGREES(IMARGUMENT(K135)),'CM choke'!D139)=0, D134, IF(CMdata=1,DEGREES(IMARGUMENT(K135)),'CM choke'!D139)) -> 41.4144 | E135: =IF(IF(CMdata=1,IMABS(L135),'CM choke'!E139)=0, E134, IF(CMdata=1,IMABS(L135),'CM choke'!E139)) -> 718.186 | F135: =IF(IF(CMdata=1,DEGREES(IMARGUMENT(L135)),'CM choke'!F139)=0, F134, IF(CMdata=1,DEGREES(IMARGUMENT(L135)),'CM choke'!F139)) -> 48.2014 | G135: 104.239333 | H135: 91.94590514 | I135: 478.6812065 | J135: 535.4021229 | K135: =IF(CMdata=1,IMDIV(1,IMSUM(IMDIV(1,IMPRODUCT(B135,'Design the AEF circuit'!$G$13*0.001)),IMDIV(1,'Design the AEF circuit'!$H$13*1000),IMPRODUCT(B135,'Design the AEF circuit'!$I$13*0.000000000001))),COMPLEX(G135,H135,"j")) -> 104.239333000353+91.9459051379751j | L135: =IF(CMdata=1,IMDIV(1,IMSUM(IMDIV(1,IMPRODUCT(B135,'Design the AEF circuit'!$G$14*0.001)),IMDIV(1,'Design the AEF circuit'!$H$14*1000),IMPRODUCT(B135,'Design the AEF circuit'!$I$14*0.000000000001))),COMPLEX(I135,J135,"j")) -> 478.681206479661+535.402122856435j
A136: ='Frequency vector'!G136 -> 33898.84858 | B136: =COMPLEX(0,2*PI()*'Frequency vector'!G136,"j") -> 212992.747357258j | C136: =IF(IF(CMdata=1,IMABS(K136),'CM choke'!C140)=0, C135, IF(CMdata=1,IMABS(K136),'CM choke'!C140)) -> 140.413 | D136: =IF(IF(CMdata=1,DEGREES(IMARGUMENT(K136)),'CM choke'!D140)=0, D135, IF(CMdata=1,DEGREES(IMARGUMENT(K136)),'CM choke'!D140)) -> 41.0699 | E136: =IF(IF(CMdata=1,IMABS(L136),'CM choke'!E140)=0, E135, IF(CMdata=1,IMABS(L136),'CM choke'!E140)) -> 726.903 | F136: =IF(IF(CMdata=1,DEGREES(IMARGUMENT(L136)),'CM choke'!F140)=0, F135, IF(CMdata=1,DEGREES(IMARGUMENT(L136)),'CM choke'!F140)) -> 47.8327 | G136: 105.8585734 | H136: 92.24843094 | I136: 487.9683018 | J136: 538.7716658 | K136: =IF(CMdata=1,IMDIV(1,IMSUM(IMDIV(1,IMPRODUCT(B136,'Design the AEF circuit'!$G$13*0.001)),IMDIV(1,'Design the AEF circuit'!$H$13*1000),IMPRODUCT(B136,'Design the AEF circuit'!$I$13*0.000000000001))),COMPLEX(G136,H136,"j")) -> 105.858573378163+92.2484309424295j | L136: =IF(CMdata=1,IMDIV(1,IMSUM(IMDIV(1,IMPRODUCT(B136,'Design the AEF circuit'!$G$14*0.001)),IMDIV(1,'Design the AEF circuit'!$H$14*1000),IMPRODUCT(B136,'Design the AEF circuit'!$I$14*0.000000000001))),COMPLEX(I136,J136,"j")) -> 487.968301827799+538.771665754886j
A137: ='Frequency vector'!G137 -> 34808.88379 | B137: =COMPLEX(0,2*PI()*'Frequency vector'!G137,"j") -> 218710.66720257j | C137: =IF(IF(CMdata=1,IMABS(K137),'CM choke'!C141)=0, C136, IF(CMdata=1,IMABS(K137),'CM choke'!C141)) -> 141.942 | D137: =IF(IF(CMdata=1,DEGREES(IMARGUMENT(K137)),'CM choke'!D141)=0, D136, IF(CMdata=1,DEGREES(IMARGUMENT(K137)),'CM choke'!D141)) -> 40.7399 | E137: =IF(IF(CMdata=1,IMABS(L137),'CM choke'!E141)=0, E136, IF(CMdata=1,IMABS(L137),'CM choke'!E141)) -> 736.221 | F137: =IF(IF(CMdata=1,DEGREES(IMARGUMENT(L137)),'CM choke'!F141)=0, F136, IF(CMdata=1,DEGREES(IMARGUMENT(L137)),'CM choke'!F141)) -> 47.4317 | G137: 107.5466202 | H137: 92.63506809 | I137: 498.0303937 | J137: 542.2057615 | K137: =IF(CMdata=1,IMDIV(1,IMSUM(IMDIV(1,IMPRODUCT(B137,'Design the AEF circuit'!$G$13*0.001)),IMDIV(1,'Design the AEF circuit'!$H$13*1000),IMPRODUCT(B137,'Design the AEF circuit'!$I$13*0.000000000001))),COMPLEX(G137,H137,"j")) -> 107.546620232414+92.6350680929473j | L137: =IF(CMdata=1,IMDIV(1,IMSUM(IMDIV(1,IMPRODUCT(B137,'Design the AEF circuit'!$G$14*0.001)),IMDIV(1,'Design the AEF circuit'!$H$14*1000),IMPRODUCT(B137,'Design the AEF circuit'!$I$14*0.000000000001))),COMPLEX(I137,J137,"j")) -> 498.03039367469+542.205761512392j
A138: ='Frequency vector'!G138 -> 35743.34945 | B138: =COMPLEX(0,2*PI()*'Frequency vector'!G138,"j") -> 224582.088083777j | C138: =IF(IF(CMdata=1,IMABS(K138),'CM choke'!C142)=0, C137, IF(CMdata=1,IMABS(K138),'CM choke'!C142)) -> 143.338 | D138: =IF(IF(CMdata=1,DEGREES(IMARGUMENT(K138)),'CM choke'!D142)=0, D137, IF(CMdata=1,DEGREES(IMARGUMENT(K138)),'CM choke'!D142)) -> 40.4296 | E138: =IF(IF(CMdata=1,IMABS(L138),'CM choke'!E142)=0, E137, IF(CMdata=1,IMABS(L138),'CM choke'!E142)) -> 744.639 | F138: =IF(IF(CMdata=1,DEGREES(IMARGUMENT(L138)),'CM choke'!F142)=0, F137, IF(CMdata=1,DEGREES(IMARGUMENT(L138)),'CM choke'!F142)) -> 47.0697 | G138: 109.1093695 | H138: 92.95659059 | I138: 507.179705 | J138: 545.2118736 | K138: =IF(CMdata=1,IMDIV(1,IMSUM(IMDIV(1,IMPRODUCT(B138,'Design the AEF circuit'!$G$13*0.001)),IMDIV(1,'Design the AEF circuit'!$H$13*1000),IMPRODUCT(B138,'Design the AEF circuit'!$I$13*0.000000000001))),COMPLEX(G138,H138,"j")) -> 109.109369490545+92.9565905860135j | L138: =IF(CMdata=1,IMDIV(1,IMSUM(IMDIV(1,IMPRODUCT(B138,'Design the AEF circuit'!$G$14*0.001)),IMDIV(1,'Design the AEF circuit'!$H$14*1000),IMPRODUCT(B138,'Design the AEF circuit'!$I$14*0.000000000001))),COMPLEX(I138,J138,"j")) -> 507.179705039925+545.21187360201j
A139: ='Frequency vector'!G139 -> 36702.9014 | B139: =COMPLEX(0,2*PI()*'Frequency vector'!G139,"j") -> 230611.130829546j | C139: =IF(IF(CMdata=1,IMABS(K139),'CM choke'!C143)=0, C138, IF(CMdata=1,IMABS(K139),'CM choke'!C143)) -> 144.562 | D139: =IF(IF(CMdata=1,DEGREES(IMARGUMENT(K139)),'CM choke'!D143)=0, D138, IF(CMdata=1,DEGREES(IMARGUMENT(K139)),'CM choke'!D143)) -> 40.1343 | E139: =IF(IF(CMdata=1,IMABS(L139),'CM choke'!E143)=0, E138, IF(CMdata=1,IMABS(L139),'CM choke'!E143)) -> 753.76 | F139: =IF(IF(CMdata=1,DEGREES(IMARGUMENT(L139)),'CM choke'!F143)=0, F138, IF(CMdata=1,DEGREES(IMARGUMENT(L139)),'CM choke'!F143)) -> 46.7652 | G139: 110.5228042 | H139: 93.18198111 | I139: 516.3178639 | J139: 549.1538956 | K139: =IF(CMdata=1,IMDIV(1,IMSUM(IMDIV(1,IMPRODUCT(B139,'Design the AEF circuit'!$G$13*0.001)),IMDIV(1,'Design the AEF circuit'!$H$13*1000),IMPRODUCT(B139,'Design the AEF circuit'!$I$13*0.000000000001))),COMPLEX(G139,H139,"j")) -> 110.522804167024+93.1819811071738j | L139: =IF(CMdata=1,IMDIV(1,IMSUM(IMDIV(1,IMPRODUCT(B139,'Design the AEF circuit'!$G$14*0.001)),IMDIV(1,'Design the AEF circuit'!$H$14*1000),IMPRODUCT(B139,'Design the AEF circuit'!$I$14*0.000000000001))),COMPLEX(I139,J139,"j")) -> 516.31786389664+549.15389557137j
A140: ='Frequency vector'!G140 -> 37688.21311 | B140: =COMPLEX(0,2*PI()*'Frequency vector'!G140,"j") -> 236802.026894699j | C140: =IF(IF(CMdata=1,IMABS(K140),'CM choke'!C144)=0, C139, IF(CMdata=1,IMABS(K140),'CM choke'!C144)) -> 146.024 | D140: =IF(IF(CMdata=1,DEGREES(IMARGUMENT(K140)),'CM choke'!D144)=0, D139, IF(CMdata=1,DEGREES(IMARGUMENT(K140)),'CM choke'!D144)) -> 39.8235 | E140: =IF(IF(CMdata=1,IMABS(L140),'CM choke'!E144)=0, E139, IF(CMdata=1,IMABS(L140),'CM choke'!E144)) -> 762.148 | F140: =IF(IF(CMdata=1,DEGREES(IMARGUMENT(L140)),'CM choke'!F144)=0, F139, IF(CMdata=1,DEGREES(IMARGUMENT(L140)),'CM choke'!F144)) -> 46.3598 | G140: 112.1494863 | H140: 93.517385 | I140: 525.9792703 | J140: 551.5572328 | K140: =IF(CMdata=1,IMDIV(1,IMSUM(IMDIV(1,IMPRODUCT(B140,'Design the AEF circuit'!$G$13*0.001)),IMDIV(1,'Design the AEF circuit'!$H$13*1000),IMPRODUCT(B140,'Design the AEF circuit'!$I$13*0.000000000001))),COMPLEX(G140,H140,"j")) -> 112.149486305979+93.5173850003568j | L140: =IF(CMdata=1,IMDIV(1,IMSUM(IMDIV(1,IMPRODUCT(B140,'Design the AEF circuit'!$G$14*0.001)),IMDIV(1,'Design the AEF circuit'!$H$14*1000),IMPRODUCT(B140,'Design the AEF circuit'!$I$14*0.000000000001))),COMPLEX(I140,J140,"j")) -> 525.979270337223+551.557232823142j
A141: ='Frequency vector'!G141 -> 38699.97612 | B141: =COMPLEX(0,2*PI()*'Frequency vector'!G141,"j") -> 243159.121330033j | C141: =IF(IF(CMdata=1,IMABS(K141),'CM choke'!C145)=0, C140, IF(CMdata=1,IMABS(K141),'CM choke'!C145)) -> 147.433 | D141: =IF(IF(CMdata=1,DEGREES(IMARGUMENT(K141)),'CM choke'!D145)=0, D140, IF(CMdata=1,DEGREES(IMARGUMENT(K141)),'CM choke'!D145)) -> 39.5289 | E141: =IF(IF(CMdata=1,IMABS(L141),'CM choke'!E145)=0, E140, IF(CMdata=1,IMABS(L141),'CM choke'!E145)) -> 770.884 | F141: =IF(IF(CMdata=1,DEGREES(IMARGUMENT(L141)),'CM choke'!F145)=0, F140, IF(CMdata=1,DEGREES(IMARGUMENT(L141)),'CM choke'!F145)) -> 45.9952 | G141: 113.7156106 | H141: 93.83629036 | I141: 535.5474774 | J141: 554.4826787 | K141: =IF(CMdata=1,IMDIV(1,IMSUM(IMDIV(1,IMPRODUCT(B141,'Design the AEF circuit'!$G$13*0.001)),IMDIV(1,'Design the AEF circuit'!$H$13*1000),IMPRODUCT(B141,'Design the AEF circuit'!$I$13*0.000000000001))),COMPLEX(G141,H141,"j")) -> 113.715610631054+93.8362903561656j | L141: =IF(CMdata=1,IMDIV(1,IMSUM(IMDIV(1,IMPRODUCT(B141,'Design the AEF circuit'!$G$14*0.001)),IMDIV(1,'Design the AEF circuit'!$H$14*1000),IMPRODUCT(B141,'Design the AEF circuit'!$I$14*0.000000000001))),COMPLEX(I141,J141,"j")) -> 535.547477364461+554.482678669552j
A142: ='Frequency vector'!G142 -> 39738.90051 | B142: =COMPLEX(0,2*PI()*'Frequency vector'!G142,"j") -> 249686.875831877j | C142: =IF(IF(CMdata=1,IMABS(K142),'CM choke'!C146)=0, C141, IF(CMdata=1,IMABS(K142),'CM choke'!C146)) -> 148.862 | D142: =IF(IF(CMdata=1,DEGREES(IMARGUMENT(K142)),'CM choke'!D146)=0, D141, IF(CMdata=1,DEGREES(IMARGUMENT(K142)),'CM choke'!D146)) -> 39.2458 | E142: =IF(IF(CMdata=1,IMABS(L142),'CM choke'!E146)=0, E141, IF(CMdata=1,IMABS(L142),'CM choke'!E146)) -> 779.921 | F142: =IF(IF(CMdata=1,DEGREES(IMARGUMENT(L142)),'CM choke'!F146)=0, F141, IF(CMdata=1,DEGREES(IMARGUMENT(L142)),'CM choke'!F146)) -> 45.6553 | G142: 115.2845417 | H142: 94.17733008 | I142: 545.1440559 | J142: 557.7586616 | K142: =IF(CMdata=1,IMDIV(1,IMSUM(IMDIV(1,IMPRODUCT(B142,'Design the AEF circuit'!$G$13*0.001)),IMDIV(1,'Design the AEF circuit'!$H$13*1000),IMPRODUCT(B142,'Design the AEF circuit'!$I$13*0.000000000001))),COMPLEX(G142,H142,"j")) -> 115.284541651954+94.1773300752299j | L142: =IF(CMdata=1,IMDIV(1,IMSUM(IMDIV(1,IMPRODUCT(B142,'Design the AEF circuit'!$G$14*0.001)),IMDIV(1,'Design the AEF circuit'!$H$14*1000),IMPRODUCT(B142,'Design the AEF circuit'!$I$14*0.000000000001))),COMPLEX(I142,J142,"j")) -> 545.14405589717+557.758661574146j
A143: ='Frequency vector'!G143 -> 40805.71547 | B143: =COMPLEX(0,2*PI()*'Frequency vector'!G143,"j") -> 256389.871873514j | C143: =IF(IF(CMdata=1,IMABS(K143),'CM choke'!C147)=0, C142, IF(CMdata=1,IMABS(K143),'CM choke'!C147)) -> 150.214 | D143: =IF(IF(CMdata=1,DEGREES(IMARGUMENT(K143)),'CM choke'!D147)=0, D142, IF(CMdata=1,DEGREES(IMARGUMENT(K143)),'CM choke'!D147)) -> 38.9654 | E143: =IF(IF(CMdata=1,IMABS(L143),'CM choke'!E147)=0, E142, IF(CMdata=1,IMABS(L143),'CM choke'!E147)) -> 788.838 | F143: =IF(IF(CMdata=1,DEGREES(IMARGUMENT(L143)),'CM choke'!F147)=0, F142, IF(CMdata=1,DEGREES(IMARGUMENT(L143)),'CM choke'!F147)) -> 45.3242 | G143: 116.795269 | H143: 94.46221966 | I143: 554.627596 | J143: 560.9399433 | K143: =IF(CMdata=1,IMDIV(1,IMSUM(IMDIV(1,IMPRODUCT(B143,'Design the AEF circuit'!$G$13*0.001)),IMDIV(1,'Design the AEF circuit'!$H$13*1000),IMPRODUCT(B143,'Design the AEF circuit'!$I$13*0.000000000001))),COMPLEX(G143,H143,"j")) -> 116.795268962648+94.4622196644913j | L143: =IF(CMdata=1,IMDIV(1,IMSUM(IMDIV(1,IMPRODUCT(B143,'Design the AEF circuit'!$G$14*0.001)),IMDIV(1,'Design the AEF circuit'!$H$14*1000),IMPRODUCT(B143,'Design the AEF circuit'!$I$14*0.000000000001))),COMPLEX(I143,J143,"j")) -> 554.627596030618+560.93994327851j
A144: ='Frequency vector'!G144 -> 41901.16972 | B144: =COMPLEX(0,2*PI()*'Frequency vector'!G144,"j") -> 263272.81392066j | C144: =IF(IF(CMdata=1,IMABS(K144),'CM choke'!C148)=0, C143, IF(CMdata=1,IMABS(K144),'CM choke'!C148)) -> 151.572 | D144: =IF(IF(CMdata=1,DEGREES(IMARGUMENT(K144)),'CM choke'!D148)=0, D143, IF(CMdata=1,DEGREES(IMARGUMENT(K144)),'CM choke'!D148)) -> 38.6981 | E144: =IF(IF(CMdata=1,IMABS(L144),'CM choke'!E148)=0, E143, IF(CMdata=1,IMABS(L144),'CM choke'!E148)) -> 797.705 | F144: =IF(IF(CMdata=1,DEGREES(IMARGUMENT(L144)),'CM choke'!F148)=0, F143, IF(CMdata=1,DEGREES(IMARGUMENT(L144)),'CM choke'!F148)) -> 45.002 | G144: 118.2945403 | H144: 94.76535716 | I144: 564.042925 | J144: 564.082304 | K144: =IF(CMdata=1,IMDIV(1,IMSUM(IMDIV(1,IMPRODUCT(B144,'Design the AEF circuit'!$G$13*0.001)),IMDIV(1,'Design the AEF circuit'!$H$13*1000),IMPRODUCT(B144,'Design the AEF circuit'!$I$13*0.000000000001))),COMPLEX(G144,H144,"j")) -> 118.294540304376+94.7653571627121j | L144: =IF(CMdata=1,IMDIV(1,IMSUM(IMDIV(1,IMPRODUCT(B144,'Design the AEF circuit'!$G$14*0.001)),IMDIV(1,'Design the AEF circuit'!$H$14*1000),IMPRODUCT(B144,'Design the AEF circuit'!$I$14*0.000000000001))),COMPLEX(I144,J144,"j")) -> 564.042925043138+564.082304042399j
A145: ='Frequency vector'!G145 -> 43026.0321 | B145: =COMPLEX(0,2*PI()*'Frequency vector'!G145,"j") -> 270340.532733278j | C145: =IF(IF(CMdata=1,IMABS(K145),'CM choke'!C149)=0, C144, IF(CMdata=1,IMABS(K145),'CM choke'!C149)) -> 153.002 | D145: =IF(IF(CMdata=1,DEGREES(IMARGUMENT(K145)),'CM choke'!D149)=0, D144, IF(CMdata=1,DEGREES(IMARGUMENT(K145)),'CM choke'!D149)) -> 38.4138 | E145: =IF(IF(CMdata=1,IMABS(L145),'CM choke'!E149)=0, E144, IF(CMdata=1,IMABS(L145),'CM choke'!E149)) -> 806.605 | F145: =IF(IF(CMdata=1,DEGREES(IMARGUMENT(L145)),'CM choke'!F149)=0, F144, IF(CMdata=1,DEGREES(IMARGUMENT(L145)),'CM choke'!F149)) -> 44.6622 | G145: 119.8837727 | H145: 95.06573009 | I145: 573.7085929 | J145: 566.9833124 | K145: =IF(CMdata=1,IMDIV(1,IMSUM(IMDIV(1,IMPRODUCT(B145,'Design the AEF circuit'!$G$13*0.001)),IMDIV(1,'Design the AEF circuit'!$H$13*1000),IMPRODUCT(B145,'Design the AEF circuit'!$I$13*0.000000000001))),COMPLEX(G145,H145,"j")) -> 119.883772737355+95.065730093753j | L145: =IF(CMdata=1,IMDIV(1,IMSUM(IMDIV(1,IMPRODUCT(B145,'Design the AEF circuit'!$G$14*0.001)),IMDIV(1,'Design the AEF circuit'!$H$14*1000),IMPRODUCT(B145,'Design the AEF circuit'!$I$14*0.000000000001))),COMPLEX(I145,J145,"j")) -> 573.708592877236+566.983312350392j
A146: ='Frequency vector'!G146 -> 44181.0921 | B146: =COMPLEX(0,2*PI()*'Frequency vector'!G146,"j") -> 277597.988756017j | C146: =IF(IF(CMdata=1,IMABS(K146),'CM choke'!C150)=0, C145, IF(CMdata=1,IMABS(K146),'CM choke'!C150)) -> 154.43 | D146: =IF(IF(CMdata=1,DEGREES(IMARGUMENT(K146)),'CM choke'!D150)=0, D145, IF(CMdata=1,DEGREES(IMARGUMENT(K146)),'CM choke'!D150)) -> 38.1632 | E146: =IF(IF(CMdata=1,IMABS(L146),'CM choke'!E150)=0, E145, IF(CMdata=1,IMABS(L146),'CM choke'!E150)) -> 815.5 | F146: =IF(IF(CMdata=1,DEGREES(IMARGUMENT(L146)),'CM choke'!F150)=0, F145, IF(CMdata=1,DEGREES(IMARGUMENT(L146)),'CM choke'!F150)) -> 44.3606 | G146: 121.4211933 | H146: 95.42284164 | I146: 583.0446942 | J146: 570.1746527 | K146: =IF(CMdata=1,IMDIV(1,IMSUM(IMDIV(1,IMPRODUCT(B146,'Design the AEF circuit'!$G$13*0.001)),IMDIV(1,'Design the AEF circuit'!$H$13*1000),IMPRODUCT(B146,'Design the AEF circuit'!$I$13*0.000000000001))),COMPLEX(G146,H146,"j")) -> 121.421193347376+95.4228416371002j | L146: =IF(CMdata=1,IMDIV(1,IMSUM(IMDIV(1,IMPRODUCT(B146,'Design the AEF circuit'!$G$14*0.001)),IMDIV(1,'Design the AEF circuit'!$H$14*1000),IMPRODUCT(B146,'Design the AEF circuit'!$I$14*0.000000000001))),COMPLEX(I146,J146,"j")) -> 583.044694208561+570.17465267692j
A147: ='Frequency vector'!G147 -> 45367.16039 | B147: =COMPLEX(0,2*PI()*'Frequency vector'!G147,"j") -> 285050.275599683j | C147: =IF(IF(CMdata=1,IMABS(K147),'CM choke'!C151)=0, C146, IF(CMdata=1,IMABS(K147),'CM choke'!C151)) -> 155.817 | D147: =IF(IF(CMdata=1,DEGREES(IMARGUMENT(K147)),'CM choke'!D151)=0, D146, IF(CMdata=1,DEGREES(IMARGUMENT(K147)),'CM choke'!D151)) -> 37.8973 | E147: =IF(IF(CMdata=1,IMABS(L147),'CM choke'!E151)=0, E146, IF(CMdata=1,IMABS(L147),'CM choke'!E151)) -> 824.494 | F147: =IF(IF(CMdata=1,DEGREES(IMARGUMENT(L147)),'CM choke'!F151)=0, F146, IF(CMdata=1,DEGREES(IMARGUMENT(L147)),'CM choke'!F151)) -> 44.0567 | G147: 122.9572252 | H147: 95.71028291 | I147: 592.5242729 | J147: 573.3283022 | K147: =IF(CMdata=1,IMDIV(1,IMSUM(IMDIV(1,IMPRODUCT(B147,'Design the AEF circuit'!$G$13*0.001)),IMDIV(1,'Design the AEF circuit'!$H$13*1000),IMPRODUCT(B147,'Design the AEF circuit'!$I$13*0.000000000001))),COMPLEX(G147,H147,"j")) -> 122.957225224033+95.7102829073572j | L147: =IF(CMdata=1,IMDIV(1,IMSUM(IMDIV(1,IMPRODUCT(B147,'Design the AEF circuit'!$G$14*0.001)),IMDIV(1,'Design the AEF circuit'!$H$14*1000),IMPRODUCT(B147,'Design the AEF circuit'!$I$14*0.000000000001))),COMPLEX(I147,J147,"j")) -> 592.524272911542+573.32830215039j
A148: ='Frequency vector'!G148 -> 46585.0694 | B148: =COMPLEX(0,2*PI()*'Frequency vector'!G148,"j") -> 292702.623616159j | C148: =IF(IF(CMdata=1,IMABS(K148),'CM choke'!C152)=0, C147, IF(CMdata=1,IMABS(K148),'CM choke'!C152)) -> 157.227 | D148: =IF(IF(CMdata=1,DEGREES(IMARGUMENT(K148)),'CM choke'!D152)=0, D147, IF(CMdata=1,DEGREES(IMARGUMENT(K148)),'CM choke'!D152)) -> 37.6549 | E148: =IF(IF(CMdata=1,IMABS(L148),'CM choke'!E152)=0, E147, IF(CMdata=1,IMABS(L148),'CM choke'!E152)) -> 833.314 | F148: =IF(IF(CMdata=1,DEGREES(IMARGUMENT(L148)),'CM choke'!F152)=0, F147, IF(CMdata=1,DEGREES(IMARGUMENT(L148)),'CM choke'!F152)) -> 43.7294 | G148: 124.4773466 | H148: 96.05061018 | I148: 602.1631465 | J148: 576.0310474 | K148: =IF(CMdata=1,IMDIV(1,IMSUM(IMDIV(1,IMPRODUCT(B148,'Design the AEF circuit'!$G$13*0.001)),IMDIV(1,'Design the AEF circuit'!$H$13*1000),IMPRODUCT(B148,'Design the AEF circuit'!$I$13*0.000000000001))),COMPLEX(G148,H148,"j")) -> 124.477346585602+96.0506101803002j | L148: =IF(CMdata=1,IMDIV(1,IMSUM(IMDIV(1,IMPRODUCT(B148,'Design the AEF circuit'!$G$14*0.001)),IMDIV(1,'Design the AEF circuit'!$H$14*1000),IMPRODUCT(B148,'Design the AEF circuit'!$I$14*0.000000000001))),COMPLEX(I148,J148,"j")) -> 602.163146545877+576.031047373289j
A149: ='Frequency vector'!G149 -> 47835.67393 | B149: =COMPLEX(0,2*PI()*'Frequency vector'!G149,"j") -> 300560.403569306j | C149: =IF(IF(CMdata=1,IMABS(K149),'CM choke'!C153)=0, C148, IF(CMdata=1,IMABS(K149),'CM choke'!C153)) -> 158.646 | D149: =IF(IF(CMdata=1,DEGREES(IMARGUMENT(K149)),'CM choke'!D153)=0, D148, IF(CMdata=1,DEGREES(IMARGUMENT(K149)),'CM choke'!D153)) -> 37.4106 | E149: =IF(IF(CMdata=1,IMABS(L149),'CM choke'!E153)=0, E148, IF(CMdata=1,IMABS(L149),'CM choke'!E153)) -> 842.265 | F149: =IF(IF(CMdata=1,DEGREES(IMARGUMENT(L149)),'CM choke'!F153)=0, F148, IF(CMdata=1,DEGREES(IMARGUMENT(L149)),'CM choke'!F153)) -> 43.4417 | G149: 126.0128731 | H149: 96.38106212 | I149: 611.5470669 | J149: 579.155001 | K149: =IF(CMdata=1,IMDIV(1,IMSUM(IMDIV(1,IMPRODUCT(B149,'Design the AEF circuit'!$G$13*0.001)),IMDIV(1,'Design the AEF circuit'!$H$13*1000),IMPRODUCT(B149,'Design the AEF circuit'!$I$13*0.000000000001))),COMPLEX(G149,H149,"j")) -> 126.012873077246+96.3810621170879j | L149: =IF(CMdata=1,IMDIV(1,IMSUM(IMDIV(1,IMPRODUCT(B149,'Design the AEF circuit'!$G$14*0.001)),IMDIV(1,'Design the AEF circuit'!$H$14*1000),IMPRODUCT(B149,'Design the AEF circuit'!$I$14*0.000000000001))),COMPLEX(I149,J149,"j")) -> 611.547066908977+579.155000997166j
A150: ='Frequency vector'!G150 -> 49119.85169 | B150: =COMPLEX(0,2*PI()*'Frequency vector'!G150,"j") -> 308629.130404409j | C150: =IF(IF(CMdata=1,IMABS(K150),'CM choke'!C154)=0, C149, IF(CMdata=1,IMABS(K150),'CM choke'!C154)) -> 160.086 | D150: =IF(IF(CMdata=1,DEGREES(IMARGUMENT(K150)),'CM choke'!D154)=0, D149, IF(CMdata=1,DEGREES(IMARGUMENT(K150)),'CM choke'!D154)) -> 37.164 | E150: =IF(IF(CMdata=1,IMABS(L150),'CM choke'!E154)=0, E149, IF(CMdata=1,IMABS(L150),'CM choke'!E154)) -> 851.218 | F150: =IF(IF(CMdata=1,DEGREES(IMARGUMENT(L150)),'CM choke'!F154)=0, F149, IF(CMdata=1,DEGREES(IMARGUMENT(L150)),'CM choke'!F154)) -> 43.1477 | G150: 127.5740769 | H150: 96.70771584 | I150: 621.0428502 | J150: 582.1321686 | K150: =IF(CMdata=1,IMDIV(1,IMSUM(IMDIV(1,IMPRODUCT(B150,'Design the AEF circuit'!$G$13*0.001)),IMDIV(1,'Design the AEF circuit'!$H$13*1000),IMPRODUCT(B150,'Design the AEF circuit'!$I$13*0.000000000001))),COMPLEX(G150,H150,"j")) -> 127.574076884862+96.7077158399236j | L150: =IF(CMdata=1,IMDIV(1,IMSUM(IMDIV(1,IMPRODUCT(B150,'Design the AEF circuit'!$G$14*0.001)),IMDIV(1,'Design the AEF circuit'!$H$14*1000),IMPRODUCT(B150,'Design the AEF circuit'!$I$14*0.000000000001))),COMPLEX(I150,J150,"j")) -> 621.042850188488+582.132168629907j
A151: ='Frequency vector'!G151 -> 50438.50398 | B151: =COMPLEX(0,2*PI()*'Frequency vector'!G151,"j") -> 316914.467118812j | C151: =IF(IF(CMdata=1,IMABS(K151),'CM choke'!C155)=0, C150, IF(CMdata=1,IMABS(K151),'CM choke'!C155)) -> 161.469 | D151: =IF(IF(CMdata=1,DEGREES(IMARGUMENT(K151)),'CM choke'!D155)=0, D150, IF(CMdata=1,DEGREES(IMARGUMENT(K151)),'CM choke'!D155)) -> 36.945 | E151: =IF(IF(CMdata=1,IMABS(L151),'CM choke'!E155)=0, E150, IF(CMdata=1,IMABS(L151),'CM choke'!E155)) -> 860.046 | F151: =IF(IF(CMdata=1,DEGREES(IMARGUMENT(L151)),'CM choke'!F155)=0, F150, IF(CMdata=1,DEGREES(IMARGUMENT(L151)),'CM choke'!F155)) -> 42.8631 | G151: 129.0480985 | H151: 97.05063743 | I151: 630.3975054 | J151: 585.0453891 | K151: =IF(CMdata=1,IMDIV(1,IMSUM(IMDIV(1,IMPRODUCT(B151,'Design the AEF circuit'!$G$13*0.001)),IMDIV(1,'Design the AEF circuit'!$H$13*1000),IMPRODUCT(B151,'Design the AEF circuit'!$I$13*0.000000000001))),COMPLEX(G151,H151,"j")) -> 129.048098538374+97.0506374251617j | L151: =IF(CMdata=1,IMDIV(1,IMSUM(IMDIV(1,IMPRODUCT(B151,'Design the AEF circuit'!$G$14*0.001)),IMDIV(1,'Design the AEF circuit'!$H$14*1000),IMPRODUCT(B151,'Design the AEF circuit'!$I$14*0.000000000001))),COMPLEX(I151,J151,"j")) -> 630.397505370247+585.045389127176j
A152: ='Frequency vector'!G152 -> 51792.5563 | B152: =COMPLEX(0,2*PI()*'Frequency vector'!G152,"j") -> 325422.228736467j | C152: =IF(IF(CMdata=1,IMABS(K152),'CM choke'!C156)=0, C151, IF(CMdata=1,IMABS(K152),'CM choke'!C156)) -> 162.831 | D152: =IF(IF(CMdata=1,DEGREES(IMARGUMENT(K152)),'CM choke'!D156)=0, D151, IF(CMdata=1,DEGREES(IMARGUMENT(K152)),'CM choke'!D156)) -> 36.7283 | E152: =IF(IF(CMdata=1,IMABS(L152),'CM choke'!E156)=0, E151, IF(CMdata=1,IMABS(L152),'CM choke'!E156)) -> 868.774 | F152: =IF(IF(CMdata=1,DEGREES(IMARGUMENT(L152)),'CM choke'!F156)=0, F151, IF(CMdata=1,DEGREES(IMARGUMENT(L152)),'CM choke'!F156)) -> 42.5949 | G152: 130.5058489 | H152: 97.3763727 | I152: 639.5543518 | J152: 587.9953181 | K152: =IF(CMdata=1,IMDIV(1,IMSUM(IMDIV(1,IMPRODUCT(B152,'Design the AEF circuit'!$G$13*0.001)),IMDIV(1,'Design the AEF circuit'!$H$13*1000),IMPRODUCT(B152,'Design the AEF circuit'!$I$13*0.000000000001))),COMPLEX(G152,H152,"j")) -> 130.505848914865+97.3763726989793j | L152: =IF(CMdata=1,IMDIV(1,IMSUM(IMDIV(1,IMPRODUCT(B152,'Design the AEF circuit'!$G$14*0.001)),IMDIV(1,'Design the AEF circuit'!$H$14*1000),IMPRODUCT(B152,'Design the AEF circuit'!$I$14*0.000000000001))),COMPLEX(I152,J152,"j")) -> 639.554351815785+587.99531813569j
A153: ='Frequency vector'!G153 -> 53182.95897 | B153: =COMPLEX(0,2*PI()*'Frequency vector'!G153,"j") -> 334158.386389182j | C153: =IF(IF(CMdata=1,IMABS(K153),'CM choke'!C157)=0, C152, IF(CMdata=1,IMABS(K153),'CM choke'!C157)) -> 164.323 | D153: =IF(IF(CMdata=1,DEGREES(IMARGUMENT(K153)),'CM choke'!D157)=0, D152, IF(CMdata=1,DEGREES(IMARGUMENT(K153)),'CM choke'!D157)) -> 36.5183 | E153: =IF(IF(CMdata=1,IMABS(L153),'CM choke'!E157)=0, E152, IF(CMdata=1,IMABS(L153),'CM choke'!E157)) -> 877.66 | F153: =IF(IF(CMdata=1,DEGREES(IMARGUMENT(L153)),'CM choke'!F157)=0, F152, IF(CMdata=1,DEGREES(IMARGUMENT(L153)),'CM choke'!F157)) -> 42.3253 | G153: 132.0609455 | H153: 97.78524941 | I153: 648.8837397 | J153: 590.9627467 | K153: =IF(CMdata=1,IMDIV(1,IMSUM(IMDIV(1,IMPRODUCT(B153,'Design the AEF circuit'!$G$13*0.001)),IMDIV(1,'Design the AEF circuit'!$H$13*1000),IMPRODUCT(B153,'Design the AEF circuit'!$I$13*0.000000000001))),COMPLEX(G153,H153,"j")) -> 132.060945499235+97.7852494134371j | L153: =IF(CMdata=1,IMDIV(1,IMSUM(IMDIV(1,IMPRODUCT(B153,'Design the AEF circuit'!$G$14*0.001)),IMDIV(1,'Design the AEF circuit'!$H$14*1000),IMPRODUCT(B153,'Design the AEF circuit'!$I$14*0.000000000001))),COMPLEX(I153,J153,"j")) -> 648.883739672043+590.962746701705j
A154: ='Frequency vector'!G154 -> 54610.68785 | B154: =COMPLEX(0,2*PI()*'Frequency vector'!G154,"j") -> 343129.071507429j | C154: =IF(IF(CMdata=1,IMABS(K154),'CM choke'!C158)=0, C153, IF(CMdata=1,IMABS(K154),'CM choke'!C158)) -> 165.755 | D154: =IF(IF(CMdata=1,DEGREES(IMARGUMENT(K154)),'CM choke'!D158)=0, D153, IF(CMdata=1,DEGREES(IMARGUMENT(K154)),'CM choke'!D158)) -> 36.2593 | E154: =IF(IF(CMdata=1,IMABS(L154),'CM choke'!E158)=0, E153, IF(CMdata=1,IMABS(L154),'CM choke'!E158)) -> 887.166 | F154: =IF(IF(CMdata=1,DEGREES(IMARGUMENT(L154)),'CM choke'!F158)=0, F153, IF(CMdata=1,DEGREES(IMARGUMENT(L154)),'CM choke'!F158)) -> 42.0455 | G154: 133.6563147 | H154: 98.03422656 | I154: 658.8211982 | J154: 594.1532971 | K154: =IF(CMdata=1,IMDIV(1,IMSUM(IMDIV(1,IMPRODUCT(B154,'Design the AEF circuit'!$G$13*0.001)),IMDIV(1,'Design the AEF circuit'!$H$13*1000),IMPRODUCT(B154,'Design the AEF circuit'!$I$13*0.000000000001))),COMPLEX(G154,H154,"j")) -> 133.656314654797+98.0342265634712j | L154: =IF(CMdata=1,IMDIV(1,IMSUM(IMDIV(1,IMPRODUCT(B154,'Design the AEF circuit'!$G$14*0.001)),IMDIV(1,'Design the AEF circuit'!$H$14*1000),IMPRODUCT(B154,'Design the AEF circuit'!$I$14*0.000000000001))),COMPLEX(I154,J154,"j")) -> 658.821198152709+594.153297071243j
A155: ='Frequency vector'!G155 -> 56076.74498 | B155: =COMPLEX(0,2*PI()*'Frequency vector'!G155,"j") -> 352340.580123658j | C155: =IF(IF(CMdata=1,IMABS(K155),'CM choke'!C159)=0, C154, IF(CMdata=1,IMABS(K155),'CM choke'!C159)) -> 167.165 | D155: =IF(IF(CMdata=1,DEGREES(IMARGUMENT(K155)),'CM choke'!D159)=0, D154, IF(CMdata=1,DEGREES(IMARGUMENT(K155)),'CM choke'!D159)) -> 36.079 | E155: =IF(IF(CMdata=1,IMABS(L155),'CM choke'!E159)=0, E154, IF(CMdata=1,IMABS(L155),'CM choke'!E159)) -> 896.001 | F155: =IF(IF(CMdata=1,DEGREES(IMARGUMENT(L155)),'CM choke'!F159)=0, F154, IF(CMdata=1,DEGREES(IMARGUMENT(L155)),'CM choke'!F159)) -> 41.8037 | G155: 135.1037194 | H155: 98.44349759 | I155: 667.9086734 | J155: 597.2568928 | K155: =IF(CMdata=1,IMDIV(1,IMSUM(IMDIV(1,IMPRODUCT(B155,'Design the AEF circuit'!$G$13*0.001)),IMDIV(1,'Design the AEF circuit'!$H$13*1000),IMPRODUCT(B155,'Design the AEF circuit'!$I$13*0.000000000001))),COMPLEX(G155,H155,"j")) -> 135.103719442035+98.4434975908917j | L155: =IF(CMdata=1,IMDIV(1,IMSUM(IMDIV(1,IMPRODUCT(B155,'Design the AEF circuit'!$G$14*0.001)),IMDIV(1,'Design the AEF circuit'!$H$14*1000),IMPRODUCT(B155,'Design the AEF circuit'!$I$14*0.000000000001))),COMPLEX(I155,J155,"j")) -> 667.908673417272+597.256892781473j
A156: ='Frequency vector'!G156 -> 57582.1593 | B156: =COMPLEX(0,2*PI()*'Frequency vector'!G156,"j") -> 361799.377291143j | C156: =IF(IF(CMdata=1,IMABS(K156),'CM choke'!C160)=0, C155, IF(CMdata=1,IMABS(K156),'CM choke'!C160)) -> 168.557 | D156: =IF(IF(CMdata=1,DEGREES(IMARGUMENT(K156)),'CM choke'!D160)=0, D155, IF(CMdata=1,DEGREES(IMARGUMENT(K156)),'CM choke'!D160)) -> 35.875 | E156: =IF(IF(CMdata=1,IMABS(L156),'CM choke'!E160)=0, E155, IF(CMdata=1,IMABS(L156),'CM choke'!E160)) -> 905.202 | F156: =IF(IF(CMdata=1,DEGREES(IMARGUMENT(L156)),'CM choke'!F160)=0, F155, IF(CMdata=1,DEGREES(IMARGUMENT(L156)),'CM choke'!F160)) -> 41.5581 | G156: 136.5813016 | H156: 98.7775799 | I156: 677.3476439 | J156: 600.4921566 | K156: =IF(CMdata=1,IMDIV(1,IMSUM(IMDIV(1,IMPRODUCT(B156,'Design the AEF circuit'!$G$13*0.001)),IMDIV(1,'Design the AEF circuit'!$H$13*1000),IMPRODUCT(B156,'Design the AEF circuit'!$I$13*0.000000000001))),COMPLEX(G156,H156,"j")) -> 136.581301638742+98.7775799038775j | L156: =IF(CMdata=1,IMDIV(1,IMSUM(IMDIV(1,IMPRODUCT(B156,'Design the AEF circuit'!$G$14*0.001)),IMDIV(1,'Design the AEF circuit'!$H$14*1000),IMPRODUCT(B156,'Design the AEF circuit'!$I$14*0.000000000001))),COMPLEX(I156,J156,"j")) -> 677.347643880073+600.492156596665j
A157: ='Frequency vector'!G157 -> 59127.98739 | B157: =COMPLEX(0,2*PI()*'Frequency vector'!G157,"j") -> 371512.101621444j | C157: =IF(IF(CMdata=1,IMABS(K157),'CM choke'!C161)=0, C156, IF(CMdata=1,IMABS(K157),'CM choke'!C161)) -> 169.956 | D157: =IF(IF(CMdata=1,DEGREES(IMARGUMENT(K157)),'CM choke'!D161)=0, D156, IF(CMdata=1,DEGREES(IMARGUMENT(K157)),'CM choke'!D161)) -> 35.685 | E157: =IF(IF(CMdata=1,IMABS(L157),'CM choke'!E161)=0, E156, IF(CMdata=1,IMABS(L157),'CM choke'!E161)) -> 914.194 | F157: =IF(IF(CMdata=1,DEGREES(IMARGUMENT(L157)),'CM choke'!F161)=0, F156, IF(CMdata=1,DEGREES(IMARGUMENT(L157)),'CM choke'!F161)) -> 41.3254 | G157: 138.0444275 | H157: 99.14019357 | I157: 686.5336138 | J157: 603.6739739 | K157: =IF(CMdata=1,IMDIV(1,IMSUM(IMDIV(1,IMPRODUCT(B157,'Design the AEF circuit'!$G$13*0.001)),IMDIV(1,'Design the AEF circuit'!$H$13*1000),IMPRODUCT(B157,'Design the AEF circuit'!$I$13*0.000000000001))),COMPLEX(G157,H157,"j")) -> 138.044427468818+99.1401935685336j | L157: =IF(CMdata=1,IMDIV(1,IMSUM(IMDIV(1,IMPRODUCT(B157,'Design the AEF circuit'!$G$14*0.001)),IMDIV(1,'Design the AEF circuit'!$H$14*1000),IMPRODUCT(B157,'Design the AEF circuit'!$I$14*0.000000000001))),COMPLEX(I157,J157,"j")) -> 686.533613833369+603.673973857491j
A158: ='Frequency vector'!G158 -> 60715.31417 | B158: =COMPLEX(0,2*PI()*'Frequency vector'!G158,"j") -> 381485.569943685j | C158: =IF(IF(CMdata=1,IMABS(K158),'CM choke'!C162)=0, C157, IF(CMdata=1,IMABS(K158),'CM choke'!C162)) -> 171.435 | D158: =IF(IF(CMdata=1,DEGREES(IMARGUMENT(K158)),'CM choke'!D162)=0, D157, IF(CMdata=1,DEGREES(IMARGUMENT(K158)),'CM choke'!D162)) -> 35.5288 | E158: =IF(IF(CMdata=1,IMABS(L158),'CM choke'!E162)=0, E157, IF(CMdata=1,IMABS(L158),'CM choke'!E162)) -> 923.414 | F158: =IF(IF(CMdata=1,DEGREES(IMARGUMENT(L158)),'CM choke'!F162)=0, F157, IF(CMdata=1,DEGREES(IMARGUMENT(L158)),'CM choke'!F162)) -> 41.0943 | G158: 139.5178356 | H158: 99.62295311 | I158: 695.9113725 | J158: 606.9602763 | K158: =IF(CMdata=1,IMDIV(1,IMSUM(IMDIV(1,IMPRODUCT(B158,'Design the AEF circuit'!$G$13*0.001)),IMDIV(1,'Design the AEF circuit'!$H$13*1000),IMPRODUCT(B158,'Design the AEF circuit'!$I$13*0.000000000001))),COMPLEX(G158,H158,"j")) -> 139.517835558925+99.6229531079703j | L158: =IF(CMdata=1,IMDIV(1,IMSUM(IMDIV(1,IMPRODUCT(B158,'Design the AEF circuit'!$G$14*0.001)),IMDIV(1,'Design the AEF circuit'!$H$14*1000),IMPRODUCT(B158,'Design the AEF circuit'!$I$14*0.000000000001))),COMPLEX(I158,J158,"j")) -> 695.91137247738+606.960276338287j
A159: ='Frequency vector'!G159 -> 62345.25371 | B159: =COMPLEX(0,2*PI()*'Frequency vector'!G159,"j") -> 391726.782088915j | C159: =IF(IF(CMdata=1,IMABS(K159),'CM choke'!C163)=0, C158, IF(CMdata=1,IMABS(K159),'CM choke'!C163)) -> 172.889 | D159: =IF(IF(CMdata=1,DEGREES(IMARGUMENT(K159)),'CM choke'!D163)=0, D158, IF(CMdata=1,DEGREES(IMARGUMENT(K159)),'CM choke'!D163)) -> 35.3663 | E159: =IF(IF(CMdata=1,IMABS(L159),'CM choke'!E163)=0, E158, IF(CMdata=1,IMABS(L159),'CM choke'!E163)) -> 932.63 | F159: =IF(IF(CMdata=1,DEGREES(IMARGUMENT(L159)),'CM choke'!F163)=0, F158, IF(CMdata=1,DEGREES(IMARGUMENT(L159)),'CM choke'!F163)) -> 40.8638 | G159: 140.9855117 | H159: 100.0684356 | I159: 705.3172825 | J159: 610.185421 | K159: =IF(CMdata=1,IMDIV(1,IMSUM(IMDIV(1,IMPRODUCT(B159,'Design the AEF circuit'!$G$13*0.001)),IMDIV(1,'Design the AEF circuit'!$H$13*1000),IMPRODUCT(B159,'Design the AEF circuit'!$I$13*0.000000000001))),COMPLEX(G159,H159,"j")) -> 140.985511707341+100.068435630918j | L159: =IF(CMdata=1,IMDIV(1,IMSUM(IMDIV(1,IMPRODUCT(B159,'Design the AEF circuit'!$G$14*0.001)),IMDIV(1,'Design the AEF circuit'!$H$14*1000),IMPRODUCT(B159,'Design the AEF circuit'!$I$14*0.000000000001))),COMPLEX(I159,J159,"j")) -> 705.317282455545+610.185420974252j
A160: ='Frequency vector'!G160 -> 64018.94997 | B160: =COMPLEX(0,2*PI()*'Frequency vector'!G160,"j") -> 402242.925802905j | C160: =IF(IF(CMdata=1,IMABS(K160),'CM choke'!C164)=0, C159, IF(CMdata=1,IMABS(K160),'CM choke'!C164)) -> 174.344 | D160: =IF(IF(CMdata=1,DEGREES(IMARGUMENT(K160)),'CM choke'!D164)=0, D159, IF(CMdata=1,DEGREES(IMARGUMENT(K160)),'CM choke'!D164)) -> 35.1795 | E160: =IF(IF(CMdata=1,IMABS(L160),'CM choke'!E164)=0, E159, IF(CMdata=1,IMABS(L160),'CM choke'!E164)) -> 941.539 | F160: =IF(IF(CMdata=1,DEGREES(IMARGUMENT(L160)),'CM choke'!F164)=0, F159, IF(CMdata=1,DEGREES(IMARGUMENT(L160)),'CM choke'!F164)) -> 40.6478 | G160: 142.5002583 | H160: 100.4465366 | I160: 714.3721186 | J160: 613.3254965 | K160: =IF(CMdata=1,IMDIV(1,IMSUM(IMDIV(1,IMPRODUCT(B160,'Design the AEF circuit'!$G$13*0.001)),IMDIV(1,'Design the AEF circuit'!$H$13*1000),IMPRODUCT(B160,'Design the AEF circuit'!$I$13*0.000000000001))),COMPLEX(G160,H160,"j")) -> 142.500258292816+100.44653663756j | L160: =IF(CMdata=1,IMDIV(1,IMSUM(IMDIV(1,IMPRODUCT(B160,'Design the AEF circuit'!$G$14*0.001)),IMDIV(1,'Design the AEF circuit'!$H$14*1000),IMPRODUCT(B160,'Design the AEF circuit'!$I$14*0.000000000001))),COMPLEX(I160,J160,"j")) -> 714.372118641814+613.325496476549j
A161: ='Frequency vector'!G161 -> 65737.57761 | B161: =COMPLEX(0,2*PI()*'Frequency vector'!G161,"j") -> 413041.38179083j | C161: =IF(IF(CMdata=1,IMABS(K161),'CM choke'!C165)=0, C160, IF(CMdata=1,IMABS(K161),'CM choke'!C165)) -> 175.857 | D161: =IF(IF(CMdata=1,DEGREES(IMARGUMENT(K161)),'CM choke'!D165)=0, D160, IF(CMdata=1,DEGREES(IMARGUMENT(K161)),'CM choke'!D165)) -> 34.9821 | E161: =IF(IF(CMdata=1,IMABS(L161),'CM choke'!E165)=0, E160, IF(CMdata=1,IMABS(L161),'CM choke'!E165)) -> 951.06 | F161: =IF(IF(CMdata=1,DEGREES(IMARGUMENT(L161)),'CM choke'!F165)=0, F160, IF(CMdata=1,DEGREES(IMARGUMENT(L161)),'CM choke'!F165)) -> 40.4049 | G161: 144.0851264 | H161: 100.8224221 | I161: 724.2159048 | J161: 616.4628511 | K161: =IF(CMdata=1,IMDIV(1,IMSUM(IMDIV(1,IMPRODUCT(B161,'Design the AEF circuit'!$G$13*0.001)),IMDIV(1,'Design the AEF circuit'!$H$13*1000),IMPRODUCT(B161,'Design the AEF circuit'!$I$13*0.000000000001))),COMPLEX(G161,H161,"j")) -> 144.085126413281+100.822422086899j | L161: =IF(CMdata=1,IMDIV(1,IMSUM(IMDIV(1,IMPRODUCT(B161,'Design the AEF circuit'!$G$14*0.001)),IMDIV(1,'Design the AEF circuit'!$H$14*1000),IMPRODUCT(B161,'Design the AEF circuit'!$I$14*0.000000000001))),COMPLEX(I161,J161,"j")) -> 724.215904812667+616.462851124356j
A162: ='Frequency vector'!G162 -> 67502.34287 | B162: =COMPLEX(0,2*PI()*'Frequency vector'!G162,"j") -> 424129.728897388j | C162: =IF(IF(CMdata=1,IMABS(K162),'CM choke'!C166)=0, C161, IF(CMdata=1,IMABS(K162),'CM choke'!C166)) -> 177.341 | D162: =IF(IF(CMdata=1,DEGREES(IMARGUMENT(K162)),'CM choke'!D166)=0, D161, IF(CMdata=1,DEGREES(IMARGUMENT(K162)),'CM choke'!D166)) -> 34.852 | E162: =IF(IF(CMdata=1,IMABS(L162),'CM choke'!E166)=0, E161, IF(CMdata=1,IMABS(L162),'CM choke'!E166)) -> 960.511 | F162: =IF(IF(CMdata=1,DEGREES(IMARGUMENT(L162)),'CM choke'!F166)=0, F161, IF(CMdata=1,DEGREES(IMARGUMENT(L162)),'CM choke'!F166)) -> 40.2253 | G162: 145.5315058 | H162: 101.3430367 | I162: 733.360657 | J162: 620.2930984 | K162: =IF(CMdata=1,IMDIV(1,IMSUM(IMDIV(1,IMPRODUCT(B162,'Design the AEF circuit'!$G$13*0.001)),IMDIV(1,'Design the AEF circuit'!$H$13*1000),IMPRODUCT(B162,'Design the AEF circuit'!$I$13*0.000000000001))),COMPLEX(G162,H162,"j")) -> 145.531505823122+101.343036730969j | L162: =IF(CMdata=1,IMDIV(1,IMSUM(IMDIV(1,IMPRODUCT(B162,'Design the AEF circuit'!$G$14*0.001)),IMDIV(1,'Design the AEF circuit'!$H$14*1000),IMPRODUCT(B162,'Design the AEF circuit'!$I$14*0.000000000001))),COMPLEX(I162,J162,"j")) -> 733.36065699564+620.293098375214j
A163: ='Frequency vector'!G163 -> 69314.48432 | B163: =COMPLEX(0,2*PI()*'Frequency vector'!G163,"j") -> 435515.749425972j | C163: =IF(IF(CMdata=1,IMABS(K163),'CM choke'!C167)=0, C162, IF(CMdata=1,IMABS(K163),'CM choke'!C167)) -> 178.815 | D163: =IF(IF(CMdata=1,DEGREES(IMARGUMENT(K163)),'CM choke'!D167)=0, D162, IF(CMdata=1,DEGREES(IMARGUMENT(K163)),'CM choke'!D167)) -> 34.6922 | E163: =IF(IF(CMdata=1,IMABS(L163),'CM choke'!E167)=0, E162, IF(CMdata=1,IMABS(L163),'CM choke'!E167)) -> 969.685 | F163: =IF(IF(CMdata=1,DEGREES(IMARGUMENT(L163)),'CM choke'!F167)=0, F162, IF(CMdata=1,DEGREES(IMARGUMENT(L163)),'CM choke'!F167)) -> 40.0073 | G163: 147.0255434 | H163: 101.7757035 | I163: 742.7423856 | J163: 623.3961404 | K163: =IF(CMdata=1,IMDIV(1,IMSUM(IMDIV(1,IMPRODUCT(B163,'Design the AEF circuit'!$G$13*0.001)),IMDIV(1,'Design the AEF circuit'!$H$13*1000),IMPRODUCT(B163,'Design the AEF circuit'!$I$13*0.000000000001))),COMPLEX(G163,H163,"j")) -> 147.025543364047+101.775703502882j | L163: =IF(CMdata=1,IMDIV(1,IMSUM(IMDIV(1,IMPRODUCT(B163,'Design the AEF circuit'!$G$14*0.001)),IMDIV(1,'Design the AEF circuit'!$H$14*1000),IMPRODUCT(B163,'Design the AEF circuit'!$I$14*0.000000000001))),COMPLEX(I163,J163,"j")) -> 742.742385553609+623.396140449341j
A164: ='Frequency vector'!G164 -> 71175.2738 | B164: =COMPLEX(0,2*PI()*'Frequency vector'!G164,"j") -> 447207.43460064j | C164: =IF(IF(CMdata=1,IMABS(K164),'CM choke'!C168)=0, C163, IF(CMdata=1,IMABS(K164),'CM choke'!C168)) -> 180.322 | D164: =IF(IF(CMdata=1,DEGREES(IMARGUMENT(K164)),'CM choke'!D168)=0, D163, IF(CMdata=1,DEGREES(IMARGUMENT(K164)),'CM choke'!D168)) -> 34.5496 | E164: =IF(IF(CMdata=1,IMABS(L164),'CM choke'!E168)=0, E163, IF(CMdata=1,IMABS(L164),'CM choke'!E168)) -> 979.318 | F164: =IF(IF(CMdata=1,DEGREES(IMARGUMENT(L164)),'CM choke'!F168)=0, F163, IF(CMdata=1,DEGREES(IMARGUMENT(L164)),'CM choke'!F168)) -> 39.8327 | G164: 148.5196099 | H164: 102.2641147 | I164: 752.0359918 | J164: 627.3002568 | K164: =IF(CMdata=1,IMDIV(1,IMSUM(IMDIV(1,IMPRODUCT(B164,'Design the AEF circuit'!$G$13*0.001)),IMDIV(1,'Design the AEF circuit'!$H$13*1000),IMPRODUCT(B164,'Design the AEF circuit'!$I$13*0.000000000001))),COMPLEX(G164,H164,"j")) -> 148.519609909406+102.264114704807j | L164: =IF(CMdata=1,IMDIV(1,IMSUM(IMDIV(1,IMPRODUCT(B164,'Design the AEF circuit'!$G$14*0.001)),IMDIV(1,'Design the AEF circuit'!$H$14*1000),IMPRODUCT(B164,'Design the AEF circuit'!$I$14*0.000000000001))),COMPLEX(I164,J164,"j")) -> 752.035991781644+627.3002568061j
A165: ='Frequency vector'!G165 -> 73086.01732 | B165: =COMPLEX(0,2*PI()*'Frequency vector'!G165,"j") -> 459212.990174722j | C165: =IF(IF(CMdata=1,IMABS(K165),'CM choke'!C169)=0, C164, IF(CMdata=1,IMABS(K165),'CM choke'!C169)) -> 181.755 | D165: =IF(IF(CMdata=1,DEGREES(IMARGUMENT(K165)),'CM choke'!D169)=0, D164, IF(CMdata=1,DEGREES(IMARGUMENT(K165)),'CM choke'!D169)) -> 34.3823 | E165: =IF(IF(CMdata=1,IMABS(L165),'CM choke'!E169)=0, E164, IF(CMdata=1,IMABS(L165),'CM choke'!E169)) -> 988.731 | F165: =IF(IF(CMdata=1,DEGREES(IMARGUMENT(L165)),'CM choke'!F169)=0, F164, IF(CMdata=1,DEGREES(IMARGUMENT(L165)),'CM choke'!F169)) -> 39.621 | G165: 150.0002187 | H165: 102.639244 | I165: 761.5992825 | J165: 630.5200419 | K165: =IF(CMdata=1,IMDIV(1,IMSUM(IMDIV(1,IMPRODUCT(B165,'Design the AEF circuit'!$G$13*0.001)),IMDIV(1,'Design the AEF circuit'!$H$13*1000),IMPRODUCT(B165,'Design the AEF circuit'!$I$13*0.000000000001))),COMPLEX(G165,H165,"j")) -> 150.000218688279+102.639244046654j | L165: =IF(CMdata=1,IMDIV(1,IMSUM(IMDIV(1,IMPRODUCT(B165,'Design the AEF circuit'!$G$14*0.001)),IMDIV(1,'Design the AEF circuit'!$H$14*1000),IMPRODUCT(B165,'Design the AEF circuit'!$I$14*0.000000000001))),COMPLEX(I165,J165,"j")) -> 761.599282537991+630.520041869104j
A166: ='Frequency vector'!G166 -> 75048.0559 | B166: =COMPLEX(0,2*PI()*'Frequency vector'!G166,"j") -> 471540.842189986j | C166: =IF(IF(CMdata=1,IMABS(K166),'CM choke'!C170)=0, C165, IF(CMdata=1,IMABS(K166),'CM choke'!C170)) -> 183.283 | D166: =IF(IF(CMdata=1,DEGREES(IMARGUMENT(K166)),'CM choke'!D170)=0, D165, IF(CMdata=1,DEGREES(IMARGUMENT(K166)),'CM choke'!D170)) -> 34.2718 | E166: =IF(IF(CMdata=1,IMABS(L166),'CM choke'!E170)=0, E165, IF(CMdata=1,IMABS(L166),'CM choke'!E170)) -> 998.03 | F166: =IF(IF(CMdata=1,DEGREES(IMARGUMENT(L166)),'CM choke'!F170)=0, F165, IF(CMdata=1,DEGREES(IMARGUMENT(L166)),'CM choke'!F170)) -> 39.4656 | G166: 151.4605903 | H166: 103.210211 | I166: 770.4854889 | J166: 634.3626663 | K166: =IF(CMdata=1,IMDIV(1,IMSUM(IMDIV(1,IMPRODUCT(B166,'Design the AEF circuit'!$G$13*0.001)),IMDIV(1,'Design the AEF circuit'!$H$13*1000),IMPRODUCT(B166,'Design the AEF circuit'!$I$13*0.000000000001))),COMPLEX(G166,H166,"j")) -> 151.460590348938+103.210211026581j | L166: =IF(CMdata=1,IMDIV(1,IMSUM(IMDIV(1,IMPRODUCT(B166,'Design the AEF circuit'!$G$14*0.001)),IMDIV(1,'Design the AEF circuit'!$H$14*1000),IMPRODUCT(B166,'Design the AEF circuit'!$I$14*0.000000000001))),COMPLEX(I166,J166,"j")) -> 770.485488875726+634.362666250099j
A167: ='Frequency vector'!G167 -> 77062.76661 | B167: =COMPLEX(0,2*PI()*'Frequency vector'!G167,"j") -> 484199.642890418j | C167: =IF(IF(CMdata=1,IMABS(K167),'CM choke'!C171)=0, C166, IF(CMdata=1,IMABS(K167),'CM choke'!C171)) -> 184.815 | D167: =IF(IF(CMdata=1,DEGREES(IMARGUMENT(K167)),'CM choke'!D171)=0, D166, IF(CMdata=1,DEGREES(IMARGUMENT(K167)),'CM choke'!D171)) -> 34.1391 | E167: =IF(IF(CMdata=1,IMABS(L167),'CM choke'!E171)=0, E166, IF(CMdata=1,IMABS(L167),'CM choke'!E171)) -> 1007.95 | F167: =IF(IF(CMdata=1,DEGREES(IMARGUMENT(L167)),'CM choke'!F171)=0, F166, IF(CMdata=1,DEGREES(IMARGUMENT(L167)),'CM choke'!F171)) -> 39.3039 | G167: 152.9672261 | H167: 103.7189084 | I167: 779.948782 | J167: 638.4693415 | K167: =IF(CMdata=1,IMDIV(1,IMSUM(IMDIV(1,IMPRODUCT(B167,'Design the AEF circuit'!$G$13*0.001)),IMDIV(1,'Design the AEF circuit'!$H$13*1000),IMPRODUCT(B167,'Design the AEF circuit'!$I$13*0.000000000001))),COMPLEX(G167,H167,"j")) -> 152.967226122217+103.718908389332j | L167: =IF(CMdata=1,IMDIV(1,IMSUM(IMDIV(1,IMPRODUCT(B167,'Design the AEF circuit'!$G$14*0.001)),IMDIV(1,'Design the AEF circuit'!$H$14*1000),IMPRODUCT(B167,'Design the AEF circuit'!$I$14*0.000000000001))),COMPLEX(I167,J167,"j")) -> 779.948781971198+638.469341473531j
A168: ='Frequency vector'!G168 -> 79131.56345 | B168: =COMPLEX(0,2*PI()*'Frequency vector'!G168,"j") -> 497198.276794756j | C168: =IF(IF(CMdata=1,IMABS(K168),'CM choke'!C172)=0, C167, IF(CMdata=1,IMABS(K168),'CM choke'!C172)) -> 186.288 | D168: =IF(IF(CMdata=1,DEGREES(IMARGUMENT(K168)),'CM choke'!D172)=0, D167, IF(CMdata=1,DEGREES(IMARGUMENT(K168)),'CM choke'!D172)) -> 34.0253 | E168: =IF(IF(CMdata=1,IMABS(L168),'CM choke'!E172)=0, E167, IF(CMdata=1,IMABS(L168),'CM choke'!E172)) -> 1017.82 | F168: =IF(IF(CMdata=1,DEGREES(IMARGUMENT(L168)),'CM choke'!F172)=0, F167, IF(CMdata=1,DEGREES(IMARGUMENT(L168)),'CM choke'!F172)) -> 39.1295 | G168: 154.3937377 | H168: 104.2391131 | I168: 789.5449455 | J168: 642.3210501 | K168: =IF(CMdata=1,IMDIV(1,IMSUM(IMDIV(1,IMPRODUCT(B168,'Design the AEF circuit'!$G$13*0.001)),IMDIV(1,'Design the AEF circuit'!$H$13*1000),IMPRODUCT(B168,'Design the AEF circuit'!$I$13*0.000000000001))),COMPLEX(G168,H168,"j")) -> 154.39373768161+104.239113142343j | L168: =IF(CMdata=1,IMDIV(1,IMSUM(IMDIV(1,IMPRODUCT(B168,'Design the AEF circuit'!$G$14*0.001)),IMDIV(1,'Design the AEF circuit'!$H$14*1000),IMPRODUCT(B168,'Design the AEF circuit'!$I$14*0.000000000001))),COMPLEX(I168,J168,"j")) -> 789.544945499825+642.321050126554j
A169: ='Frequency vector'!G169 -> 81255.8984 | B169: =COMPLEX(0,2*PI()*'Frequency vector'!G169,"j") -> 510545.866932044j | C169: =IF(IF(CMdata=1,IMABS(K169),'CM choke'!C173)=0, C168, IF(CMdata=1,IMABS(K169),'CM choke'!C173)) -> 187.913 | D169: =IF(IF(CMdata=1,DEGREES(IMARGUMENT(K169)),'CM choke'!D173)=0, D168, IF(CMdata=1,DEGREES(IMARGUMENT(K169)),'CM choke'!D173)) -> 33.8865 | E169: =IF(IF(CMdata=1,IMABS(L169),'CM choke'!E173)=0, E168, IF(CMdata=1,IMABS(L169),'CM choke'!E173)) -> 1027.47 | F169: =IF(IF(CMdata=1,DEGREES(IMARGUMENT(L169)),'CM choke'!F173)=0, F168, IF(CMdata=1,DEGREES(IMARGUMENT(L169)),'CM choke'!F173)) -> 38.969 | G169: 155.9947889 | H169: 104.7708042 | I169: 798.8438926 | J169: 646.1757007 | K169: =IF(CMdata=1,IMDIV(1,IMSUM(IMDIV(1,IMPRODUCT(B169,'Design the AEF circuit'!$G$13*0.001)),IMDIV(1,'Design the AEF circuit'!$H$13*1000),IMPRODUCT(B169,'Design the AEF circuit'!$I$13*0.000000000001))),COMPLEX(G169,H169,"j")) -> 155.994788898193+104.770804166086j | L169: =IF(CMdata=1,IMDIV(1,IMSUM(IMDIV(1,IMPRODUCT(B169,'Design the AEF circuit'!$G$14*0.001)),IMDIV(1,'Design the AEF circuit'!$H$14*1000),IMPRODUCT(B169,'Design the AEF circuit'!$I$14*0.000000000001))),COMPLEX(I169,J169,"j")) -> 798.843892626058+646.175700652731j
A170: ='Frequency vector'!G170 -> 83437.26241 | B170: =COMPLEX(0,2*PI()*'Frequency vector'!G170,"j") -> 524251.781244592j | C170: =IF(IF(CMdata=1,IMABS(K170),'CM choke'!C174)=0, C169, IF(CMdata=1,IMABS(K170),'CM choke'!C174)) -> 189.444 | D170: =IF(IF(CMdata=1,DEGREES(IMARGUMENT(K170)),'CM choke'!D174)=0, D169, IF(CMdata=1,DEGREES(IMARGUMENT(K170)),'CM choke'!D174)) -> 33.777 | E170: =IF(IF(CMdata=1,IMABS(L170),'CM choke'!E174)=0, E169, IF(CMdata=1,IMABS(L170),'CM choke'!E174)) -> 1037.28 | F170: =IF(IF(CMdata=1,DEGREES(IMARGUMENT(L170)),'CM choke'!F174)=0, F169, IF(CMdata=1,DEGREES(IMARGUMENT(L170)),'CM choke'!F174)) -> 38.8246 | G170: 157.4673141 | H170: 105.3236636 | I170: 808.1125472 | J170: 650.3106253 | K170: =IF(CMdata=1,IMDIV(1,IMSUM(IMDIV(1,IMPRODUCT(B170,'Design the AEF circuit'!$G$13*0.001)),IMDIV(1,'Design the AEF circuit'!$H$13*1000),IMPRODUCT(B170,'Design the AEF circuit'!$I$13*0.000000000001))),COMPLEX(G170,H170,"j")) -> 157.467314111765+105.323663639406j | L170: =IF(CMdata=1,IMDIV(1,IMSUM(IMDIV(1,IMPRODUCT(B170,'Design the AEF circuit'!$G$14*0.001)),IMDIV(1,'Design the AEF circuit'!$H$14*1000),IMPRODUCT(B170,'Design the AEF circuit'!$I$14*0.000000000001))),COMPLEX(I170,J170,"j")) -> 808.112547242671+650.310625308369j
A171: ='Frequency vector'!G171 -> 85677.18647 | B171: =COMPLEX(0,2*PI()*'Frequency vector'!G171,"j") -> 538325.639162816j | C171: =IF(IF(CMdata=1,IMABS(K171),'CM choke'!C175)=0, C170, IF(CMdata=1,IMABS(K171),'CM choke'!C175)) -> 191.096 | D171: =IF(IF(CMdata=1,DEGREES(IMARGUMENT(K171)),'CM choke'!D175)=0, D170, IF(CMdata=1,DEGREES(IMARGUMENT(K171)),'CM choke'!D175)) -> 33.6195 | E171: =IF(IF(CMdata=1,IMABS(L171),'CM choke'!E175)=0, E170, IF(CMdata=1,IMABS(L171),'CM choke'!E175)) -> 1048.05 | F171: =IF(IF(CMdata=1,DEGREES(IMARGUMENT(L171)),'CM choke'!F175)=0, F170, IF(CMdata=1,DEGREES(IMARGUMENT(L171)),'CM choke'!F175)) -> 38.6401 | G171: 159.131917 | H171: 105.8050765 | I171: 818.6147111 | J171: 654.4301012 | K171: =IF(CMdata=1,IMDIV(1,IMSUM(IMDIV(1,IMPRODUCT(B171,'Design the AEF circuit'!$G$13*0.001)),IMDIV(1,'Design the AEF circuit'!$H$13*1000),IMPRODUCT(B171,'Design the AEF circuit'!$I$13*0.000000000001))),COMPLEX(G171,H171,"j")) -> 159.131917016106+105.805076450893j | L171: =IF(CMdata=1,IMDIV(1,IMSUM(IMDIV(1,IMPRODUCT(B171,'Design the AEF circuit'!$G$14*0.001)),IMDIV(1,'Design the AEF circuit'!$H$14*1000),IMPRODUCT(B171,'Design the AEF circuit'!$I$14*0.000000000001))),COMPLEX(I171,J171,"j")) -> 818.614711050471+654.430101196265j
A172: ='Frequency vector'!G172 -> 87977.24265 | B172: =COMPLEX(0,2*PI()*'Frequency vector'!G172,"j") -> 552777.318356598j | C172: =IF(IF(CMdata=1,IMABS(K172),'CM choke'!C176)=0, C171, IF(CMdata=1,IMABS(K172),'CM choke'!C176)) -> 192.681 | D172: =IF(IF(CMdata=1,DEGREES(IMARGUMENT(K172)),'CM choke'!D176)=0, D171, IF(CMdata=1,DEGREES(IMARGUMENT(K172)),'CM choke'!D176)) -> 33.5519 | E172: =IF(IF(CMdata=1,IMABS(L172),'CM choke'!E176)=0, E171, IF(CMdata=1,IMABS(L172),'CM choke'!E176)) -> 1058.04 | F172: =IF(IF(CMdata=1,DEGREES(IMARGUMENT(L172)),'CM choke'!F176)=0, F171, IF(CMdata=1,DEGREES(IMARGUMENT(L172)),'CM choke'!F176)) -> 38.5019 | G172: 160.5775556 | H172: 106.4932692 | I172: 828.0088923 | J172: 658.6728443 | K172: =IF(CMdata=1,IMDIV(1,IMSUM(IMDIV(1,IMPRODUCT(B172,'Design the AEF circuit'!$G$13*0.001)),IMDIV(1,'Design the AEF circuit'!$H$13*1000),IMPRODUCT(B172,'Design the AEF circuit'!$I$13*0.000000000001))),COMPLEX(G172,H172,"j")) -> 160.577555613986+106.493269242884j | L172: =IF(CMdata=1,IMDIV(1,IMSUM(IMDIV(1,IMPRODUCT(B172,'Design the AEF circuit'!$G$14*0.001)),IMDIV(1,'Design the AEF circuit'!$H$14*1000),IMPRODUCT(B172,'Design the AEF circuit'!$I$14*0.000000000001))),COMPLEX(I172,J172,"j")) -> 828.008892312729+658.672844324896j
A173: ='Frequency vector'!G173 -> 90339.04523 | B173: =COMPLEX(0,2*PI()*'Frequency vector'!G173,"j") -> 567616.961667869j | C173: =IF(IF(CMdata=1,IMABS(K173),'CM choke'!C177)=0, C172, IF(CMdata=1,IMABS(K173),'CM choke'!C177)) -> 194.327 | D173: =IF(IF(CMdata=1,DEGREES(IMARGUMENT(K173)),'CM choke'!D177)=0, D172, IF(CMdata=1,DEGREES(IMARGUMENT(K173)),'CM choke'!D177)) -> 33.4279 | E173: =IF(IF(CMdata=1,IMABS(L173),'CM choke'!E177)=0, E172, IF(CMdata=1,IMABS(L173),'CM choke'!E177)) -> 1068.15 | F173: =IF(IF(CMdata=1,DEGREES(IMARGUMENT(L173)),'CM choke'!F177)=0, F172, IF(CMdata=1,DEGREES(IMARGUMENT(L173)),'CM choke'!F177)) -> 38.3577 | G173: 162.1813712 | H173: 107.0522572 | I173: 837.5917677 | J173: 662.8608098 | K173: =IF(CMdata=1,IMDIV(1,IMSUM(IMDIV(1,IMPRODUCT(B173,'Design the AEF circuit'!$G$13*0.001)),IMDIV(1,'Design the AEF circuit'!$H$13*1000),IMPRODUCT(B173,'Design the AEF circuit'!$I$13*0.000000000001))),COMPLEX(G173,H173,"j")) -> 162.18137119382+107.052257177009j | L173: =IF(CMdata=1,IMDIV(1,IMSUM(IMDIV(1,IMPRODUCT(B173,'Design the AEF circuit'!$G$14*0.001)),IMDIV(1,'Design the AEF circuit'!$H$14*1000),IMPRODUCT(B173,'Design the AEF circuit'!$I$14*0.000000000001))),COMPLEX(I173,J173,"j")) -> 837.591767745181+662.860809752322j
A174: ='Frequency vector'!G174 -> 92764.25185 | B174: =COMPLEX(0,2*PI()*'Frequency vector'!G174,"j") -> 582854.984229325j | C174: =IF(IF(CMdata=1,IMABS(K174),'CM choke'!C178)=0, C173, IF(CMdata=1,IMABS(K174),'CM choke'!C178)) -> 195.926 | D174: =IF(IF(CMdata=1,DEGREES(IMARGUMENT(K174)),'CM choke'!D178)=0, D173, IF(CMdata=1,DEGREES(IMARGUMENT(K174)),'CM choke'!D178)) -> 33.3299 | E174: =IF(IF(CMdata=1,IMABS(L174),'CM choke'!E178)=0, E173, IF(CMdata=1,IMABS(L174),'CM choke'!E178)) -> 1078.63 | F174: =IF(IF(CMdata=1,DEGREES(IMARGUMENT(L174)),'CM choke'!F178)=0, F173, IF(CMdata=1,DEGREES(IMARGUMENT(L174)),'CM choke'!F178)) -> 38.2346 | G174: 163.7002361 | H174: 107.6532868 | I174: 847.2458551 | J174: 667.5456073 | K174: =IF(CMdata=1,IMDIV(1,IMSUM(IMDIV(1,IMPRODUCT(B174,'Design the AEF circuit'!$G$13*0.001)),IMDIV(1,'Design the AEF circuit'!$H$13*1000),IMPRODUCT(B174,'Design the AEF circuit'!$I$13*0.000000000001))),COMPLEX(G174,H174,"j")) -> 163.700236137574+107.653286826285j | L174: =IF(CMdata=1,IMDIV(1,IMSUM(IMDIV(1,IMPRODUCT(B174,'Design the AEF circuit'!$G$14*0.001)),IMDIV(1,'Design the AEF circuit'!$H$14*1000),IMPRODUCT(B174,'Design the AEF circuit'!$I$14*0.000000000001))),COMPLEX(I174,J174,"j")) -> 847.245855136384+667.545607321491j
A175: ='Frequency vector'!G175 -> 95254.56461 | B175: =COMPLEX(0,2*PI()*'Frequency vector'!G175,"j") -> 598502.080774231j | C175: =IF(IF(CMdata=1,IMABS(K175),'CM choke'!C179)=0, C174, IF(CMdata=1,IMABS(K175),'CM choke'!C179)) -> 197.62 | D175: =IF(IF(CMdata=1,DEGREES(IMARGUMENT(K175)),'CM choke'!D179)=0, D174, IF(CMdata=1,DEGREES(IMARGUMENT(K175)),'CM choke'!D179)) -> 33.2392 | E175: =IF(IF(CMdata=1,IMABS(L175),'CM choke'!E179)=0, E174, IF(CMdata=1,IMABS(L175),'CM choke'!E179)) -> 1089.2 | F175: =IF(IF(CMdata=1,DEGREES(IMARGUMENT(L175)),'CM choke'!F179)=0, F174, IF(CMdata=1,DEGREES(IMARGUMENT(L175)),'CM choke'!F179)) -> 38.1138 | G175: 165.2872914 | H175: 108.322554 | I175: 856.967728 | J175: 672.2819 | K175: =IF(CMdata=1,IMDIV(1,IMSUM(IMDIV(1,IMPRODUCT(B175,'Design the AEF circuit'!$G$13*0.001)),IMDIV(1,'Design the AEF circuit'!$H$13*1000),IMPRODUCT(B175,'Design the AEF circuit'!$I$13*0.000000000001))),COMPLEX(G175,H175,"j")) -> 165.287291375286+108.322554021872j | L175: =IF(CMdata=1,IMDIV(1,IMSUM(IMDIV(1,IMPRODUCT(B175,'Design the AEF circuit'!$G$14*0.001)),IMDIV(1,'Design the AEF circuit'!$H$14*1000),IMPRODUCT(B175,'Design the AEF circuit'!$I$14*0.000000000001))),COMPLEX(I175,J175,"j")) -> 856.967728028108+672.281900037731j
A176: ='Frequency vector'!G176 -> 97811.73133 | B176: =COMPLEX(0,2*PI()*'Frequency vector'!G176,"j") -> 614569.233142471j | C176: =IF(IF(CMdata=1,IMABS(K176),'CM choke'!C180)=0, C175, IF(CMdata=1,IMABS(K176),'CM choke'!C180)) -> 199.263 | D176: =IF(IF(CMdata=1,DEGREES(IMARGUMENT(K176)),'CM choke'!D180)=0, D175, IF(CMdata=1,DEGREES(IMARGUMENT(K176)),'CM choke'!D180)) -> 33.1568 | E176: =IF(IF(CMdata=1,IMABS(L176),'CM choke'!E180)=0, E175, IF(CMdata=1,IMABS(L176),'CM choke'!E180)) -> 1099.9 | F176: =IF(IF(CMdata=1,DEGREES(IMARGUMENT(L176)),'CM choke'!F180)=0, F175, IF(CMdata=1,DEGREES(IMARGUMENT(L176)),'CM choke'!F180)) -> 37.983 | G176: 166.8183863 | H176: 108.9833435 | I176: 866.933909 | J176: 676.908862 | K176: =IF(CMdata=1,IMDIV(1,IMSUM(IMDIV(1,IMPRODUCT(B176,'Design the AEF circuit'!$G$13*0.001)),IMDIV(1,'Design the AEF circuit'!$H$13*1000),IMPRODUCT(B176,'Design the AEF circuit'!$I$13*0.000000000001))),COMPLEX(G176,H176,"j")) -> 166.818386307319+108.983343492582j | L176: =IF(CMdata=1,IMDIV(1,IMSUM(IMDIV(1,IMPRODUCT(B176,'Design the AEF circuit'!$G$14*0.001)),IMDIV(1,'Design the AEF circuit'!$H$14*1000),IMPRODUCT(B176,'Design the AEF circuit'!$I$14*0.000000000001))),COMPLEX(I176,J176,"j")) -> 866.93390895154+676.908862041267j
A177: ='Frequency vector'!G177 -> 100437.5467 | B177: =COMPLEX(0,2*PI()*'Frequency vector'!G177,"j") -> 631067.717988104j | C177: =IF(IF(CMdata=1,IMABS(K177),'CM choke'!C181)=0, C176, IF(CMdata=1,IMABS(K177),'CM choke'!C181)) -> 200.828 | D177: =IF(IF(CMdata=1,DEGREES(IMARGUMENT(K177)),'CM choke'!D181)=0, D176, IF(CMdata=1,DEGREES(IMARGUMENT(K177)),'CM choke'!D181)) -> 33.0871 | E177: =IF(IF(CMdata=1,IMABS(L177),'CM choke'!E181)=0, E176, IF(CMdata=1,IMABS(L177),'CM choke'!E181)) -> 1110.19 | F177: =IF(IF(CMdata=1,DEGREES(IMARGUMENT(L177)),'CM choke'!F181)=0, F176, IF(CMdata=1,DEGREES(IMARGUMENT(L177)),'CM choke'!F181)) -> 37.8562 | G177: 168.2620627 | H177: 109.6346836 | I177: 876.5543415 | J177: 681.3033998 | K177: =IF(CMdata=1,IMDIV(1,IMSUM(IMDIV(1,IMPRODUCT(B177,'Design the AEF circuit'!$G$13*0.001)),IMDIV(1,'Design the AEF circuit'!$H$13*1000),IMPRODUCT(B177,'Design the AEF circuit'!$I$13*0.000000000001))),COMPLEX(G177,H177,"j")) -> 168.262062657987+109.634683627398j | L177: =IF(CMdata=1,IMDIV(1,IMSUM(IMDIV(1,IMPRODUCT(B177,'Design the AEF circuit'!$G$14*0.001)),IMDIV(1,'Design the AEF circuit'!$H$14*1000),IMPRODUCT(B177,'Design the AEF circuit'!$I$14*0.000000000001))),COMPLEX(I177,J177,"j")) -> 876.554341470652+681.303399777919j
A178: ='Frequency vector'!G178 -> 103133.8538 | B178: =COMPLEX(0,2*PI()*'Frequency vector'!G178,"j") -> 648009.114693824j | C178: =IF(IF(CMdata=1,IMABS(K178),'CM choke'!C182)=0, C177, IF(CMdata=1,IMABS(K178),'CM choke'!C182)) -> 202.582 | D178: =IF(IF(CMdata=1,DEGREES(IMARGUMENT(K178)),'CM choke'!D182)=0, D177, IF(CMdata=1,DEGREES(IMARGUMENT(K178)),'CM choke'!D182)) -> 33.0048 | E178: =IF(IF(CMdata=1,IMABS(L178),'CM choke'!E182)=0, E177, IF(CMdata=1,IMABS(L178),'CM choke'!E182)) -> 1121.01 | F178: =IF(IF(CMdata=1,DEGREES(IMARGUMENT(L178)),'CM choke'!F182)=0, F177, IF(CMdata=1,DEGREES(IMARGUMENT(L178)),'CM choke'!F182)) -> 37.7511 | G178: 169.8903171 | H178: 110.3482981 | I178: 886.3577429 | J178: 686.3187101 | K178: =IF(CMdata=1,IMDIV(1,IMSUM(IMDIV(1,IMPRODUCT(B178,'Design the AEF circuit'!$G$13*0.001)),IMDIV(1,'Design the AEF circuit'!$H$13*1000),IMPRODUCT(B178,'Design the AEF circuit'!$I$13*0.000000000001))),COMPLEX(G178,H178,"j")) -> 169.890317074307+110.348298076552j | L178: =IF(CMdata=1,IMDIV(1,IMSUM(IMDIV(1,IMPRODUCT(B178,'Design the AEF circuit'!$G$14*0.001)),IMDIV(1,'Design the AEF circuit'!$H$14*1000),IMPRODUCT(B178,'Design the AEF circuit'!$I$14*0.000000000001))),COMPLEX(I178,J178,"j")) -> 886.357742852607+686.318710064961j
A179: ='Frequency vector'!G179 -> 105902.5448 | B179: =COMPLEX(0,2*PI()*'Frequency vector'!G179,"j") -> 665405.313497887j | C179: =IF(IF(CMdata=1,IMABS(K179),'CM choke'!C183)=0, C178, IF(CMdata=1,IMABS(K179),'CM choke'!C183)) -> 204.287 | D179: =IF(IF(CMdata=1,DEGREES(IMARGUMENT(K179)),'CM choke'!D183)=0, D178, IF(CMdata=1,DEGREES(IMARGUMENT(K179)),'CM choke'!D183)) -> 32.9067 | E179: =IF(IF(CMdata=1,IMABS(L179),'CM choke'!E183)=0, E178, IF(CMdata=1,IMABS(L179),'CM choke'!E183)) -> 1132.1 | F179: =IF(IF(CMdata=1,DEGREES(IMARGUMENT(L179)),'CM choke'!F183)=0, F178, IF(CMdata=1,DEGREES(IMARGUMENT(L179)),'CM choke'!F183)) -> 37.6302 | G179: 171.5104464 | H179: 110.9835355 | I179: 896.5868961 | J179: 691.2180175 | K179: =IF(CMdata=1,IMDIV(1,IMSUM(IMDIV(1,IMPRODUCT(B179,'Design the AEF circuit'!$G$13*0.001)),IMDIV(1,'Design the AEF circuit'!$H$13*1000),IMPRODUCT(B179,'Design the AEF circuit'!$I$13*0.000000000001))),COMPLEX(G179,H179,"j")) -> 171.51044635047+110.983535543172j | L179: =IF(CMdata=1,IMDIV(1,IMSUM(IMDIV(1,IMPRODUCT(B179,'Design the AEF circuit'!$G$14*0.001)),IMDIV(1,'Design the AEF circuit'!$H$14*1000),IMPRODUCT(B179,'Design the AEF circuit'!$I$14*0.000000000001))),COMPLEX(I179,J179,"j")) -> 896.58689609193+691.218017528651j
A180: ='Frequency vector'!G180 -> 108745.563 | B180: =COMPLEX(0,2*PI()*'Frequency vector'!G180,"j") -> 683268.523839243j | C180: =IF(IF(CMdata=1,IMABS(K180),'CM choke'!C184)=0, C179, IF(CMdata=1,IMABS(K180),'CM choke'!C184)) -> 206.073 | D180: =IF(IF(CMdata=1,DEGREES(IMARGUMENT(K180)),'CM choke'!D184)=0, D179, IF(CMdata=1,DEGREES(IMARGUMENT(K180)),'CM choke'!D184)) -> 32.8471 | E180: =IF(IF(CMdata=1,IMABS(L180),'CM choke'!E184)=0, E179, IF(CMdata=1,IMABS(L180),'CM choke'!E184)) -> 1143.14 | F180: =IF(IF(CMdata=1,DEGREES(IMARGUMENT(L180)),'CM choke'!F184)=0, F179, IF(CMdata=1,DEGREES(IMARGUMENT(L180)),'CM choke'!F184)) -> 37.5219 | G180: 173.1262565 | H180: 111.7737922 | I180: 906.6478795 | J180: 696.2461362 | K180: =IF(CMdata=1,IMDIV(1,IMSUM(IMDIV(1,IMPRODUCT(B180,'Design the AEF circuit'!$G$13*0.001)),IMDIV(1,'Design the AEF circuit'!$H$13*1000),IMPRODUCT(B180,'Design the AEF circuit'!$I$13*0.000000000001))),COMPLEX(G180,H180,"j")) -> 173.12625653438+111.773792220681j | L180: =IF(CMdata=1,IMDIV(1,IMSUM(IMDIV(1,IMPRODUCT(B180,'Design the AEF circuit'!$G$14*0.001)),IMDIV(1,'Design the AEF circuit'!$H$14*1000),IMPRODUCT(B180,'Design the AEF circuit'!$I$14*0.000000000001))),COMPLEX(I180,J180,"j")) -> 906.647879510689+696.246136203837j
A181: ='Frequency vector'!G181 -> 111664.9038 | B181: =COMPLEX(0,2*PI()*'Frequency vector'!G181,"j") -> 701611.28292664j | C181: =IF(IF(CMdata=1,IMABS(K181),'CM choke'!C185)=0, C180, IF(CMdata=1,IMABS(K181),'CM choke'!C185)) -> 207.818 | D181: =IF(IF(CMdata=1,DEGREES(IMARGUMENT(K181)),'CM choke'!D185)=0, D180, IF(CMdata=1,DEGREES(IMARGUMENT(K181)),'CM choke'!D185)) -> 32.7364 | E181: =IF(IF(CMdata=1,IMABS(L181),'CM choke'!E185)=0, E180, IF(CMdata=1,IMABS(L181),'CM choke'!E185)) -> 1154.69 | F181: =IF(IF(CMdata=1,DEGREES(IMARGUMENT(L181)),'CM choke'!F185)=0, F180, IF(CMdata=1,DEGREES(IMARGUMENT(L181)),'CM choke'!F185)) -> 37.3796 | G181: 174.8097262 | H181: 112.3827422 | I181: 917.5522669 | J181: 701.0041609 | K181: =IF(CMdata=1,IMDIV(1,IMSUM(IMDIV(1,IMPRODUCT(B181,'Design the AEF circuit'!$G$13*0.001)),IMDIV(1,'Design the AEF circuit'!$H$13*1000),IMPRODUCT(B181,'Design the AEF circuit'!$I$13*0.000000000001))),COMPLEX(G181,H181,"j")) -> 174.809726225232+112.382742185175j | L181: =IF(CMdata=1,IMDIV(1,IMSUM(IMDIV(1,IMPRODUCT(B181,'Design the AEF circuit'!$G$14*0.001)),IMDIV(1,'Design the AEF circuit'!$H$14*1000),IMPRODUCT(B181,'Design the AEF circuit'!$I$14*0.000000000001))),COMPLEX(I181,J181,"j")) -> 917.552266885466+701.004160924415j
A182: ='Frequency vector'!G182 -> 114662.6161 | B182: =COMPLEX(0,2*PI()*'Frequency vector'!G182,"j") -> 720446.464537833j | C182: =IF(IF(CMdata=1,IMABS(K182),'CM choke'!C186)=0, C181, IF(CMdata=1,IMABS(K182),'CM choke'!C186)) -> 209.645 | D182: =IF(IF(CMdata=1,DEGREES(IMARGUMENT(K182)),'CM choke'!D186)=0, D181, IF(CMdata=1,DEGREES(IMARGUMENT(K182)),'CM choke'!D186)) -> 32.6955 | E182: =IF(IF(CMdata=1,IMABS(L182),'CM choke'!E186)=0, E181, IF(CMdata=1,IMABS(L182),'CM choke'!E186)) -> 1166.08 | F182: =IF(IF(CMdata=1,DEGREES(IMARGUMENT(L182)),'CM choke'!F186)=0, F181, IF(CMdata=1,DEGREES(IMARGUMENT(L182)),'CM choke'!F186)) -> 37.2935 | G182: 176.4274227 | H182: 113.2448258 | I182: 927.6658753 | J182: 706.525718 | K182: =IF(CMdata=1,IMDIV(1,IMSUM(IMDIV(1,IMPRODUCT(B182,'Design the AEF circuit'!$G$13*0.001)),IMDIV(1,'Design the AEF circuit'!$H$13*1000),IMPRODUCT(B182,'Design the AEF circuit'!$I$13*0.000000000001))),COMPLEX(G182,H182,"j")) -> 176.427422652878+113.244825758455j | L182: =IF(CMdata=1,IMDIV(1,IMSUM(IMDIV(1,IMPRODUCT(B182,'Design the AEF circuit'!$G$14*0.001)),IMDIV(1,'Design the AEF circuit'!$H$14*1000),IMPRODUCT(B182,'Design the AEF circuit'!$I$14*0.000000000001))),COMPLEX(I182,J182,"j")) -> 927.665875324861+706.525717973351j
A183: ='Frequency vector'!G183 -> 117740.8037 | B183: =COMPLEX(0,2*PI()*'Frequency vector'!G183,"j") -> 739787.288054962j | C183: =IF(IF(CMdata=1,IMABS(K183),'CM choke'!C187)=0, C182, IF(CMdata=1,IMABS(K183),'CM choke'!C187)) -> 211.334 | D183: =IF(IF(CMdata=1,DEGREES(IMARGUMENT(K183)),'CM choke'!D187)=0, D182, IF(CMdata=1,DEGREES(IMARGUMENT(K183)),'CM choke'!D187)) -> 32.6059 | E183: =IF(IF(CMdata=1,IMABS(L183),'CM choke'!E187)=0, E182, IF(CMdata=1,IMABS(L183),'CM choke'!E187)) -> 1177.6 | F183: =IF(IF(CMdata=1,DEGREES(IMARGUMENT(L183)),'CM choke'!F187)=0, F182, IF(CMdata=1,DEGREES(IMARGUMENT(L183)),'CM choke'!F187)) -> 37.1787 | G183: 178.0271092 | H183: 113.8789179 | I183: 938.2582473 | J183: 711.6271645 | K183: =IF(CMdata=1,IMDIV(1,IMSUM(IMDIV(1,IMPRODUCT(B183,'Design the AEF circuit'!$G$13*0.001)),IMDIV(1,'Design the AEF circuit'!$H$13*1000),IMPRODUCT(B183,'Design the AEF circuit'!$I$13*0.000000000001))),COMPLEX(G183,H183,"j")) -> 178.027109196814+113.878917921737j | L183: =IF(CMdata=1,IMDIV(1,IMSUM(IMDIV(1,IMPRODUCT(B183,'Design the AEF circuit'!$G$14*0.001)),IMDIV(1,'Design the AEF circuit'!$H$14*1000),IMPRODUCT(B183,'Design the AEF circuit'!$I$14*0.000000000001))),COMPLEX(I183,J183,"j")) -> 938.258247343265+711.627164526724j
A184: ='Frequency vector'!G184 -> 120901.6272 | B184: =COMPLEX(0,2*PI()*'Frequency vector'!G184,"j") -> 759647.327742525j | C184: =IF(IF(CMdata=1,IMABS(K184),'CM choke'!C188)=0, C183, IF(CMdata=1,IMABS(K184),'CM choke'!C188)) -> 213.183 | D184: =IF(IF(CMdata=1,DEGREES(IMARGUMENT(K184)),'CM choke'!D188)=0, D183, IF(CMdata=1,DEGREES(IMARGUMENT(K184)),'CM choke'!D188)) -> 32.5392 | E184: =IF(IF(CMdata=1,IMABS(L184),'CM choke'!E188)=0, E183, IF(CMdata=1,IMABS(L184),'CM choke'!E188)) -> 1189.47 | F184: =IF(IF(CMdata=1,DEGREES(IMARGUMENT(L184)),'CM choke'!F188)=0, F183, IF(CMdata=1,DEGREES(IMARGUMENT(L184)),'CM choke'!F188)) -> 37.1045 | G184: 179.7183096 | H184: 114.6661269 | I184: 948.6458007 | J184: 717.5723139 | K184: =IF(CMdata=1,IMDIV(1,IMSUM(IMDIV(1,IMPRODUCT(B184,'Design the AEF circuit'!$G$13*0.001)),IMDIV(1,'Design the AEF circuit'!$H$13*1000),IMPRODUCT(B184,'Design the AEF circuit'!$I$13*0.000000000001))),COMPLEX(G184,H184,"j")) -> 179.718309643716+114.66612694168j | L184: =IF(CMdata=1,IMDIV(1,IMSUM(IMDIV(1,IMPRODUCT(B184,'Design the AEF circuit'!$G$14*0.001)),IMDIV(1,'Design the AEF circuit'!$H$14*1000),IMPRODUCT(B184,'Design the AEF circuit'!$I$14*0.000000000001))),COMPLEX(I184,J184,"j")) -> 948.645800747923+717.57231386344j
A185: ='Frequency vector'!G185 -> 124147.3049 | B185: =COMPLEX(0,2*PI()*'Frequency vector'!G185,"j") -> 780040.52227441j | C185: =IF(IF(CMdata=1,IMABS(K185),'CM choke'!C189)=0, C184, IF(CMdata=1,IMABS(K185),'CM choke'!C189)) -> 215.026 | D185: =IF(IF(CMdata=1,DEGREES(IMARGUMENT(K185)),'CM choke'!D189)=0, D184, IF(CMdata=1,DEGREES(IMARGUMENT(K185)),'CM choke'!D189)) -> 32.4798 | E185: =IF(IF(CMdata=1,IMABS(L185),'CM choke'!E189)=0, E184, IF(CMdata=1,IMABS(L185),'CM choke'!E189)) -> 1201.24 | F185: =IF(IF(CMdata=1,DEGREES(IMARGUMENT(L185)),'CM choke'!F189)=0, F184, IF(CMdata=1,DEGREES(IMARGUMENT(L185)),'CM choke'!F189)) -> 37.0115 | G185: 181.3918098 | H185: 115.4694419 | I185: 959.2078006 | J185: 723.1168183 | K185: =IF(CMdata=1,IMDIV(1,IMSUM(IMDIV(1,IMPRODUCT(B185,'Design the AEF circuit'!$G$13*0.001)),IMDIV(1,'Design the AEF circuit'!$H$13*1000),IMPRODUCT(B185,'Design the AEF circuit'!$I$13*0.000000000001))),COMPLEX(G185,H185,"j")) -> 181.391809802985+115.469441898701j | L185: =IF(CMdata=1,IMDIV(1,IMSUM(IMDIV(1,IMPRODUCT(B185,'Design the AEF circuit'!$G$14*0.001)),IMDIV(1,'Design the AEF circuit'!$H$14*1000),IMPRODUCT(B185,'Design the AEF circuit'!$I$14*0.000000000001))),COMPLEX(I185,J185,"j")) -> 959.207800563745+723.116818320293j
A186: ='Frequency vector'!G186 -> 127480.1148 | B186: =COMPLEX(0,2*PI()*'Frequency vector'!G186,"j") -> 800981.184516673j | C186: =IF(IF(CMdata=1,IMABS(K186),'CM choke'!C190)=0, C185, IF(CMdata=1,IMABS(K186),'CM choke'!C190)) -> 216.939 | D186: =IF(IF(CMdata=1,DEGREES(IMARGUMENT(K186)),'CM choke'!D190)=0, D185, IF(CMdata=1,DEGREES(IMARGUMENT(K186)),'CM choke'!D190)) -> 32.401 | E186: =IF(IF(CMdata=1,IMABS(L186),'CM choke'!E190)=0, E185, IF(CMdata=1,IMABS(L186),'CM choke'!E190)) -> 1212.98 | F186: =IF(IF(CMdata=1,DEGREES(IMARGUMENT(L186)),'CM choke'!F190)=0, F185, IF(CMdata=1,DEGREES(IMARGUMENT(L186)),'CM choke'!F190)) -> 36.905 | G186: 183.165627 | H186: 116.2449259 | I186: 969.9379374 | J186: 728.3823707 | K186: =IF(CMdata=1,IMDIV(1,IMSUM(IMDIV(1,IMPRODUCT(B186,'Design the AEF circuit'!$G$13*0.001)),IMDIV(1,'Design the AEF circuit'!$H$13*1000),IMPRODUCT(B186,'Design the AEF circuit'!$I$13*0.000000000001))),COMPLEX(G186,H186,"j")) -> 183.165627001683+116.244925936921j | L186: =IF(CMdata=1,IMDIV(1,IMSUM(IMDIV(1,IMPRODUCT(B186,'Design the AEF circuit'!$G$14*0.001)),IMDIV(1,'Design the AEF circuit'!$H$14*1000),IMPRODUCT(B186,'Design the AEF circuit'!$I$14*0.000000000001))),COMPLEX(I186,J186,"j")) -> 969.937937392087+728.382370741895j
A187: ='Frequency vector'!G187 -> 130902.3961 | B187: =COMPLEX(0,2*PI()*'Frequency vector'!G187,"j") -> 822484.011572977j | C187: =IF(IF(CMdata=1,IMABS(K187),'CM choke'!C191)=0, C186, IF(CMdata=1,IMABS(K187),'CM choke'!C191)) -> 218.832 | D187: =IF(IF(CMdata=1,DEGREES(IMARGUMENT(K187)),'CM choke'!D191)=0, D186, IF(CMdata=1,DEGREES(IMARGUMENT(K187)),'CM choke'!D191)) -> 32.3553 | E187: =IF(IF(CMdata=1,IMABS(L187),'CM choke'!E191)=0, E186, IF(CMdata=1,IMABS(L187),'CM choke'!E191)) -> 1225.06 | F187: =IF(IF(CMdata=1,DEGREES(IMARGUMENT(L187)),'CM choke'!F191)=0, F186, IF(CMdata=1,DEGREES(IMARGUMENT(L187)),'CM choke'!F191)) -> 36.8283 | G187: 184.8573911 | H187: 117.1118661 | I187: 980.5813895 | J187: 734.3242759 | K187: =IF(CMdata=1,IMDIV(1,IMSUM(IMDIV(1,IMPRODUCT(B187,'Design the AEF circuit'!$G$13*0.001)),IMDIV(1,'Design the AEF circuit'!$H$13*1000),IMPRODUCT(B187,'Design the AEF circuit'!$I$13*0.000000000001))),COMPLEX(G187,H187,"j")) -> 184.857391089448+117.111866109302j | L187: =IF(CMdata=1,IMDIV(1,IMSUM(IMDIV(1,IMPRODUCT(B187,'Design the AEF circuit'!$G$14*0.001)),IMDIV(1,'Design the AEF circuit'!$H$14*1000),IMPRODUCT(B187,'Design the AEF circuit'!$I$14*0.000000000001))),COMPLEX(I187,J187,"j")) -> 980.581389471089+734.324275931926j
A188: ='Frequency vector'!G188 -> 134416.5505 | B188: =COMPLEX(0,2*PI()*'Frequency vector'!G188,"j") -> 844564.095099651j | C188: =IF(IF(CMdata=1,IMABS(K188),'CM choke'!C192)=0, C187, IF(CMdata=1,IMABS(K188),'CM choke'!C192)) -> 220.709 | D188: =IF(IF(CMdata=1,DEGREES(IMARGUMENT(K188)),'CM choke'!D192)=0, D187, IF(CMdata=1,DEGREES(IMARGUMENT(K188)),'CM choke'!D192)) -> 32.2961 | E188: =IF(IF(CMdata=1,IMABS(L188),'CM choke'!E192)=0, E187, IF(CMdata=1,IMABS(L188),'CM choke'!E192)) -> 1237.63 | F188: =IF(IF(CMdata=1,DEGREES(IMARGUMENT(L188)),'CM choke'!F192)=0, F187, IF(CMdata=1,DEGREES(IMARGUMENT(L188)),'CM choke'!F192)) -> 36.7327 | G188: 186.5649212 | H188: 117.9236739 | I188: 991.8793004 | J188: 740.2050192 | K188: =IF(CMdata=1,IMDIV(1,IMSUM(IMDIV(1,IMPRODUCT(B188,'Design the AEF circuit'!$G$13*0.001)),IMDIV(1,'Design the AEF circuit'!$H$13*1000),IMPRODUCT(B188,'Design the AEF circuit'!$I$13*0.000000000001))),COMPLEX(G188,H188,"j")) -> 186.564921190619+117.923673883313j | L188: =IF(CMdata=1,IMDIV(1,IMSUM(IMDIV(1,IMPRODUCT(B188,'Design the AEF circuit'!$G$14*0.001)),IMDIV(1,'Design the AEF circuit'!$H$14*1000),IMPRODUCT(B188,'Design the AEF circuit'!$I$14*0.000000000001))),COMPLEX(I188,J188,"j")) -> 991.879300366468+740.205019170045j
A189: ='Frequency vector'!G189 -> 138025.0445 | B189: =COMPLEX(0,2*PI()*'Frequency vector'!G189,"j") -> 867236.931897742j | C189: =IF(IF(CMdata=1,IMABS(K189),'CM choke'!C193)=0, C188, IF(CMdata=1,IMABS(K189),'CM choke'!C193)) -> 222.628 | D189: =IF(IF(CMdata=1,DEGREES(IMARGUMENT(K189)),'CM choke'!D193)=0, D188, IF(CMdata=1,DEGREES(IMARGUMENT(K189)),'CM choke'!D193)) -> 32.2115 | E189: =IF(IF(CMdata=1,IMABS(L189),'CM choke'!E193)=0, E188, IF(CMdata=1,IMABS(L189),'CM choke'!E193)) -> 1250.05 | F189: =IF(IF(CMdata=1,DEGREES(IMARGUMENT(L189)),'CM choke'!F193)=0, F188, IF(CMdata=1,DEGREES(IMARGUMENT(L189)),'CM choke'!F193)) -> 36.6515 | G189: 188.3624772 | H189: 118.6709888 | I189: 1002.891661 | J189: 746.21265 | K189: =IF(CMdata=1,IMDIV(1,IMSUM(IMDIV(1,IMPRODUCT(B189,'Design the AEF circuit'!$G$13*0.001)),IMDIV(1,'Design the AEF circuit'!$H$13*1000),IMPRODUCT(B189,'Design the AEF circuit'!$I$13*0.000000000001))),COMPLEX(G189,H189,"j")) -> 188.362477188936+118.670988751453j | L189: =IF(CMdata=1,IMDIV(1,IMSUM(IMDIV(1,IMPRODUCT(B189,'Design the AEF circuit'!$G$14*0.001)),IMDIV(1,'Design the AEF circuit'!$H$14*1000),IMPRODUCT(B189,'Design the AEF circuit'!$I$14*0.000000000001))),COMPLEX(I189,J189,"j")) -> 1002.89166089722+746.212649988464j
A190: ='Frequency vector'!G190 -> 141730.4108 | B190: =COMPLEX(0,2*PI()*'Frequency vector'!G190,"j") -> 890518.434789333j | C190: =IF(IF(CMdata=1,IMABS(K190),'CM choke'!C194)=0, C189, IF(CMdata=1,IMABS(K190),'CM choke'!C194)) -> 224.51 | D190: =IF(IF(CMdata=1,DEGREES(IMARGUMENT(K190)),'CM choke'!D194)=0, D189, IF(CMdata=1,DEGREES(IMARGUMENT(K190)),'CM choke'!D194)) -> 32.1873 | E190: =IF(IF(CMdata=1,IMABS(L190),'CM choke'!E194)=0, E189, IF(CMdata=1,IMABS(L190),'CM choke'!E194)) -> 1262.39 | F190: =IF(IF(CMdata=1,DEGREES(IMARGUMENT(L190)),'CM choke'!F194)=0, F189, IF(CMdata=1,DEGREES(IMARGUMENT(L190)),'CM choke'!F194)) -> 36.5633 | G190: 190.0053412 | H190: 119.5939397 | I190: 1013.950656 | J190: 752.0190025 | K190: =IF(CMdata=1,IMDIV(1,IMSUM(IMDIV(1,IMPRODUCT(B190,'Design the AEF circuit'!$G$13*0.001)),IMDIV(1,'Design the AEF circuit'!$H$13*1000),IMPRODUCT(B190,'Design the AEF circuit'!$I$13*0.000000000001))),COMPLEX(G190,H190,"j")) -> 190.005341206497+119.593939700148j | L190: =IF(CMdata=1,IMDIV(1,IMSUM(IMDIV(1,IMPRODUCT(B190,'Design the AEF circuit'!$G$14*0.001)),IMDIV(1,'Design the AEF circuit'!$H$14*1000),IMPRODUCT(B190,'Design the AEF circuit'!$I$14*0.000000000001))),COMPLEX(I190,J190,"j")) -> 1013.95065559858+752.019002493422j
A191: ='Frequency vector'!G191 -> 145535.2499 | B191: =COMPLEX(0,2*PI()*'Frequency vector'!G191,"j") -> 914424.943785891j | C191: =IF(IF(CMdata=1,IMABS(K191),'CM choke'!C195)=0, C190, IF(CMdata=1,IMABS(K191),'CM choke'!C195)) -> 226.528 | D191: =IF(IF(CMdata=1,DEGREES(IMARGUMENT(K191)),'CM choke'!D195)=0, D190, IF(CMdata=1,DEGREES(IMARGUMENT(K191)),'CM choke'!D195)) -> 32.1184 | E191: =IF(IF(CMdata=1,IMABS(L191),'CM choke'!E195)=0, E190, IF(CMdata=1,IMABS(L191),'CM choke'!E195)) -> 1275.48 | F191: =IF(IF(CMdata=1,DEGREES(IMARGUMENT(L191)),'CM choke'!F195)=0, F190, IF(CMdata=1,DEGREES(IMARGUMENT(L191)),'CM choke'!F195)) -> 36.4709 | G191: 191.8581669 | H191: 120.4382771 | I191: 1025.688545 | J191: 758.1637281 | K191: =IF(CMdata=1,IMDIV(1,IMSUM(IMDIV(1,IMPRODUCT(B191,'Design the AEF circuit'!$G$13*0.001)),IMDIV(1,'Design the AEF circuit'!$H$13*1000),IMPRODUCT(B191,'Design the AEF circuit'!$I$13*0.000000000001))),COMPLEX(G191,H191,"j")) -> 191.858166882367+120.438277073934j | L191: =IF(CMdata=1,IMDIV(1,IMSUM(IMDIV(1,IMPRODUCT(B191,'Design the AEF circuit'!$G$14*0.001)),IMDIV(1,'Design the AEF circuit'!$H$14*1000),IMPRODUCT(B191,'Design the AEF circuit'!$I$14*0.000000000001))),COMPLEX(I191,J191,"j")) -> 1025.68854524498+758.163728064886j
